Workbook

Sheet Feuil1
C2: Bonus | F2: 1) Ce qui nous interresse est dans la partie jaune, en haut, de gauche a droite. En blanc, les cases a remplir | P2: 3) Choisir entre l'approximation des kits=0 ou kit officiel=1. Dans ce dernier cas, entrer les valeurs des | AF2: choisir une tactique : | AW2: 7) Choisir la position des joueurs (de 1 à 11) | BH2: 8) Entrer les bonus de match que vous pensez avoir.
AF3: Def/Neutre/Off : | AH3: =AF4 -> 433 | AN3: =AF5 -> Neutre
F4: , en jaune pale, les informations. Les données sont indicatives (a 1% pres) pour un moral et une energie max. | P4: caracteristiques de vos kits. | AF4: 433
AF5: Neutre
C6: batiments : | F6: 2) Remplir les cases blanches de "bonus batiments" a "objets" par la valeur des gains. Pour "objet", il | X6: 4) Choisir une tactique. | AT6: Position : | AV6: Capitaine
AH7: 1 | AI7: 2 | AJ7: 3 | AK7: 4 | AL7: 5 | AM7: 6 | AN7: 7 | AO7: 8 | AP7: 9 | AQ7: 10 | AR7: 11 | BH7: Meilleur capitaine :
C8: force : | D8: =Team!A11 -> 73 | F8: s'agit de la valeur max des objets que l'on trouve au marché. | O8: caracteristiques kit en cours | AG8: =IF(G11="","",G11) -> G. Warmuz 430 | AH8: =IF(AG8<>"",AW52*IF($AV$33=1,$BU$55,1),"") -> 1062.6525 | AI8: =IF(AG8<>"",BN52*IF($AV$33=1,$BU$56,1),"") -> 506.7942 | AJ8: =IF(AG8<>"",AW72*IF($AV$33=1,$BU$57,1),"") -> 506.7942 | AK8: =IF(AG8<>"",BN72*IF($AV$33=1,$BU$58,1),"") -> 281.542 | AL8: =IF(AG8<>"",AW92*IF($AV$33=1,$BU$59,1),"") -> 633.4695 | AM8: =IF(AG8<>"",BN92*IF($AV$33=1,$BU$60,1),"") -> 506.7942 | AN8: =IF(AG8<>"",AW112*IF($AV$33=1,$BU$61,1),"") -> 504.7668 | AO8: =IF(AG8<>"",BN112*IF($AV$33=1,$BU$62,1),"") -> 1151.661 | AP8: =IF(AG8<>"",AW132*IF($AV$33=1,$BU$63,1),"") -> 603.3308571 | AQ8: =IF(AG8<>"",BN132*IF($AV$33=1,$BU$64,1),"") -> 800.298 | AR8: =IF(AG8<>"",AW152*IF($AV$33=1,$BU$65,1),"") -> 1151.661 | AT8: 1 | AU8: =IF(ISNA(VLOOKUP(1,$AT$8:$AT$25,1,FALSE)),1,"") ->  | AV8: =IF(AND(AT8<>"",AG8<>""),IF(ISNA(VLOOKUP(AG8,$E$104:$I$121,5,FALSE)),0,VLOOKUP(AG8,$E$104:$I$121,5,FALSE)),"") -> 0.13538 | BH8: =IF(ISNA(VLOOKUP("CAP",D104:I121,2,)),"",VLOOKUP("CAP",D104:I121,2,)) -> G. Warmuz 430 | BL8: =IF(ISNA(VLOOKUP(BH8,E104:I121,5,FALSE)),"",VLOOKUP(BH8,E104:I121,5,FALSE)) -> 0.13538
C9: habilité : | D9: =+Team!B11 -> 89 | Q9: kit 1 | R9: kit 2A | S9: kit 2B | T9: kit 4A | U9: kit 4B | V9: kit 5 | W9: kit 6A | X9: kit 6B | Y9: kit 7 | Z9: kit 8 | AA9: kit 9A | AB9: kit 9B | AC9: kit 10 | AD9: kit 11 | AG9: DS499 | AH9: =IF(AG9<>"",AW53*IF($AV$33=1,$BU$55,1),"") -> 1010.88225 | AI9: =IF(AG9<>"",BN53*IF($AV$33=1,$BU$56,1),"") -> 670.2762 | AJ9: =IF(AG9<>"",AW73*IF($AV$33=1,$BU$57,1),"") -> 670.2762 | AK9: =IF(AG9<>"",BN73*IF($AV$33=1,$BU$58,1),"") -> 457.7328 | AL9: =IF(AG9<>"",AW93*IF($AV$33=1,$BU$59,1),"") -> 1029.8988 | AM9: =IF(AG9<>"",BN93*IF($AV$33=1,$BU$60,1),"") -> 769.45528 | AN9: =IF(AG9<>"",AW113*IF($AV$33=1,$BU$61,1),"") -> 762.03504 | AO9: =IF(AG9<>"",BN113*IF($AV$33=1,$BU$62,1),"") -> 1275.183 | AP9: =IF(AG9<>"",AW133*IF($AV$33=1,$BU$63,1),"") -> 842.3926 | AQ9: =IF(AG9<>"",BN133*IF($AV$33=1,$BU$64,1),"") -> 770.196 | AR9: =IF(AG9<>"",AW153*IF($AV$33=1,$BU$65,1),"") -> 1275.183 | AT9: 2 | AU9: =IF(ISNA(VLOOKUP(2,$AT$8:$AT$25,1,FALSE)),2,"") ->  | AV9: 0.08078 | AY9: nom du joueur | AZ9: kit | BA9: attaque | BC9: defense | BE9: cumulé
C10: vitesse : | D10: =Team!C11 -> 71 | G10: NOM | H10: force | I10: habilité | J10: vitesse | K10: endurance | L10: intelligence | M10: XP | N10: % Capitaine | P10: force | Q10: =IF(Q39=1,Q28,Q20) -> 29 | R10: 65 | S10: 56 | T10: 74 | U10: 74 | V10: 65 | W10: 59 | X10: 59 | Y10: 55 | Z10: 40 | AA10: 44 | AB10: 59 | AC10: 37 | AD10: 44 | AG10: 3 moy 513 | AH10: =IF(AG10<>"",AW54*IF($AV$33=1,$BU$55,1),"") -> 986.3595 | AI10: =IF(AG10<>"",BN54*IF($AV$33=1,$BU$56,1),"") -> 679.3585333 | AJ10: =IF(AG10<>"",AW74*IF($AV$33=1,$BU$57,1),"") -> 679.3585333 | AK10: =IF(AG10<>"",BN74*IF($AV$33=1,$BU$58,1),"") -> 459.5492 | AL10: =IF(AG10<>"",AW94*IF($AV$33=1,$BU$59,1),"") -> 1033.9857 | AM10: =IF(AG10<>"",BN94*IF($AV$33=1,$BU$60,1),"") -> 791.25288 | AN10: =IF(AG10<>"",AW114*IF($AV$33=1,$BU$61,1),"") -> 766.37712 | AO10: =IF(AG10<>"",BN114*IF($AV$33=1,$BU$62,1),"") -> 1282.449 | AP10: =IF(AG10<>"",AW134*IF($AV$33=1,$BU$63,1),"") -> 821.9572 | AQ10: =IF(AG10<>"",BN134*IF($AV$33=1,$BU$64,1),"") -> 751.512 | AR10: =IF(AG10<>"",AW154*IF($AV$33=1,$BU$65,1),"") -> 1282.449 | AT10: 3 | AU10: =IF(ISNA(VLOOKUP(3,$AT$8:$AT$25,1,FALSE)),3,"") ->  | AV10: 0.09176 | AX10: 1 | AY10: =IF(AT8=1,AG8,IF(AT9=1,AG9,IF(AT10=1,AG10,IF(AT11=1,AG11,IF(AT12=1,AG12,IF(AT13=1,AG13,IF(AT14=1,AG14,IF(AT15=1,AG15,BR67)))))))) -> G. Warmuz 430 | AZ10: =IF(AT8=1,BQ103,IF(AT9=1,BQ104,IF(AT10=1,BQ105,IF(AT11=1,BQ106,IF(AT12=1,BQ107,IF(AT13=1,BQ108,IF(AT14=1,BQ109,IF(AT15=1,BQ110,BR124)))))))) -> kit 1 | BA10: =BU67*BQ55 -> 63.7455 | BC10: =BU67*BS55 -> 998.907 | BE10: =ROUND(BU67*BU55,2) -> 1062.65
C11: endurance : | D11: =Team!D11 -> 71 | G11: =IF(Team!C44<>0,Team!C44,"") -> G. Warmuz 430 | H11: =IF($G11<>"",VLOOKUP(Team!X17,Team!$E$41:$F$256,2,FALSE),"") -> 236 | I11: =IF($G11<>"",VLOOKUP(Team!Y17,Team!$E$41:$F$256,2,FALSE),"") -> 532 | J11: =IF($G11<>"",VLOOKUP(Team!Z17,Team!$E$41:$F$256,2,FALSE),"") -> 407 | K11: =IF($G11<>"",VLOOKUP(Team!AA17,Team!$E$41:$F$256,2,FALSE),"") -> 479 | L11: =IF($G11<>"",VLOOKUP(Team!AB17,Team!$E$41:$F$256,2,FALSE),"") -> 492 | M11: =IF($G11<>"",VLOOKUP(Team!X17,Team!$E$41:$P$263,12,FALSE),"") -> 3324 | N11: =G104 -> 0.13058 | P11: habilité | Q11: =IF(Q40=1,Q29,Q21) -> 77 | R11: 43 | S11: 43 | T11: 25 | U11: 37 | V11: 49 | W11: 59 | X11: 46 | Y11: 55 | Z11: 59 | AA11: 59 | AB11: 68 | AC11: 65 | AD11: 59 | AG11: av | AH11: =IF(AG11<>"",AW55*IF($AV$33=1,$BU$55,1),"") -> 1036.767375 | AI11: =IF(AG11<>"",BN55*IF($AV$33=1,$BU$56,1),"") -> 671.1844333 | AJ11: =IF(AG11<>"",AW75*IF($AV$33=1,$BU$57,1),"") -> 671.1844333 | AK11: =IF(AG11<>"",BN75*IF($AV$33=1,$BU$58,1),"") -> 474.0804 | AL11: =IF(AG11<>"",AW95*IF($AV$33=1,$BU$59,1),"") -> 1066.6809 | AM11: =IF(AG11<>"",BN95*IF($AV$33=1,$BU$60,1),"") -> 805.42132 | AN11: =IF(AG11<>"",AW115*IF($AV$33=1,$BU$61,1),"") -> 795.68616 | AO11: =IF(AG11<>"",BN115*IF($AV$33=1,$BU$62,1),"") -> 1331.4945 | AP11: =IF(AG11<>"",AW135*IF($AV$33=1,$BU$63,1),"") -> 863.9633 | AQ11: =IF(AG11<>"",BN135*IF($AV$33=1,$BU$64,1),"") -> 789.918 | AR11: =IF(AG11<>"",AW155*IF($AV$33=1,$BU$65,1),"") -> 1331.4945 | AT11: 4 | AU11: =IF(ISNA(VLOOKUP(4,$AT$8:$AT$25,1,FALSE)),4,"") ->  | AV11: 0.08286 | AX11: 2 | AY11: =IF(AT8=2,AG8,IF(AT9=2,AG9,IF(AT10=2,AG10,IF(AT11=2,AG11,IF(AT12=2,AG12,IF(AT13=2,AG13,IF(AT14=2,AG14,IF(AT15=2,AG15,BR68)))))))) -> DS499 | AZ11: =IF(AT8=2,BS103,IF(AT9=2,BS104,IF(AT10=2,BS105,IF(AT11=2,BS106,IF(AT12=2,BS107,IF(AT13=2,BS108,IF(AT14=2,BS109,IF(AT15=2,BS110,BR125)))))))) -> kit 2A | BA11: 402.1608 | BC11: 268.1154 | BE11: =ROUND(BU68*BU56,2) -> 670.28 | BH11: bonus match
C12: intelligence : | D12: =Team!E11 -> 67 | G12: =IF(Team!C55<>0,Team!C55,"") -> DS499 | H12: =IF($G12<>"",VLOOKUP(Team!X18,Team!$E$41:$F$256,2,FALSE),"") -> 527 | I12: =IF($G12<>"",VLOOKUP(Team!Y18,Team!$E$41:$F$256,2,FALSE),"") -> 494 | J12: =IF($G12<>"",VLOOKUP(Team!Z18,Team!$E$41:$F$256,2,FALSE),"") -> 479 | K12: =IF($G12<>"",VLOOKUP(Team!AA18,Team!$E$41:$F$256,2,FALSE),"") -> 520 | L12: =IF($G12<>"",VLOOKUP(Team!AB18,Team!$E$41:$F$256,2,FALSE),"") -> 474 | M12: =IF($G12<>"",VLOOKUP(Team!X18,Team!$E$41:$P$263,12,FALSE),"") -> 709 | N12: =G105 -> 0.07648 | P12: vitesse | Q12: =IF(Q41=1,Q30,Q22) -> 29 | R12: 43 | S12: 56 | T12: 62 | U12: 74 | V12: 49 | W12: 35 | X12: 59 | Y12: 55 | Z12: 59 | AA12: 68 | AB12: 44 | AC12: 46 | AD12: 68 | AG12: @5 | AH12: =IF(AG12<>"",AW56*IF($AV$33=1,$BU$55,1),"") -> 1053.115875 | AI12: =IF(AG12<>"",BN56*IF($AV$33=1,$BU$56,1),"") -> 640.3045 | AJ12: =IF(AG12<>"",AW76*IF($AV$33=1,$BU$57,1),"") -> 640.3045 | AK12: =IF(AG12<>"",BN76*IF($AV$33=1,$BU$58,1),"") -> 473.4749333 | AL12: =IF(AG12<>"",AW96*IF($AV$33=1,$BU$59,1),"") -> 1065.3186 | AM12: =IF(AG12<>"",BN96*IF($AV$33=1,$BU$60,1),"") -> 767.27552 | AN12: =IF(AG12<>"",AW116*IF($AV$33=1,$BU$61,1),"") -> 764.20608 | AO12: =IF(AG12<>"",BN116*IF($AV$33=1,$BU$62,1),"") -> 1278.816 | AP12: =IF(AG12<>"",AW136*IF($AV$33=1,$BU$63,1),"") -> 877.5869 | AQ12: =IF(AG12<>"",BN136*IF($AV$33=1,$BU$64,1),"") -> 793.032 | AR12: =IF(AG12<>"",AW156*IF($AV$33=1,$BU$65,1),"") -> 1278.816 | AT12: 5 | AU12: =IF(ISNA(VLOOKUP(5,$AT$8:$AT$25,1,FALSE)),5,"") ->  | AV12: 0.08344 | AX12: 3 | AY12: =IF(AT8=3,AG8,IF(AT9=3,AG9,IF(AT10=3,AG10,IF(AT11=3,AG11,IF(AT12=3,AG12,IF(AT13=3,AG13,IF(AT14=3,AG14,IF(AT15=3,AG15,BR69)))))))) -> 3 moy 513 | AZ12: =IF(AT8=3,BU103,IF(AT9=3,BU104,IF(AT10=3,BU105,IF(AT11=3,BU106,IF(AT12=3,BU107,IF(AT13=3,BU108,IF(AT14=3,BU109,IF(AT15=3,BU110,BR126)))))))) -> kit 2A | BA12: 407.6101333 | BC12: 271.7484 | BE12: 679.36
C13: Laboratoire : | D13: =Team!F11 -> 37 | G13: =IF(Team!C66<>0,Team!C66,"") -> 3 moy 513 | H13: =IF($G13<>"",VLOOKUP(Team!X19,Team!$E$41:$F$256,2,FALSE),"") -> 530 | I13: =IF($G13<>"",VLOOKUP(Team!Y19,Team!$E$41:$F$256,2,FALSE),"") -> 476 | J13: =IF($G13<>"",VLOOKUP(Team!Z19,Team!$E$41:$F$256,2,FALSE),"") -> 499 | K13: =IF($G13<>"",VLOOKUP(Team!AA19,Team!$E$41:$F$256,2,FALSE),"") -> 530 | L13: =IF($G13<>"",VLOOKUP(Team!AB19,Team!$E$41:$F$256,2,FALSE),"") -> 498 | M13: =IF($G13<>"",VLOOKUP(Team!X19,Team!$E$41:$P$263,12,FALSE),"") -> 1138 | N13: 0.08746 | P13: endurance | Q13: =IF(Q42=1,Q31,Q23) -> 9 | R13: 65 | S13: 65 | T13: 62 | U13: 49 | V13: 49 | W13: 59 | X13: 59 | Y13: 55 | Z13: 59 | AA13: 52 | AB13: 44 | AC13: 55 | AD13: 59 | AG13: 1 Atsuhiko | AH13: =IF(AG13<>"",AW57*IF($AV$33=1,$BU$55,1),"") -> 1066.739625 | AI13: =IF(AG13<>"",BN57*IF($AV$33=1,$BU$56,1),"") -> 701.1561333 | AJ13: =IF(AG13<>"",AW77*IF($AV$33=1,$BU$57,1),"") -> 701.1561333 | AK13: =IF(AG13<>"",BN77*IF($AV$33=1,$BU$58,1),"") -> 444.4125333 | AL13: =IF(AG13<>"",AW97*IF($AV$33=1,$BU$59,1),"") -> 999.9282 | AM13: =IF(AG13<>"",BN97*IF($AV$33=1,$BU$60,1),"") -> 768.3654 | AN13: =IF(AG13<>"",AW117*IF($AV$33=1,$BU$61,1),"") -> 765.2916 | AO13: =IF(AG13<>"",BN117*IF($AV$33=1,$BU$62,1),"") -> 1280.6325 | AP13: =IF(AG13<>"",AW137*IF($AV$33=1,$BU$63,1),"") -> 888.9399 | AQ13: =IF(AG13<>"",BN137*IF($AV$33=1,$BU$64,1),"") -> 812.754 | AR13: =IF(AG13<>"",AW157*IF($AV$33=1,$BU$65,1),"") -> 1280.6325 | AT13: 6 | AU13: =IF(ISNA(VLOOKUP(6,$AT$8:$AT$25,1,FALSE)),6,"") ->  | AV13: 0.09548 | AX13: 4 | AY13: =IF(AT8=4,AG8,IF(AT9=4,AG9,IF(AT10=4,AG10,IF(AT11=4,AG11,IF(AT12=4,AG12,IF(AT13=4,AG13,IF(AT14=4,AG14,IF(AT15=4,AG15,BR70)))))))) -> av | AZ13: =IF(AT8=4,BW103,IF(AT9=4,BW104,IF(AT10=4,BW105,IF(AT11=4,BW106,IF(AT12=4,BW107,IF(AT13=4,BW108,IF(AT14=4,BW109,IF(AT15=4,BW110,BR127)))))))) -> kit 4A | BA13: 142.2189 | BC13: 331.8615 | BE13: 474.08 | BH13: bonus de chance : | BK13: 0 | BL13: %
G14: =IF(Team!C77<>0,Team!C77,"") -> av | H14: =IF($G14<>"",VLOOKUP(Team!X20,Team!$E$41:$F$256,2,FALSE),"") -> 554 | I14: =IF($G14<>"",VLOOKUP(Team!Y20,Team!$E$41:$F$256,2,FALSE),"") -> 513 | J14: =IF($G14<>"",VLOOKUP(Team!Z20,Team!$E$41:$F$256,2,FALSE),"") -> 560 | K14: =IF($G14<>"",VLOOKUP(Team!AA20,Team!$E$41:$F$256,2,FALSE),"") -> 521 | L14: =IF($G14<>"",VLOOKUP(Team!AB20,Team!$E$41:$F$256,2,FALSE),"") -> 563 | M14: =IF($G14<>"",VLOOKUP(Team!X20,Team!$E$41:$P$263,12,FALSE),"") -> 398 | N14: 0.07916 | P14: intelligence | Q14: =IF(Q43=1,Q32,Q24) -> 48 | R14: 43 | S14: 43 | T14: 37 | U14: 25 | V14: 49 | W14: 46 | X14: 34 | Y14: 44 | Z14: 40 | AA14: 33 | AB14: 44 | AC14: 55 | AD14: 26 | AG14: 2 moy 509 | AH14: =IF(AG14<>"",AW58*IF($AV$33=1,$BU$55,1),"") -> 1031.317875 | AI14: =IF(AG14<>"",BN58*IF($AV$33=1,$BU$56,1),"") -> 670.2762 | AJ14: =IF(AG14<>"",AW78*IF($AV$33=1,$BU$57,1),"") -> 670.2762 | AK14: =IF(AG14<>"",BN78*IF($AV$33=1,$BU$58,1),"") -> 445.6234667 | AL14: =IF(AG14<>"",AW98*IF($AV$33=1,$BU$59,1),"") -> 1002.6528 | AM14: =IF(AG14<>"",BN98*IF($AV$33=1,$BU$60,1),"") -> 797.79216 | AN14: =IF(AG14<>"",AW118*IF($AV$33=1,$BU$61,1),"") -> 782.65992 | AO14: =IF(AG14<>"",BN118*IF($AV$33=1,$BU$62,1),"") -> 1329.678 | AP14: =IF(AG14<>"",AW138*IF($AV$33=1,$BU$63,1),"") -> 859.4221 | AQ14: =IF(AG14<>"",BN138*IF($AV$33=1,$BU$64,1),"") -> 785.766 | AR14: =IF(AG14<>"",AW158*IF($AV$33=1,$BU$65,1),"") -> 1329.678 | AT14: 7 | AU14: =IF(ISNA(VLOOKUP(7,$AT$8:$AT$25,1,FALSE)),7,"") ->  | AV14: 0.08988 | AX14: 5 | AY14: =IF(AT8=5,AG8,IF(AT9=5,AG9,IF(AT10=5,AG10,IF(AT11=5,AG11,IF(AT12=5,AG12,IF(AT13=5,AG13,IF(AT14=5,AG14,IF(AT15=5,AG15,BR71)))))))) -> @5 | AZ14: =IF(AT8=5,BY103,IF(AT9=5,BY104,IF(AT10=5,BY105,IF(AT11=5,BY106,IF(AT12=5,BY107,IF(AT13=5,BY108,IF(AT14=5,BY109,IF(AT15=5,BY110,BR128)))))))) -> kit 4A | BA14: 532.6593 | BC14: 532.6593 | BE14: 1065.32 | BH14: bonus d'experience : | BL14: %
C15: baby foot | D15: 5 | G15: =IF(Team!C88<>0,Team!C88,"") -> @5 | H15: =IF($G15<>"",VLOOKUP(Team!X21,Team!$E$41:$F$256,2,FALSE),"") -> 553 | I15: =IF($G15<>"",VLOOKUP(Team!Y21,Team!$E$41:$F$256,2,FALSE),"") -> 525 | J15: =IF($G15<>"",VLOOKUP(Team!Z21,Team!$E$41:$F$256,2,FALSE),"") -> 495 | K15: =IF($G15<>"",VLOOKUP(Team!AA21,Team!$E$41:$F$256,2,FALSE),"") -> 487 | L15: =IF($G15<>"",VLOOKUP(Team!AB21,Team!$E$41:$F$256,2,FALSE),"") -> 553 | M15: =IF($G15<>"",VLOOKUP(Team!X21,Team!$E$41:$P$263,12,FALSE),"") -> 477 | N15: 0.07974 | AG15: 8 moy 492 | AH15: =IF(AG15<>"",AW59*IF($AV$33=1,$BU$55,1),"") -> 997.2585 | AI15: =IF(AG15<>"",BN59*IF($AV$33=1,$BU$56,1),"") -> 653.0197667 | AJ15: =IF(AG15<>"",AW79*IF($AV$33=1,$BU$57,1),"") -> 653.0197667 | AK15: =IF(AG15<>"",BN79*IF($AV$33=1,$BU$58,1),"") -> 435.936 | AL15: =IF(AG15<>"",AW99*IF($AV$33=1,$BU$59,1),"") -> 980.856 | AM15: =IF(AG15<>"",BN99*IF($AV$33=1,$BU$60,1),"") -> 780.35408 | AN15: =IF(AG15<>"",AW119*IF($AV$33=1,$BU$61,1),"") -> 763.12056 | AO15: =IF(AG15<>"",BN119*IF($AV$33=1,$BU$62,1),"") -> 1295.1645 | AP15: =IF(AG15<>"",AW139*IF($AV$33=1,$BU$63,1),"") -> 831.0396 | AQ15: =IF(AG15<>"",BN139*IF($AV$33=1,$BU$64,1),"") -> 759.816 | AR15: =IF(AG15<>"",AW159*IF($AV$33=1,$BU$65,1),"") -> 1295.1645 | AT15: 8 | AU15: =IF(ISNA(VLOOKUP(8,$AT$8:$AT$25,1,FALSE)),8,"") ->  | AV15: 0.09934 | AX15: 6 | AY15: =IF(AT8=6,AG8,IF(AT9=6,AG9,IF(AT10=6,AG10,IF(AT11=6,AG11,IF(AT12=6,AG12,IF(AT13=6,AG13,IF(AT14=6,AG14,IF(AT15=6,AG15,BR72)))))))) -> 1 Atsuhiko | AZ15: =IF(AT8=6,CA103,IF(AT9=6,CA104,IF(AT10=6,CA105,IF(AT11=6,CA106,IF(AT12=6,CA107,IF(AT13=6,CA108,IF(AT14=6,CA109,IF(AT15=6,CA110,BR129)))))))) -> kit 4B | BA15: 537.8586 | BC15: 230.5068 | BE15: 768.37 | BH15: bonus a domicile : | BL15: %
C16: body pump | D16: 5 | G16: =IF(Team!C99<>0,Team!C99,"") -> 1 Atsuhiko | H16: =IF($G16<>"",VLOOKUP(Team!X22,Team!$E$41:$F$256,2,FALSE),"") -> 505 | I16: =IF($G16<>"",VLOOKUP(Team!Y22,Team!$E$41:$F$256,2,FALSE),"") -> 535 | J16: =IF($G16<>"",VLOOKUP(Team!Z22,Team!$E$41:$F$256,2,FALSE),"") -> 478 | K16: =IF($G16<>"",VLOOKUP(Team!AA22,Team!$E$41:$F$256,2,FALSE),"") -> 554 | L16: =IF($G16<>"",VLOOKUP(Team!AB22,Team!$E$41:$F$256,2,FALSE),"") -> 498 | M16: =IF($G16<>"",VLOOKUP(Team!X22,Team!$E$41:$P$263,12,FALSE),"") -> 1414 | N16: 0.09298 | U16: kit officiel : | X16: 1 | Z16: choix kit : | AC16: 0 | AG16: Mionnet | AH16: =IF(AG16<>"",AW60*IF($AV$33=1,$BU$55,1),"") -> 1084.4505 | AI16: =IF(AG16<>"",BN60*IF($AV$33=1,$BU$56,1),"") -> 698.4314333 | AJ16: =IF(AG16<>"",AW80*IF($AV$33=1,$BU$57,1),"") -> 698.4314333 | AK16: =IF(AG16<>"",BN80*IF($AV$33=1,$BU$58,1),"") -> 451.6781333 | AL16: =IF(AG16<>"",AW100*IF($AV$33=1,$BU$59,1),"") -> 1016.2758 | AM16: =IF(AG16<>"",BN100*IF($AV$33=1,$BU$60,1),"") -> 813.05048 | AN16: =IF(AG16<>"",AW120*IF($AV$33=1,$BU$61,1),"") -> 809.79792 | AO16: =IF(AG16<>"",BN120*IF($AV$33=1,$BU$62,1),"") -> 1385.9895 | AP16: =IF(AG16<>"",AW140*IF($AV$33=1,$BU$63,1),"") -> 903.6988 | AQ16: =IF(AG16<>"",BN140*IF($AV$33=1,$BU$64,1),"") -> 826.248 | AR16: =IF(AG16<>"",AW160*IF($AV$33=1,$BU$65,1),"") -> 1385.9895 | AT16: 9 | AU16: =IF(ISNA(VLOOKUP(9,$AT$8:$AT$25,1,FALSE)),9,"") ->  | AV16: 0.08034 | AX16: 7 | AY16: =IF(AT8=7,AG8,IF(AT9=7,AG9,IF(AT10=7,AG10,IF(AT11=7,AG11,IF(AT12=7,AG12,IF(AT13=7,AG13,IF(AT14=7,AG14,IF(AT15=7,AG15,BR73)))))))) -> 2 moy 509 | AZ16: =IF(AT8=7,CC103,IF(AT9=7,CC104,IF(AT10=7,CC105,IF(AT11=7,CC106,IF(AT12=7,CC107,IF(AT13=7,CC108,IF(AT14=7,CC109,IF(AT15=7,CC110,BR130)))))))) -> kit 6B | BA16: 547.87348 | BC16: 234.78644 | BE16: 782.66 | BH16: bonus capitaine : | BK16: =IF(ISNA(BL8),"",BL8) -> 0.13538 | BL16: %
C17: stage montagne | D17: 3 | G17: =IF(Team!C110<>0,Team!C110,"") -> 2 moy 509 | H17: =IF($G17<>"",VLOOKUP(Team!X23,Team!$E$41:$F$256,2,FALSE),"") -> 507 | I17: =IF($G17<>"",VLOOKUP(Team!Y23,Team!$E$41:$F$256,2,FALSE),"") -> 509 | J17: =IF($G17<>"",VLOOKUP(Team!Z23,Team!$E$41:$F$256,2,FALSE),"") -> 517 | K17: =IF($G17<>"",VLOOKUP(Team!AA23,Team!$E$41:$F$256,2,FALSE),"") -> 520 | L17: =IF($G17<>"",VLOOKUP(Team!AB23,Team!$E$41:$F$256,2,FALSE),"") -> 490 | M17: =IF($G17<>"",VLOOKUP(Team!X23,Team!$E$41:$P$263,12,FALSE),"") -> 1129 | N17: 0.08648 | U17: aprroximation kit : | X17: 0 | AG17: gerard Blanchard | AH17: =IF(AG17<>"",AW61*IF($AV$33=1,$BU$55,1),"") -> 1042.216875 | AI17: =IF(AG17<>"",BN61*IF($AV$33=1,$BU$56,1),"") -> 670.2762 | AJ17: =IF(AG17<>"",AW81*IF($AV$33=1,$BU$57,1),"") -> 670.2762 | AK17: =IF(AG17<>"",BN81*IF($AV$33=1,$BU$58,1),"") -> 409.9009333 | AL17: =IF(AG17<>"",AW101*IF($AV$33=1,$BU$59,1),"") -> 922.2771 | AM17: =IF(AG17<>"",BN101*IF($AV$33=1,$BU$60,1),"") -> 737.84876 | AN17: =IF(AG17<>"",AW121*IF($AV$33=1,$BU$61,1),"") -> 734.89704 | AO17: =IF(AG17<>"",BN121*IF($AV$33=1,$BU$62,1),"") -> 1329.678 | AP17: =IF(AG17<>"",AW141*IF($AV$33=1,$BU$63,1),"") -> 858.2868 | AQ17: =IF(AG17<>"",BN141*IF($AV$33=1,$BU$64,1),"") -> 794.07 | AR17: =IF(AG17<>"",AW161*IF($AV$33=1,$BU$65,1),"") -> 1329.678 | AT17: 10 | AU17: =IF(ISNA(VLOOKUP(10,$AT$8:$AT$25,1,FALSE)),10,"") ->  | AV17: 0.09768 | AX17: 8 | AY17: =IF(AT8=8,AG8,IF(AT9=8,AG9,IF(AT10=8,AG10,IF(AT11=8,AG11,IF(AT12=8,AG12,IF(AT13=8,AG13,IF(AT14=8,AG14,IF(AT15=8,AG15,BR74)))))))) -> 8 moy 492 | AZ17: =IF(AT8=8,CE103,IF(AT9=8,CE104,IF(AT10=8,CE105,IF(AT11=8,CE106,IF(AT12=8,CE107,IF(AT13=8,CE108,IF(AT14=8,CE109,IF(AT15=8,CE110,BR131)))))))) -> kit 8 | BA17: 906.6270333 | BC17: 388.5374667 | BE17: 1295.16 | BH17: bonus de meteo : | BK17: 5 | BL17: %
G18: =IF(Team!C121<>0,Team!C121,"") -> 8 moy 492 | H18: =IF($G18<>"",VLOOKUP(Team!X24,Team!$E$41:$F$256,2,FALSE),"") -> 491 | I18: =IF($G18<>"",VLOOKUP(Team!Y24,Team!$E$41:$F$256,2,FALSE),"") -> 484 | J18: =IF($G18<>"",VLOOKUP(Team!Z24,Team!$E$41:$F$256,2,FALSE),"") -> 512 | K18: =IF($G18<>"",VLOOKUP(Team!AA24,Team!$E$41:$F$256,2,FALSE),"") -> 501 | L18: =IF($G18<>"",VLOOKUP(Team!AB24,Team!$E$41:$F$256,2,FALSE),"") -> 469 | M18: =IF($G18<>"",VLOOKUP(Team!X24,Team!$E$41:$P$263,12,FALSE),"") -> 1677 | N18: 0.09534 | O18: approximation caracteristiques kit/objet | AG18: 9 moy 511 | AH18: =IF(AG18<>"",AW62*IF($AV$33=1,$BU$55,1),"") -> 1046.304 | AI18: =IF(AG18<>"",BN62*IF($AV$33=1,$BU$56,1),"") -> 633.0386333 | AJ18: =IF(AG18<>"",AW82*IF($AV$33=1,$BU$57,1),"") -> 633.0386333 | AK18: =IF(AG18<>"",BN82*IF($AV$33=1,$BU$58,1),"") -> 445.6234667 | AL18: =IF(AG18<>"",AW102*IF($AV$33=1,$BU$59,1),"") -> 1002.6528 | AM18: =IF(AG18<>"",BN102*IF($AV$33=1,$BU$60,1),"") -> 759.64636 | AN18: =IF(AG18<>"",AW122*IF($AV$33=1,$BU$61,1),"") -> 756.60744 | AO18: =IF(AG18<>"",BN122*IF($AV$33=1,$BU$62,1),"") -> 1266.1005 | AP18: =IF(AG18<>"",AW142*IF($AV$33=1,$BU$63,1),"") -> 871.9104 | AQ18: =IF(AG18<>"",BN142*IF($AV$33=1,$BU$64,1),"") -> 787.842 | AR18: =IF(AG18<>"",AW162*IF($AV$33=1,$BU$65,1),"") -> 1266.1005 | AT18: 11 | AU18: =IF(ISNA(VLOOKUP(11,$AT$8:$AT$25,1,FALSE)),11,"") ->  | AV18: 0.0887 | AX18: 9 | AY18: =IF(AT8=9,AG8,IF(AT9=9,AG9,IF(AT10=9,AG10,IF(AT11=9,AG11,IF(AT12=9,AG12,IF(AT13=9,AG13,IF(AT14=9,AG14,IF(AT15=9,AG15,BR75)))))))) -> Mionnet | AZ18: =IF(AT8=9,CG103,IF(AT9=9,CG104,IF(AT10=9,CG105,IF(AT11=9,CG106,IF(AT12=9,CG107,IF(AT13=9,CG108,IF(AT14=9,CG109,IF(AT15=9,CG110,BR132)))))))) -> kit 1 | BA18: 813.3329 | BC18: 90.3659 | BE18: 903.7 | BH18: Bonus d'agressivité : | BK18: 16 | BL18: %
C19: vitamines : | D19: 40 | G19: =IF(Team!C132<>0,Team!C132,"") -> Mionnet | H19: =IF($G19<>"",VLOOKUP(Team!X25,Team!$E$41:$F$256,2,FALSE),"") -> 517 | I19: =IF($G19<>"",VLOOKUP(Team!Y25,Team!$E$41:$F$256,2,FALSE),"") -> 548 | J19: =IF($G19<>"",VLOOKUP(Team!Z25,Team!$E$41:$F$256,2,FALSE),"") -> 562 | K19: =IF($G19<>"",VLOOKUP(Team!AA25,Team!$E$41:$F$256,2,FALSE),"") -> 551 | L19: =IF($G19<>"",VLOOKUP(Team!AB25,Team!$E$41:$F$256,2,FALSE),"") -> 542 | M19: =IF($G19<>"",VLOOKUP(Team!X25,Team!$E$41:$P$263,12,FALSE),"") -> 322 | N19: 0.07554 | Q19: =Q9 -> kit 1 | R19: kit 2A | S19: kit 2B | T19: kit 4A | U19: kit 4B | V19: kit 5 | W19: kit 6A | X19: kit 6B | Y19: kit 7 | Z19: kit 8 | AA19: kit 9A | AB19: kit 9B | AC19: kit 10 | AD19: kit 11 | AG19: Pullrouge 5 | AH19: =IF(AG19<>"",AW63*IF($AV$33=1,$BU$55,1),"") -> 912.79125 | AI19: =IF(AG19<>"",BN63*IF($AV$33=1,$BU$56,1),"") -> 618.5069 | AJ19: =IF(AG19<>"",AW83*IF($AV$33=1,$BU$57,1),"") -> 618.5069 | AK19: =IF(AG19<>"",BN83*IF($AV$33=1,$BU$58,1),"") -> 400.8189333 | AL19: =IF(AG19<>"",AW103*IF($AV$33=1,$BU$59,1),"") -> 901.8426 | AM19: =IF(AG19<>"",BN103*IF($AV$33=1,$BU$60,1),"") -> 693.16368 | AN19: =IF(AG19<>"",AW123*IF($AV$33=1,$BU$61,1),"") -> 683.8776 | AO19: =IF(AG19<>"",BN123*IF($AV$33=1,$BU$62,1),"") -> 1144.395 | AP19: =IF(AG19<>"",AW143*IF($AV$33=1,$BU$63,1),"") -> 760.651 | AQ19: =IF(AG19<>"",BN143*IF($AV$33=1,$BU$64,1),"") -> 692.692 | AR19: =IF(AG19<>"",AW163*IF($AV$33=1,$BU$65,1),"") -> 1144.395 | AT19: 12 | AU19: =IF(ISNA(VLOOKUP(12,$AT$8:$AT$25,1,FALSE)),12,"") ->  | AV19: 0.08134 | AX19: 10 | AY19: =IF(AT8=10,AG8,IF(AT9=10,AG9,IF(AT10=10,AG10,IF(AT11=10,AG11,IF(AT12=10,AG12,IF(AT13=10,AG13,IF(AT14=10,AG14,IF(AT15=10,AG15,BR76)))))))) -> gerard Blanchard | AZ19: =IF(AT8=10,CI103,IF(AT9=10,CI104,IF(AT10=10,CI105,IF(AT11=10,CI106,IF(AT12=10,CI107,IF(AT13=10,CI108,IF(AT14=10,CI109,IF(AT15=10,CI110,BR133)))))))) -> kit 1 | BA19: 635.256 | BC19: 158.814 | BE19: 794.07 | BH19: Bonus stratégie : | BK19: 10 | BL19: %
G20: =IF(Team!C143<>0,Team!C143,"") -> gerard Blanchard | H20: =IF($G20<>"",VLOOKUP(Team!X26,Team!$E$41:$F$256,2,FALSE),"") -> 448 | I20: =IF($G20<>"",VLOOKUP(Team!Y26,Team!$E$41:$F$256,2,FALSE),"") -> 517 | J20: =IF($G20<>"",VLOOKUP(Team!Z26,Team!$E$41:$F$256,2,FALSE),"") -> 522 | K20: =IF($G20<>"",VLOOKUP(Team!AA26,Team!$E$41:$F$256,2,FALSE),"") -> 520 | L20: =IF($G20<>"",VLOOKUP(Team!AB26,Team!$E$41:$F$256,2,FALSE),"") -> 509 | M20: =IF($G20<>"",VLOOKUP(Team!X26,Team!$E$41:$P$263,12,FALSE),"") -> 1354 | N20: 0.09288 | P20: =P10 -> force | Q20: =ROUND(Q45*Q51,0) -> 29 | R20: 65 | S20: 56 | T20: 74 | U20: 74 | V20: 65 | W20: 59 | X20: 59 | Y20: 55 | Z20: 40 | AA20: 44 | AB20: 59 | AC20: 37 | AD20: 44 | AG20: Pullrouge 3 | AH20: =IF(AG20<>"",AW64*IF($AV$33=1,$BU$55,1),"") -> 952.300125 | AI20: =IF(AG20<>"",BN64*IF($AV$33=1,$BU$56,1),"") -> 634.8551 | AJ20: =IF(AG20<>"",AW84*IF($AV$33=1,$BU$57,1),"") -> 634.8551 | AK20: =IF(AG20<>"",BN84*IF($AV$33=1,$BU$58,1),"") -> 438.11568 | AL20: =IF(AG20<>"",AW104*IF($AV$33=1,$BU$59,1),"") -> 990.3921 | AM20: =IF(AG20<>"",BN104*IF($AV$33=1,$BU$60,1),"") -> 657.19764 | AN20: =IF(AG20<>"",AW124*IF($AV$33=1,$BU$61,1),"") -> 654.56856 | AO20: =IF(AG20<>"",BN124*IF($AV$33=1,$BU$62,1),"") -> 1095.3495 | AP20: =IF(AG20<>"",AW144*IF($AV$33=1,$BU$63,1),"") -> 793.5747 | AQ20: =IF(AG20<>"",BN144*IF($AV$33=1,$BU$64,1),"") -> 725.562 | AR20: =IF(AG20<>"",AW164*IF($AV$33=1,$BU$65,1),"") -> 1095.3495 | AT20: 13 | AU20: =IF(ISNA(VLOOKUP(13,$AT$8:$AT$25,1,FALSE)),13,"") ->  | AV20: 0.1018 | AX20: 11 | AY20: =IF(AT8=11,AG8,IF(AT9=11,AG9,IF(AT10=11,AG10,IF(AT11=11,AG11,IF(AT12=11,AG12,IF(AT13=11,AG13,IF(AT14=11,AG14,IF(AT15=11,AG15,BR77)))))))) -> 9 moy 511 | AZ20: =IF(AT8=11,CK103,IF(AT9=11,CK104,IF(AT10=11,CK105,IF(AT11=11,CK106,IF(AT12=11,CK107,IF(AT13=11,CK108,IF(AT14=11,CK109,IF(AT15=11,CK110,BR134)))))))) -> kit 2A | BA20: 886.2819667 | BC20: 379.8185333 | BE20: 1266.1
C21: objets : | D21: 37 | G21: =IF(Team!C154<>0,Team!C154,"") -> 9 moy 511 | H21: =IF($G21<>"",VLOOKUP(Team!X27,Team!$E$41:$F$256,2,FALSE),"") -> 507 | I21: =IF($G21<>"",VLOOKUP(Team!Y27,Team!$E$41:$F$256,2,FALSE),"") -> 520 | J21: =IF($G21<>"",VLOOKUP(Team!Z27,Team!$E$41:$F$256,2,FALSE),"") -> 530 | K21: =IF($G21<>"",VLOOKUP(Team!AA27,Team!$E$41:$F$256,2,FALSE),"") -> 479 | L21: =IF($G21<>"",VLOOKUP(Team!AB27,Team!$E$41:$F$256,2,FALSE),"") -> 494 | M21: =IF($G21<>"",VLOOKUP(Team!X27,Team!$E$41:$P$263,12,FALSE),"") -> 1005 | N21: 0.0844 | P21: =P11 -> habilité | Q21: =ROUND(Q46*Q52,0) -> 77 | R21: 43 | S21: 43 | T21: 25 | U21: 37 | V21: 49 | W21: 59 | X21: 46 | Y21: 55 | Z21: 59 | AA21: 59 | AB21: 68 | AC21: 65 | AD21: 59 | AG21: £vente | AH21: =IF(AG21<>"",AW65*IF($AV$33=1,$BU$55,1),"") -> 933.226875 | AI21: =IF(AG21<>"",BN65*IF($AV$33=1,$BU$56,1),"") -> 621.2316 | AJ21: =IF(AG21<>"",AW85*IF($AV$33=1,$BU$57,1),"") -> 621.2316 | AK21: =IF(AG21<>"",BN85*IF($AV$33=1,$BU$58,1),"") -> 414.7446667 | AL21: =IF(AG21<>"",AW105*IF($AV$33=1,$BU$59,1),"") -> 933.1755 | AM21: =IF(AG21<>"",BN105*IF($AV$33=1,$BU$60,1),"") -> 742.20828 | AN21: =IF(AG21<>"",AW125*IF($AV$33=1,$BU$61,1),"") -> 719.69976 | AO21: =IF(AG21<>"",BN125*IF($AV$33=1,$BU$62,1),"") -> 1222.5045 | AP21: =IF(AG21<>"",AW145*IF($AV$33=1,$BU$63,1),"") -> 777.6805 | AQ21: =IF(AG21<>"",BN145*IF($AV$33=1,$BU$64,1),"") -> 676.949 | AR21: =IF(AG21<>"",AW165*IF($AV$33=1,$BU$65,1),"") -> 1222.5045 | AT21: 14 | AU21: =IF(ISNA(VLOOKUP(14,$AT$8:$AT$25,1,FALSE)),14,"") ->  | AV21: 0.06624 | BA21: =ROUND(SUM(BA10:BB20),2) -> 5875.62 | BC21: =ROUND(SUM(BC10:BD20),2) -> 3886.12 | BE21: =BA21+BC21 -> 9761.74
G22: =IF(Team!C165<>0,Team!C165,"") -> Pullrouge 5 | H22: =IF($G22<>"",VLOOKUP(Team!X28,Team!$E$41:$F$256,2,FALSE),"") -> 433 | I22: =IF($G22<>"",VLOOKUP(Team!Y28,Team!$E$41:$F$256,2,FALSE),"") -> 422 | J22: =IF($G22<>"",VLOOKUP(Team!Z28,Team!$E$41:$F$256,2,FALSE),"") -> 409 | K22: =IF($G22<>"",VLOOKUP(Team!AA28,Team!$E$41:$F$256,2,FALSE),"") -> 463 | L22: =IF($G22<>"",VLOOKUP(Team!AB28,Team!$E$41:$F$256,2,FALSE),"") -> 375 | M22: =IF($G22<>"",VLOOKUP(Team!X28,Team!$E$41:$P$263,12,FALSE),"") -> 1447 | N22: 0.08134 | P22: =P12 -> vitesse | Q22: =ROUND(Q47*Q53,0) -> 29 | R22: 43 | S22: 56 | T22: 62 | U22: 74 | V22: 49 | W22: 35 | X22: 59 | Y22: 55 | Z22: 59 | AA22: 68 | AB22: 44 | AC22: 46 | AD22: 68 | AG22: @3612 | AH22: =IF(AG22<>"",AW66*IF($AV$33=1,$BU$55,1),"") -> 933.226875 | AI22: =IF(AG22<>"",BN66*IF($AV$33=1,$BU$56,1),"") -> 598.34412 | AJ22: =IF(AG22<>"",AW86*IF($AV$33=1,$BU$57,1),"") -> 598.34412 | AK22: =IF(AG22<>"",BN86*IF($AV$33=1,$BU$58,1),"") -> 332.4012 | AL22: =IF(AG22<>"",AW106*IF($AV$33=1,$BU$59,1),"") -> 747.9027 | AM22: =IF(AG22<>"",BN106*IF($AV$33=1,$BU$60,1),"") -> 598.34412 | AN22: =IF(AG22<>"",AW126*IF($AV$33=1,$BU$61,1),"") -> 595.95048 | AO22: =IF(AG22<>"",BN126*IF($AV$33=1,$BU$62,1),"") -> 1173.459 | AP22: =IF(AG22<>"",AW146*IF($AV$33=1,$BU$63,1),"") -> 712.3196571 | AQ22: =IF(AG22<>"",BN146*IF($AV$33=1,$BU$64,1),"") -> 711.03 | AR22: =IF(AG22<>"",AW166*IF($AV$33=1,$BU$65,1),"") -> 1173.459 | AT22: 15 | AU22: =IF(ISNA(VLOOKUP(15,$AT$8:$AT$25,1,FALSE)),15,"") ->  | AV22: 0.07816
G23: =IF(Team!C176<>0,Team!C176,"") -> Pullrouge 3 | H23: =IF($G23<>"",VLOOKUP(Team!X29,Team!$E$41:$F$256,2,FALSE),"") -> 498 | I23: =IF($G23<>"",VLOOKUP(Team!Y29,Team!$E$41:$F$256,2,FALSE),"") -> 451 | J23: =IF($G23<>"",VLOOKUP(Team!Z29,Team!$E$41:$F$256,2,FALSE),"") -> 376 | K23: =IF($G23<>"",VLOOKUP(Team!AA29,Team!$E$41:$F$256,2,FALSE),"") -> 481 | L23: =IF($G23<>"",VLOOKUP(Team!AB29,Team!$E$41:$F$256,2,FALSE),"") -> 408 | M23: =IF($G23<>"",VLOOKUP(Team!X29,Team!$E$41:$P$263,12,FALSE),"") -> 2305 | N23: =G116 -> 0.1018 | P23: =P13 -> endurance | Q23: =ROUND(Q48*Q54,0) -> 9 | R23: 65 | S23: 65 | T23: 62 | U23: 49 | V23: 49 | W23: 59 | X23: 59 | Y23: 55 | Z23: 59 | AA23: 52 | AB23: 44 | AC23: 55 | AD23: 59 | AH23: =IF(AG23<>"",AW67*IF($AV$33=1,$BU$55,1),"") ->  | AI23: =IF(AG23<>"",BN67*IF($AV$33=1,$BU$56,1),"") ->  | AJ23: =IF(AG23<>"",AW87*IF($AV$33=1,$BU$57,1),"") ->  | AK23: =IF(AG23<>"",BN87*IF($AV$33=1,$BU$58,1),"") ->  | AL23: =IF(AG23<>"",AW107*IF($AV$33=1,$BU$59,1),"") ->  | AM23: =IF(AG23<>"",BN107*IF($AV$33=1,$BU$60,1),"") ->  | AN23: =IF(AG23<>"",AW127*IF($AV$33=1,$BU$61,1),"") ->  | AO23: =IF(AG23<>"",BN127*IF($AV$33=1,$BU$62,1),"") ->  | AP23: =IF(AG23<>"",AW147*IF($AV$33=1,$BU$63,1),"") ->  | AQ23: =IF(AG23<>"",BN147*IF($AV$33=1,$BU$64,1),"") ->  | AR23: =IF(AG23<>"",AW167*IF($AV$33=1,$BU$65,1),"") ->  | AT23: 16 | AU23: =IF(ISNA(VLOOKUP(16,$AT$8:$AT$25,1,FALSE)),16,"") -> 
G24: =IF(Team!C187<>0,Team!C187,"") -> £vente | H24: =IF($G24<>"",VLOOKUP(Team!X30,Team!$E$41:$F$256,2,FALSE),"") -> 456 | I24: =IF($G24<>"",VLOOKUP(Team!Y30,Team!$E$41:$F$256,2,FALSE),"") -> 437 | J24: =IF($G24<>"",VLOOKUP(Team!Z30,Team!$E$41:$F$256,2,FALSE),"") -> 475 | K24: =IF($G24<>"",VLOOKUP(Team!AA30,Team!$E$41:$F$256,2,FALSE),"") -> 466 | L24: =IF($G24<>"",VLOOKUP(Team!AB30,Team!$E$41:$F$256,2,FALSE),"") -> 355 | M24: =IF($G24<>"",VLOOKUP(Team!X30,Team!$E$41:$P$263,12,FALSE),"") -> 792 | N24: 0.06624 | P24: =P14 -> intelligence | Q24: =ROUND(Q49*Q55,0) -> 48 | R24: 43 | S24: 43 | T24: 37 | U24: 25 | V24: 49 | W24: 46 | X24: 34 | Y24: 44 | Z24: 40 | AA24: 33 | AB24: 44 | AC24: 55 | AD24: 26 | AH24: =IF(AG24<>"",AW68*IF($AV$33=1,$BU$55,1),"") ->  | AI24: =IF(AG24<>"",BN68*IF($AV$33=1,$BU$56,1),"") ->  | AJ24: =IF(AG24<>"",AW88*IF($AV$33=1,$BU$57,1),"") ->  | AK24: =IF(AG24<>"",BN88*IF($AV$33=1,$BU$58,1),"") ->  | AL24: =IF(AG24<>"",AW108*IF($AV$33=1,$BU$59,1),"") ->  | AM24: =IF(AG24<>"",BN108*IF($AV$33=1,$BU$60,1),"") ->  | AN24: =IF(AG24<>"",AW128*IF($AV$33=1,$BU$61,1),"") ->  | AO24: =IF(AG24<>"",BN128*IF($AV$33=1,$BU$62,1),"") ->  | AP24: =IF(AG24<>"",AW148*IF($AV$33=1,$BU$63,1),"") ->  | AQ24: =IF(AG24<>"",BN148*IF($AV$33=1,$BU$64,1),"") ->  | AR24: =IF(AG24<>"",AW168*IF($AV$33=1,$BU$65,1),"") ->  | AT24: 17 | AU24: =IF(ISNA(VLOOKUP(17,$AT$8:$AT$25,1,FALSE)),17,"") ->  | AY24: avec bonus match | BA24: =ROUND(BA21*(100+BK13)/100*(100+BK14)/100*(100+BK15)/100*(100+BK16)/100*(BK17+100)/100*(100+BK18)/100*(100+BK19)/100,2) -> 7882.81 | BC24: =ROUND(BC21*(100+BK13)/100*(BK14+100)/100*(100+BK15)/100*(100+BK16)/100*(BK17+100)/100*(100+BK18)/100*(100+BK19)/100,2) -> 5213.67 | BE24: =BA24+BC24 -> 13096.48
E25: =VLOOKUP(AF4,B26:C29,2,FALSE) -> B | G25: =IF(Team!C198<>0,Team!C198,"") -> @3612 | H25: =IF($G25<>"",VLOOKUP(Team!X31,Team!$E$41:$F$256,2,FALSE),"") -> 320 | I25: =IF($G25<>"",VLOOKUP(Team!Y31,Team!$E$41:$F$256,2,FALSE),"") -> 437 | J25: =IF($G25<>"",VLOOKUP(Team!Z31,Team!$E$41:$F$256,2,FALSE),"") -> 425 | K25: =IF($G25<>"",VLOOKUP(Team!AA31,Team!$E$41:$F$256,2,FALSE),"") -> 461 | L25: =IF($G25<>"",VLOOKUP(Team!AB31,Team!$E$41:$F$256,2,FALSE),"") -> 463 | M25: =IF($G25<>"",VLOOKUP(Team!X31,Team!$E$41:$P$263,12,FALSE),"") -> 848 | N25: 0.07816 | AH25: =IF(AG25<>"",AW69*IF($AV$33=1,$BU$55,1),"") ->  | AI25: =IF(AG25<>"",BN69*IF($AV$33=1,$BU$56,1),"") ->  | AJ25: =IF(AG25<>"",AW89*IF($AV$33=1,$BU$57,1),"") ->  | AK25: =IF(AG25<>"",BN89*IF($AV$33=1,$BU$58,1),"") ->  | AL25: =IF(AG25<>"",AW109*IF($AV$33=1,$BU$59,1),"") ->  | AM25: =IF(AG25<>"",BN109*IF($AV$33=1,$BU$60,1),"") ->  | AN25: =IF(AG25<>"",AW129*IF($AV$33=1,$BU$61,1),"") ->  | AO25: =IF(AG25<>"",BN129*IF($AV$33=1,$BU$62,1),"") ->  | AP25: =IF(AG25<>"",AW149*IF($AV$33=1,$BU$63,1),"") ->  | AQ25: =IF(AG25<>"",BN149*IF($AV$33=1,$BU$64,1),"") ->  | AR25: =IF(AG25<>"",AW169*IF($AV$33=1,$BU$65,1),"") ->  | AT25: 18 | AU25: =IF(ISNA(VLOOKUP(18,$AT$8:$AT$25,1,FALSE)),18,"") -> 
B26: 541 | C26: A | D26: 541 | E26: =VLOOKUP(AF5,B31:C33,2,FALSE) -> n | G26: =IF(Team!C209<>0,Team!C209,"") ->  | H26: =IF($G26<>"",VLOOKUP(Team!X32,Team!$E$41:$F$256,2,FALSE),"") ->  | I26: =IF($G26<>"",VLOOKUP(Team!Y32,Team!$E$41:$F$256,2,FALSE),"") ->  | J26: =IF($G26<>"",VLOOKUP(Team!Z32,Team!$E$41:$F$256,2,FALSE),"") ->  | K26: =IF($G26<>"",VLOOKUP(Team!AA32,Team!$E$41:$F$256,2,FALSE),"") ->  | L26: =IF($G26<>"",VLOOKUP(Team!AB32,Team!$E$41:$F$256,2,FALSE),"") ->  | M26: =IF($G26<>"",VLOOKUP(Team!X32,Team!$E$41:$P$263,12,FALSE),"") ->  | O26: caracteristiques kit officiel | BI26: 9) Enjoy !!
B27: 433 | C27: B | D27: 433 | G27: =IF(Team!C220<>0,Team!C220,"") ->  | H27: =IF($G27<>"",VLOOKUP(Team!X33,Team!$E$41:$F$256,2,FALSE),"") ->  | I27: =IF($G27<>"",VLOOKUP(Team!Y33,Team!$E$41:$F$256,2,FALSE),"") ->  | J27: =IF($G27<>"",VLOOKUP(Team!Z33,Team!$E$41:$F$256,2,FALSE),"") ->  | K27: =IF($G27<>"",VLOOKUP(Team!AA33,Team!$E$41:$F$256,2,FALSE),"") ->  | L27: =IF($G27<>"",VLOOKUP(Team!AB33,Team!$E$41:$F$256,2,FALSE),"") ->  | M27: =IF($G27<>"",VLOOKUP(Team!X33,Team!$E$41:$P$263,12,FALSE),"") ->  | Q27: =Q9 -> kit 1 | R27: kit 2A | S27: kit 2B | T27: kit 4A | U27: kit 4B | V27: kit 5 | W27: kit 6A | X27: kit 6B | Y27: kit 7 | Z27: kit 8 | AA27: kit 9A | AB27: kit 9B | AC27: kit 10 | AD27: kit 11 | AG27: Travail en cours, comparer de futurs recrues
B28: 352 | C28: C | D28: 352 | G28: =IF(Team!C231<>0,Team!C231,"") ->  | H28: =IF($G28<>"",VLOOKUP(Team!X34,Team!$E$41:$F$256,2,FALSE),"") ->  | I28: =IF($G28<>"",VLOOKUP(Team!Y34,Team!$E$41:$F$256,2,FALSE),"") ->  | J28: =IF($G28<>"",VLOOKUP(Team!Z34,Team!$E$41:$F$256,2,FALSE),"") ->  | K28: =IF($G28<>"",VLOOKUP(Team!AA34,Team!$E$41:$F$256,2,FALSE),"") ->  | L28: =IF($G28<>"",VLOOKUP(Team!AB34,Team!$E$41:$F$256,2,FALSE),"") ->  | M28: =IF($G28<>"",VLOOKUP(Team!X34,Team!$E$41:$P$263,12,FALSE),"") ->  | P28: =P20 -> force
B29: 442 | C29: D | D29: 442 | P29: =P21 -> habilité | AX29: 5) Choisir si la position a une vitamine = 1 ou non = 0. | BG29: La colonne Kit donne le meilleur kit pour ce joueur a cette position
E30: Joueurs à comparer | G30: Travail en cours, comparer de futures recrues | P30: =P22 -> vitesse
B31: Defensif | C31: d | D31: defensif | P31: =P23 -> endurance | AG31: vitamines : | AH31: 0 | AI31: 0 | AJ31: 0 | AK31: 0 | AL31: 0 | AM31: 0 | AN31: 0 | AO31: 0 | AP31: 0 | AQ31: 0 | AR31: 0 | AT31: pourcentage : | AV31: 0
B32: Neutre | C32: n | D32: neutre | P32: =P24 -> intelligence | AT32: valeur brute : | AV32: 1 | AY32: 6) Choisir entre pourcentage poste ou valeur brute.
B33: Offensif | C33: o | D33: offensif | AF33: Gain minimum pour une vitamine | AH33: =AZ152 -> 54.495 | AI33: =BA152 -> 36.32933333 | AJ33: 36.32933333 | AK33: 24.21866667 | AL33: 54.492 | AM33: 43.5952 | AN33: 43.4208 | AO33: 72.66 | AP33: 45.412 | AQ33: 41.52 | AR33: 72.66 | AT33: pourcentage/valeur brute : | AV33: 1
AG35: coefficient caracteristique par poste / tactique actuelle | AP35: coefficient caracteristique par poste et par tactique
AI36: =F42 -> 433 | AR36: 541 | AZ36: 433 | BH36: 352 | BP36: 442
AH37: Position | AI37: force | AJ37: hab | AK37: vit | AL37: end | AM37: int | AN37: % poste | AQ37: Position | AR37: force | AS37: hab | AT37: vit | AU37: end | AV37: int | AW37: % poste | AY37: Position | AZ37: force | BA37: hab | BB37: vit | BC37: end | BD37: int | BE37: % poste | BG37: Position | BH37: force | BI37: hab | BJ37: vit | BK37: end | BL37: int | BM37: % poste | BO37: Position | BP37: force | BQ37: hab | BR37: vit | BS37: end | BT37: int | BU37: % poste
E38: caracteristiques bonus : | P38: choix kit | AE38: bonus cara | AH38: 1 | AI38: =IF(AI36=AR36,AR38,IF(AI36=AZ36,AZ38,IF(AI36=BH36,BH38,IF(AI36=BP36,BP38,erreur)))) -> 150 | AJ38: =IF(AI36=AR36,AS38,IF(AI36=AZ36,BA38,IF(AI36=BH36,BI38,IF(AI36=BP36,BQ38,erreur)))) -> 400 | AK38: =IF(AI36=AR36,AT38,IF(AI36=AZ36,BB38,IF(AI36=BH36,BJ38,IF(AI36=BP36,BR38,erreur)))) -> 150 | AL38: =IF(AI36=AR36,AU38,IF(AI36=AZ36,BC38,IF(AI36=BH36,BK38,IF(AI36=BP36,BS38,erreur)))) -> 50 | AM38: =IF(AI36=AR36,AV38,IF(AI36=AZ36,BD38,IF(AI36=BH36,BL38,IF(AI36=BP36,BT38,erreur)))) -> 250 | AN38: =IF(AI36=AR36,AW38,IF(AI36=AZ36,BE38,IF(AI36=BH36,BM38,IF(AI36=BP36,BU38,erreur)))) -> 200 | AQ38: 1 | AR38: 150 | AS38: 400 | AT38: 150 | AU38: 50 | AV38: 250 | AW38: 200 | AY38: 1 | AZ38: 150 | BA38: 400 | BB38: 150 | BC38: 50 | BD38: 250 | BE38: 200 | BG38: 1 | BH38: 150 | BI38: 400 | BJ38: 150 | BK38: 50 | BL38: 250 | BM38: 200 | BO38: 1 | BP38: 150 | BQ38: 400 | BR38: 150 | BS38: 50 | BT38: 250 | BU38: 200
E39: force | F39: hab | G39: vit | H39: end | I39: int | Q39: =AC16 -> 0 | R39: =AC16 -> 0 | S39: =AC16 -> 0 | T39: =AC16 -> 0 | U39: =AC16 -> 0 | V39: =AC16 -> 0 | W39: =AC16 -> 0 | X39: =AC16 -> 0 | Y39: =AC16 -> 0 | Z39: =AC16 -> 0 | AA39: =AC16 -> 0 | AB39: =AC16 -> 0 | AC39: =AC16 -> 0 | AD39: =AC16 -> 0 | AF39: =D8+D13 -> 110 | AH39: 2 | AI39: =IF(AI36=AR36,AR39,IF(AI36=AZ36,AZ39,IF(AI36=BH36,BH39,IF(AI36=BP36,BP39,erreur)))) -> 250 | AJ39: =IF(AI36=AR36,AS39,IF(AI36=AZ36,BA39,IF(AI36=BH36,BI39,IF(AI36=BP36,BQ39,erreur)))) -> 200 | AK39: =IF(AI36=AR36,AT39,IF(AI36=AZ36,BB39,IF(AI36=BH36,BJ39,IF(AI36=BP36,BR39,erreur)))) -> 250 | AL39: =IF(AI36=AR36,AU39,IF(AI36=AZ36,BC39,IF(AI36=BH36,BK39,IF(AI36=BP36,BS39,erreur)))) -> 300 | AM39: =IF(AI36=AR36,AV39,IF(AI36=AZ36,BD39,IF(AI36=BH36,BL39,IF(AI36=BP36,BT39,erreur)))) -> 200 | AN39: =IF(AI36=AR36,AW39,IF(AI36=AZ36,BE39,IF(AI36=BH36,BM39,IF(AI36=BP36,BU39,erreur)))) -> 200 | AQ39: 2 | AR39: 300 | AS39: 200 | AT39: 200 | AU39: 300 | AV39: 200 | AW39: 200 | AY39: 2 | AZ39: 250 | BA39: 200 | BB39: 250 | BC39: 300 | BD39: 200 | BE39: 200 | BG39: 2 | BH39: 300 | BI39: 200 | BJ39: 200 | BK39: 300 | BL39: 200 | BM39: 200 | BO39: 2 | BP39: 250 | BQ39: 200 | BR39: 250 | BS39: 300 | BT39: 200 | BU39: 200
E40: =AF39+D16+D17+D21 -> 155 | F40: =AF40+D15+D17+D21 -> 171 | G40: =AF41+D15+D17+D21 -> 153 | H40: =AF42+D16+D17+D21 -> 153 | I40: =AF43+D15+D17+D21 -> 149 | Q40: =AC16 -> 0 | R40: =AC16 -> 0 | S40: =AC16 -> 0 | T40: =AC16 -> 0 | U40: =AC16 -> 0 | V40: =AC16 -> 0 | W40: =AC16 -> 0 | X40: =AC16 -> 0 | Y40: =AC16 -> 0 | Z40: =AC16 -> 0 | AA40: =AC16 -> 0 | AB40: =AC16 -> 0 | AC40: =AC16 -> 0 | AD40: =AC16 -> 0 | AF40: =D9+D13 -> 126 | AH40: 3 | AI40: =IF(AI36=AR36,AR40,IF(AI36=AZ36,AZ40,IF(AI36=BH36,BH40,IF(AI36=BP36,BP40,erreur)))) -> 125 | AJ40: =IF(AI36=AR36,AS40,IF(AI36=AZ36,BA40,IF(AI36=BH36,BI40,IF(AI36=BP36,BQ40,erreur)))) -> 100 | AK40: =IF(AI36=AR36,AT40,IF(AI36=AZ36,BB40,IF(AI36=BH36,BJ40,IF(AI36=BP36,BR40,erreur)))) -> 125 | AL40: =IF(AI36=AR36,AU40,IF(AI36=AZ36,BC40,IF(AI36=BH36,BK40,IF(AI36=BP36,BS40,erreur)))) -> 150 | AM40: =IF(AI36=AR36,AV40,IF(AI36=AZ36,BD40,IF(AI36=BH36,BL40,IF(AI36=BP36,BT40,erreur)))) -> 100 | AN40: =IF(AI36=AR36,AW40,IF(AI36=AZ36,BE40,IF(AI36=BH36,BM40,IF(AI36=BP36,BU40,erreur)))) -> 100 | AQ40: 3 | AR40: 300 | AS40: 200 | AT40: 200 | AU40: 300 | AV40: 200 | AW40: 200 | AY40: 3 | AZ40: 125 | BA40: 100 | BB40: 125 | BC40: 150 | BD40: 100 | BE40: 100 | BG40: 3 | BH40: 300 | BI40: 200 | BJ40: 200 | BK40: 300 | BL40: 200 | BM40: 200 | BO40: 3 | BP40: 250 | BQ40: 200 | BR40: 250 | BS40: 300 | BT40: 200 | BU40: 200
E41: stats brutes / pourcentage placement pour la tactique en cours | Q41: =AC16 -> 0 | R41: =AC16 -> 0 | S41: =AC16 -> 0 | T41: =AC16 -> 0 | U41: =AC16 -> 0 | V41: =AC16 -> 0 | W41: =AC16 -> 0 | X41: =AC16 -> 0 | Y41: =AC16 -> 0 | Z41: =AC16 -> 0 | AA41: =AC16 -> 0 | AB41: =AC16 -> 0 | AC41: =AC16 -> 0 | AD41: =AC16 -> 0 | AF41: =D10+D13 -> 108 | AH41: 4 | AI41: =IF(AI36=AR36,AR41,IF(AI36=AZ36,AZ41,IF(AI36=BH36,BG41,IF(AI36=BP36,BP41,erreur)))) -> 300 | AJ41: =IF(AI36=AR36,AS41,IF(AI36=AZ36,BA41,IF(AI36=BH36,BI41,IF(AI36=BP36,BQ41,erreur)))) -> 100 | AK41: =IF(AI36=AR36,AT41,IF(AI36=AZ36,BB41,IF(AI36=BH36,BJ41,IF(AI36=BP36,BR41,erreur)))) -> 250 | AL41: =IF(AI36=AR36,AU41,IF(AI36=AZ36,BC41,IF(AI36=BH36,BK41,IF(AI36=BP36,BS41,erreur)))) -> 250 | AM41: =IF(AI36=AR36,AV41,IF(AI36=AZ36,BD41,IF(AI36=BH36,BL41,IF(AI36=BP36,BT41,erreur)))) -> 150 | AN41: =IF(AI36=AR36,AW41,IF(AI36=AZ36,BE41,IF(AI36=BH36,BM41,IF(AI36=BP36,BU41,erreur)))) -> 200 | AQ41: 4 | AR41: 300 | AS41: 150 | AT41: 300 | AU41: 200 | AV41: 100 | AW41: 200 | AY41: 4 | AZ41: 300 | BA41: 100 | BB41: 250 | BC41: 250 | BD41: 150 | BE41: 200 | BG41: 4 | BH41: 300 | BI41: 150 | BJ41: 300 | BK41: 200 | BL41: 100 | BM41: 200 | BO41: 4 | BP41: 300 | BQ41: 100 | BR41: 250 | BS41: 250 | BT41: 150 | BU41: 200
F42: =IF(E25=C26,D26,IF(E25=C27,D27,IF(E25=C28,D28,IF(E25=C29,D29,AF2)))) -> 433 | Q42: =AC16 -> 0 | R42: =AC16 -> 0 | S42: =AC16 -> 0 | T42: =AC16 -> 0 | U42: =AC16 -> 0 | V42: =AC16 -> 0 | W42: =AC16 -> 0 | X42: =AC16 -> 0 | Y42: =AC16 -> 0 | Z42: =AC16 -> 0 | AA42: =AC16 -> 0 | AB42: =AC16 -> 0 | AC42: =AC16 -> 0 | AD42: =AC16 -> 0 | AF42: =D11+D13 -> 108 | AH42: 5 | AI42: =IF(AI36=AR36,AR42,IF(AI36=AZ36,AZ42,IF(AI36=BH36,BH42,IF(AI36=BP36,BP42,erreur)))) -> 200 | AJ42: =IF(AI36=AR36,AS42,IF(AI36=AZ36,BA42,IF(AI36=BH36,BI42,IF(AI36=BP36,BQ42,erreur)))) -> 150 | AK42: =IF(AI36=AR36,AT42,IF(AI36=AZ36,BB42,IF(AI36=BH36,BJ42,IF(AI36=BP36,BR42,erreur)))) -> 150 | AL42: =IF(AI36=AR36,AU42,IF(AI36=AZ36,BC42,IF(AI36=BH36,BK42,IF(AI36=BP36,BS42,erreur)))) -> 150 | AM42: =IF(AI36=AR36,AV42,IF(AI36=AZ36,BD42,IF(AI36=BH36,BL42,IF(AI36=BP36,BT42,erreur)))) -> 150 | AN42: =IF(AI36=AR36,AW42,IF(AI36=AZ36,BE42,IF(AI36=BH36,BM42,IF(AI36=BP36,BU42,erreur)))) -> 200 | AQ42: 5 | AR42: 200 | AS42: 150 | AT42: 150 | AU42: 150 | AV42: 150 | AW42: 200 | AY42: 5 | AZ42: 200 | BA42: 150 | BB42: 150 | BC42: 150 | BD42: 150 | BE42: 200 | BG42: 5 | BH42: 200 | BI42: 150 | BJ42: 150 | BK42: 150 | BL42: 150 | BM42: 200 | BO42: 5 | BP42: 200 | BQ42: 150 | BR42: 150 | BS42: 150 | BT42: 150 | BU42: 200
F43: defensif | I43: neutre | L43: offensif | Q43: =AC16 -> 0 | R43: =AC16 -> 0 | S43: =AC16 -> 0 | T43: =AC16 -> 0 | U43: =AC16 -> 0 | V43: =AC16 -> 0 | W43: =AC16 -> 0 | X43: =AC16 -> 0 | Y43: =AC16 -> 0 | Z43: =AC16 -> 0 | AA43: =AC16 -> 0 | AB43: =AC16 -> 0 | AC43: =AC16 -> 0 | AD43: =AC16 -> 0 | AF43: =D12+D13 -> 104 | AH43: 6 | AI43: =IF(AI36=AR36,AR43,IF(AI36=AZ36,AZ43,IF(AI36=BH36,BH43,IF(AI36=BP36,BP43,erreur)))) -> 250 | AJ43: =IF(AI36=AR36,AS43,IF(AI36=AZ36,BA43,IF(AI36=BH36,BI43,IF(AI36=BP36,BQ43,erreur)))) -> 200 | AK43: =IF(AI36=AR36,AT43,IF(AI36=AZ36,BB43,IF(AI36=BH36,BJ43,IF(AI36=BP36,BR43,erreur)))) -> 250 | AL43: =IF(AI36=AR36,AU43,IF(AI36=AZ36,BC43,IF(AI36=BH36,BK43,IF(AI36=BP36,BS43,erreur)))) -> 250 | AM43: =IF(AI36=AR36,AV43,IF(AI36=AZ36,BD43,IF(AI36=BH36,BL43,IF(AI36=BP36,BT43,erreur)))) -> 150 | AN43: =IF(AI36=AR36,AW43,IF(AI36=AZ36,BE43,IF(AI36=BH36,BM43,IF(AI36=BP36,BU43,erreur)))) -> 200 | AQ43: 6 | AR43: 250 | AS43: 250 | AT43: 150 | AU43: 250 | AV43: 200 | AW43: 200 | AY43: 6 | AZ43: 250 | BA43: 200 | BB43: 250 | BC43: 250 | BD43: 150 | BE43: 200 | BG43: 6 | BH43: 250 | BI43: 250 | BJ43: 150 | BK43: 250 | BL43: 200 | BM43: 200 | BO43: 6 | BP43: 250 | BQ43: 200 | BR43: 250 | BS43: 250 | BT43: 150 | BU43: 200
F44: 1% attaque | G44: 1% defense | H44: 1% cumulé | I44: 1% attaque | J44: 1% defense | K44: 1% cumulé | L44: 1% attaque | M44: 1% defense | N44: 1% cumulé | P44: coefficient caracteristique kit | AH44: 7 | AI44: =IF(AI36=AR36,AR44,IF(AI36=AZ36,AZ44,IF(AI36=BH36,BH44,IF(AI36=BP36,BP44,erreur)))) -> 250 | AJ44: =IF(AI36=AR36,AS44,IF(AI36=AZ36,BA44,IF(AI36=BH36,BI44,IF(AI36=BP36,BQ44,erreur)))) -> 250 | AK44: =IF(AI36=AR36,AT44,IF(AI36=AZ36,BB44,IF(AI36=BH36,BJ44,IF(AI36=BP36,BR44,erreur)))) -> 250 | AL44: =IF(AI36=AR36,AU44,IF(AI36=AZ36,BC44,IF(AI36=BH36,BK44,IF(AI36=BP36,BS44,erreur)))) -> 250 | AM44: =IF(AI36=AR36,AV44,IF(AI36=AZ36,BD44,IF(AI36=BH36,BL44,IF(AI36=BP36,BT44,erreur)))) -> 200 | AN44: =IF(AI36=AR36,AW44,IF(AI36=AZ36,BE44,IF(AI36=BH36,BM44,IF(AI36=BP36,BU44,erreur)))) -> 200 | AQ44: 7 | AR44: 250 | AS44: 250 | AT44: 250 | AU44: 250 | AV44: 200 | AW44: 200 | AY44: 7 | AZ44: 250 | BA44: 250 | BB44: 250 | BC44: 250 | BD44: 200 | BE44: 200 | BG44: 7 | BH44: 250 | BI44: 250 | BJ44: 250 | BK44: 250 | BL44: 200 | BM44: 200 | BO44: 7 | BP44: 250 | BQ44: 250 | BR44: 250 | BS44: 250 | BT44: 200 | BU44: 200
F45: =IF(E25=C26,E62,IF(E25=C27,H62,IF(E25=C28,K62,IF(E25=C29,N62,erreur)))) -> 0.05445 | G45: =IF(E25=C26,F62,IF(E25=C27,I62,IF(E25=C28,L62,IF(E25=C29,O62,erreur)))) -> 2.67025 | H45: =F45+G45 -> 2.7247 | I45: =IF(E25=C26,E76,IF(E25=C27,H76,IF(E25=C28,K76,IF(E25=C29,N76,erreur)))) -> 0.16345 | J45: =IF(E25=C26,F76,IF(E25=C27,I76,IF(E25=C28,L76,IF(E25=C29,O76,erreur)))) -> 2.5613 | K45: =I45+J45 -> 2.72475 | L45: =IF(E25=C26,E90,IF(E25=C27,H90,IF(E25=C28,K90,IF(E25=C29,N90,erreur)))) -> 0.27245 | M45: =IF(E25=C26,F90,IF(E25=C27,I90,IF(E25=C28,L90,IF(E25=C29,O90,erreur)))) -> 2.4523 | N45: =L45+M45 -> 2.72475 | Q45: 0.777 | R45: 1.75 | S45: 1.51 | T45: 2 | U45: 2 | V45: 1.75 | W45: 1.6 | X45: 1.6 | Y45: 1.477 | Z45: 1.075 | AA45: 1.185 | AB45: 1.6 | AC45: 1 | AD45: 1.185 | AH45: 8 | AI45: =IF(AI36=AR36,AR45,IF(AI36=AZ36,AZ45,IF(AI36=BH36,BH45,IF(AI36=BP36,BP45,erreur)))) -> 200 | AJ45: =IF(AI36=AR36,AS45,IF(AI36=AZ36,BA45,IF(AI36=BH36,BI45,IF(AI36=BP36,BQ45,erreur)))) -> 300 | AK45: =IF(AI36=AR36,AT45,IF(AI36=AZ36,BB45,IF(AI36=BH36,BJ45,IF(AI36=BP36,BR45,erreur)))) -> 300 | AL45: =IF(AI36=AR36,AU45,IF(AI36=AZ36,BC45,IF(AI36=BH36,BK45,IF(AI36=BP36,BS45,erreur)))) -> 300 | AM45: =IF(AI36=AR36,AV45,IF(AI36=AZ36,BD45,IF(AI36=BH36,BL45,IF(AI36=BP36,BT45,erreur)))) -> 200 | AN45: =IF(AI36=AR36,AW45,IF(AI36=AZ36,BE45,IF(AI36=BH36,BM45,IF(AI36=BP36,BU45,erreur)))) -> 200 | AQ45: 8 | AR45: 250 | AS45: 250 | AT45: 250 | AU45: 250 | AV45: 200 | AW45: 200 | AY45: 8 | AZ45: 200 | BA45: 300 | BB45: 300 | BC45: 300 | BD45: 200 | BE45: 200 | BG45: 8 | BH45: 200 | BI45: 300 | BJ45: 300 | BK45: 300 | BL45: 200 | BM45: 200 | BO45: 8 | BP45: 250 | BQ45: 250 | BR45: 250 | BS45: 250 | BT45: 200 | BU45: 200
F46: =IF(E25=C26,E63,IF(E25=C27,H63,IF(E25=C28,K63,IF(E25=C29,N63,erreur)))) -> 0.68115 | G46: =IF(E25=C26,F63,IF(E25=C27,I63,IF(E25=C28,L63,IF(E25=C29,O63,erreur)))) -> 0.68115 | H46: =F46+G46 -> 1.3623 | I46: =IF(E25=C26,E77,IF(E25=C27,H77,IF(E25=C28,K77,IF(E25=C29,N77,erreur)))) -> 0.8174 | J46: =IF(E25=C26,F77,IF(E25=C27,I77,IF(E25=C28,L77,IF(E25=C29,O77,erreur)))) -> 0.54495 | K46: =I46+J46 -> 1.36235 | L46: =IF(E25=C26,E91,IF(E25=C27,H91,IF(E25=C28,K91,IF(E25=C29,N91,erreur)))) -> 0.95365 | M46: =IF(E25=C26,F91,IF(E25=C27,I91,IF(E25=C28,L91,IF(E25=C29,O91,erreur)))) -> 0.4087 | N46: =L46+M46 -> 1.36235 | Q46: 2.083 | R46: 1.166 | S46: 1.166 | T46: 0.666 | U46: 1 | V46: 1.333 | W46: 1.6 | X46: 1.25 | Y46: 1.477 | Z46: 1.6 | AA46: 1.6 | AB46: 1.834 | AC46: 1.75 | AD46: 1.6 | AH46: 9 | AI46: =IF(AI36=AR36,AR46,IF(AI36=AZ36,AZ46,IF(AI36=BH36,BH46,IF(AI36=BP36,BP46,erreur)))) -> 350 | AJ46: =IF(AI36=AR36,AS46,IF(AI36=AZ36,BA46,IF(AI36=BH36,BI46,IF(AI36=BP36,BQ46,erreur)))) -> 400 | AK46: =IF(AI36=AR36,AT46,IF(AI36=AZ36,BB46,IF(AI36=BH36,BJ46,IF(AI36=BP36,BR46,erreur)))) -> 250 | AL46: =IF(AI36=AR36,AU46,IF(AI36=AZ36,BC46,IF(AI36=BH36,BK46,IF(AI36=BP36,BS46,erreur)))) -> 250 | AM46: =IF(AI36=AR36,AV46,IF(AI36=AZ36,BD46,IF(AI36=BH36,BL46,IF(AI36=BP36,BT46,erreur)))) -> 250 | AN46: =IF(AI36=AR36,AW46,IF(AI36=AZ36,BE46,IF(AI36=BH36,BM46,IF(AI36=BP36,BU46,erreur)))) -> 200 | AQ46: 9 | AR46: 250 | AS46: 350 | AT46: 400 | AU46: 300 | AV46: 200 | AW46: 200 | AY46: 9 | AZ46: 350 | BA46: 400 | BB46: 250 | BC46: 250 | BD46: 250 | BE46: 200 | BG46: 9 | BH46: 350 | BI46: 400 | BJ46: 250 | BK46: 250 | BL46: 250 | BM46: 200 | BO46: 9 | BP46: 250 | BQ46: 350 | BR46: 400 | BS46: 300 | BT46: 200 | BU46: 200
F47: =IF(E25=C26,E64,IF(E25=C27,H64,IF(E25=C28,K64,IF(E25=C29,N64,erreur)))) -> 0.68115 | G47: =IF(E25=C26,F64,IF(E25=C27,I64,IF(E25=C28,L64,IF(E25=C29,O64,erreur)))) -> 0.68115 | H47: 1.3623 | I47: =IF(E25=C26,E78,IF(E25=C27,H78,IF(E25=C28,K78,IF(E25=C29,N78,erreur)))) -> 0.8174 | J47: =IF(E25=C26,F78,IF(E25=C27,I78,IF(E25=C28,L78,IF(E25=C29,O78,erreur)))) -> 0.54495 | K47: 1.36235 | L47: =IF(E25=C26,E92,IF(E25=C27,H92,IF(E25=C28,K92,IF(E25=C29,N92,erreur)))) -> 0.95365 | M47: =IF(E25=C26,F92,IF(E25=C27,I92,IF(E25=C28,L92,IF(E25=C29,O92,erreur)))) -> 0.4087 | N47: 1.36235 | Q47: 0.777 | R47: 1.166 | S47: 1.5 | T47: 1.666 | U47: 2 | V47: 1.333 | W47: 0.94 | X47: 1.6 | Y47: 1.477 | Z47: 1.6 | AA47: 1.834 | AB47: 1.185 | AC47: 1.25 | AD47: 1.834 | AH47: 10 | AI47: =IF(AI36=AR36,AR47,IF(AI36=AZ36,AZ47,IF(AI36=BH36,BH47,IF(AI36=BP36,BP47,erreur)))) -> 200 | AJ47: =IF(AI36=AR36,AS47,IF(AI36=AZ36,BA47,IF(AI36=BH36,BI47,IF(AI36=BP36,BQ47,erreur)))) -> 350 | AK47: =IF(AI36=AR36,AT47,IF(AI36=AZ36,BB47,IF(AI36=BH36,BJ47,IF(AI36=BP36,BR47,erreur)))) -> 250 | AL47: =IF(AI36=AR36,AU47,IF(AI36=AZ36,BC47,IF(AI36=BH36,BK47,IF(AI36=BP36,BS47,erreur)))) -> 300 | AM47: =IF(AI36=AR36,AV47,IF(AI36=AZ36,BD47,IF(AI36=BH36,BL47,IF(AI36=BP36,BT47,erreur)))) -> 300 | AN47: =IF(AI36=AR36,AW47,IF(AI36=AZ36,BE47,IF(AI36=BH36,BM47,IF(AI36=BP36,BU47,erreur)))) -> 200 | AQ47: 10 | AR47: 200 | AS47: 350 | AT47: 250 | AU47: 300 | AV47: 300 | AW47: 200 | AY47: 10 | AZ47: 200 | BA47: 350 | BB47: 250 | BC47: 300 | BD47: 300 | BE47: 200 | BG47: 10 | BH47: 200 | BI47: 350 | BJ47: 250 | BK47: 300 | BL47: 300 | BM47: 200 | BO47: 10 | BP47: 200 | BQ47: 350 | BR47: 250 | BS47: 300 | BT47: 300 | BU47: 200
F48: =IF(E25=C26,E65,IF(E25=C27,H65,IF(E25=C28,K65,IF(E25=C29,N65,erreur)))) -> 0.18165 | G48: =IF(E25=C26,F65,IF(E25=C27,I65,IF(E25=C28,L65,IF(E25=C29,O65,erreur)))) -> 0.7266 | H48: 0.90825 | I48: =IF(E25=C26,E79,IF(E25=C27,H79,IF(E25=C28,K79,IF(E25=C29,N79,erreur)))) -> 0.27245 | J48: =IF(E25=C26,F79,IF(E25=C27,I79,IF(E25=C28,L79,IF(E25=C29,O79,erreur)))) -> 0.63575 | K48: 0.9082 | L48: =IF(E25=C26,E93,IF(E25=C27,H93,IF(E25=C28,K93,IF(E25=C29,N93,erreur)))) -> 0.3633 | M48: =IF(E25=C26,F93,IF(E25=C27,I93,IF(E25=C28,L93,IF(E25=C29,O93,erreur)))) -> 0.54495 | N48: 0.90825 | Q48: 0.25 | R48: 1.75 | S48: 1.75 | T48: 1.666 | U48: 1.333 | V48: 1.333 | W48: 1.6 | X48: 1.6 | Y48: 1.477 | Z48: 1.6 | AA48: 1.4 | AB48: 1.185 | AC48: 1.477 | AD48: 1.6 | AH48: 11 | AI48: =IF(AI36=AR36,AR48,IF(AI36=AZ36,AZ48,IF(AI36=BH36,BH48,IF(AI36=BP36,BP48,erreur)))) -> 100 | AJ48: =IF(AI36=AR36,AS48,IF(AI36=AZ36,BA48,IF(AI36=BH36,BI48,IF(AI36=BP36,BQ48,erreur)))) -> 150 | AK48: =IF(AI36=AR36,AT48,IF(AI36=AZ36,BB48,IF(AI36=BH36,BJ48,IF(AI36=BP36,BR48,erreur)))) -> 150 | AL48: =IF(AI36=AR36,AU48,IF(AI36=AZ36,BC48,IF(AI36=BH36,BK48,IF(AI36=BP36,BS48,erreur)))) -> 150 | AM48: =IF(AI36=AR36,AV48,IF(AI36=AZ36,BD48,IF(AI36=BH36,BL48,IF(AI36=BP36,BT48,erreur)))) -> 100 | AN48: =IF(AI36=AR36,AW48,IF(AI36=AZ36,BE48,IF(AI36=BH36,BM48,IF(AI36=BP36,BU48,erreur)))) -> 100 | AQ48: 11 | AR48: 250 | AS48: 350 | AT48: 400 | AU48: 350 | AV48: 150 | AW48: 200 | AY48: 11 | AZ48: 100 | BA48: 150 | BB48: 150 | BC48: 150 | BD48: 100 | BE48: 100 | BG48: 11 | BH48: 200 | BI48: 300 | BJ48: 300 | BK48: 300 | BL48: 200 | BM48: 200 | BO48: 11 | BP48: 250 | BQ48: 350 | BR48: 400 | BS48: 350 | BT48: 150 | BU48: 200
F49: =IF(E25=C26,E66,IF(E25=C27,H66,IF(E25=C28,K66,IF(E25=C29,N66,erreur)))) -> 0.4087 | G49: =IF(E25=C26,F66,IF(E25=C27,I66,IF(E25=C28,L66,IF(E25=C29,O66,erreur)))) -> 0.95365 | H49: 1.36235 | I49: =IF(E25=C26,E80,IF(E25=C27,H80,IF(E25=C28,K80,IF(E25=C29,N80,erreur)))) -> 0.68115 | J49: =IF(E25=C26,F80,IF(E25=C27,I80,IF(E25=C28,L80,IF(E25=C29,O80,erreur)))) -> 0.68115 | K49: 1.3623 | L49: =IF(E25=C26,E94,IF(E25=C27,H94,IF(E25=C28,K94,IF(E25=C29,N94,erreur)))) -> 0.95365 | M49: =IF(E25=C26,F94,IF(E25=C27,I94,IF(E25=C28,L94,IF(E25=C29,O94,erreur)))) -> 0.4087 | N49: 1.36235 | Q49: 1.3 | R49: 1.166 | S49: 1.166 | T49: 1 | U49: 0.666 | V49: 1.333 | W49: 1.25 | X49: 0.93 | Y49: 1.185 | Z49: 1.075 | AA49: 0.9 | AB49: 1.185 | AC49: 1.477 | AD49: 0.69
F50: =IF(E25=C26,E67,IF(E25=C27,H67,IF(E25=C28,K67,IF(E25=C29,N67,erreur)))) -> 0.8174 | G50: =IF(E25=C26,F67,IF(E25=C27,I67,IF(E25=C28,L67,IF(E25=C29,O67,erreur)))) -> 0.54495 | H50: 1.36235 | I50: =IF(E25=C26,E81,IF(E25=C27,H81,IF(E25=C28,K81,IF(E25=C29,N81,erreur)))) -> 0.95365 | J50: =IF(E25=C26,F81,IF(E25=C27,I81,IF(E25=C28,L81,IF(E25=C29,O81,erreur)))) -> 0.4087 | K50: 1.36235 | L50: =IF(E25=C26,E95,IF(E25=C27,H95,IF(E25=C28,K95,IF(E25=C29,N95,erreur)))) -> 0.95365 | M50: =IF(E25=C26,F95,IF(E25=C27,I95,IF(E25=C28,L95,IF(E25=C29,O95,erreur)))) -> 0.4087 | N50: 1.36235 | P50: valeur objet max | AG50: pourcentage poste par kit et par place
F51: =IF(E25=C26,E68,IF(E25=C27,H68,IF(E25=C28,K68,IF(E25=C29,N68,erreur)))) -> 0.81415 | G51: =IF(E25=C26,F68,IF(E25=C27,I68,IF(E25=C28,L68,IF(E25=C29,O68,erreur)))) -> 0.54275 | H51: 1.3569 | I51: =IF(E25=C26,E82,IF(E25=C27,H82,IF(E25=C28,K82,IF(E25=C29,N82,erreur)))) -> 0.94985 | J51: =IF(E25=C26,F82,IF(E25=C27,I82,IF(E25=C28,L82,IF(E25=C29,O82,erreur)))) -> 0.40705 | K51: 1.3569 | L51: =IF(E25=C26,E96,IF(E25=C27,H96,IF(E25=C28,K96,IF(E25=C29,N96,erreur)))) -> 0.94985 | M51: =IF(E25=C26,F96,IF(E25=C27,I96,IF(E25=C28,L96,IF(E25=C29,O96,erreur)))) -> 0.40705 | N51: 1.3569 | Q51: =D21 -> 37 | R51: =D21 -> 37 | S51: =D21 -> 37 | T51: =D21 -> 37 | U51: =D21 -> 37 | V51: =D21 -> 37 | W51: =D21 -> 37 | X51: =D21 -> 37 | Y51: =D21 -> 37 | Z51: =D21 -> 37 | AA51: =D21 -> 37 | AB51: =D21 -> 37 | AC51: =D21 -> 37 | AD51: =D21 -> 37 | AH51: 1 | AI51: =Q9 -> kit 1 | AJ51: kit 2A | AK51: kit 2B | AL51: kit 4A | AM51: kit 4B | AN51: kit 5 | AO51: kit 6A | AP51: kit 6B | AQ51: kit 7 | AR51: kit 8 | AS51: kit 9A | AT51: kit 9B | AU51: kit 10 | AV51: kit 11 | AW51: MAX | AY51: 2 | AZ51: =Q9 -> kit 1 | BA51: kit 2A | BB51: kit 2B | BC51: kit 4A | BD51: kit 4B | BE51: kit 5 | BF51: kit 6A | BG51: kit 6B | BH51: kit 7 | BI51: kit 8 | BJ51: kit 9A | BK51: kit 9B | BL51: kit 10 | BM51: kit 11 | BN51: MAX | BP51: coefficient multiplicateur par tactique :
F52: =IF(E25=C26,E69,IF(E25=C27,H69,IF(E25=C28,K69,IF(E25=C29,N69,erreur)))) -> 1.63485 | G52: =IF(E25=C26,F69,IF(E25=C27,I69,IF(E25=C28,L69,IF(E25=C29,O69,erreur)))) -> 1.0899 | H52: 2.72475 | I52: =IF(E25=C26,E83,IF(E25=C27,H83,IF(E25=C28,K83,IF(E25=C29,N83,erreur)))) -> 1.90735 | J52: =IF(E25=C26,F83,IF(E25=C27,I83,IF(E25=C28,L83,IF(E25=C29,O83,erreur)))) -> 0.8174 | K52: 2.72475 | L52: =IF(E25=C26,E97,IF(E25=C27,H97,IF(E25=C28,K97,IF(E25=C29,N97,erreur)))) -> 2.4523 | M52: =IF(E25=C26,F97,IF(E25=C27,I97,IF(E25=C28,L97,IF(E25=C29,O97,erreur)))) -> 0.27245 | N52: 2.72475 | Q52: =D21 -> 37 | R52: =D21 -> 37 | S52: =D21 -> 37 | T52: =D21 -> 37 | U52: =D21 -> 37 | V52: =D21 -> 37 | W52: =D21 -> 37 | X52: =D21 -> 37 | Y52: =D21 -> 37 | Z52: =D21 -> 37 | AA52: =D21 -> 37 | AB52: =D21 -> 37 | AC52: =D21 -> 37 | AD52: =D21 -> 37 | AH52: =AH152 -> G. Warmuz 430 | AI52: =MIN((S58+AH31*D19)/AI38,(S59+AH31*D19)/AJ38,(S60+AH31*D19)/AK38,(S61+AH31*D19)/AL38,(S62+AH31*D19)/AM38)*AN38 -> 390 | AJ52: =MIN((T58+AH31*D19)/AI38,(T59+AH31*D19)/AJ38,(T60+AH31*D19)/AK38,(T61+AH31*D19)/AL38,(T62+AH31*D19)/AM38)*AN38 -> 373 | AK52: =MIN((U58+AH31*D19)/AI38,(U59+AH31*D19)/AJ38,(U60+AH31*D19)/AK38,(U61+AH31*D19)/AL38,(U62+AH31*D19)/AM38)*AN38 -> 373 | AL52: =MIN((V58+AH31*D19)/AI38,(V59+AH31*D19)/AJ38,(V60+AH31*D19)/AK38,(V61+AH31*D19)/AL38,(V62+AH31*D19)/AM38)*AN38 -> 364 | AM52: =MIN((W58+AH31*D19)/AI38,(W59+AH31*D19)/AJ38,(W60+AH31*D19)/AK38,(W61+AH31*D19)/AL38,(W62+AH31*D19)/AM38)*AN38 -> 370 | AN52: =MIN((X58+AH31*D19)/AI38,(X59+AH31*D19)/AJ38,(X60+AH31*D19)/AK38,(X61+AH31*D19)/AL38,(X62+AH31*D19)/AM38)*AN38 -> 376 | AO52: =MIN((Y58+AH31*D19)/AI38,(Y59+AH31*D19)/AJ38,(Y60+AH31*D19)/AK38,(Y61+AH31*D19)/AL38,(Y62+AH31*D19)/AM38)*AN38 -> 381 | AP52: =MIN((Z58+AH31*D19)/AI38,(Z59+AH31*D19)/AJ38,(Z60+AH31*D19)/AK38,(Z61+AH31*D19)/AL38,(Z62+AH31*D19)/AM38)*AN38 -> 374.5 | AQ52: =MIN((AA58+AH31*D19)/AI38,(AA59+AH31*D19)/AJ38,(AA60+AH31*D19)/AK38,(AA61+AH31*D19)/AL38,(AA62+AH31*D19)/AM38)*AN38 -> 379 | AR52: =MIN((AB58+AH31*D19)/AI38,(AB59+AH31*D19)/AJ38,(AB60+AH31*D19)/AK38,(AB61+AH31*D19)/AL38,(AB62+AH31*D19)/AM38)*AN38 -> 381 | AS52: =MIN((AC58+AH31*D19)/AI38,(AC59+AH31*D19)/AJ38,(AC60+AH31*D19)/AK38,(AC61+AH31*D19)/AL38,(AC62+AH31*D19)/AM38)*AN38 -> 381 | AT52: =MIN((AD58+AH31*D19)/AI38,(AD59+AH31*D19)/AJ38,(AD60+AH31*D19)/AK38,(AD61+AH31*D19)/AL38,(AD62+AH31*D19)/AM38)*AN38 -> 385.5 | AU52: =MIN((AE58+AH31*D19)/AI38,(AE59+AH31*D19)/AJ38,(AE60+AH31*D19)/AK38,(AE61+AH31*D19)/AL38,(AE62+AH31*D19)/AM38)*AN38 -> 384 | AV52: =MIN((AF58+AH31*D19)/AI38,(AF59+AH31*D19)/AJ38,(AF60+AH31*D19)/AK38,(AF61+AH31*D19)/AL38,(AF62+AH31*D19)/AM38)*AN38 -> 381 | AW52: =MAX(AI52:AV52) -> 390 | AY52: =AH152 -> G. Warmuz 430 | AZ52: =MIN((S58+AI31*D19)/AI39,(S59+AI31*D19)/AJ39,(S60+AI31*D19)/AK39,(S61+AI31*D19)/AL39,(S62+AI31*D19)/AM39)*AN39 -> 336 | BA52: =MIN((T58+AI31*D19)/AI39,(T59+AI31*D19)/AJ39,(T60+AI31*D19)/AK39,(T61+AI31*D19)/AL39,(T62+AI31*D19)/AM39)*AN39 -> 364.8 | BB52: =MIN((U58+AI31*D19)/AI39,(U59+AI31*D19)/AJ39,(U60+AI31*D19)/AK39,(U61+AI31*D19)/AL39,(U62+AI31*D19)/AM39)*AN39 -> 357.6 | BC52: =MIN((V58+AI31*D19)/AI39,(V59+AI31*D19)/AJ39,(V60+AI31*D19)/AK39,(V61+AI31*D19)/AL39,(V62+AI31*D19)/AM39)*AN39 -> 372 | BD52: =MIN((W58+AI31*D19)/AI39,(W59+AI31*D19)/AJ39,(W60+AI31*D19)/AK39,(W61+AI31*D19)/AL39,(W62+AI31*D19)/AM39)*AN39 -> 372 | BE52: =MIN((X58+AI31*D19)/AI39,(X59+AI31*D19)/AJ39,(X60+AI31*D19)/AK39,(X61+AI31*D19)/AL39,(X62+AI31*D19)/AM39)*AN39 -> 364.8 | BF52: =MIN((Y58+AI31*D19)/AI39,(Y59+AI31*D19)/AJ39,(Y60+AI31*D19)/AK39,(Y61+AI31*D19)/AL39,(Y62+AI31*D19)/AM39)*AN39 -> 360 | BG52: =MIN((Z58+AI31*D19)/AI39,(Z59+AI31*D19)/AJ39,(Z60+AI31*D19)/AK39,(Z61+AI31*D19)/AL39,(Z62+AI31*D19)/AM39)*AN39 -> 360 | BH52: =MIN((AA58+AI31*D19)/AI39,(AA59+AI31*D19)/AJ39,(AA60+AI31*D19)/AK39,(AA61+AI31*D19)/AL39,(AA62+AI31*D19)/AM39)*AN39 -> 356.8 | BI52: =MIN((AB58+AI31*D19)/AI39,(AB59+AI31*D19)/AJ39,(AB60+AI31*D19)/AK39,(AB61+AI31*D19)/AL39,(AB62+AI31*D19)/AM39)*AN39 -> 344.8 | BJ52: =MIN((AC58+AI31*D19)/AI39,(AC59+AI31*D19)/AJ39,(AC60+AI31*D19)/AK39,(AC61+AI31*D19)/AL39,(AC62+AI31*D19)/AM39)*AN39 -> 348 | BK52: =MIN((AD58+AI31*D19)/AI39,(AD59+AI31*D19)/AJ39,(AD60+AI31*D19)/AK39,(AD61+AI31*D19)/AL39,(AD62+AI31*D19)/AM39)*AN39 -> 360 | BL52: =MIN((AE58+AI31*D19)/AI39,(AE59+AI31*D19)/AJ39,(AE60+AI31*D19)/AK39,(AE61+AI31*D19)/AL39,(AE62+AI31*D19)/AM39)*AN39 -> 342.4 | BM52: =MIN((AF58+AI31*D19)/AI39,(AF59+AI31*D19)/AJ39,(AF60+AI31*D19)/AK39,(AF61+AI31*D19)/AL39,(AF62+AI31*D19)/AM39)*AN39 -> 348 | BN52: =MAX(AZ52:BM52) -> 372 | BQ52: =F42 -> 433
F53: =IF(E25=C26,E70,IF(E25=C27,H70,IF(E25=C28,K70,IF(E25=C29,N70,erreur)))) -> 2.04355 | G53: =IF(E25=C26,F70,IF(E25=C27,I70,IF(E25=C28,L70,IF(E25=C29,O70,erreur)))) -> 0.22705 | H53: 2.2706 | I53: =IF(E25=C26,E84,IF(E25=C27,H84,IF(E25=C28,K84,IF(E25=C29,N84,erreur)))) -> 2.04355 | J53: =IF(E25=C26,F84,IF(E25=C27,I84,IF(E25=C28,L84,IF(E25=C29,O84,erreur)))) -> 0.22705 | K53: 2.2706 | L53: =IF(E25=C26,E98,IF(E25=C27,H98,IF(E25=C28,K98,IF(E25=C29,N98,erreur)))) -> 2.04355 | M53: =IF(E25=C26,F98,IF(E25=C27,I98,IF(E25=C28,L98,IF(E25=C29,O98,erreur)))) -> 0.22705 | N53: 2.2706 | Q53: =D21 -> 37 | R53: =D21 -> 37 | S53: =D21 -> 37 | T53: =D21 -> 37 | U53: =D21 -> 37 | V53: =D21 -> 37 | W53: =D21 -> 37 | X53: =D21 -> 37 | Y53: =D21 -> 37 | Z53: =D21 -> 37 | AA53: =D21 -> 37 | AB53: =D21 -> 37 | AC53: =D21 -> 37 | AD53: =D21 -> 37 | AH53: DS499 | AI53: =MIN((S65+AH31*D19)/AI38,(S66+AH31*D19)/AJ38,(S67+AH31*D19)/AK38,(S68+AH31*D19)/AL38,(S69+AH31*D19)/AM38)*AN38 -> 371 | AJ53: =MIN((T65+AH31*D19)/AI38,(T66+AH31*D19)/AJ38,(T67+AH31*D19)/AK38,(T68+AH31*D19)/AL38,(T69+AH31*D19)/AM38)*AN38 -> 354 | AK53: =MIN((U65+AH31*D19)/AI38,(U66+AH31*D19)/AJ38,(U67+AH31*D19)/AK38,(U68+AH31*D19)/AL38,(U69+AH31*D19)/AM38)*AN38 -> 354 | AL53: =MIN((V65+AH31*D19)/AI38,(V66+AH31*D19)/AJ38,(V67+AH31*D19)/AK38,(V68+AH31*D19)/AL38,(V69+AH31*D19)/AM38)*AN38 -> 345 | AM53: =MIN((W65+AH31*D19)/AI38,(W66+AH31*D19)/AJ38,(W67+AH31*D19)/AK38,(W68+AH31*D19)/AL38,(W69+AH31*D19)/AM38)*AN38 -> 351 | AN53: =MIN((X65+AH31*D19)/AI38,(X66+AH31*D19)/AJ38,(X67+AH31*D19)/AK38,(X68+AH31*D19)/AL38,(X69+AH31*D19)/AM38)*AN38 -> 357 | AO53: =MIN((Y65+AH31*D19)/AI38,(Y66+AH31*D19)/AJ38,(Y67+AH31*D19)/AK38,(Y68+AH31*D19)/AL38,(Y69+AH31*D19)/AM38)*AN38 -> 362 | AP53: =MIN((Z65+AH31*D19)/AI38,(Z66+AH31*D19)/AJ38,(Z67+AH31*D19)/AK38,(Z68+AH31*D19)/AL38,(Z69+AH31*D19)/AM38)*AN38 -> 355.5 | AQ53: =MIN((AA65+AH31*D19)/AI38,(AA66+AH31*D19)/AJ38,(AA67+AH31*D19)/AK38,(AA68+AH31*D19)/AL38,(AA69+AH31*D19)/AM38)*AN38 -> 360 | AR53: =MIN((AB65+AH31*D19)/AI38,(AB66+AH31*D19)/AJ38,(AB67+AH31*D19)/AK38,(AB68+AH31*D19)/AL38,(AB69+AH31*D19)/AM38)*AN38 -> 362 | AS53: =MIN((AC65+AH31*D19)/AI38,(AC66+AH31*D19)/AJ38,(AC67+AH31*D19)/AK38,(AC68+AH31*D19)/AL38,(AC69+AH31*D19)/AM38)*AN38 -> 362 | AT53: =MIN((AD65+AH31*D19)/AI38,(AD66+AH31*D19)/AJ38,(AD67+AH31*D19)/AK38,(AD68+AH31*D19)/AL38,(AD69+AH31*D19)/AM38)*AN38 -> 366.5 | AU53: =MIN((AE65+AH31*D19)/AI38,(AE66+AH31*D19)/AJ38,(AE67+AH31*D19)/AK38,(AE68+AH31*D19)/AL38,(AE69+AH31*D19)/AM38)*AN38 -> 365 | AV53: =MIN((AF65+AH31*D19)/AI38,(AF66+AH31*D19)/AJ38,(AF67+AH31*D19)/AK38,(AF68+AH31*D19)/AL38,(AF69+AH31*D19)/AM38)*AN38 -> 362 | AW53: =MAX(AI53:AV53) -> 371 | AY53: DS499 | AZ53: =MIN((S65+AI31*D19)/AI39,(S66+AI31*D19)/AJ39,(S67+AI31*D19)/AK39,(S68+AI31*D19)/AL39,(S69+AI31*D19)/AM39)*AN39 -> 454.6666667 | BA53: =MIN((T65+AI31*D19)/AI39,(T66+AI31*D19)/AJ39,(T67+AI31*D19)/AK39,(T68+AI31*D19)/AL39,(T69+AI31*D19)/AM39)*AN39 -> 492 | BB53: =MIN((U65+AI31*D19)/AI39,(U66+AI31*D19)/AJ39,(U67+AI31*D19)/AK39,(U68+AI31*D19)/AL39,(U69+AI31*D19)/AM39)*AN39 -> 492 | BC53: =MIN((V65+AI31*D19)/AI39,(V66+AI31*D19)/AJ39,(V67+AI31*D19)/AK39,(V68+AI31*D19)/AL39,(V69+AI31*D19)/AM39)*AN39 -> 490 | BD53: =MIN((W65+AI31*D19)/AI39,(W66+AI31*D19)/AJ39,(W67+AI31*D19)/AK39,(W68+AI31*D19)/AL39,(W69+AI31*D19)/AM39)*AN39 -> 481.3333333 | BE53: =MIN((X65+AI31*D19)/AI39,(X66+AI31*D19)/AJ39,(X67+AI31*D19)/AK39,(X68+AI31*D19)/AL39,(X69+AI31*D19)/AM39)*AN39 -> 481.3333333 | BF53: =MIN((Y65+AI31*D19)/AI39,(Y66+AI31*D19)/AJ39,(Y67+AI31*D19)/AK39,(Y68+AI31*D19)/AL39,(Y69+AI31*D19)/AM39)*AN39 -> 488 | BG53: =MIN((Z65+AI31*D19)/AI39,(Z66+AI31*D19)/AJ39,(Z67+AI31*D19)/AK39,(Z68+AI31*D19)/AL39,(Z69+AI31*D19)/AM39)*AN39 -> 488 | BH53: =MIN((AA65+AI31*D19)/AI39,(AA66+AI31*D19)/AJ39,(AA67+AI31*D19)/AK39,(AA68+AI31*D19)/AL39,(AA69+AI31*D19)/AM39)*AN39 -> 485.3333333 | BI53: =MIN((AB65+AI31*D19)/AI39,(AB66+AI31*D19)/AJ39,(AB67+AI31*D19)/AK39,(AB68+AI31*D19)/AL39,(AB69+AI31*D19)/AM39)*AN39 -> 488 | BJ53: =MIN((AC65+AI31*D19)/AI39,(AC66+AI31*D19)/AJ39,(AC67+AI31*D19)/AK39,(AC68+AI31*D19)/AL39,(AC69+AI31*D19)/AM39)*AN39 -> 483.3333333 | BK53: =MIN((AD65+AI31*D19)/AI39,(AD66+AI31*D19)/AJ39,(AD67+AI31*D19)/AK39,(AD68+AI31*D19)/AL39,(AD69+AI31*D19)/AM39)*AN39 -> 478 | BL53: =MIN((AE65+AI31*D19)/AI39,(AE66+AI31*D19)/AJ39,(AE67+AI31*D19)/AK39,(AE68+AI31*D19)/AL39,(AE69+AI31*D19)/AM39)*AN39 -> 485.3333333 | BM53: =MIN((AF65+AI31*D19)/AI39,(AF66+AI31*D19)/AJ39,(AF67+AI31*D19)/AK39,(AF68+AI31*D19)/AL39,(AF69+AI31*D19)/AM39)*AN39 -> 488 | BN53: =MAX(AZ53:BM53) -> 492 | BQ53: =AN3 -> Neutre
F54: =IF(E25=C26,E71,IF(E25=C27,H71,IF(E25=C28,K71,IF(E25=C29,N71,erreur)))) -> 1.0899 | G54: =IF(E25=C26,F71,IF(E25=C27,I71,IF(E25=C28,L71,IF(E25=C29,O71,erreur)))) -> 0.7266 | H54: 1.8165 | I54: =IF(E25=C26,E85,IF(E25=C27,H85,IF(E25=C28,K85,IF(E25=C29,N85,erreur)))) -> 1.4532 | J54: =IF(E25=C26,F85,IF(E25=C27,I85,IF(E25=C28,L85,IF(E25=C29,O85,erreur)))) -> 0.3633 | K54: 1.8165 | L54: =IF(E25=C26,E99,IF(E25=C27,H99,IF(E25=C28,K99,IF(E25=C29,N99,erreur)))) -> 1.63485 | M54: =IF(E25=C26,F99,IF(E25=C27,I99,IF(E25=C28,L99,IF(E25=C29,O99,erreur)))) -> 0.18165 | N54: 1.8165 | Q54: =D21 -> 37 | R54: =D21 -> 37 | S54: =D21 -> 37 | T54: =D21 -> 37 | U54: =D21 -> 37 | V54: =D21 -> 37 | W54: =D21 -> 37 | X54: =D21 -> 37 | Y54: =D21 -> 37 | Z54: =D21 -> 37 | AA54: =D21 -> 37 | AB54: =D21 -> 37 | AC54: =D21 -> 37 | AD54: =D21 -> 37 | AH54: 3 moy 513 | AI54: =MIN((S72+AH31*D19)/AI38,(S73+AH31*D19)/AJ38,(S74+AH31*D19)/AK38,(S75+AH31*D19)/AL38,(S76+AH31*D19)/AM38)*AN38 -> 362 | AJ54: =MIN((T72+AH31*D19)/AI38,(T73+AH31*D19)/AJ38,(T74+AH31*D19)/AK38,(T75+AH31*D19)/AL38,(T76+AH31*D19)/AM38)*AN38 -> 345 | AK54: =MIN((U72+AH31*D19)/AI38,(U73+AH31*D19)/AJ38,(U74+AH31*D19)/AK38,(U75+AH31*D19)/AL38,(U76+AH31*D19)/AM38)*AN38 -> 345 | AL54: =MIN((V72+AH31*D19)/AI38,(V73+AH31*D19)/AJ38,(V74+AH31*D19)/AK38,(V75+AH31*D19)/AL38,(V76+AH31*D19)/AM38)*AN38 -> 336 | AM54: =MIN((W72+AH31*D19)/AI38,(W73+AH31*D19)/AJ38,(W74+AH31*D19)/AK38,(W75+AH31*D19)/AL38,(W76+AH31*D19)/AM38)*AN38 -> 342 | AN54: =MIN((X72+AH31*D19)/AI38,(X73+AH31*D19)/AJ38,(X74+AH31*D19)/AK38,(X75+AH31*D19)/AL38,(X76+AH31*D19)/AM38)*AN38 -> 348 | AO54: =MIN((Y72+AH31*D19)/AI38,(Y73+AH31*D19)/AJ38,(Y74+AH31*D19)/AK38,(Y75+AH31*D19)/AL38,(Y76+AH31*D19)/AM38)*AN38 -> 353 | AP54: =MIN((Z72+AH31*D19)/AI38,(Z73+AH31*D19)/AJ38,(Z74+AH31*D19)/AK38,(Z75+AH31*D19)/AL38,(Z76+AH31*D19)/AM38)*AN38 -> 346.5 | AQ54: =MIN((AA72+AH31*D19)/AI38,(AA73+AH31*D19)/AJ38,(AA74+AH31*D19)/AK38,(AA75+AH31*D19)/AL38,(AA76+AH31*D19)/AM38)*AN38 -> 351 | AR54: =MIN((AB72+AH31*D19)/AI38,(AB73+AH31*D19)/AJ38,(AB74+AH31*D19)/AK38,(AB75+AH31*D19)/AL38,(AB76+AH31*D19)/AM38)*AN38 -> 353 | AS54: =MIN((AC72+AH31*D19)/AI38,(AC73+AH31*D19)/AJ38,(AC74+AH31*D19)/AK38,(AC75+AH31*D19)/AL38,(AC76+AH31*D19)/AM38)*AN38 -> 353 | AT54: =MIN((AD72+AH31*D19)/AI38,(AD73+AH31*D19)/AJ38,(AD74+AH31*D19)/AK38,(AD75+AH31*D19)/AL38,(AD76+AH31*D19)/AM38)*AN38 -> 357.5 | AU54: =MIN((AE72+AH31*D19)/AI38,(AE73+AH31*D19)/AJ38,(AE74+AH31*D19)/AK38,(AE75+AH31*D19)/AL38,(AE76+AH31*D19)/AM38)*AN38 -> 356 | AV54: =MIN((AF72+AH31*D19)/AI38,(AF73+AH31*D19)/AJ38,(AF74+AH31*D19)/AK38,(AF75+AH31*D19)/AL38,(AF76+AH31*D19)/AM38)*AN38 -> 353 | AW54: 362 | AY54: 3 moy 513 | AZ54: =MIN((S72+AI31*D19)/AI39,(S73+AI31*D19)/AJ39,(S74+AI31*D19)/AK39,(S75+AI31*D19)/AL39,(S76+AI31*D19)/AM39)*AN39 -> 461.3333333 | BA54: =MIN((T72+AI31*D19)/AI39,(T73+AI31*D19)/AJ39,(T74+AI31*D19)/AK39,(T75+AI31*D19)/AL39,(T76+AI31*D19)/AM39)*AN39 -> 498.6666667 | BB54: =MIN((U72+AI31*D19)/AI39,(U73+AI31*D19)/AJ39,(U74+AI31*D19)/AK39,(U75+AI31*D19)/AL39,(U76+AI31*D19)/AM39)*AN39 -> 498.6666667 | BC54: =MIN((V72+AI31*D19)/AI39,(V73+AI31*D19)/AJ39,(V74+AI31*D19)/AK39,(V75+AI31*D19)/AL39,(V76+AI31*D19)/AM39)*AN39 -> 496.6666667 | BD54: =MIN((W72+AI31*D19)/AI39,(W73+AI31*D19)/AJ39,(W74+AI31*D19)/AK39,(W75+AI31*D19)/AL39,(W76+AI31*D19)/AM39)*AN39 -> 488 | BE54: =MIN((X72+AI31*D19)/AI39,(X73+AI31*D19)/AJ39,(X74+AI31*D19)/AK39,(X75+AI31*D19)/AL39,(X76+AI31*D19)/AM39)*AN39 -> 488 | BF54: =MIN((Y72+AI31*D19)/AI39,(Y73+AI31*D19)/AJ39,(Y74+AI31*D19)/AK39,(Y75+AI31*D19)/AL39,(Y76+AI31*D19)/AM39)*AN39 -> 494.6666667 | BG54: =MIN((Z72+AI31*D19)/AI39,(Z73+AI31*D19)/AJ39,(Z74+AI31*D19)/AK39,(Z75+AI31*D19)/AL39,(Z76+AI31*D19)/AM39)*AN39 -> 494.6666667 | BH54: =MIN((AA72+AI31*D19)/AI39,(AA73+AI31*D19)/AJ39,(AA74+AI31*D19)/AK39,(AA75+AI31*D19)/AL39,(AA76+AI31*D19)/AM39)*AN39 -> 492 | BI54: =MIN((AB72+AI31*D19)/AI39,(AB73+AI31*D19)/AJ39,(AB74+AI31*D19)/AK39,(AB75+AI31*D19)/AL39,(AB76+AI31*D19)/AM39)*AN39 -> 494.6666667 | BJ54: =MIN((AC72+AI31*D19)/AI39,(AC73+AI31*D19)/AJ39,(AC74+AI31*D19)/AK39,(AC75+AI31*D19)/AL39,(AC76+AI31*D19)/AM39)*AN39 -> 490 | BK54: =MIN((AD72+AI31*D19)/AI39,(AD73+AI31*D19)/AJ39,(AD74+AI31*D19)/AK39,(AD75+AI31*D19)/AL39,(AD76+AI31*D19)/AM39)*AN39 -> 484.6666667 | BL54: =MIN((AE72+AI31*D19)/AI39,(AE73+AI31*D19)/AJ39,(AE74+AI31*D19)/AK39,(AE75+AI31*D19)/AL39,(AE76+AI31*D19)/AM39)*AN39 -> 492 | BM54: =MIN((AF72+AI31*D19)/AI39,(AF73+AI31*D19)/AJ39,(AF74+AI31*D19)/AK39,(AF75+AI31*D19)/AL39,(AF76+AI31*D19)/AM39)*AN39 -> 494.6666667 | BN54: 498.6666667 | BQ54: 1% attaque | BS54: 1% defense | BU54: 1% cumulé
F55: =IF(E25=C26,E72,IF(E25=C27,H72,IF(E25=C28,K72,IF(E25=C29,N72, erreur)))) -> 1.63485 | G55: =IF(E25=C26,F72,IF(E25=C27,I72,IF(E25=C28,L72,IF(E25=C29,O72,erreur)))) -> 1.0899 | H55: 2.72475 | I55: =IF(E25=C26,E86,IF(E25=C27,H86,IF(E25=C28,K86,IF(E25=C29,N86,erreur)))) -> 1.90735 | J55: =IF(E25=C26,F86,IF(E25=C27,I86,IF(E25=C28,L86,IF(E25=C29,O86,erreur)))) -> 0.8174 | K55: 2.72475 | L55: =IF(E25=C26,E100,IF(E25=C27,H100,IF(E25=C28,K100,IF(E25=C29,N100,erreur)))) -> 2.4523 | M55: =IF(E25=C26,F100,IF(E25=C27,I100,IF(E25=C28,L100,IF(E25=C29,O100,erreur)))) -> 0.27245 | N55: 2.72475 | Q55: =D21 -> 37 | R55: =D21 -> 37 | S55: =D21 -> 37 | T55: =D21 -> 37 | U55: =D21 -> 37 | V55: =D21 -> 37 | W55: =D21 -> 37 | X55: =D21 -> 37 | Y55: =D21 -> 37 | Z55: =D21 -> 37 | AA55: =D21 -> 37 | AB55: =D21 -> 37 | AC55: =D21 -> 37 | AD55: =D21 -> 37 | AH55: av | AI55: =MIN((S79+AH31*D19)/AI38,(S80+AH31*D19)/AJ38,(S81+AH31*D19)/AK38,(S82+AH31*D19)/AL38,(S83+AH31*D19)/AM38)*AN38 -> 380.5 | AJ55: =MIN((T79+AH31*D19)/AI38,(T80+AH31*D19)/AJ38,(T81+AH31*D19)/AK38,(T82+AH31*D19)/AL38,(T83+AH31*D19)/AM38)*AN38 -> 363.5 | AK55: =MIN((U79+AH31*D19)/AI38,(U80+AH31*D19)/AJ38,(U81+AH31*D19)/AK38,(U82+AH31*D19)/AL38,(U83+AH31*D19)/AM38)*AN38 -> 363.5 | AL55: =MIN((V79+AH31*D19)/AI38,(V80+AH31*D19)/AJ38,(V81+AH31*D19)/AK38,(V82+AH31*D19)/AL38,(V83+AH31*D19)/AM38)*AN38 -> 354.5 | AM55: =MIN((W79+AH31*D19)/AI38,(W80+AH31*D19)/AJ38,(W81+AH31*D19)/AK38,(W82+AH31*D19)/AL38,(W83+AH31*D19)/AM38)*AN38 -> 360.5 | AN55: =MIN((X79+AH31*D19)/AI38,(X80+AH31*D19)/AJ38,(X81+AH31*D19)/AK38,(X82+AH31*D19)/AL38,(X83+AH31*D19)/AM38)*AN38 -> 366.5 | AO55: =MIN((Y79+AH31*D19)/AI38,(Y80+AH31*D19)/AJ38,(Y81+AH31*D19)/AK38,(Y82+AH31*D19)/AL38,(Y83+AH31*D19)/AM38)*AN38 -> 371.5 | AP55: =MIN((Z79+AH31*D19)/AI38,(Z80+AH31*D19)/AJ38,(Z81+AH31*D19)/AK38,(Z82+AH31*D19)/AL38,(Z83+AH31*D19)/AM38)*AN38 -> 365 | AQ55: =MIN((AA79+AH31*D19)/AI38,(AA80+AH31*D19)/AJ38,(AA81+AH31*D19)/AK38,(AA82+AH31*D19)/AL38,(AA83+AH31*D19)/AM38)*AN38 -> 369.5 | AR55: =MIN((AB79+AH31*D19)/AI38,(AB80+AH31*D19)/AJ38,(AB81+AH31*D19)/AK38,(AB82+AH31*D19)/AL38,(AB83+AH31*D19)/AM38)*AN38 -> 371.5 | AS55: =MIN((AC79+AH31*D19)/AI38,(AC80+AH31*D19)/AJ38,(AC81+AH31*D19)/AK38,(AC82+AH31*D19)/AL38,(AC83+AH31*D19)/AM38)*AN38 -> 371.5 | AT55: =MIN((AD79+AH31*D19)/AI38,(AD80+AH31*D19)/AJ38,(AD81+AH31*D19)/AK38,(AD82+AH31*D19)/AL38,(AD83+AH31*D19)/AM38)*AN38 -> 376 | AU55: =MIN((AE79+AH31*D19)/AI38,(AE80+AH31*D19)/AJ38,(AE81+AH31*D19)/AK38,(AE82+AH31*D19)/AL38,(AE83+AH31*D19)/AM38)*AN38 -> 374.5 | AV55: =MIN((AF79+AH31*D19)/AI38,(AF80+AH31*D19)/AJ38,(AF81+AH31*D19)/AK38,(AF82+AH31*D19)/AL38,(AF83+AH31*D19)/AM38)*AN38 -> 371.5 | AW55: 380.5 | AY55: av | AZ55: =MIN((S79+AI31*D19)/AI39,(S80+AI31*D19)/AJ39,(S81+AI31*D19)/AK39,(S82+AI31*D19)/AL39,(S83+AI31*D19)/AM39)*AN39 -> 455.3333333 | BA55: =MIN((T79+AI31*D19)/AI39,(T80+AI31*D19)/AJ39,(T81+AI31*D19)/AK39,(T82+AI31*D19)/AL39,(T83+AI31*D19)/AM39)*AN39 -> 492.6666667 | BB55: =MIN((U79+AI31*D19)/AI39,(U80+AI31*D19)/AJ39,(U81+AI31*D19)/AK39,(U82+AI31*D19)/AL39,(U83+AI31*D19)/AM39)*AN39 -> 492.6666667 | BC55: =MIN((V79+AI31*D19)/AI39,(V80+AI31*D19)/AJ39,(V81+AI31*D19)/AK39,(V82+AI31*D19)/AL39,(V83+AI31*D19)/AM39)*AN39 -> 490.6666667 | BD55: =MIN((W79+AI31*D19)/AI39,(W80+AI31*D19)/AJ39,(W81+AI31*D19)/AK39,(W82+AI31*D19)/AL39,(W83+AI31*D19)/AM39)*AN39 -> 482 | BE55: =MIN((X79+AI31*D19)/AI39,(X80+AI31*D19)/AJ39,(X81+AI31*D19)/AK39,(X82+AI31*D19)/AL39,(X83+AI31*D19)/AM39)*AN39 -> 482 | BF55: =MIN((Y79+AI31*D19)/AI39,(Y80+AI31*D19)/AJ39,(Y81+AI31*D19)/AK39,(Y82+AI31*D19)/AL39,(Y83+AI31*D19)/AM39)*AN39 -> 488.6666667 | BG55: =MIN((Z79+AI31*D19)/AI39,(Z80+AI31*D19)/AJ39,(Z81+AI31*D19)/AK39,(Z82+AI31*D19)/AL39,(Z83+AI31*D19)/AM39)*AN39 -> 488.6666667 | BH55: =MIN((AA79+AI31*D19)/AI39,(AA80+AI31*D19)/AJ39,(AA81+AI31*D19)/AK39,(AA82+AI31*D19)/AL39,(AA83+AI31*D19)/AM39)*AN39 -> 486 | BI55: =MIN((AB79+AI31*D19)/AI39,(AB80+AI31*D19)/AJ39,(AB81+AI31*D19)/AK39,(AB82+AI31*D19)/AL39,(AB83+AI31*D19)/AM39)*AN39 -> 488.6666667 | BJ55: =MIN((AC79+AI31*D19)/AI39,(AC80+AI31*D19)/AJ39,(AC81+AI31*D19)/AK39,(AC82+AI31*D19)/AL39,(AC83+AI31*D19)/AM39)*AN39 -> 484 | BK55: =MIN((AD79+AI31*D19)/AI39,(AD80+AI31*D19)/AJ39,(AD81+AI31*D19)/AK39,(AD82+AI31*D19)/AL39,(AD83+AI31*D19)/AM39)*AN39 -> 478.6666667 | BL55: =MIN((AE79+AI31*D19)/AI39,(AE80+AI31*D19)/AJ39,(AE81+AI31*D19)/AK39,(AE82+AI31*D19)/AL39,(AE83+AI31*D19)/AM39)*AN39 -> 486 | BM55: =MIN((AF79+AI31*D19)/AI39,(AF80+AI31*D19)/AJ39,(AF81+AI31*D19)/AK39,(AF82+AI31*D19)/AL39,(AF83+AI31*D19)/AM39)*AN39 -> 488.6666667 | BN55: 492.6666667 | BQ55: =IF(E26=C31,F45,IF(E26=C32,I45,IF(E26=C33,L45,erreur))) -> 0.16345 | BS55: =IF(E26=C31,G45,IF(E26=C32,J45,IF(E26=C33,M45,erreur))) -> 2.5613 | BU55: =BQ55+BS55 -> 2.72475
E56: tactique selectionnée (ca ne sert a rien) | Q56: caracteristiques joueur avec bonus batiment, objet et kit, sans vitamine. | AH56: @5 | AI56: =MIN((S86+AH31*D19)/AI38,(S87+AH31*D19)/AJ38,(S88+AH31*D19)/AK38,(S89+AH31*D19)/AL38,(S90+AH31*D19)/AM38)*AN38 -> 386.5 | AJ56: =MIN((T86+AH31*D19)/AI38,(T87+AH31*D19)/AJ38,(T88+AH31*D19)/AK38,(T89+AH31*D19)/AL38,(T90+AH31*D19)/AM38)*AN38 -> 369.5 | AK56: =MIN((U86+AH31*D19)/AI38,(U87+AH31*D19)/AJ38,(U88+AH31*D19)/AK38,(U89+AH31*D19)/AL38,(U90+AH31*D19)/AM38)*AN38 -> 369.5 | AL56: =MIN((V86+AH31*D19)/AI38,(V87+AH31*D19)/AJ38,(V88+AH31*D19)/AK38,(V89+AH31*D19)/AL38,(V90+AH31*D19)/AM38)*AN38 -> 360.5 | AM56: =MIN((W86+AH31*D19)/AI38,(W87+AH31*D19)/AJ38,(W88+AH31*D19)/AK38,(W89+AH31*D19)/AL38,(W90+AH31*D19)/AM38)*AN38 -> 366.5 | AN56: =MIN((X86+AH31*D19)/AI38,(X87+AH31*D19)/AJ38,(X88+AH31*D19)/AK38,(X89+AH31*D19)/AL38,(X90+AH31*D19)/AM38)*AN38 -> 372.5 | AO56: =MIN((Y86+AH31*D19)/AI38,(Y87+AH31*D19)/AJ38,(Y88+AH31*D19)/AK38,(Y89+AH31*D19)/AL38,(Y90+AH31*D19)/AM38)*AN38 -> 377.5 | AP56: =MIN((Z86+AH31*D19)/AI38,(Z87+AH31*D19)/AJ38,(Z88+AH31*D19)/AK38,(Z89+AH31*D19)/AL38,(Z90+AH31*D19)/AM38)*AN38 -> 371 | AQ56: =MIN((AA86+AH31*D19)/AI38,(AA87+AH31*D19)/AJ38,(AA88+AH31*D19)/AK38,(AA89+AH31*D19)/AL38,(AA90+AH31*D19)/AM38)*AN38 -> 375.5 | AR56: =MIN((AB86+AH31*D19)/AI38,(AB87+AH31*D19)/AJ38,(AB88+AH31*D19)/AK38,(AB89+AH31*D19)/AL38,(AB90+AH31*D19)/AM38)*AN38 -> 377.5 | AS56: =MIN((AC86+AH31*D19)/AI38,(AC87+AH31*D19)/AJ38,(AC88+AH31*D19)/AK38,(AC89+AH31*D19)/AL38,(AC90+AH31*D19)/AM38)*AN38 -> 377.5 | AT56: =MIN((AD86+AH31*D19)/AI38,(AD87+AH31*D19)/AJ38,(AD88+AH31*D19)/AK38,(AD89+AH31*D19)/AL38,(AD90+AH31*D19)/AM38)*AN38 -> 382 | AU56: =MIN((AE86+AH31*D19)/AI38,(AE87+AH31*D19)/AJ38,(AE88+AH31*D19)/AK38,(AE89+AH31*D19)/AL38,(AE90+AH31*D19)/AM38)*AN38 -> 380.5 | AV56: =MIN((AF86+AH31*D19)/AI38,(AF87+AH31*D19)/AJ38,(AF88+AH31*D19)/AK38,(AF89+AH31*D19)/AL38,(AF90+AH31*D19)/AM38)*AN38 -> 377.5 | AW56: 386.5 | AY56: @5 | AZ56: =MIN((S86+AI31*D19)/AI39,(S87+AI31*D19)/AJ39,(S88+AI31*D19)/AK39,(S89+AI31*D19)/AL39,(S90+AI31*D19)/AM39)*AN39 -> 432.6666667 | BA56: =MIN((T86+AI31*D19)/AI39,(T87+AI31*D19)/AJ39,(T88+AI31*D19)/AK39,(T89+AI31*D19)/AL39,(T90+AI31*D19)/AM39)*AN39 -> 470 | BB56: =MIN((U86+AI31*D19)/AI39,(U87+AI31*D19)/AJ39,(U88+AI31*D19)/AK39,(U89+AI31*D19)/AL39,(U90+AI31*D19)/AM39)*AN39 -> 470 | BC56: =MIN((V86+AI31*D19)/AI39,(V87+AI31*D19)/AJ39,(V88+AI31*D19)/AK39,(V89+AI31*D19)/AL39,(V90+AI31*D19)/AM39)*AN39 -> 468 | BD56: =MIN((W86+AI31*D19)/AI39,(W87+AI31*D19)/AJ39,(W88+AI31*D19)/AK39,(W89+AI31*D19)/AL39,(W90+AI31*D19)/AM39)*AN39 -> 459.3333333 | BE56: =MIN((X86+AI31*D19)/AI39,(X87+AI31*D19)/AJ39,(X88+AI31*D19)/AK39,(X89+AI31*D19)/AL39,(X90+AI31*D19)/AM39)*AN39 -> 459.3333333 | BF56: =MIN((Y86+AI31*D19)/AI39,(Y87+AI31*D19)/AJ39,(Y88+AI31*D19)/AK39,(Y89+AI31*D19)/AL39,(Y90+AI31*D19)/AM39)*AN39 -> 466 | BG56: =MIN((Z86+AI31*D19)/AI39,(Z87+AI31*D19)/AJ39,(Z88+AI31*D19)/AK39,(Z89+AI31*D19)/AL39,(Z90+AI31*D19)/AM39)*AN39 -> 466 | BH56: =MIN((AA86+AI31*D19)/AI39,(AA87+AI31*D19)/AJ39,(AA88+AI31*D19)/AK39,(AA89+AI31*D19)/AL39,(AA90+AI31*D19)/AM39)*AN39 -> 463.3333333 | BI56: =MIN((AB86+AI31*D19)/AI39,(AB87+AI31*D19)/AJ39,(AB88+AI31*D19)/AK39,(AB89+AI31*D19)/AL39,(AB90+AI31*D19)/AM39)*AN39 -> 466 | BJ56: =MIN((AC86+AI31*D19)/AI39,(AC87+AI31*D19)/AJ39,(AC88+AI31*D19)/AK39,(AC89+AI31*D19)/AL39,(AC90+AI31*D19)/AM39)*AN39 -> 461.3333333 | BK56: =MIN((AD86+AI31*D19)/AI39,(AD87+AI31*D19)/AJ39,(AD88+AI31*D19)/AK39,(AD89+AI31*D19)/AL39,(AD90+AI31*D19)/AM39)*AN39 -> 456 | BL56: =MIN((AE86+AI31*D19)/AI39,(AE87+AI31*D19)/AJ39,(AE88+AI31*D19)/AK39,(AE89+AI31*D19)/AL39,(AE90+AI31*D19)/AM39)*AN39 -> 463.3333333 | BM56: =MIN((AF86+AI31*D19)/AI39,(AF87+AI31*D19)/AJ39,(AF88+AI31*D19)/AK39,(AF89+AI31*D19)/AL39,(AF90+AI31*D19)/AM39)*AN39 -> 466 | BN56: 470 | BQ56: =IF(E26=C31,F46,IF(E26=C32,I46,IF(E26=C33,L46,erreur))) -> 0.8174 | BS56: =IF(E26=C31,G46,IF(E26=C32,J46,IF(E26=C33,M46,erreur))) -> 0.54495 | BU56: =BQ56+BS56 -> 1.36235
E57: 541 defensif | F57: 541 neutre | G57: 541 offensif | H57: 433 defensif | I57: 433 neutre | J57: 433 offensif | K57: 352 defensif | L57: 352 neutre | M57: 352 offensif | N57: 442 defensif | O57: 442 neutre | P57: 442 offensif | R57: =G11 -> G. Warmuz 430 | S57: =Q9 -> kit 1 | T57: kit 2A | U57: kit 2B | V57: kit 4A | W57: kit 4B | X57: kit 5 | Y57: kit 6A | Z57: kit 6B | AA57: kit 7 | AB57: kit 8 | AC57: kit 9A | AD57: kit 9B | AE57: kit 10 | AF57: kit 11 | AH57: 1 Atsuhiko | AI57: =MIN((S93+AH31*D19)/AI38,(S94+AH31*D19)/AJ38,(S95+AH31*D19)/AK38,(S96+AH31*D19)/AL38,(S97+AH31*D19)/AM38)*AN38 -> 391.5 | AJ57: =MIN((T93+AH31*D19)/AI38,(T94+AH31*D19)/AJ38,(T95+AH31*D19)/AK38,(T96+AH31*D19)/AL38,(T97+AH31*D19)/AM38)*AN38 -> 374.5 | AK57: =MIN((U93+AH31*D19)/AI38,(U94+AH31*D19)/AJ38,(U95+AH31*D19)/AK38,(U96+AH31*D19)/AL38,(U97+AH31*D19)/AM38)*AN38 -> 374.5 | AL57: =MIN((V93+AH31*D19)/AI38,(V94+AH31*D19)/AJ38,(V95+AH31*D19)/AK38,(V96+AH31*D19)/AL38,(V97+AH31*D19)/AM38)*AN38 -> 365.5 | AM57: =MIN((W93+AH31*D19)/AI38,(W94+AH31*D19)/AJ38,(W95+AH31*D19)/AK38,(W96+AH31*D19)/AL38,(W97+AH31*D19)/AM38)*AN38 -> 371.5 | AN57: =MIN((X93+AH31*D19)/AI38,(X94+AH31*D19)/AJ38,(X95+AH31*D19)/AK38,(X96+AH31*D19)/AL38,(X97+AH31*D19)/AM38)*AN38 -> 377.5 | AO57: =MIN((Y93+AH31*D19)/AI38,(Y94+AH31*D19)/AJ38,(Y95+AH31*D19)/AK38,(Y96+AH31*D19)/AL38,(Y97+AH31*D19)/AM38)*AN38 -> 382.5 | AP57: =MIN((Z93+AH31*D19)/AI38,(Z94+AH31*D19)/AJ38,(Z95+AH31*D19)/AK38,(Z96+AH31*D19)/AL38,(Z97+AH31*D19)/AM38)*AN38 -> 376 | AQ57: =MIN((AA93+AH31*D19)/AI38,(AA94+AH31*D19)/AJ38,(AA95+AH31*D19)/AK38,(AA96+AH31*D19)/AL38,(AA97+AH31*D19)/AM38)*AN38 -> 380.5 | AR57: =MIN((AB93+AH31*D19)/AI38,(AB94+AH31*D19)/AJ38,(AB95+AH31*D19)/AK38,(AB96+AH31*D19)/AL38,(AB97+AH31*D19)/AM38)*AN38 -> 382.5 | AS57: =MIN((AC93+AH31*D19)/AI38,(AC94+AH31*D19)/AJ38,(AC95+AH31*D19)/AK38,(AC96+AH31*D19)/AL38,(AC97+AH31*D19)/AM38)*AN38 -> 382.5 | AT57: =MIN((AD93+AH31*D19)/AI38,(AD94+AH31*D19)/AJ38,(AD95+AH31*D19)/AK38,(AD96+AH31*D19)/AL38,(AD97+AH31*D19)/AM38)*AN38 -> 387 | AU57: =MIN((AE93+AH31*D19)/AI38,(AE94+AH31*D19)/AJ38,(AE95+AH31*D19)/AK38,(AE96+AH31*D19)/AL38,(AE97+AH31*D19)/AM38)*AN38 -> 385.5 | AV57: =MIN((AF93+AH31*D19)/AI38,(AF94+AH31*D19)/AJ38,(AF95+AH31*D19)/AK38,(AF96+AH31*D19)/AL38,(AF97+AH31*D19)/AM38)*AN38 -> 382.5 | AW57: 391.5 | AY57: 1 Atsuhiko | AZ57: =MIN((S93+AI31*D19)/AI39,(S94+AI31*D19)/AJ39,(S95+AI31*D19)/AK39,(S96+AI31*D19)/AL39,(S97+AI31*D19)/AM39)*AN39 -> 477.3333333 | BA57: =MIN((T93+AI31*D19)/AI39,(T94+AI31*D19)/AJ39,(T95+AI31*D19)/AK39,(T96+AI31*D19)/AL39,(T97+AI31*D19)/AM39)*AN39 -> 514.6666667 | BB57: =MIN((U93+AI31*D19)/AI39,(U94+AI31*D19)/AJ39,(U95+AI31*D19)/AK39,(U96+AI31*D19)/AL39,(U97+AI31*D19)/AM39)*AN39 -> 514.6666667 | BC57: =MIN((V93+AI31*D19)/AI39,(V94+AI31*D19)/AJ39,(V95+AI31*D19)/AK39,(V96+AI31*D19)/AL39,(V97+AI31*D19)/AM39)*AN39 -> 512.6666667 | BD57: =MIN((W93+AI31*D19)/AI39,(W94+AI31*D19)/AJ39,(W95+AI31*D19)/AK39,(W96+AI31*D19)/AL39,(W97+AI31*D19)/AM39)*AN39 -> 504 | BE57: =MIN((X93+AI31*D19)/AI39,(X94+AI31*D19)/AJ39,(X95+AI31*D19)/AK39,(X96+AI31*D19)/AL39,(X97+AI31*D19)/AM39)*AN39 -> 504 | BF57: =MIN((Y93+AI31*D19)/AI39,(Y94+AI31*D19)/AJ39,(Y95+AI31*D19)/AK39,(Y96+AI31*D19)/AL39,(Y97+AI31*D19)/AM39)*AN39 -> 510.6666667 | BG57: =MIN((Z93+AI31*D19)/AI39,(Z94+AI31*D19)/AJ39,(Z95+AI31*D19)/AK39,(Z96+AI31*D19)/AL39,(Z97+AI31*D19)/AM39)*AN39 -> 510.6666667 | BH57: =MIN((AA93+AI31*D19)/AI39,(AA94+AI31*D19)/AJ39,(AA95+AI31*D19)/AK39,(AA96+AI31*D19)/AL39,(AA97+AI31*D19)/AM39)*AN39 -> 508 | BI57: =MIN((AB93+AI31*D19)/AI39,(AB94+AI31*D19)/AJ39,(AB95+AI31*D19)/AK39,(AB96+AI31*D19)/AL39,(AB97+AI31*D19)/AM39)*AN39 -> 510.6666667 | BJ57: =MIN((AC93+AI31*D19)/AI39,(AC94+AI31*D19)/AJ39,(AC95+AI31*D19)/AK39,(AC96+AI31*D19)/AL39,(AC97+AI31*D19)/AM39)*AN39 -> 506 | BK57: =MIN((AD93+AI31*D19)/AI39,(AD94+AI31*D19)/AJ39,(AD95+AI31*D19)/AK39,(AD96+AI31*D19)/AL39,(AD97+AI31*D19)/AM39)*AN39 -> 500.6666667 | BL57: =MIN((AE93+AI31*D19)/AI39,(AE94+AI31*D19)/AJ39,(AE95+AI31*D19)/AK39,(AE96+AI31*D19)/AL39,(AE97+AI31*D19)/AM39)*AN39 -> 508 | BM57: =MIN((AF93+AI31*D19)/AI39,(AF94+AI31*D19)/AJ39,(AF95+AI31*D19)/AK39,(AF96+AI31*D19)/AL39,(AF97+AI31*D19)/AM39)*AN39 -> 510.6666667 | BN57: 514.6666667 | BQ57: =IF(E26=C31,F47,IF(E26=C32,I47,IF(E26=C33,L47,erreur))) -> 0.8174 | BS57: =IF(E26=C31,G47,IF(E26=C32,J47,IF(E26=C33,M47,erreur))) -> 0.54495 | BU57: 1.36235
E58: =AND(E25=C26,E26=C31) -> FALSE | F58: =AND(E25=C26,E26=C32) -> FALSE | G58: =AND(E25=C26,E26=C33) -> FALSE | H58: =AND(E25=C27,E26=C31) -> FALSE | I58: =AND(E25=C27,E26=C32) -> TRUE | J58: =AND(E25=C27,E26=C33) -> FALSE | K58: =AND(E25=C28,E26=C31) -> FALSE | L58: =AND(E25=C28,E26=C32) -> FALSE | M58: =AND(E25=C28,E26=C33) -> FALSE | N58: =AND(E25=C29,E26=C31) -> FALSE | O58: =AND(E25=C29,E26=C32) -> FALSE | P58: =AND(E25=D29,E26=C33) -> FALSE | R58: =H11+AF39+D16+D17+D21 -> 391 | S58: =Q10+R58 -> 420 | T58: =R58+R10 -> 456 | U58: =R58+S10 -> 447 | V58: =R58+T10 -> 465 | W58: =R58+U10 -> 465 | X58: =R58+V10 -> 456 | Y58: =R58+W10 -> 450 | Z58: =R58+X10 -> 450 | AA58: =R58+Y10 -> 446 | AB58: =R58+Z10 -> 431 | AC58: =R58+AA10 -> 435 | AD58: =R58+AB10 -> 450 | AE58: =R58+AC10 -> 428 | AF58: =R58+AD10 -> 435 | AH58: 2 moy 509 | AI58: =MIN((S100+AH31*D19)/AI38,(S101+AH31*D19)/AJ38,(S102+AH31*D19)/AK38,(S103+AH31*D19)/AL38,(S104+AH31*D19)/AM38)*AN38 -> 378.5 | AJ58: =MIN((T100+AH31*D19)/AI38,(T101+AH31*D19)/AJ38,(T102+AH31*D19)/AK38,(T103+AH31*D19)/AL38,(T104+AH31*D19)/AM38)*AN38 -> 361.5 | AK58: =MIN((U100+AH31*D19)/AI38,(U101+AH31*D19)/AJ38,(U102+AH31*D19)/AK38,(U103+AH31*D19)/AL38,(U104+AH31*D19)/AM38)*AN38 -> 361.5 | AL58: =MIN((V100+AH31*D19)/AI38,(V101+AH31*D19)/AJ38,(V102+AH31*D19)/AK38,(V103+AH31*D19)/AL38,(V104+AH31*D19)/AM38)*AN38 -> 352.5 | AM58: =MIN((W100+AH31*D19)/AI38,(W101+AH31*D19)/AJ38,(W102+AH31*D19)/AK38,(W103+AH31*D19)/AL38,(W104+AH31*D19)/AM38)*AN38 -> 358.5 | AN58: =MIN((X100+AH31*D19)/AI38,(X101+AH31*D19)/AJ38,(X102+AH31*D19)/AK38,(X103+AH31*D19)/AL38,(X104+AH31*D19)/AM38)*AN38 -> 364.5 | AO58: =MIN((Y100+AH31*D19)/AI38,(Y101+AH31*D19)/AJ38,(Y102+AH31*D19)/AK38,(Y103+AH31*D19)/AL38,(Y104+AH31*D19)/AM38)*AN38 -> 369.5 | AP58: =MIN((Z100+AH31*D19)/AI38,(Z101+AH31*D19)/AJ38,(Z102+AH31*D19)/AK38,(Z103+AH31*D19)/AL38,(Z104+AH31*D19)/AM38)*AN38 -> 363 | AQ58: =MIN((AA100+AH31*D19)/AI38,(AA101+AH31*D19)/AJ38,(AA102+AH31*D19)/AK38,(AA103+AH31*D19)/AL38,(AA104+AH31*D19)/AM38)*AN38 -> 367.5 | AR58: =MIN((AB100+AH31*D19)/AI38,(AB101+AH31*D19)/AJ38,(AB102+AH31*D19)/AK38,(AB103+AH31*D19)/AL38,(AB104+AH31*D19)/AM38)*AN38 -> 369.5 | AS58: =MIN((AC100+AH31*D19)/AI38,(AC101+AH31*D19)/AJ38,(AC102+AH31*D19)/AK38,(AC103+AH31*D19)/AL38,(AC104+AH31*D19)/AM38)*AN38 -> 369.5 | AT58: =MIN((AD100+AH31*D19)/AI38,(AD101+AH31*D19)/AJ38,(AD102+AH31*D19)/AK38,(AD103+AH31*D19)/AL38,(AD104+AH31*D19)/AM38)*AN38 -> 374 | AU58: =MIN((AE100+AH31*D19)/AI38,(AE101+AH31*D19)/AJ38,(AE102+AH31*D19)/AK38,(AE103+AH31*D19)/AL38,(AE104+AH31*D19)/AM38)*AN38 -> 372.5 | AV58: =MIN((AF100+AH31*D19)/AI38,(AF101+AH31*D19)/AJ38,(AF102+AH31*D19)/AK38,(AF103+AH31*D19)/AL38,(AF104+AH31*D19)/AM38)*AN38 -> 369.5 | AW58: 378.5 | AY58: 2 moy 509 | AZ58: =MIN((S100+AI31*D19)/AI39,(S101+AI31*D19)/AJ39,(S102+AI31*D19)/AK39,(S103+AI31*D19)/AL39,(S104+AI31*D19)/AM39)*AN39 -> 454.6666667 | BA58: =MIN((T100+AI31*D19)/AI39,(T101+AI31*D19)/AJ39,(T102+AI31*D19)/AK39,(T103+AI31*D19)/AL39,(T104+AI31*D19)/AM39)*AN39 -> 492 | BB58: =MIN((U100+AI31*D19)/AI39,(U101+AI31*D19)/AJ39,(U102+AI31*D19)/AK39,(U103+AI31*D19)/AL39,(U104+AI31*D19)/AM39)*AN39 -> 492 | BC58: =MIN((V100+AI31*D19)/AI39,(V101+AI31*D19)/AJ39,(V102+AI31*D19)/AK39,(V103+AI31*D19)/AL39,(V104+AI31*D19)/AM39)*AN39 -> 490 | BD58: =MIN((W100+AI31*D19)/AI39,(W101+AI31*D19)/AJ39,(W102+AI31*D19)/AK39,(W103+AI31*D19)/AL39,(W104+AI31*D19)/AM39)*AN39 -> 481.3333333 | BE58: =MIN((X100+AI31*D19)/AI39,(X101+AI31*D19)/AJ39,(X102+AI31*D19)/AK39,(X103+AI31*D19)/AL39,(X104+AI31*D19)/AM39)*AN39 -> 481.3333333 | BF58: =MIN((Y100+AI31*D19)/AI39,(Y101+AI31*D19)/AJ39,(Y102+AI31*D19)/AK39,(Y103+AI31*D19)/AL39,(Y104+AI31*D19)/AM39)*AN39 -> 488 | BG58: =MIN((Z100+AI31*D19)/AI39,(Z101+AI31*D19)/AJ39,(Z102+AI31*D19)/AK39,(Z103+AI31*D19)/AL39,(Z104+AI31*D19)/AM39)*AN39 -> 488 | BH58: =MIN((AA100+AI31*D19)/AI39,(AA101+AI31*D19)/AJ39,(AA102+AI31*D19)/AK39,(AA103+AI31*D19)/AL39,(AA104+AI31*D19)/AM39)*AN39 -> 485.3333333 | BI58: =MIN((AB100+AI31*D19)/AI39,(AB101+AI31*D19)/AJ39,(AB102+AI31*D19)/AK39,(AB103+AI31*D19)/AL39,(AB104+AI31*D19)/AM39)*AN39 -> 488 | BJ58: =MIN((AC100+AI31*D19)/AI39,(AC101+AI31*D19)/AJ39,(AC102+AI31*D19)/AK39,(AC103+AI31*D19)/AL39,(AC104+AI31*D19)/AM39)*AN39 -> 483.3333333 | BK58: =MIN((AD100+AI31*D19)/AI39,(AD101+AI31*D19)/AJ39,(AD102+AI31*D19)/AK39,(AD103+AI31*D19)/AL39,(AD104+AI31*D19)/AM39)*AN39 -> 478 | BL58: =MIN((AE100+AI31*D19)/AI39,(AE101+AI31*D19)/AJ39,(AE102+AI31*D19)/AK39,(AE103+AI31*D19)/AL39,(AE104+AI31*D19)/AM39)*AN39 -> 485.3333333 | BM58: =MIN((AF100+AI31*D19)/AI39,(AF101+AI31*D19)/AJ39,(AF102+AI31*D19)/AK39,(AF103+AI31*D19)/AL39,(AF104+AI31*D19)/AM39)*AN39 -> 488 | BN58: 492 | BQ58: =IF(E26=C31,F48,IF(E26=C32,I48,IF(E26=C33,L48,erreur))) -> 0.27245 | BS58: =IF(E26=C31,G48,IF(E26=C32,J48,IF(E26=C33,M48,erreur))) -> 0.63575 | BU58: 0.9082
D59: coefficient stat brute pour 1% / tactique | R59: =I11+AF40+D15+D17+D21 -> 703 | S59: =Q11+R59 -> 780 | T59: =R59+R11 -> 746 | U59: =R59+S11 -> 746 | V59: =R59+T11 -> 728 | W59: =R59+U11 -> 740 | X59: =R59+V11 -> 752 | Y59: =R59+W11 -> 762 | Z59: =R59+X11 -> 749 | AA59: =R59+Y11 -> 758 | AB59: =R59+Z11 -> 762 | AC59: =R59+AA11 -> 762 | AD59: =R59+AB11 -> 771 | AE59: =R59+AC11 -> 768 | AF59: =R59+AD11 -> 762 | AH59: 8 moy 492 | AI59: =MIN((S107+AH31*D19)/AI38,(S108+AH31*D19)/AJ38,(S109+AH31*D19)/AK38,(S110+AH31*D19)/AL38,(S111+AH31*D19)/AM38)*AN38 -> 366 | AJ59: =MIN((T107+AH31*D19)/AI38,(T108+AH31*D19)/AJ38,(T109+AH31*D19)/AK38,(T110+AH31*D19)/AL38,(T111+AH31*D19)/AM38)*AN38 -> 349 | AK59: =MIN((U107+AH31*D19)/AI38,(U108+AH31*D19)/AJ38,(U109+AH31*D19)/AK38,(U110+AH31*D19)/AL38,(U111+AH31*D19)/AM38)*AN38 -> 349 | AL59: =MIN((V107+AH31*D19)/AI38,(V108+AH31*D19)/AJ38,(V109+AH31*D19)/AK38,(V110+AH31*D19)/AL38,(V111+AH31*D19)/AM38)*AN38 -> 340 | AM59: =MIN((W107+AH31*D19)/AI38,(W108+AH31*D19)/AJ38,(W109+AH31*D19)/AK38,(W110+AH31*D19)/AL38,(W111+AH31*D19)/AM38)*AN38 -> 346 | AN59: =MIN((X107+AH31*D19)/AI38,(X108+AH31*D19)/AJ38,(X109+AH31*D19)/AK38,(X110+AH31*D19)/AL38,(X111+AH31*D19)/AM38)*AN38 -> 352 | AO59: =MIN((Y107+AH31*D19)/AI38,(Y108+AH31*D19)/AJ38,(Y109+AH31*D19)/AK38,(Y110+AH31*D19)/AL38,(Y111+AH31*D19)/AM38)*AN38 -> 357 | AP59: =MIN((Z107+AH31*D19)/AI38,(Z108+AH31*D19)/AJ38,(Z109+AH31*D19)/AK38,(Z110+AH31*D19)/AL38,(Z111+AH31*D19)/AM38)*AN38 -> 350.5 | AQ59: =MIN((AA107+AH31*D19)/AI38,(AA108+AH31*D19)/AJ38,(AA109+AH31*D19)/AK38,(AA110+AH31*D19)/AL38,(AA111+AH31*D19)/AM38)*AN38 -> 355 | AR59: =MIN((AB107+AH31*D19)/AI38,(AB108+AH31*D19)/AJ38,(AB109+AH31*D19)/AK38,(AB110+AH31*D19)/AL38,(AB111+AH31*D19)/AM38)*AN38 -> 357 | AS59: =MIN((AC107+AH31*D19)/AI38,(AC108+AH31*D19)/AJ38,(AC109+AH31*D19)/AK38,(AC110+AH31*D19)/AL38,(AC111+AH31*D19)/AM38)*AN38 -> 357 | AT59: =MIN((AD107+AH31*D19)/AI38,(AD108+AH31*D19)/AJ38,(AD109+AH31*D19)/AK38,(AD110+AH31*D19)/AL38,(AD111+AH31*D19)/AM38)*AN38 -> 361.5 | AU59: =MIN((AE107+AH31*D19)/AI38,(AE108+AH31*D19)/AJ38,(AE109+AH31*D19)/AK38,(AE110+AH31*D19)/AL38,(AE111+AH31*D19)/AM38)*AN38 -> 360 | AV59: =MIN((AF107+AH31*D19)/AI38,(AF108+AH31*D19)/AJ38,(AF109+AH31*D19)/AK38,(AF110+AH31*D19)/AL38,(AF111+AH31*D19)/AM38)*AN38 -> 357 | AW59: 366 | AY59: 8 moy 492 | AZ59: =MIN((S107+AI31*D19)/AI39,(S108+AI31*D19)/AJ39,(S109+AI31*D19)/AK39,(S110+AI31*D19)/AL39,(S111+AI31*D19)/AM39)*AN39 -> 442 | BA59: =MIN((T107+AI31*D19)/AI39,(T108+AI31*D19)/AJ39,(T109+AI31*D19)/AK39,(T110+AI31*D19)/AL39,(T111+AI31*D19)/AM39)*AN39 -> 479.3333333 | BB59: =MIN((U107+AI31*D19)/AI39,(U108+AI31*D19)/AJ39,(U109+AI31*D19)/AK39,(U110+AI31*D19)/AL39,(U111+AI31*D19)/AM39)*AN39 -> 479.3333333 | BC59: =MIN((V107+AI31*D19)/AI39,(V108+AI31*D19)/AJ39,(V109+AI31*D19)/AK39,(V110+AI31*D19)/AL39,(V111+AI31*D19)/AM39)*AN39 -> 477.3333333 | BD59: =MIN((W107+AI31*D19)/AI39,(W108+AI31*D19)/AJ39,(W109+AI31*D19)/AK39,(W110+AI31*D19)/AL39,(W111+AI31*D19)/AM39)*AN39 -> 468.6666667 | BE59: =MIN((X107+AI31*D19)/AI39,(X108+AI31*D19)/AJ39,(X109+AI31*D19)/AK39,(X110+AI31*D19)/AL39,(X111+AI31*D19)/AM39)*AN39 -> 468.6666667 | BF59: =MIN((Y107+AI31*D19)/AI39,(Y108+AI31*D19)/AJ39,(Y109+AI31*D19)/AK39,(Y110+AI31*D19)/AL39,(Y111+AI31*D19)/AM39)*AN39 -> 475.3333333 | BG59: =MIN((Z107+AI31*D19)/AI39,(Z108+AI31*D19)/AJ39,(Z109+AI31*D19)/AK39,(Z110+AI31*D19)/AL39,(Z111+AI31*D19)/AM39)*AN39 -> 475.3333333 | BH59: =MIN((AA107+AI31*D19)/AI39,(AA108+AI31*D19)/AJ39,(AA109+AI31*D19)/AK39,(AA110+AI31*D19)/AL39,(AA111+AI31*D19)/AM39)*AN39 -> 472.6666667 | BI59: =MIN((AB107+AI31*D19)/AI39,(AB108+AI31*D19)/AJ39,(AB109+AI31*D19)/AK39,(AB110+AI31*D19)/AL39,(AB111+AI31*D19)/AM39)*AN39 -> 475.3333333 | BJ59: =MIN((AC107+AI31*D19)/AI39,(AC108+AI31*D19)/AJ39,(AC109+AI31*D19)/AK39,(AC110+AI31*D19)/AL39,(AC111+AI31*D19)/AM39)*AN39 -> 470.6666667 | BK59: =MIN((AD107+AI31*D19)/AI39,(AD108+AI31*D19)/AJ39,(AD109+AI31*D19)/AK39,(AD110+AI31*D19)/AL39,(AD111+AI31*D19)/AM39)*AN39 -> 465.3333333 | BL59: =MIN((AE107+AI31*D19)/AI39,(AE108+AI31*D19)/AJ39,(AE109+AI31*D19)/AK39,(AE110+AI31*D19)/AL39,(AE111+AI31*D19)/AM39)*AN39 -> 472.6666667 | BM59: =MIN((AF107+AI31*D19)/AI39,(AF108+AI31*D19)/AJ39,(AF109+AI31*D19)/AK39,(AF110+AI31*D19)/AL39,(AF111+AI31*D19)/AM39)*AN39 -> 475.3333333 | BN59: 479.3333333 | BQ59: =IF(E26=C31,F49,IF(E26=C32,I49,IF(E26=C33,L49,erreur))) -> 0.68115 | BS59: =IF(E26=C31,G49,IF(E26=C32,J49,IF(E26=C33,M49,erreur))) -> 0.68115 | BU59: 1.3623
E60: 541 défensif | H60: 433 défensif | K60: 352 défensif | N60: 442 défensif | R60: =J11+AF41+D15+D17+D21 -> 560 | S60: =Q12+R60 -> 589 | T60: =R60+R12 -> 603 | U60: =R60+S12 -> 616 | V60: =R60+T12 -> 622 | W60: =R60+U12 -> 634 | X60: =R60+V12 -> 609 | Y60: =R60+W12 -> 595 | Z60: =R60+X12 -> 619 | AA60: =R60+Y12 -> 615 | AB60: =R60+Z12 -> 619 | AC60: =R60+AA12 -> 628 | AD60: =R60+AB12 -> 604 | AE60: =R60+AC12 -> 606 | AF60: =R60+AD12 -> 628 | AH60: Mionnet | AI60: =MIN((S114+AH31*D19)/AI38,(S115+AH31*D19)/AJ38,(S116+AH31*D19)/AK38,(S117+AH31*D19)/AL38,(S118+AH31*D19)/AM38)*AN38 -> 398 | AJ60: =MIN((T114+AH31*D19)/AI38,(T115+AH31*D19)/AJ38,(T116+AH31*D19)/AK38,(T117+AH31*D19)/AL38,(T118+AH31*D19)/AM38)*AN38 -> 381 | AK60: =MIN((U114+AH31*D19)/AI38,(U115+AH31*D19)/AJ38,(U116+AH31*D19)/AK38,(U117+AH31*D19)/AL38,(U118+AH31*D19)/AM38)*AN38 -> 381 | AL60: =MIN((V114+AH31*D19)/AI38,(V115+AH31*D19)/AJ38,(V116+AH31*D19)/AK38,(V117+AH31*D19)/AL38,(V118+AH31*D19)/AM38)*AN38 -> 372 | AM60: =MIN((W114+AH31*D19)/AI38,(W115+AH31*D19)/AJ38,(W116+AH31*D19)/AK38,(W117+AH31*D19)/AL38,(W118+AH31*D19)/AM38)*AN38 -> 378 | AN60: =MIN((X114+AH31*D19)/AI38,(X115+AH31*D19)/AJ38,(X116+AH31*D19)/AK38,(X117+AH31*D19)/AL38,(X118+AH31*D19)/AM38)*AN38 -> 384 | AO60: =MIN((Y114+AH31*D19)/AI38,(Y115+AH31*D19)/AJ38,(Y116+AH31*D19)/AK38,(Y117+AH31*D19)/AL38,(Y118+AH31*D19)/AM38)*AN38 -> 389 | AP60: =MIN((Z114+AH31*D19)/AI38,(Z115+AH31*D19)/AJ38,(Z116+AH31*D19)/AK38,(Z117+AH31*D19)/AL38,(Z118+AH31*D19)/AM38)*AN38 -> 382.5 | AQ60: =MIN((AA114+AH31*D19)/AI38,(AA115+AH31*D19)/AJ38,(AA116+AH31*D19)/AK38,(AA117+AH31*D19)/AL38,(AA118+AH31*D19)/AM38)*AN38 -> 387 | AR60: =MIN((AB114+AH31*D19)/AI38,(AB115+AH31*D19)/AJ38,(AB116+AH31*D19)/AK38,(AB117+AH31*D19)/AL38,(AB118+AH31*D19)/AM38)*AN38 -> 389 | AS60: =MIN((AC114+AH31*D19)/AI38,(AC115+AH31*D19)/AJ38,(AC116+AH31*D19)/AK38,(AC117+AH31*D19)/AL38,(AC118+AH31*D19)/AM38)*AN38 -> 389 | AT60: =MIN((AD114+AH31*D19)/AI38,(AD115+AH31*D19)/AJ38,(AD116+AH31*D19)/AK38,(AD117+AH31*D19)/AL38,(AD118+AH31*D19)/AM38)*AN38 -> 393.5 | AU60: =MIN((AE114+AH31*D19)/AI38,(AE115+AH31*D19)/AJ38,(AE116+AH31*D19)/AK38,(AE117+AH31*D19)/AL38,(AE118+AH31*D19)/AM38)*AN38 -> 392 | AV60: =MIN((AF114+AH31*D19)/AI38,(AF115+AH31*D19)/AJ38,(AF116+AH31*D19)/AK38,(AF117+AH31*D19)/AL38,(AF118+AH31*D19)/AM38)*AN38 -> 389 | AW60: 398 | AY60: Mionnet | AZ60: =MIN((S114+AI31*D19)/AI39,(S115+AI31*D19)/AJ39,(S116+AI31*D19)/AK39,(S117+AI31*D19)/AL39,(S118+AI31*D19)/AM39)*AN39 -> 475.3333333 | BA60: =MIN((T114+AI31*D19)/AI39,(T115+AI31*D19)/AJ39,(T116+AI31*D19)/AK39,(T117+AI31*D19)/AL39,(T118+AI31*D19)/AM39)*AN39 -> 512.6666667 | BB60: =MIN((U114+AI31*D19)/AI39,(U115+AI31*D19)/AJ39,(U116+AI31*D19)/AK39,(U117+AI31*D19)/AL39,(U118+AI31*D19)/AM39)*AN39 -> 512.6666667 | BC60: =MIN((V114+AI31*D19)/AI39,(V115+AI31*D19)/AJ39,(V116+AI31*D19)/AK39,(V117+AI31*D19)/AL39,(V118+AI31*D19)/AM39)*AN39 -> 510.6666667 | BD60: =MIN((W114+AI31*D19)/AI39,(W115+AI31*D19)/AJ39,(W116+AI31*D19)/AK39,(W117+AI31*D19)/AL39,(W118+AI31*D19)/AM39)*AN39 -> 502 | BE60: =MIN((X114+AI31*D19)/AI39,(X115+AI31*D19)/AJ39,(X116+AI31*D19)/AK39,(X117+AI31*D19)/AL39,(X118+AI31*D19)/AM39)*AN39 -> 502 | BF60: =MIN((Y114+AI31*D19)/AI39,(Y115+AI31*D19)/AJ39,(Y116+AI31*D19)/AK39,(Y117+AI31*D19)/AL39,(Y118+AI31*D19)/AM39)*AN39 -> 508.6666667 | BG60: =MIN((Z114+AI31*D19)/AI39,(Z115+AI31*D19)/AJ39,(Z116+AI31*D19)/AK39,(Z117+AI31*D19)/AL39,(Z118+AI31*D19)/AM39)*AN39 -> 508.6666667 | BH60: =MIN((AA114+AI31*D19)/AI39,(AA115+AI31*D19)/AJ39,(AA116+AI31*D19)/AK39,(AA117+AI31*D19)/AL39,(AA118+AI31*D19)/AM39)*AN39 -> 506 | BI60: =MIN((AB114+AI31*D19)/AI39,(AB115+AI31*D19)/AJ39,(AB116+AI31*D19)/AK39,(AB117+AI31*D19)/AL39,(AB118+AI31*D19)/AM39)*AN39 -> 508.6666667 | BJ60: =MIN((AC114+AI31*D19)/AI39,(AC115+AI31*D19)/AJ39,(AC116+AI31*D19)/AK39,(AC117+AI31*D19)/AL39,(AC118+AI31*D19)/AM39)*AN39 -> 504 | BK60: =MIN((AD114+AI31*D19)/AI39,(AD115+AI31*D19)/AJ39,(AD116+AI31*D19)/AK39,(AD117+AI31*D19)/AL39,(AD118+AI31*D19)/AM39)*AN39 -> 498.6666667 | BL60: =MIN((AE114+AI31*D19)/AI39,(AE115+AI31*D19)/AJ39,(AE116+AI31*D19)/AK39,(AE117+AI31*D19)/AL39,(AE118+AI31*D19)/AM39)*AN39 -> 506 | BM60: =MIN((AF114+AI31*D19)/AI39,(AF115+AI31*D19)/AJ39,(AF116+AI31*D19)/AK39,(AF117+AI31*D19)/AL39,(AF118+AI31*D19)/AM39)*AN39 -> 508.6666667 | BN60: 512.6666667 | BQ60: =IF(E26=C31,F50,IF(E26=C32,I50,IF(E26=C33,L50,erreur))) -> 0.95365 | BS60: =IF(E26=C31,G50,IF(E26=C32,J50,IF(E26=C33,M50,erreur))) -> 0.4087 | BU60: 1.36235
E61: 1% attaque | F61: 1% defense | G61: 1% cumulé | H61: 1% attaque | I61: 1% defense | J61: 1% cumulé | K61: 1% attaque | L61: 1% defense | M61: 1% cumulé | N61: 1% attaque | O61: 1% defense | P61: 1% cumulé | R61: =K11+AF42+D16+D17+D21 -> 632 | S61: =Q13+R61 -> 641 | T61: =R61+R13 -> 697 | U61: =R61+S13 -> 697 | V61: =R61+T13 -> 694 | W61: =R61+U13 -> 681 | X61: =R61+V13 -> 681 | Y61: =R61+W13 -> 691 | Z61: =R61+X13 -> 691 | AA61: =R61+Y13 -> 687 | AB61: =R61+Z13 -> 691 | AC61: =R61+AA13 -> 684 | AD61: =R61+AB13 -> 676 | AE61: =R61+AC13 -> 687 | AF61: =R61+AD13 -> 691 | AH61: gerard Blanchard | AI61: =MIN((S121+AH31*D19)/AI38,(S122+AH31*D19)/AJ38,(S123+AH31*D19)/AK38,(S124+AH31*D19)/AL38,(S125+AH31*D19)/AM38)*AN38 -> 382.5 | AJ61: =MIN((T121+AH31*D19)/AI38,(T122+AH31*D19)/AJ38,(T123+AH31*D19)/AK38,(T124+AH31*D19)/AL38,(T125+AH31*D19)/AM38)*AN38 -> 365.5 | AK61: =MIN((U121+AH31*D19)/AI38,(U122+AH31*D19)/AJ38,(U123+AH31*D19)/AK38,(U124+AH31*D19)/AL38,(U125+AH31*D19)/AM38)*AN38 -> 365.5 | AL61: =MIN((V121+AH31*D19)/AI38,(V122+AH31*D19)/AJ38,(V123+AH31*D19)/AK38,(V124+AH31*D19)/AL38,(V125+AH31*D19)/AM38)*AN38 -> 356.5 | AM61: =MIN((W121+AH31*D19)/AI38,(W122+AH31*D19)/AJ38,(W123+AH31*D19)/AK38,(W124+AH31*D19)/AL38,(W125+AH31*D19)/AM38)*AN38 -> 362.5 | AN61: =MIN((X121+AH31*D19)/AI38,(X122+AH31*D19)/AJ38,(X123+AH31*D19)/AK38,(X124+AH31*D19)/AL38,(X125+AH31*D19)/AM38)*AN38 -> 368.5 | AO61: =MIN((Y121+AH31*D19)/AI38,(Y122+AH31*D19)/AJ38,(Y123+AH31*D19)/AK38,(Y124+AH31*D19)/AL38,(Y125+AH31*D19)/AM38)*AN38 -> 373.5 | AP61: =MIN((Z121+AH31*D19)/AI38,(Z122+AH31*D19)/AJ38,(Z123+AH31*D19)/AK38,(Z124+AH31*D19)/AL38,(Z125+AH31*D19)/AM38)*AN38 -> 367 | AQ61: =MIN((AA121+AH31*D19)/AI38,(AA122+AH31*D19)/AJ38,(AA123+AH31*D19)/AK38,(AA124+AH31*D19)/AL38,(AA125+AH31*D19)/AM38)*AN38 -> 371.5 | AR61: =MIN((AB121+AH31*D19)/AI38,(AB122+AH31*D19)/AJ38,(AB123+AH31*D19)/AK38,(AB124+AH31*D19)/AL38,(AB125+AH31*D19)/AM38)*AN38 -> 373.5 | AS61: =MIN((AC121+AH31*D19)/AI38,(AC122+AH31*D19)/AJ38,(AC123+AH31*D19)/AK38,(AC124+AH31*D19)/AL38,(AC125+AH31*D19)/AM38)*AN38 -> 373.5 | AT61: =MIN((AD121+AH31*D19)/AI38,(AD122+AH31*D19)/AJ38,(AD123+AH31*D19)/AK38,(AD124+AH31*D19)/AL38,(AD125+AH31*D19)/AM38)*AN38 -> 378 | AU61: =MIN((AE121+AH31*D19)/AI38,(AE122+AH31*D19)/AJ38,(AE123+AH31*D19)/AK38,(AE124+AH31*D19)/AL38,(AE125+AH31*D19)/AM38)*AN38 -> 376.5 | AV61: =MIN((AF121+AH31*D19)/AI38,(AF122+AH31*D19)/AJ38,(AF123+AH31*D19)/AK38,(AF124+AH31*D19)/AL38,(AF125+AH31*D19)/AM38)*AN38 -> 373.5 | AW61: 382.5 | AY61: gerard Blanchard | AZ61: =MIN((S121+AI31*D19)/AI39,(S122+AI31*D19)/AJ39,(S123+AI31*D19)/AK39,(S124+AI31*D19)/AL39,(S125+AI31*D19)/AM39)*AN39 -> 454.6666667 | BA61: =MIN((T121+AI31*D19)/AI39,(T122+AI31*D19)/AJ39,(T123+AI31*D19)/AK39,(T124+AI31*D19)/AL39,(T125+AI31*D19)/AM39)*AN39 -> 492 | BB61: =MIN((U121+AI31*D19)/AI39,(U122+AI31*D19)/AJ39,(U123+AI31*D19)/AK39,(U124+AI31*D19)/AL39,(U125+AI31*D19)/AM39)*AN39 -> 492 | BC61: =MIN((V121+AI31*D19)/AI39,(V122+AI31*D19)/AJ39,(V123+AI31*D19)/AK39,(V124+AI31*D19)/AL39,(V125+AI31*D19)/AM39)*AN39 -> 490 | BD61: =MIN((W121+AI31*D19)/AI39,(W122+AI31*D19)/AJ39,(W123+AI31*D19)/AK39,(W124+AI31*D19)/AL39,(W125+AI31*D19)/AM39)*AN39 -> 481.3333333 | BE61: =MIN((X121+AI31*D19)/AI39,(X122+AI31*D19)/AJ39,(X123+AI31*D19)/AK39,(X124+AI31*D19)/AL39,(X125+AI31*D19)/AM39)*AN39 -> 481.3333333 | BF61: =MIN((Y121+AI31*D19)/AI39,(Y122+AI31*D19)/AJ39,(Y123+AI31*D19)/AK39,(Y124+AI31*D19)/AL39,(Y125+AI31*D19)/AM39)*AN39 -> 488 | BG61: =MIN((Z121+AI31*D19)/AI39,(Z122+AI31*D19)/AJ39,(Z123+AI31*D19)/AK39,(Z124+AI31*D19)/AL39,(Z125+AI31*D19)/AM39)*AN39 -> 488 | BH61: =MIN((AA121+AI31*D19)/AI39,(AA122+AI31*D19)/AJ39,(AA123+AI31*D19)/AK39,(AA124+AI31*D19)/AL39,(AA125+AI31*D19)/AM39)*AN39 -> 485.3333333 | BI61: =MIN((AB121+AI31*D19)/AI39,(AB122+AI31*D19)/AJ39,(AB123+AI31*D19)/AK39,(AB124+AI31*D19)/AL39,(AB125+AI31*D19)/AM39)*AN39 -> 488 | BJ61: =MIN((AC121+AI31*D19)/AI39,(AC122+AI31*D19)/AJ39,(AC123+AI31*D19)/AK39,(AC124+AI31*D19)/AL39,(AC125+AI31*D19)/AM39)*AN39 -> 483.3333333 | BK61: =MIN((AD121+AI31*D19)/AI39,(AD122+AI31*D19)/AJ39,(AD123+AI31*D19)/AK39,(AD124+AI31*D19)/AL39,(AD125+AI31*D19)/AM39)*AN39 -> 478 | BL61: =MIN((AE121+AI31*D19)/AI39,(AE122+AI31*D19)/AJ39,(AE123+AI31*D19)/AK39,(AE124+AI31*D19)/AL39,(AE125+AI31*D19)/AM39)*AN39 -> 485.3333333 | BM61: =MIN((AF121+AI31*D19)/AI39,(AF122+AI31*D19)/AJ39,(AF123+AI31*D19)/AK39,(AF124+AI31*D19)/AL39,(AF125+AI31*D19)/AM39)*AN39 -> 488 | BN61: 492 | BQ61: =IF(E26=C31,F51,IF(E26=C32,I51,IF(E26=C33,L51,erreur))) -> 0.94985 | BS61: =IF(E26=C31,G51,IF(E26=C32,J51,IF(E26=C33,M51,erreur))) -> 0.40705 | BU61: 1.3569
E62: 0.05445 | F62: 2.67025 | G62: =E62+F62 -> 2.7247 | H62: 0.05445 | I62: 2.67025 | J62: =H62+I62 -> 2.7247 | K62: 0.05445 | L62: 2.67025 | M62: =K62+L62 -> 2.7247 | N62: 0.05445 | O62: 2.67025 | P62: =N62+O62 -> 2.7247 | R62: =L11+AF43+D15+D17+D21 -> 641 | S62: =Q14+R62 -> 689 | T62: =R62+R14 -> 684 | U62: =R62+S14 -> 684 | V62: =R62+T14 -> 678 | W62: =R62+U14 -> 666 | X62: =R62+V14 -> 690 | Y62: =R62+W14 -> 687 | Z62: =R62+X14 -> 675 | AA62: =R62+Y14 -> 685 | AB62: =R62+Z14 -> 681 | AC62: =R62+AA14 -> 674 | AD62: =R62+AB14 -> 685 | AE62: =R62+AC14 -> 696 | AF62: =R62+AD14 -> 667 | AH62: 9 moy 511 | AI62: =MIN((S128+AH31*D19)/AI38,(S129+AH31*D19)/AJ38,(S130+AH31*D19)/AK38,(S131+AH31*D19)/AL38,(S132+AH31*D19)/AM38)*AN38 -> 384 | AJ62: =MIN((T128+AH31*D19)/AI38,(T129+AH31*D19)/AJ38,(T130+AH31*D19)/AK38,(T131+AH31*D19)/AL38,(T132+AH31*D19)/AM38)*AN38 -> 367 | AK62: =MIN((U128+AH31*D19)/AI38,(U129+AH31*D19)/AJ38,(U130+AH31*D19)/AK38,(U131+AH31*D19)/AL38,(U132+AH31*D19)/AM38)*AN38 -> 367 | AL62: =MIN((V128+AH31*D19)/AI38,(V129+AH31*D19)/AJ38,(V130+AH31*D19)/AK38,(V131+AH31*D19)/AL38,(V132+AH31*D19)/AM38)*AN38 -> 358 | AM62: =MIN((W128+AH31*D19)/AI38,(W129+AH31*D19)/AJ38,(W130+AH31*D19)/AK38,(W131+AH31*D19)/AL38,(W132+AH31*D19)/AM38)*AN38 -> 364 | AN62: =MIN((X128+AH31*D19)/AI38,(X129+AH31*D19)/AJ38,(X130+AH31*D19)/AK38,(X131+AH31*D19)/AL38,(X132+AH31*D19)/AM38)*AN38 -> 370 | AO62: =MIN((Y128+AH31*D19)/AI38,(Y129+AH31*D19)/AJ38,(Y130+AH31*D19)/AK38,(Y131+AH31*D19)/AL38,(Y132+AH31*D19)/AM38)*AN38 -> 375 | AP62: =MIN((Z128+AH31*D19)/AI38,(Z129+AH31*D19)/AJ38,(Z130+AH31*D19)/AK38,(Z131+AH31*D19)/AL38,(Z132+AH31*D19)/AM38)*AN38 -> 368.5 | AQ62: =MIN((AA128+AH31*D19)/AI38,(AA129+AH31*D19)/AJ38,(AA130+AH31*D19)/AK38,(AA131+AH31*D19)/AL38,(AA132+AH31*D19)/AM38)*AN38 -> 373 | AR62: =MIN((AB128+AH31*D19)/AI38,(AB129+AH31*D19)/AJ38,(AB130+AH31*D19)/AK38,(AB131+AH31*D19)/AL38,(AB132+AH31*D19)/AM38)*AN38 -> 375 | AS62: =MIN((AC128+AH31*D19)/AI38,(AC129+AH31*D19)/AJ38,(AC130+AH31*D19)/AK38,(AC131+AH31*D19)/AL38,(AC132+AH31*D19)/AM38)*AN38 -> 375 | AT62: =MIN((AD128+AH31*D19)/AI38,(AD129+AH31*D19)/AJ38,(AD130+AH31*D19)/AK38,(AD131+AH31*D19)/AL38,(AD132+AH31*D19)/AM38)*AN38 -> 379.5 | AU62: =MIN((AE128+AH31*D19)/AI38,(AE129+AH31*D19)/AJ38,(AE130+AH31*D19)/AK38,(AE131+AH31*D19)/AL38,(AE132+AH31*D19)/AM38)*AN38 -> 378 | AV62: =MIN((AF128+AH31*D19)/AI38,(AF129+AH31*D19)/AJ38,(AF130+AH31*D19)/AK38,(AF131+AH31*D19)/AL38,(AF132+AH31*D19)/AM38)*AN38 -> 375 | AW62: 384 | AY62: 9 moy 511 | AZ62: =MIN((S128+AI31*D19)/AI39,(S129+AI31*D19)/AJ39,(S130+AI31*D19)/AK39,(S131+AI31*D19)/AL39,(S132+AI31*D19)/AM39)*AN39 -> 427.3333333 | BA62: =MIN((T128+AI31*D19)/AI39,(T129+AI31*D19)/AJ39,(T130+AI31*D19)/AK39,(T131+AI31*D19)/AL39,(T132+AI31*D19)/AM39)*AN39 -> 464.6666667 | BB62: =MIN((U128+AI31*D19)/AI39,(U129+AI31*D19)/AJ39,(U130+AI31*D19)/AK39,(U131+AI31*D19)/AL39,(U132+AI31*D19)/AM39)*AN39 -> 464.6666667 | BC62: =MIN((V128+AI31*D19)/AI39,(V129+AI31*D19)/AJ39,(V130+AI31*D19)/AK39,(V131+AI31*D19)/AL39,(V132+AI31*D19)/AM39)*AN39 -> 462.6666667 | BD62: =MIN((W128+AI31*D19)/AI39,(W129+AI31*D19)/AJ39,(W130+AI31*D19)/AK39,(W131+AI31*D19)/AL39,(W132+AI31*D19)/AM39)*AN39 -> 454 | BE62: =MIN((X128+AI31*D19)/AI39,(X129+AI31*D19)/AJ39,(X130+AI31*D19)/AK39,(X131+AI31*D19)/AL39,(X132+AI31*D19)/AM39)*AN39 -> 454 | BF62: =MIN((Y128+AI31*D19)/AI39,(Y129+AI31*D19)/AJ39,(Y130+AI31*D19)/AK39,(Y131+AI31*D19)/AL39,(Y132+AI31*D19)/AM39)*AN39 -> 460.6666667 | BG62: =MIN((Z128+AI31*D19)/AI39,(Z129+AI31*D19)/AJ39,(Z130+AI31*D19)/AK39,(Z131+AI31*D19)/AL39,(Z132+AI31*D19)/AM39)*AN39 -> 460.6666667 | BH62: =MIN((AA128+AI31*D19)/AI39,(AA129+AI31*D19)/AJ39,(AA130+AI31*D19)/AK39,(AA131+AI31*D19)/AL39,(AA132+AI31*D19)/AM39)*AN39 -> 458 | BI62: =MIN((AB128+AI31*D19)/AI39,(AB129+AI31*D19)/AJ39,(AB130+AI31*D19)/AK39,(AB131+AI31*D19)/AL39,(AB132+AI31*D19)/AM39)*AN39 -> 460.6666667 | BJ62: =MIN((AC128+AI31*D19)/AI39,(AC129+AI31*D19)/AJ39,(AC130+AI31*D19)/AK39,(AC131+AI31*D19)/AL39,(AC132+AI31*D19)/AM39)*AN39 -> 456 | BK62: =MIN((AD128+AI31*D19)/AI39,(AD129+AI31*D19)/AJ39,(AD130+AI31*D19)/AK39,(AD131+AI31*D19)/AL39,(AD132+AI31*D19)/AM39)*AN39 -> 450.6666667 | BL62: =MIN((AE128+AI31*D19)/AI39,(AE129+AI31*D19)/AJ39,(AE130+AI31*D19)/AK39,(AE131+AI31*D19)/AL39,(AE132+AI31*D19)/AM39)*AN39 -> 458 | BM62: =MIN((AF128+AI31*D19)/AI39,(AF129+AI31*D19)/AJ39,(AF130+AI31*D19)/AK39,(AF131+AI31*D19)/AL39,(AF132+AI31*D19)/AM39)*AN39 -> 460.6666667 | BN62: 464.6666667 | BQ62: =IF(E26=C31,F52,IF(E26=C32,I52,IF(E26=C33,L52,erreur))) -> 1.90735 | BS62: =IF(E26=C31,G52,IF(E26=C32,J52,IF(E26=C33,M52,erreur))) -> 0.8174 | BU62: 2.72475
E63: 0.27245 | F63: 1.0899 | G63: =E63+F63 -> 1.36235 | H63: 0.68115 | I63: 0.68115 | J63: 1.3623 | K63: 0.90825 | L63: 1.36235 | M63: =K63+L63 -> 2.2706 | N63: 0.4087 | O63: 0.95365 | P63: 1.36235 | AH63: Pullrouge 5 | AI63: =MIN((S135+AH31*D19)/AI38,(S136+AH31*D19)/AJ38,(S137+AH31*D19)/AK38,(S138+AH31*D19)/AL38,(S139+AH31*D19)/AM38)*AN38 -> 335 | AJ63: =MIN((T135+AH31*D19)/AI38,(T136+AH31*D19)/AJ38,(T137+AH31*D19)/AK38,(T138+AH31*D19)/AL38,(T139+AH31*D19)/AM38)*AN38 -> 318 | AK63: =MIN((U135+AH31*D19)/AI38,(U136+AH31*D19)/AJ38,(U137+AH31*D19)/AK38,(U138+AH31*D19)/AL38,(U139+AH31*D19)/AM38)*AN38 -> 318 | AL63: =MIN((V135+AH31*D19)/AI38,(V136+AH31*D19)/AJ38,(V137+AH31*D19)/AK38,(V138+AH31*D19)/AL38,(V139+AH31*D19)/AM38)*AN38 -> 309 | AM63: =MIN((W135+AH31*D19)/AI38,(W136+AH31*D19)/AJ38,(W137+AH31*D19)/AK38,(W138+AH31*D19)/AL38,(W139+AH31*D19)/AM38)*AN38 -> 315 | AN63: =MIN((X135+AH31*D19)/AI38,(X136+AH31*D19)/AJ38,(X137+AH31*D19)/AK38,(X138+AH31*D19)/AL38,(X139+AH31*D19)/AM38)*AN38 -> 321 | AO63: =MIN((Y135+AH31*D19)/AI38,(Y136+AH31*D19)/AJ38,(Y137+AH31*D19)/AK38,(Y138+AH31*D19)/AL38,(Y139+AH31*D19)/AM38)*AN38 -> 326 | AP63: =MIN((Z135+AH31*D19)/AI38,(Z136+AH31*D19)/AJ38,(Z137+AH31*D19)/AK38,(Z138+AH31*D19)/AL38,(Z139+AH31*D19)/AM38)*AN38 -> 319.5 | AQ63: =MIN((AA135+AH31*D19)/AI38,(AA136+AH31*D19)/AJ38,(AA137+AH31*D19)/AK38,(AA138+AH31*D19)/AL38,(AA139+AH31*D19)/AM38)*AN38 -> 324 | AR63: =MIN((AB135+AH31*D19)/AI38,(AB136+AH31*D19)/AJ38,(AB137+AH31*D19)/AK38,(AB138+AH31*D19)/AL38,(AB139+AH31*D19)/AM38)*AN38 -> 326 | AS63: =MIN((AC135+AH31*D19)/AI38,(AC136+AH31*D19)/AJ38,(AC137+AH31*D19)/AK38,(AC138+AH31*D19)/AL38,(AC139+AH31*D19)/AM38)*AN38 -> 326 | AT63: =MIN((AD135+AH31*D19)/AI38,(AD136+AH31*D19)/AJ38,(AD137+AH31*D19)/AK38,(AD138+AH31*D19)/AL38,(AD139+AH31*D19)/AM38)*AN38 -> 330.5 | AU63: =MIN((AE135+AH31*D19)/AI38,(AE136+AH31*D19)/AJ38,(AE137+AH31*D19)/AK38,(AE138+AH31*D19)/AL38,(AE139+AH31*D19)/AM38)*AN38 -> 329 | AV63: =MIN((AF135+AH31*D19)/AI38,(AF136+AH31*D19)/AJ38,(AF137+AH31*D19)/AK38,(AF138+AH31*D19)/AL38,(AF139+AH31*D19)/AM38)*AN38 -> 326 | AW63: 335 | AY63: Pullrouge 5 | AZ63: =MIN((S135+AI31*D19)/AI39,(S136+AI31*D19)/AJ39,(S137+AI31*D19)/AK39,(S138+AI31*D19)/AL39,(S139+AI31*D19)/AM39)*AN39 -> 416.6666667 | BA63: =MIN((T135+AI31*D19)/AI39,(T136+AI31*D19)/AJ39,(T137+AI31*D19)/AK39,(T138+AI31*D19)/AL39,(T139+AI31*D19)/AM39)*AN39 -> 454 | BB63: =MIN((U135+AI31*D19)/AI39,(U136+AI31*D19)/AJ39,(U137+AI31*D19)/AK39,(U138+AI31*D19)/AL39,(U139+AI31*D19)/AM39)*AN39 -> 454 | BC63: =MIN((V135+AI31*D19)/AI39,(V136+AI31*D19)/AJ39,(V137+AI31*D19)/AK39,(V138+AI31*D19)/AL39,(V139+AI31*D19)/AM39)*AN39 -> 452 | BD63: =MIN((W135+AI31*D19)/AI39,(W136+AI31*D19)/AJ39,(W137+AI31*D19)/AK39,(W138+AI31*D19)/AL39,(W139+AI31*D19)/AM39)*AN39 -> 443.3333333 | BE63: =MIN((X135+AI31*D19)/AI39,(X136+AI31*D19)/AJ39,(X137+AI31*D19)/AK39,(X138+AI31*D19)/AL39,(X139+AI31*D19)/AM39)*AN39 -> 443.3333333 | BF63: =MIN((Y135+AI31*D19)/AI39,(Y136+AI31*D19)/AJ39,(Y137+AI31*D19)/AK39,(Y138+AI31*D19)/AL39,(Y139+AI31*D19)/AM39)*AN39 -> 450 | BG63: =MIN((Z135+AI31*D19)/AI39,(Z136+AI31*D19)/AJ39,(Z137+AI31*D19)/AK39,(Z138+AI31*D19)/AL39,(Z139+AI31*D19)/AM39)*AN39 -> 450 | BH63: =MIN((AA135+AI31*D19)/AI39,(AA136+AI31*D19)/AJ39,(AA137+AI31*D19)/AK39,(AA138+AI31*D19)/AL39,(AA139+AI31*D19)/AM39)*AN39 -> 447.3333333 | BI63: =MIN((AB135+AI31*D19)/AI39,(AB136+AI31*D19)/AJ39,(AB137+AI31*D19)/AK39,(AB138+AI31*D19)/AL39,(AB139+AI31*D19)/AM39)*AN39 -> 450 | BJ63: =MIN((AC135+AI31*D19)/AI39,(AC136+AI31*D19)/AJ39,(AC137+AI31*D19)/AK39,(AC138+AI31*D19)/AL39,(AC139+AI31*D19)/AM39)*AN39 -> 445.3333333 | BK63: =MIN((AD135+AI31*D19)/AI39,(AD136+AI31*D19)/AJ39,(AD137+AI31*D19)/AK39,(AD138+AI31*D19)/AL39,(AD139+AI31*D19)/AM39)*AN39 -> 440 | BL63: =MIN((AE135+AI31*D19)/AI39,(AE136+AI31*D19)/AJ39,(AE137+AI31*D19)/AK39,(AE138+AI31*D19)/AL39,(AE139+AI31*D19)/AM39)*AN39 -> 447.3333333 | BM63: =MIN((AF135+AI31*D19)/AI39,(AF136+AI31*D19)/AJ39,(AF137+AI31*D19)/AK39,(AF138+AI31*D19)/AL39,(AF139+AI31*D19)/AM39)*AN39 -> 450 | BN63: 454 | BQ63: =IF(E26=C31,F53,IF(E26=C32,I53,IF(E26=C33,L53,erreur))) -> 2.04355 | BS63: =IF(E26=C31,G53,IF(E26=C32,J53,IF(E26=C33,M53,erreur))) -> 0.22705 | BU63: 2.2706
E64: 0.27245 | F64: 1.0899 | G64: 1.36235 | H64: 0.68115 | I64: 0.68115 | J64: 1.3623 | K64: 0.68115 | L64: 1.58945 | M64: 2.2706 | N64: 0.4087 | O64: 0.95365 | P64: 1.36235 | R64: =G12 -> DS499 | S64: =S57 -> kit 1 | T64: =T57 -> kit 2A | U64: kit 2B | V64: kit 4A | W64: kit 4B | X64: kit 5 | Y64: kit 6A | Z64: kit 6B | AA64: kit 7 | AB64: kit 8 | AC64: kit 9A | AD64: kit 9B | AE64: kit 10 | AF64: kit 11 | AH64: Pullrouge 3 | AI64: =MIN((S142+AH31*D19)/AI38,(S143+AH31*D19)/AJ38,(S144+AH31*D19)/AK38,(S145+AH31*D19)/AL38,(S146+AH31*D19)/AM38)*AN38 -> 349.5 | AJ64: =MIN((T142+AH31*D19)/AI38,(T143+AH31*D19)/AJ38,(T144+AH31*D19)/AK38,(T145+AH31*D19)/AL38,(T146+AH31*D19)/AM38)*AN38 -> 332.5 | AK64: =MIN((U142+AH31*D19)/AI38,(U143+AH31*D19)/AJ38,(U144+AH31*D19)/AK38,(U145+AH31*D19)/AL38,(U146+AH31*D19)/AM38)*AN38 -> 332.5 | AL64: =MIN((V142+AH31*D19)/AI38,(V143+AH31*D19)/AJ38,(V144+AH31*D19)/AK38,(V145+AH31*D19)/AL38,(V146+AH31*D19)/AM38)*AN38 -> 323.5 | AM64: =MIN((W142+AH31*D19)/AI38,(W143+AH31*D19)/AJ38,(W144+AH31*D19)/AK38,(W145+AH31*D19)/AL38,(W146+AH31*D19)/AM38)*AN38 -> 329.5 | AN64: =MIN((X142+AH31*D19)/AI38,(X143+AH31*D19)/AJ38,(X144+AH31*D19)/AK38,(X145+AH31*D19)/AL38,(X146+AH31*D19)/AM38)*AN38 -> 335.5 | AO64: =MIN((Y142+AH31*D19)/AI38,(Y143+AH31*D19)/AJ38,(Y144+AH31*D19)/AK38,(Y145+AH31*D19)/AL38,(Y146+AH31*D19)/AM38)*AN38 -> 340.5 | AP64: =MIN((Z142+AH31*D19)/AI38,(Z143+AH31*D19)/AJ38,(Z144+AH31*D19)/AK38,(Z145+AH31*D19)/AL38,(Z146+AH31*D19)/AM38)*AN38 -> 334 | AQ64: =MIN((AA142+AH31*D19)/AI38,(AA143+AH31*D19)/AJ38,(AA144+AH31*D19)/AK38,(AA145+AH31*D19)/AL38,(AA146+AH31*D19)/AM38)*AN38 -> 338.5 | AR64: =MIN((AB142+AH31*D19)/AI38,(AB143+AH31*D19)/AJ38,(AB144+AH31*D19)/AK38,(AB145+AH31*D19)/AL38,(AB146+AH31*D19)/AM38)*AN38 -> 340.5 | AS64: =MIN((AC142+AH31*D19)/AI38,(AC143+AH31*D19)/AJ38,(AC144+AH31*D19)/AK38,(AC145+AH31*D19)/AL38,(AC146+AH31*D19)/AM38)*AN38 -> 340.5 | AT64: =MIN((AD142+AH31*D19)/AI38,(AD143+AH31*D19)/AJ38,(AD144+AH31*D19)/AK38,(AD145+AH31*D19)/AL38,(AD146+AH31*D19)/AM38)*AN38 -> 345 | AU64: =MIN((AE142+AH31*D19)/AI38,(AE143+AH31*D19)/AJ38,(AE144+AH31*D19)/AK38,(AE145+AH31*D19)/AL38,(AE146+AH31*D19)/AM38)*AN38 -> 343.5 | AV64: =MIN((AF142+AH31*D19)/AI38,(AF143+AH31*D19)/AJ38,(AF144+AH31*D19)/AK38,(AF145+AH31*D19)/AL38,(AF146+AH31*D19)/AM38)*AN38 -> 340.5 | AW64: 349.5 | AY64: Pullrouge 3 | AZ64: =MIN((S142+AI31*D19)/AI39,(S143+AI31*D19)/AJ39,(S144+AI31*D19)/AK39,(S145+AI31*D19)/AL39,(S146+AI31*D19)/AM39)*AN39 -> 428.6666667 | BA64: =MIN((T142+AI31*D19)/AI39,(T143+AI31*D19)/AJ39,(T144+AI31*D19)/AK39,(T145+AI31*D19)/AL39,(T146+AI31*D19)/AM39)*AN39 -> 457.6 | BB64: =MIN((U142+AI31*D19)/AI39,(U143+AI31*D19)/AJ39,(U144+AI31*D19)/AK39,(U145+AI31*D19)/AL39,(U146+AI31*D19)/AM39)*AN39 -> 466 | BC64: =MIN((V142+AI31*D19)/AI39,(V143+AI31*D19)/AJ39,(V144+AI31*D19)/AK39,(V145+AI31*D19)/AL39,(V146+AI31*D19)/AM39)*AN39 -> 464 | BD64: =MIN((W142+AI31*D19)/AI39,(W143+AI31*D19)/AJ39,(W144+AI31*D19)/AK39,(W145+AI31*D19)/AL39,(W146+AI31*D19)/AM39)*AN39 -> 455.3333333 | BE64: =MIN((X142+AI31*D19)/AI39,(X143+AI31*D19)/AJ39,(X144+AI31*D19)/AK39,(X145+AI31*D19)/AL39,(X146+AI31*D19)/AM39)*AN39 -> 455.3333333 | BF64: =MIN((Y142+AI31*D19)/AI39,(Y143+AI31*D19)/AJ39,(Y144+AI31*D19)/AK39,(Y145+AI31*D19)/AL39,(Y146+AI31*D19)/AM39)*AN39 -> 451.2 | BG64: =MIN((Z142+AI31*D19)/AI39,(Z143+AI31*D19)/AJ39,(Z144+AI31*D19)/AK39,(Z145+AI31*D19)/AL39,(Z146+AI31*D19)/AM39)*AN39 -> 462 | BH64: =MIN((AA142+AI31*D19)/AI39,(AA143+AI31*D19)/AJ39,(AA144+AI31*D19)/AK39,(AA145+AI31*D19)/AL39,(AA146+AI31*D19)/AM39)*AN39 -> 459.3333333 | BI64: =MIN((AB142+AI31*D19)/AI39,(AB143+AI31*D19)/AJ39,(AB144+AI31*D19)/AK39,(AB145+AI31*D19)/AL39,(AB146+AI31*D19)/AM39)*AN39 -> 462 | BJ64: =MIN((AC142+AI31*D19)/AI39,(AC143+AI31*D19)/AJ39,(AC144+AI31*D19)/AK39,(AC145+AI31*D19)/AL39,(AC146+AI31*D19)/AM39)*AN39 -> 457.3333333 | BK64: =MIN((AD142+AI31*D19)/AI39,(AD143+AI31*D19)/AJ39,(AD144+AI31*D19)/AK39,(AD145+AI31*D19)/AL39,(AD146+AI31*D19)/AM39)*AN39 -> 452 | BL64: =MIN((AE142+AI31*D19)/AI39,(AE143+AI31*D19)/AJ39,(AE144+AI31*D19)/AK39,(AE145+AI31*D19)/AL39,(AE146+AI31*D19)/AM39)*AN39 -> 459.3333333 | BM64: =MIN((AF142+AI31*D19)/AI39,(AF143+AI31*D19)/AJ39,(AF144+AI31*D19)/AK39,(AF145+AI31*D19)/AL39,(AF146+AI31*D19)/AM39)*AN39 -> 462 | BN64: 466 | BQ64: =IF(E26=C31,F54,IF(E26=C32,I54,IF(E26=C33,L54,erreur))) -> 1.4532 | BS64: =IF(E26=C31,G54,IF(E26=C32,J54,IF(E26=C33,M54,erreur))) -> 0.3633 | BU64: 1.8165
E65: 0.18165 | F65: 1.63485 | G65: 1.8165 | H65: 0.18165 | I65: 0.7266 | J65: 0.90825 | K65: 0.27245 | L65: 0.63575 | M65: 0.9082 | N65: 0.3633 | O65: 1.4532 | P65: 1.8165 | R65: =H12+AF39+D16+D17+D21 -> 682 | S65: =R65+Q10 -> 711 | T65: =R65+R10 -> 747 | U65: =R65+S10 -> 738 | V65: =R65+T10 -> 756 | W65: =R65+U10 -> 756 | X65: =R65+V10 -> 747 | Y65: =R65+W10 -> 741 | Z65: =R65+X10 -> 741 | AA65: =R65+Y10 -> 737 | AB65: =R65+Z10 -> 722 | AC65: =R65+AA10 -> 726 | AD65: =R65+AB10 -> 741 | AE65: =R65+AC10 -> 719 | AF65: =R65+AD10 -> 726 | AH65: £vente | AI65: =MIN((S149+AH31*D19)/AI38,(S150+AH31*D19)/AJ38,(S151+AH31*D19)/AK38,(S152+AH31*D19)/AL38,(S153+AH31*D19)/AM38)*AN38 -> 342.5 | AJ65: =MIN((T149+AH31*D19)/AI38,(T150+AH31*D19)/AJ38,(T151+AH31*D19)/AK38,(T152+AH31*D19)/AL38,(T153+AH31*D19)/AM38)*AN38 -> 325.5 | AK65: =MIN((U149+AH31*D19)/AI38,(U150+AH31*D19)/AJ38,(U151+AH31*D19)/AK38,(U152+AH31*D19)/AL38,(U153+AH31*D19)/AM38)*AN38 -> 325.5 | AL65: =MIN((V149+AH31*D19)/AI38,(V150+AH31*D19)/AJ38,(V151+AH31*D19)/AK38,(V152+AH31*D19)/AL38,(V153+AH31*D19)/AM38)*AN38 -> 316.5 | AM65: =MIN((W149+AH31*D19)/AI38,(W150+AH31*D19)/AJ38,(W151+AH31*D19)/AK38,(W152+AH31*D19)/AL38,(W153+AH31*D19)/AM38)*AN38 -> 322.5 | AN65: =MIN((X149+AH31*D19)/AI38,(X150+AH31*D19)/AJ38,(X151+AH31*D19)/AK38,(X152+AH31*D19)/AL38,(X153+AH31*D19)/AM38)*AN38 -> 328.5 | AO65: =MIN((Y149+AH31*D19)/AI38,(Y150+AH31*D19)/AJ38,(Y151+AH31*D19)/AK38,(Y152+AH31*D19)/AL38,(Y153+AH31*D19)/AM38)*AN38 -> 333.5 | AP65: =MIN((Z149+AH31*D19)/AI38,(Z150+AH31*D19)/AJ38,(Z151+AH31*D19)/AK38,(Z152+AH31*D19)/AL38,(Z153+AH31*D19)/AM38)*AN38 -> 327 | AQ65: =MIN((AA149+AH31*D19)/AI38,(AA150+AH31*D19)/AJ38,(AA151+AH31*D19)/AK38,(AA152+AH31*D19)/AL38,(AA153+AH31*D19)/AM38)*AN38 -> 331.5 | AR65: =MIN((AB149+AH31*D19)/AI38,(AB150+AH31*D19)/AJ38,(AB151+AH31*D19)/AK38,(AB152+AH31*D19)/AL38,(AB153+AH31*D19)/AM38)*AN38 -> 333.5 | AS65: =MIN((AC149+AH31*D19)/AI38,(AC150+AH31*D19)/AJ38,(AC151+AH31*D19)/AK38,(AC152+AH31*D19)/AL38,(AC153+AH31*D19)/AM38)*AN38 -> 333.5 | AT65: =MIN((AD149+AH31*D19)/AI38,(AD150+AH31*D19)/AJ38,(AD151+AH31*D19)/AK38,(AD152+AH31*D19)/AL38,(AD153+AH31*D19)/AM38)*AN38 -> 338 | AU65: =MIN((AE149+AH31*D19)/AI38,(AE150+AH31*D19)/AJ38,(AE151+AH31*D19)/AK38,(AE152+AH31*D19)/AL38,(AE153+AH31*D19)/AM38)*AN38 -> 336.5 | AV65: =MIN((AF149+AH31*D19)/AI38,(AF150+AH31*D19)/AJ38,(AF151+AH31*D19)/AK38,(AF152+AH31*D19)/AL38,(AF153+AH31*D19)/AM38)*AN38 -> 333.5 | AW65: 342.5 | AY65: £vente | AZ65: =MIN((S149+AI31*D19)/AI39,(S150+AI31*D19)/AJ39,(S151+AI31*D19)/AK39,(S152+AI31*D19)/AL39,(S153+AI31*D19)/AM39)*AN39 -> 418.6666667 | BA65: =MIN((T149+AI31*D19)/AI39,(T150+AI31*D19)/AJ39,(T151+AI31*D19)/AK39,(T152+AI31*D19)/AL39,(T153+AI31*D19)/AM39)*AN39 -> 456 | BB65: =MIN((U149+AI31*D19)/AI39,(U150+AI31*D19)/AJ39,(U151+AI31*D19)/AK39,(U152+AI31*D19)/AL39,(U153+AI31*D19)/AM39)*AN39 -> 456 | BC65: =MIN((V149+AI31*D19)/AI39,(V150+AI31*D19)/AJ39,(V151+AI31*D19)/AK39,(V152+AI31*D19)/AL39,(V153+AI31*D19)/AM39)*AN39 -> 454 | BD65: =MIN((W149+AI31*D19)/AI39,(W150+AI31*D19)/AJ39,(W151+AI31*D19)/AK39,(W152+AI31*D19)/AL39,(W153+AI31*D19)/AM39)*AN39 -> 445.3333333 | BE65: =MIN((X149+AI31*D19)/AI39,(X150+AI31*D19)/AJ39,(X151+AI31*D19)/AK39,(X152+AI31*D19)/AL39,(X153+AI31*D19)/AM39)*AN39 -> 445.3333333 | BF65: =MIN((Y149+AI31*D19)/AI39,(Y150+AI31*D19)/AJ39,(Y151+AI31*D19)/AK39,(Y152+AI31*D19)/AL39,(Y153+AI31*D19)/AM39)*AN39 -> 452 | BG65: =MIN((Z149+AI31*D19)/AI39,(Z150+AI31*D19)/AJ39,(Z151+AI31*D19)/AK39,(Z152+AI31*D19)/AL39,(Z153+AI31*D19)/AM39)*AN39 -> 452 | BH65: =MIN((AA149+AI31*D19)/AI39,(AA150+AI31*D19)/AJ39,(AA151+AI31*D19)/AK39,(AA152+AI31*D19)/AL39,(AA153+AI31*D19)/AM39)*AN39 -> 449.3333333 | BI65: =MIN((AB149+AI31*D19)/AI39,(AB150+AI31*D19)/AJ39,(AB151+AI31*D19)/AK39,(AB152+AI31*D19)/AL39,(AB153+AI31*D19)/AM39)*AN39 -> 452 | BJ65: =MIN((AC149+AI31*D19)/AI39,(AC150+AI31*D19)/AJ39,(AC151+AI31*D19)/AK39,(AC152+AI31*D19)/AL39,(AC153+AI31*D19)/AM39)*AN39 -> 447.3333333 | BK65: =MIN((AD149+AI31*D19)/AI39,(AD150+AI31*D19)/AJ39,(AD151+AI31*D19)/AK39,(AD152+AI31*D19)/AL39,(AD153+AI31*D19)/AM39)*AN39 -> 442 | BL65: =MIN((AE149+AI31*D19)/AI39,(AE150+AI31*D19)/AJ39,(AE151+AI31*D19)/AK39,(AE152+AI31*D19)/AL39,(AE153+AI31*D19)/AM39)*AN39 -> 449.3333333 | BM65: =MIN((AF149+AI31*D19)/AI39,(AF150+AI31*D19)/AJ39,(AF151+AI31*D19)/AK39,(AF152+AI31*D19)/AL39,(AF153+AI31*D19)/AM39)*AN39 -> 452 | BN65: 456 | BQ65: =IF(E26=C31,F55,IF(E26=C32,I55,IF(E26=C33,L55,erreur))) -> 1.90735 | BS65: =IF(E26=C31,G55,IF(E26=C32,J55,IF(E26=C33,M55,erreur))) -> 0.8174 | BU65: 2.72475
E66: 0.18165 | F66: 1.63485 | G66: 1.8165 | H66: 0.4087 | I66: 0.95365 | J66: 1.36235 | K66: 0.27245 | L66: 0.63575 | M66: 0.9082 | N66: 0.7266 | O66: 1.0899 | P66: 1.8165 | R66: =I12+AF40+D15+D17+D21 -> 665 | S66: =R66+Q11 -> 742 | T66: =R66+R11 -> 708 | U66: =R66+S11 -> 708 | V66: =R66+T11 -> 690 | W66: =R66+U11 -> 702 | X66: =R66+V11 -> 714 | Y66: =R66+W11 -> 724 | Z66: =R66+X11 -> 711 | AA66: =R66+Y11 -> 720 | AB66: =R66+Z11 -> 724 | AC66: =R66+AA11 -> 724 | AD66: =R66+AB11 -> 733 | AE66: =R66+AC11 -> 730 | AF66: =R66+AD11 -> 724 | AH66: @3612 | AI66: =MIN((S156+AH31*D19)/AI38,(S157+AH31*D19)/AJ38,(S158+AH31*D19)/AK38,(S159+AH31*D19)/AL38,(S160+AH31*D19)/AM38)*AN38 -> 342.5 | AJ66: =MIN((T156+AH31*D19)/AI38,(T157+AH31*D19)/AJ38,(T158+AH31*D19)/AK38,(T159+AH31*D19)/AL38,(T160+AH31*D19)/AM38)*AN38 -> 325.5 | AK66: =MIN((U156+AH31*D19)/AI38,(U157+AH31*D19)/AJ38,(U158+AH31*D19)/AK38,(U159+AH31*D19)/AL38,(U160+AH31*D19)/AM38)*AN38 -> 325.5 | AL66: =MIN((V156+AH31*D19)/AI38,(V157+AH31*D19)/AJ38,(V158+AH31*D19)/AK38,(V159+AH31*D19)/AL38,(V160+AH31*D19)/AM38)*AN38 -> 316.5 | AM66: =MIN((W156+AH31*D19)/AI38,(W157+AH31*D19)/AJ38,(W158+AH31*D19)/AK38,(W159+AH31*D19)/AL38,(W160+AH31*D19)/AM38)*AN38 -> 322.5 | AN66: =MIN((X156+AH31*D19)/AI38,(X157+AH31*D19)/AJ38,(X158+AH31*D19)/AK38,(X159+AH31*D19)/AL38,(X160+AH31*D19)/AM38)*AN38 -> 328.5 | AO66: =MIN((Y156+AH31*D19)/AI38,(Y157+AH31*D19)/AJ38,(Y158+AH31*D19)/AK38,(Y159+AH31*D19)/AL38,(Y160+AH31*D19)/AM38)*AN38 -> 333.5 | AP66: =MIN((Z156+AH31*D19)/AI38,(Z157+AH31*D19)/AJ38,(Z158+AH31*D19)/AK38,(Z159+AH31*D19)/AL38,(Z160+AH31*D19)/AM38)*AN38 -> 327 | AQ66: =MIN((AA156+AH31*D19)/AI38,(AA157+AH31*D19)/AJ38,(AA158+AH31*D19)/AK38,(AA159+AH31*D19)/AL38,(AA160+AH31*D19)/AM38)*AN38 -> 331.5 | AR66: =MIN((AB156+AH31*D19)/AI38,(AB157+AH31*D19)/AJ38,(AB158+AH31*D19)/AK38,(AB159+AH31*D19)/AL38,(AB160+AH31*D19)/AM38)*AN38 -> 333.5 | AS66: =MIN((AC156+AH31*D19)/AI38,(AC157+AH31*D19)/AJ38,(AC158+AH31*D19)/AK38,(AC159+AH31*D19)/AL38,(AC160+AH31*D19)/AM38)*AN38 -> 333.5 | AT66: =MIN((AD156+AH31*D19)/AI38,(AD157+AH31*D19)/AJ38,(AD158+AH31*D19)/AK38,(AD159+AH31*D19)/AL38,(AD160+AH31*D19)/AM38)*AN38 -> 338 | AU66: =MIN((AE156+AH31*D19)/AI38,(AE157+AH31*D19)/AJ38,(AE158+AH31*D19)/AK38,(AE159+AH31*D19)/AL38,(AE160+AH31*D19)/AM38)*AN38 -> 336.5 | AV66: =MIN((AF156+AH31*D19)/AI38,(AF157+AH31*D19)/AJ38,(AF158+AH31*D19)/AK38,(AF159+AH31*D19)/AL38,(AF160+AH31*D19)/AM38)*AN38 -> 333.5 | AW66: 342.5 | AY66: @3612 | AZ66: =MIN((S156+AI31*D19)/AI39,(S157+AI31*D19)/AJ39,(S158+AI31*D19)/AK39,(S159+AI31*D19)/AL39,(S160+AI31*D19)/AM39)*AN39 -> 403.2 | BA66: =MIN((T156+AI31*D19)/AI39,(T157+AI31*D19)/AJ39,(T158+AI31*D19)/AK39,(T159+AI31*D19)/AL39,(T160+AI31*D19)/AM39)*AN39 -> 432 | BB66: =MIN((U156+AI31*D19)/AI39,(U157+AI31*D19)/AJ39,(U158+AI31*D19)/AK39,(U159+AI31*D19)/AL39,(U160+AI31*D19)/AM39)*AN39 -> 424.8 | BC66: =MIN((V156+AI31*D19)/AI39,(V157+AI31*D19)/AJ39,(V158+AI31*D19)/AK39,(V159+AI31*D19)/AL39,(V160+AI31*D19)/AM39)*AN39 -> 439.2 | BD66: =MIN((W156+AI31*D19)/AI39,(W157+AI31*D19)/AJ39,(W158+AI31*D19)/AK39,(W159+AI31*D19)/AL39,(W160+AI31*D19)/AM39)*AN39 -> 439.2 | BE66: =MIN((X156+AI31*D19)/AI39,(X157+AI31*D19)/AJ39,(X158+AI31*D19)/AK39,(X159+AI31*D19)/AL39,(X160+AI31*D19)/AM39)*AN39 -> 432 | BF66: =MIN((Y156+AI31*D19)/AI39,(Y157+AI31*D19)/AJ39,(Y158+AI31*D19)/AK39,(Y159+AI31*D19)/AL39,(Y160+AI31*D19)/AM39)*AN39 -> 427.2 | BG66: =MIN((Z156+AI31*D19)/AI39,(Z157+AI31*D19)/AJ39,(Z158+AI31*D19)/AK39,(Z159+AI31*D19)/AL39,(Z160+AI31*D19)/AM39)*AN39 -> 427.2 | BH66: =MIN((AA156+AI31*D19)/AI39,(AA157+AI31*D19)/AJ39,(AA158+AI31*D19)/AK39,(AA159+AI31*D19)/AL39,(AA160+AI31*D19)/AM39)*AN39 -> 424 | BI66: =MIN((AB156+AI31*D19)/AI39,(AB157+AI31*D19)/AJ39,(AB158+AI31*D19)/AK39,(AB159+AI31*D19)/AL39,(AB160+AI31*D19)/AM39)*AN39 -> 412 | BJ66: =MIN((AC156+AI31*D19)/AI39,(AC157+AI31*D19)/AJ39,(AC158+AI31*D19)/AK39,(AC159+AI31*D19)/AL39,(AC160+AI31*D19)/AM39)*AN39 -> 415.2 | BK66: =MIN((AD156+AI31*D19)/AI39,(AD157+AI31*D19)/AJ39,(AD158+AI31*D19)/AK39,(AD159+AI31*D19)/AL39,(AD160+AI31*D19)/AM39)*AN39 -> 427.2 | BL66: =MIN((AE156+AI31*D19)/AI39,(AE157+AI31*D19)/AJ39,(AE158+AI31*D19)/AK39,(AE159+AI31*D19)/AL39,(AE160+AI31*D19)/AM39)*AN39 -> 409.6 | BM66: =MIN((AF156+AI31*D19)/AI39,(AF157+AI31*D19)/AJ39,(AF158+AI31*D19)/AK39,(AF159+AI31*D19)/AL39,(AF160+AI31*D19)/AM39)*AN39 -> 415.2 | BN66: 439.2 | BP66: formule position | BS66: formule gain brut
E67: 0.4541 | F67: 1.8165 | G67: 2.2706 | H67: 0.8174 | I67: 0.54495 | J67: 1.36235 | K67: 0.7266 | L67: 1.0899 | M67: 1.8165 | N67: 0.7266 | O67: 1.0899 | P67: 1.8165 | R67: =J12+AF41+D15+D17+D21 -> 632 | S67: =R67+Q12 -> 661 | T67: =R67+R12 -> 675 | U67: =R67+S12 -> 688 | V67: =R67+T12 -> 694 | W67: =R67+U12 -> 706 | X67: =R67+V12 -> 681 | Y67: =R67+W12 -> 667 | Z67: =R67+X12 -> 691 | AA67: =R67+Y12 -> 687 | AB67: =R67+Z12 -> 691 | AC67: =R67+AA12 -> 700 | AD67: =R67+AB12 -> 676 | AE67: =R67+AC12 -> 678 | AF67: =R67+AD12 -> 700 | AI67: =MIN((S163+AH31*D19)/AI38,(S164+AH31*D19)/AJ38,(S165+AH31*D19)/AK38,(S166+AH31*D19)/AL38,(S167+AH31*D19)/AM38)*AN38 ->  | AJ67: =MIN((T163+AH31*D19)/AI38,(T164+AH31*D19)/AJ38,(T165+AH31*D19)/AK38,(T166+AH31*D19)/AL38,(T167+AH31*D19)/AM38)*AN38 ->  | AK67: =MIN((U163+AH31*D19)/AI38,(U164+AH31*D19)/AJ38,(U165+AH31*D19)/AK38,(U166+AH31*D19)/AL38,(U167+AH31*D19)/AM38)*AN38 ->  | AL67: =MIN((V163+AH31*D19)/AI38,(V164+AH31*D19)/AJ38,(V165+AH31*D19)/AK38,(V166+AH31*D19)/AL38,(V167+AH31*D19)/AM38)*AN38 ->  | AM67: =MIN((W163+AH31*D19)/AI38,(W164+AH31*D19)/AJ38,(W165+AH31*D19)/AK38,(W166+AH31*D19)/AL38,(W167+AH31*D19)/AM38)*AN38 ->  | AN67: =MIN((X163+AH31*D19)/AI38,(X164+AH31*D19)/AJ38,(X165+AH31*D19)/AK38,(X166+AH31*D19)/AL38,(X167+AH31*D19)/AM38)*AN38 ->  | AO67: =MIN((Y163+AH31*D19)/AI38,(Y164+AH31*D19)/AJ38,(Y165+AH31*D19)/AK38,(Y166+AH31*D19)/AL38,(Y167+AH31*D19)/AM38)*AN38 ->  | AP67: =MIN((Z163+AH31*D19)/AI38,(Z164+AH31*D19)/AJ38,(Z165+AH31*D19)/AK38,(Z166+AH31*D19)/AL38,(Z167+AH31*D19)/AM38)*AN38 ->  | AQ67: =MIN((AA163+AH31*D19)/AI38,(AA164+AH31*D19)/AJ38,(AA165+AH31*D19)/AK38,(AA166+AH31*D19)/AL38,(AA167+AH31*D19)/AM38)*AN38 ->  | AR67: =MIN((AB163+AH31*D19)/AI38,(AB164+AH31*D19)/AJ38,(AB165+AH31*D19)/AK38,(AB166+AH31*D19)/AL38,(AB167+AH31*D19)/AM38)*AN38 ->  | AS67: =MIN((AC163+AH31*D19)/AI38,(AC164+AH31*D19)/AJ38,(AC165+AH31*D19)/AK38,(AC166+AH31*D19)/AL38,(AC167+AH31*D19)/AM38)*AN38 ->  | AT67: =MIN((AD163+AH31*D19)/AI38,(AD164+AH31*D19)/AJ38,(AD165+AH31*D19)/AK38,(AD166+AH31*D19)/AL38,(AD167+AH31*D19)/AM38)*AN38 ->  | AU67: =MIN((AE163+AH31*D19)/AI38,(AE164+AH31*D19)/AJ38,(AE165+AH31*D19)/AK38,(AE166+AH31*D19)/AL38,(AE167+AH31*D19)/AM38)*AN38 ->  | AV67: =MIN((AF163+AH31*D19)/AI38,(AF164+AH31*D19)/AJ38,(AF165+AH31*D19)/AK38,(AF166+AH31*D19)/AL38,(AF167+AH31*D19)/AM38)*AN38 ->  | AZ67: =MIN((S163+AI31*D19)/AI39,(S164+AI31*D19)/AJ39,(S165+AI31*D19)/AK39,(S166+AI31*D19)/AL39,(S167+AI31*D19)/AM39)*AN39 ->  | BA67: =MIN((T163+AI31*D19)/AI39,(T164+AI31*D19)/AJ39,(T165+AI31*D19)/AK39,(T166+AI31*D19)/AL39,(T167+AI31*D19)/AM39)*AN39 ->  | BB67: =MIN((U163+AI31*D19)/AI39,(U164+AI31*D19)/AJ39,(U165+AI31*D19)/AK39,(U166+AI31*D19)/AL39,(U167+AI31*D19)/AM39)*AN39 ->  | BC67: =MIN((V163+AI31*D19)/AI39,(V164+AI31*D19)/AJ39,(V165+AI31*D19)/AK39,(V166+AI31*D19)/AL39,(V167+AI31*D19)/AM39)*AN39 ->  | BD67: =MIN((W163+AI31*D19)/AI39,(W164+AI31*D19)/AJ39,(W165+AI31*D19)/AK39,(W166+AI31*D19)/AL39,(W167+AI31*D19)/AM39)*AN39 ->  | BE67: =MIN((X163+AI31*D19)/AI39,(X164+AI31*D19)/AJ39,(X165+AI31*D19)/AK39,(X166+AI31*D19)/AL39,(X167+AI31*D19)/AM39)*AN39 ->  | BF67: =MIN((Y163+AI31*D19)/AI39,(Y164+AI31*D19)/AJ39,(Y165+AI31*D19)/AK39,(Y166+AI31*D19)/AL39,(Y167+AI31*D19)/AM39)*AN39 ->  | BG67: =MIN((Z163+AI31*D19)/AI39,(Z164+AI31*D19)/AJ39,(Z165+AI31*D19)/AK39,(Z166+AI31*D19)/AL39,(Z167+AI31*D19)/AM39)*AN39 ->  | BH67: =MIN((AA163+AI31*D19)/AI39,(AA164+AI31*D19)/AJ39,(AA165+AI31*D19)/AK39,(AA166+AI31*D19)/AL39,(AA167+AI31*D19)/AM39)*AN39 ->  | BI67: =MIN((AB163+AI31*D19)/AI39,(AB164+AI31*D19)/AJ39,(AB165+AI31*D19)/AK39,(AB166+AI31*D19)/AL39,(AB167+AI31*D19)/AM39)*AN39 ->  | BJ67: =MIN((AC163+AI31*D19)/AI39,(AC164+AI31*D19)/AJ39,(AC165+AI31*D19)/AK39,(AC166+AI31*D19)/AL39,(AC167+AI31*D19)/AM39)*AN39 ->  | BK67: =MIN((AD163+AI31*D19)/AI39,(AD164+AI31*D19)/AJ39,(AD165+AI31*D19)/AK39,(AD166+AI31*D19)/AL39,(AD167+AI31*D19)/AM39)*AN39 ->  | BL67: =MIN((AE163+AI31*D19)/AI39,(AE164+AI31*D19)/AJ39,(AE165+AI31*D19)/AK39,(AE166+AI31*D19)/AL39,(AE167+AI31*D19)/AM39)*AN39 ->  | BM67: =MIN((AF163+AI31*D19)/AI39,(AF164+AI31*D19)/AJ39,(AF165+AI31*D19)/AK39,(AF166+AI31*D19)/AL39,(AF167+AI31*D19)/AM39)*AN39 ->  | BQ67: =IF(AT24=1,AG24,IF(AT25=1,AG25,BQ80)) -> attente | BR67: =IF(AT16=1,AG16,IF(AT17=1,AG17,IF(AT18=1,AG18,IF(AT19=1,AG19,IF(AT20=1,AG20,IF(AT21=1,AG21,IF(AT22=1,AG22,IF(AT23=1,AG23,BQ67)))))))) -> attente | BS67: =IF(AT24=1,AW68,IF(AT25=1,AW69,0)) -> 0 | BT67: =IF(AT16=1,AW60,IF(AT17=1,AW61,IF(AT18=1,AW62,IF(AT19=1,AW63,IF(AT20=1,AW64,IF(AT21=1,AW65,IF(AT22=1,AW66,IF(AT23=1,AW67,BS67)))))))) -> 0 | BU67: =IF(AT8=1,AW52,IF(AT9=1,AW53,IF(AT10=1,AW54,IF(AT11=1,AW55,IF(AT12=1,AW56,IF(AT13=1,AW57,IF(AT14=1,AW58,IF(AT15=1,AW59,BT67)))))))) -> 390
E68: 0.7266 | F68: 1.0899 | G68: 1.8165 | H68: 0.81415 | I68: 0.54275 | J68: 1.3569 | K68: 1.0899 | L68: 1.63485 | M68: 2.72475 | N68: 0.68115 | O68: 0.68115 | P68: 1.3623 | R68: =K12+AF42+D16+D17+D21 -> 673 | S68: =R68+Q13 -> 682 | T68: =R68+R13 -> 738 | U68: =R68+S13 -> 738 | V68: =R68+T13 -> 735 | W68: =R68+U13 -> 722 | X68: =R68+V13 -> 722 | Y68: =R68+W13 -> 732 | Z68: =R68+X13 -> 732 | AA68: =R68+Y13 -> 728 | AB68: =R68+Z13 -> 732 | AC68: =R68+AA13 -> 725 | AD68: =R68+AB13 -> 717 | AE68: =R68+AC13 -> 728 | AF68: =R68+AD13 -> 732 | AI68: =MIN((S170+AH31*D19)/AI38,(S171+AH31*D19)/AJ38,(S172+AH31*D19)/AK38,(S173+AH31*D19)/AL38,(S174+AH31*D19)/AM38)*AN38 ->  | AJ68: =MIN((T170+AH31*D19)/AI38,(T171+AH31*D19)/AJ38,(T172+AH31*D19)/AK38,(T173+AH31*D19)/AL38,(T174+AH31*D19)/AM38)*AN38 ->  | AK68: =MIN((U170+AH31*D19)/AI38,(U171+AH31*D19)/AJ38,(U172+AH31*D19)/AK38,(U173+AH31*D19)/AL38,(U174+AH31*D19)/AM38)*AN38 ->  | AL68: =MIN((V170+AH31*D19)/AI38,(V171+AH31*D19)/AJ38,(V172+AH31*D19)/AK38,(V173+AH31*D19)/AL38,(V174+AH31*D19)/AM38)*AN38 ->  | AM68: =MIN((W170+AH31*D19)/AI38,(W171+AH31*D19)/AJ38,(W172+AH31*D19)/AK38,(W173+AH31*D19)/AL38,(W174+AH31*D19)/AM38)*AN38 ->  | AN68: =MIN((X170+AH31*D19)/AI38,(X171+AH31*D19)/AJ38,(X172+AH31*D19)/AK38,(X173+AH31*D19)/AL38,(X174+AH31*D19)/AM38)*AN38 ->  | AO68: =MIN((Y170+AH31*D19)/AI38,(Y171+AH31*D19)/AJ38,(Y172+AH31*D19)/AK38,(Y173+AH31*D19)/AL38,(Y174+AH31*D19)/AM38)*AN38 ->  | AP68: =MIN((Z170+AH31*D19)/AI38,(Z171+AH31*D19)/AJ38,(Z172+AH31*D19)/AK38,(Z173+AH31*D19)/AL38,(Z174+AH31*D19)/AM38)*AN38 ->  | AQ68: =MIN((AA170+AH31*D19)/AI38,(AA171+AH31*D19)/AJ38,(AA172+AH31*D19)/AK38,(AA173+AH31*D19)/AL38,(AA174+AH31*D19)/AM38)*AN38 ->  | AR68: =MIN((AB170+AH31*D19)/AI38,(AB171+AH31*D19)/AJ38,(AB172+AH31*D19)/AK38,(AB173+AH31*D19)/AL38,(AB174+AH31*D19)/AM38)*AN38 ->  | AS68: =MIN((AC170+AH31*D19)/AI38,(AC171+AH31*D19)/AJ38,(AC172+AH31*D19)/AK38,(AC173+AH31*D19)/AL38,(AC174+AH31*D19)/AM38)*AN38 ->  | AT68: =MIN((AD170+AH31*D19)/AI38,(AD171+AH31*D19)/AJ38,(AD172+AH31*D19)/AK38,(AD173+AH31*D19)/AL38,(AD174+AH31*D19)/AM38)*AN38 ->  | AU68: =MIN((AE170+AH31*D19)/AI38,(AE171+AH31*D19)/AJ38,(AE172+AH31*D19)/AK38,(AE173+AH31*D19)/AL38,(AE174+AH31*D19)/AM38)*AN38 ->  | AV68: =MIN((AF170+AH31*D19)/AI38,(AF171+AH31*D19)/AJ38,(AF172+AH31*D19)/AK38,(AF173+AH31*D19)/AL38,(AF174+AH31*D19)/AM38)*AN38 ->  | AZ68: =MIN((S170+AI31*D19)/AI39,(S171+AI31*D19)/AJ39,(S172+AI31*D19)/AK39,(S173+AI31*D19)/AL39,(S174+AI31*D19)/AM39)*AN39 ->  | BA68: =MIN((T170+AI31*D19)/AI39,(T171+AI31*D19)/AJ39,(T172+AI31*D19)/AK39,(T173+AI31*D19)/AL39,(T174+AI31*D19)/AM39)*AN39 ->  | BB68: =MIN((U170+AI31*D19)/AI39,(U171+AI31*D19)/AJ39,(U172+AI31*D19)/AK39,(U173+AI31*D19)/AL39,(U174+AI31*D19)/AM39)*AN39 ->  | BC68: =MIN((V170+AI31*D19)/AI39,(V171+AI31*D19)/AJ39,(V172+AI31*D19)/AK39,(V173+AI31*D19)/AL39,(V174+AI31*D19)/AM39)*AN39 ->  | BD68: =MIN((W170+AI31*D19)/AI39,(W171+AI31*D19)/AJ39,(W172+AI31*D19)/AK39,(W173+AI31*D19)/AL39,(W174+AI31*D19)/AM39)*AN39 ->  | BE68: =MIN((X170+AI31*D19)/AI39,(X171+AI31*D19)/AJ39,(X172+AI31*D19)/AK39,(X173+AI31*D19)/AL39,(X174+AI31*D19)/AM39)*AN39 ->  | BF68: =MIN((Y170+AI31*D19)/AI39,(Y171+AI31*D19)/AJ39,(Y172+AI31*D19)/AK39,(Y173+AI31*D19)/AL39,(Y174+AI31*D19)/AM39)*AN39 ->  | BG68: =MIN((Z170+AI31*D19)/AI39,(Z171+AI31*D19)/AJ39,(Z172+AI31*D19)/AK39,(Z173+AI31*D19)/AL39,(Z174+AI31*D19)/AM39)*AN39 ->  | BH68: =MIN((AA170+AI31*D19)/AI39,(AA171+AI31*D19)/AJ39,(AA172+AI31*D19)/AK39,(AA173+AI31*D19)/AL39,(AA174+AI31*D19)/AM39)*AN39 ->  | BI68: =MIN((AB170+AI31*D19)/AI39,(AB171+AI31*D19)/AJ39,(AB172+AI31*D19)/AK39,(AB173+AI31*D19)/AL39,(AB174+AI31*D19)/AM39)*AN39 ->  | BJ68: =MIN((AC170+AI31*D19)/AI39,(AC171+AI31*D19)/AJ39,(AC172+AI31*D19)/AK39,(AC173+AI31*D19)/AL39,(AC174+AI31*D19)/AM39)*AN39 ->  | BK68: =MIN((AD170+AI31*D19)/AI39,(AD171+AI31*D19)/AJ39,(AD172+AI31*D19)/AK39,(AD173+AI31*D19)/AL39,(AD174+AI31*D19)/AM39)*AN39 ->  | BL68: =MIN((AE170+AI31*D19)/AI39,(AE171+AI31*D19)/AJ39,(AE172+AI31*D19)/AK39,(AE173+AI31*D19)/AL39,(AE174+AI31*D19)/AM39)*AN39 ->  | BM68: =MIN((AF170+AI31*D19)/AI39,(AF171+AI31*D19)/AJ39,(AF172+AI31*D19)/AK39,(AF173+AI31*D19)/AL39,(AF174+AI31*D19)/AM39)*AN39 ->  | BQ68: =IF(AT24=2,AG24,IF(AT25=2,AG25,BQ80)) -> attente | BR68: =IF(AT16=2,AG16,IF(AT17=2,AG17,IF(AT18=2,AG18,IF(AT19=2,AG19,IF(AT20=2,AG20,IF(AT21=2,AG21,IF(AT22=2,AG22,IF(AT23=2,AG23,BQ68)))))))) -> attente | BS68: =IF(AT24=2,BN68,IF(AT25=2,BN69,0)) -> 0 | BT68: =IF(AT16=2,BN60,IF(AT17=2,BN61,IF(AT18=2,BN62,IF(AT19=2,BN63,IF(AT20=2,BN64,IF(AT21=2,BN65,IF(AT22=2,BN66,IF(AT23=2,BN67,BS68)))))))) -> 0 | BU68: =IF(AT8=2,BN52,IF(AT9=2,BN53,IF(AT10=2,BN54,IF(AT11=2,BN55,IF(AT12=2,BN56,IF(AT13=2,BN57,IF(AT14=2,BN58,IF(AT15=2,BN59,BT68)))))))) -> 492
E69: 0.68115 | F69: 0.68115 | G69: 1.3623 | H69: 1.63485 | I69: 1.0899 | J69: 2.72475 | K69: 0.68115 | L69: 0.68115 | M69: 1.3623 | N69: 0.68115 | O69: 0.68115 | P69: 1.3623 | R69: =L12+AF43+D15+D17+D21 -> 623 | S69: =R69+Q14 -> 671 | T69: =R69+R14 -> 666 | U69: =R69+S14 -> 666 | V69: =R69+T14 -> 660 | W69: =R69+U14 -> 648 | X69: =R69+V14 -> 672 | Y69: =R69+W14 -> 669 | Z69: =R69+X14 -> 657 | AA69: =R69+Y14 -> 667 | AB69: =R69+Z14 -> 663 | AC69: =R69+AA14 -> 656 | AD69: =R69+AB14 -> 667 | AE69: =R69+AC14 -> 678 | AF69: =R69+AD14 -> 649 | AI69: =MIN((S177+AH31*D19)/AI38,(S178+AH31*D19)/AJ38,(S179+AH31*D19)/AK38,(S180+AH31*D19)/AL38,(S181+AH31*D19)/AM38)*AN38 ->  | AJ69: =MIN((T177+AH31*D19)/AI38,(T178+AH31*D19)/AJ38,(T179+AH31*D19)/AK38,(T180+AH31*D19)/AL38,(T181+AH31*D19)/AM38)*AN38 ->  | AK69: =MIN((U177+AH31*D19)/AI38,(U178+AH31*D19)/AJ38,(U179+AH31*D19)/AK38,(U180+AH31*D19)/AL38,(U181+AH31*D19)/AM38)*AN38 ->  | AL69: =MIN((V177+AH31*D19)/AI38,(V178+AH31*D19)/AJ38,(V179+AH31*D19)/AK38,(V180+AH31*D19)/AL38,(V181+AH31*D19)/AM38)*AN38 ->  | AM69: =MIN((W177+AH31*D19)/AI38,(W178+AH31*D19)/AJ38,(W179+AH31*D19)/AK38,(W180+AH31*D19)/AL38,(W181+AH31*D19)/AM38)*AN38 ->  | AN69: =MIN((X177+AH31*D19)/AI38,(X178+AH31*D19)/AJ38,(X179+AH31*D19)/AK38,(X180+AH31*D19)/AL38,(X181+AH31*D19)/AM38)*AN38 ->  | AO69: =MIN((Y177+AH31*D19)/AI38,(Y178+AH31*D19)/AJ38,(Y179+AH31*D19)/AK38,(Y180+AH31*D19)/AL38,(Y181+AH31*D19)/AM38)*AN38 ->  | AP69: =MIN((Z177+AH31*D19)/AI38,(Z178+AH31*D19)/AJ38,(Z179+AH31*D19)/AK38,(Z180+AH31*D19)/AL38,(Z181+AH31*D19)/AM38)*AN38 ->  | AQ69: =MIN((AA177+AH31*D19)/AI38,(AA178+AH31*D19)/AJ38,(AA179+AH31*D19)/AK38,(AA180+AH31*D19)/AL38,(AA181+AH31*D19)/AM38)*AN38 ->  | AR69: =MIN((AB177+AH31*D19)/AI38,(AB178+AH31*D19)/AJ38,(AB179+AH31*D19)/AK38,(AB180+AH31*D19)/AL38,(AB181+AH31*D19)/AM38)*AN38 ->  | AS69: =MIN((AC177+AH31*D19)/AI38,(AC178+AH31*D19)/AJ38,(AC179+AH31*D19)/AK38,(AC180+AH31*D19)/AL38,(AC181+AH31*D19)/AM38)*AN38 ->  | AT69: =MIN((AD177+AH31*D19)/AI38,(AD178+AH31*D19)/AJ38,(AD179+AH31*D19)/AK38,(AD180+AH31*D19)/AL38,(AD181+AH31*D19)/AM38)*AN38 ->  | AU69: =MIN((AE177+AH31*D19)/AI38,(AE178+AH31*D19)/AJ38,(AE179+AH31*D19)/AK38,(AE180+AH31*D19)/AL38,(AE181+AH31*D19)/AM38)*AN38 ->  | AV69: =MIN((AF177+AH31*D19)/AI38,(AF178+AH31*D19)/AJ38,(AF179+AH31*D19)/AK38,(AF180+AH31*D19)/AL38,(AF181+AH31*D19)/AM38)*AN38 ->  | AZ69: =MIN((S177+AI31*D19)/AI39,(S178+AI31*D19)/AJ39,(S179+AI31*D19)/AK39,(S180+AI31*D19)/AL39,(S181+AI31*D19)/AM39)*AN39 ->  | BA69: =MIN((T177+AI31*D19)/AI39,(T178+AI31*D19)/AJ39,(T179+AI31*D19)/AK39,(T180+AI31*D19)/AL39,(T181+AI31*D19)/AM39)*AN39 ->  | BB69: =MIN((U177+AI31*D19)/AI39,(U178+AI31*D19)/AJ39,(U179+AI31*D19)/AK39,(U180+AI31*D19)/AL39,(U181+AI31*D19)/AM39)*AN39 ->  | BC69: =MIN((V177+AI31*D19)/AI39,(V178+AI31*D19)/AJ39,(V179+AI31*D19)/AK39,(V180+AI31*D19)/AL39,(V181+AI31*D19)/AM39)*AN39 ->  | BD69: =MIN((W177+AI31*D19)/AI39,(W178+AI31*D19)/AJ39,(W179+AI31*D19)/AK39,(W180+AI31*D19)/AL39,(W181+AI31*D19)/AM39)*AN39 ->  | BE69: =MIN((X177+AI31*D19)/AI39,(X178+AI31*D19)/AJ39,(X179+AI31*D19)/AK39,(X180+AI31*D19)/AL39,(X181+AI31*D19)/AM39)*AN39 ->  | BF69: =MIN((Y177+AI31*D19)/AI39,(Y178+AI31*D19)/AJ39,(Y179+AI31*D19)/AK39,(Y180+AI31*D19)/AL39,(Y181+AI31*D19)/AM39)*AN39 ->  | BG69: =MIN((Z177+AI31*D19)/AI39,(Z178+AI31*D19)/AJ39,(Z179+AI31*D19)/AK39,(Z180+AI31*D19)/AL39,(Z181+AI31*D19)/AM39)*AN39 ->  | BH69: =MIN((AA177+AI31*D19)/AI39,(AA178+AI31*D19)/AJ39,(AA179+AI31*D19)/AK39,(AA180+AI31*D19)/AL39,(AA181+AI31*D19)/AM39)*AN39 ->  | BI69: =MIN((AB177+AI31*D19)/AI39,(AB178+AI31*D19)/AJ39,(AB179+AI31*D19)/AK39,(AB180+AI31*D19)/AL39,(AB181+AI31*D19)/AM39)*AN39 ->  | BJ69: =MIN((AC177+AI31*D19)/AI39,(AC178+AI31*D19)/AJ39,(AC179+AI31*D19)/AK39,(AC180+AI31*D19)/AL39,(AC181+AI31*D19)/AM39)*AN39 ->  | BK69: =MIN((AD177+AI31*D19)/AI39,(AD178+AI31*D19)/AJ39,(AD179+AI31*D19)/AK39,(AD180+AI31*D19)/AL39,(AD181+AI31*D19)/AM39)*AN39 ->  | BL69: =MIN((AE177+AI31*D19)/AI39,(AE178+AI31*D19)/AJ39,(AE179+AI31*D19)/AK39,(AE180+AI31*D19)/AL39,(AE181+AI31*D19)/AM39)*AN39 ->  | BM69: =MIN((AF177+AI31*D19)/AI39,(AF178+AI31*D19)/AJ39,(AF179+AI31*D19)/AK39,(AF180+AI31*D19)/AL39,(AF181+AI31*D19)/AM39)*AN39 ->  | BQ69: =IF(AT24=3,AG24,IF(AT25=3,AG25,BQ80)) -> attente | BR69: =IF(AT16=3,AG16,IF(AT17=3,AG17,IF(AT18=3,AG18,IF(AT19=3,AG19,IF(AT20=3,AG20,IF(AT21=3,AG21,IF(AT22=3,AG22,IF(AT23=3,AG23,BQ69)))))))) -> attente | BS69: =IF(AT24=3,AW88,IF(AT25=3,AW89,0)) -> 0 | BT69: =IF(AT16=3,AW80,IF(AT17=3,AW81,IF(AT18=3,AW82,IF(AT19=3,AW83,IF(AT20=3,AW84,IF(AT21=3,AW85,IF(AT22=3,AW86,IF(AT23=3,AW87,BS69)))))))) -> 0 | BU69: =IF(AT8=3,AW72,IF(AT9=3,AW73,IF(AT10=3,AW74,IF(AT11=3,AW75,IF(AT12=3,AW76,IF(AT13=3,AW77,IF(AT14=3,AW78,IF(AT15=3,AW79,BT69)))))))) -> 498.6666667
E70: 1.58945 | F70: 0.68115 | G70: 2.2706 | H70: 2.04355 | I70: 0.22705 | J70: 2.2706 | K70: 1.27155 | L70: 0.54495 | M70: 1.8165 | N70: 1.27155 | O70: 0.54495 | P70: 1.8165 | BQ70: =IF(AT24=4,AG24,IF(AT25=4,AG25,BQ80)) -> attente | BR70: =IF(AT16=4,AG16,IF(AT17=4,AG17,IF(AT18=4,AG18,IF(AT19=4,AG19,IF(AT20=4,AG20,IF(AT21=4,AG21,IF(AT22=4,AG22,IF(AT23=4,AG23,BQ70)))))))) -> attente | BS70: =IF(AT24=4,BN88,IF(AT25=4,BN89,0)) -> 0 | BT70: =IF(AT16=4,BN80,IF(AT17=4,BN81,IF(AT18=4,BN82,IF(AT19=4,BN83,IF(AT20=4,BN84,IF(AT21=4,BN85,IF(AT22=4,BN86,IF(AT23=4,BN87,BS70)))))))) -> 0 | BU70: =IF(AT8=4,BN72,IF(AT9=4,BN73,IF(AT10=4,BN74,IF(AT11=4,BN75,IF(AT12=4,BN76,IF(AT13=4,BN77,IF(AT14=4,BN78,IF(AT15=4,BN79,BT70)))))))) -> 522
E71: 0.7266 | F71: 1.0899 | G71: 1.8165 | H71: 1.0899 | I71: 0.7266 | J71: 1.8165 | K71: 0.95365 | L71: 0.4087 | M71: 1.36235 | N71: 1.36235 | O71: 1.36235 | P71: 2.7247 | R71: =G13 -> 3 moy 513 | S71: =S64 -> kit 1 | T71: =T64 -> kit 2A | U71: =U64 -> kit 2B | V71: =V64 -> kit 4A | W71: =W64 -> kit 4B | X71: kit 5 | Y71: kit 6A | Z71: kit 6B | AA71: kit 7 | AB71: kit 8 | AC71: kit 9A | AD71: kit 9B | AE71: kit 10 | AF71: kit 11 | AH71: 3 | AI71: =Q9 -> kit 1 | AJ71: kit 2A | AK71: kit 2B | AL71: kit 4A | AM71: kit 4B | AN71: kit 5 | AO71: kit 6A | AP71: kit 6B | AQ71: kit 7 | AR71: kit 8 | AS71: kit 9A | AT71: kit 9B | AU71: kit 10 | AV71: kit 11 | AW71: MAX | AY71: 4 | AZ71: =Q9 -> kit 1 | BA71: kit 2A | BB71: kit 2B | BC71: kit 4A | BD71: kit 4B | BE71: kit 5 | BF71: kit 6A | BG71: kit 6B | BH71: kit 7 | BI71: kit 8 | BJ71: kit 9A | BK71: kit 9B | BL71: kit 10 | BM71: kit 11 | BN71: MAX | BQ71: =IF(AT24=5,AG24,IF(AT25=5,AG25,BQ80)) -> attente | BR71: =IF(AT16=5,AG16,IF(AT17=5,AG17,IF(AT18=5,AG18,IF(AT19=5,AG19,IF(AT20=5,AG20,IF(AT21=5,AG21,IF(AT22=5,AG22,IF(AT23=5,AG23,BQ71)))))))) -> attente | BS71: =IF(AT24=5,AW108,IF(AT25=5,AW109,0)) -> 0 | BT71: =IF(AT16=5,AW100,IF(AT17=5,AW101,IF(AT18=5,AW102,IF(AT19=5,AW103,IF(AT20=5,AW104,IF(AT21=5,AW105,IF(AT22=5,AW106,IF(AT23=5,AW107,BS71)))))))) -> 0 | BU71: =IF(AT8=5,AW92,IF(AT9=5,AW93,IF(AT10=5,AW94,IF(AT11=5,AW95,IF(AT12=5,AW96,IF(AT13=5,AW97,IF(AT14=5,AW98,IF(AT15=5,AW99,BT71)))))))) -> 782
E72: 0.8174 | F72: 0.54495 | G72: 1.36235 | H72: 1.63485 | I72: 1.0899 | J72: 2.72475 | K72: 1.0899 | L72: 0.7266 | M72: 1.8165 | N72: 1.27155 | O72: 0.54495 | P72: 1.8165 | R72: =H13+AF39+D16+D17+D21 -> 685 | S72: =R72+Q10 -> 714 | T72: =R72+R10 -> 750 | U72: =R72+S10 -> 741 | V72: =R72+T10 -> 759 | W72: =R72+U10 -> 759 | X72: =R72+V10 -> 750 | Y72: =R72+W10 -> 744 | Z72: =R72+X10 -> 744 | AA72: =R72+Y10 -> 740 | AB72: =R72+Z10 -> 725 | AC72: =R72+AA10 -> 729 | AD72: =R72+AB10 -> 744 | AE72: =R72+AC10 -> 722 | AF72: =R72+AD10 -> 729 | AH72: =AH152 -> G. Warmuz 430 | AI72: =MIN((S58+AJ31*D19)/AI40,(S59+AJ31*D19)/AJ40,(S60+AJ31*D19)/AK40,(S61+AJ31*D19)/AL40,(S62+AJ31*D19)/AM40)*AN40 -> 336 | AJ72: =MIN((T58+AJ31*D19)/AI40,(T59+AJ31*D19)/AJ40,(T60+AJ31*D19)/AK40,(T61+AJ31*D19)/AL40,(T62+AJ31*D19)/AM40)*AN40 -> 364.8 | AK72: =MIN((U58+AJ31*D19)/AI40,(U59+AJ31*D19)/AJ40,(U60+AJ31*D19)/AK40,(U61+AJ31*D19)/AL40,(U62+AJ31*D19)/AM40)*AN40 -> 357.6 | AL72: =MIN((V58+AJ31*D19)/AI40,(V59+AJ31*D19)/AJ40,(V60+AJ31*D19)/AK40,(V61+AJ31*D19)/AL40,(V62+AJ31*D19)/AM40)*AN40 -> 372 | AM72: =MIN((W58+AJ31*D19)/AI40,(W59+AJ31*D19)/AJ40,(W60+AJ31*D19)/AK40,(W61+AJ31*D19)/AL40,(W62+AJ31*D19)/AM40)*AN40 -> 372 | AN72: =MIN((X58+AJ31*D19)/AI40,(X59+AJ31*D19)/AJ40,(X60+AJ31*D19)/AK40,(X61+AJ31*D19)/AL40,(X62+AJ31*D19)/AM40)*AN40 -> 364.8 | AO72: =MIN((Y58+AJ31*D19)/AI40,(Y59+AJ31*D19)/AJ40,(Y60+AJ31*D19)/AK40,(Y61+AJ31*D19)/AL40,(Y62+AJ31*D19)/AM40)*AN40 -> 360 | AP72: =MIN((Z58+AJ31*D19)/AI40,(Z59+AJ31*D19)/AJ40,(Z60+AJ31*D19)/AK40,(Z61+AJ31*D19)/AL40,(Z62+AJ31*D19)/AM40)*AN40 -> 360 | AQ72: =MIN((AA58+AJ31*D19)/AI40,(AA59+AJ31*D19)/AJ40,(AA60+AJ31*D19)/AK40,(AA61+AJ31*D19)/AL40,(AA62+AJ31*D19)/AM40)*AN40 -> 356.8 | AR72: =MIN((AB58+AJ31*D19)/AI40,(AB59+AJ31*D19)/AJ40,(AB60+AJ31*D19)/AK40,(AB61+AJ31*D19)/AL40,(AB62+AJ31*D19)/AM40)*AN40 -> 344.8 | AS72: =MIN((AC58+AJ31*D19)/AI40,(AC59+AJ31*D19)/AJ40,(AC60+AJ31*D19)/AK40,(AC61+AJ31*D19)/AL40,(AC62+AJ31*D19)/AM40)*AN40 -> 348 | AT72: =MIN((AD58+AJ31*D19)/AI40,(AD59+AJ31*D19)/AJ40,(AD60+AJ31*D19)/AK40,(AD61+AJ31*D19)/AL40,(AD62+AJ31*D19)/AM40)*AN40 -> 360 | AU72: =MIN((AE58+AJ31*D19)/AI40,(AE59+AJ31*D19)/AJ40,(AE60+AJ31*D19)/AK40,(AE61+AJ31*D19)/AL40,(AE62+AJ31*D19)/AM40)*AN40 -> 342.4 | AV72: =MIN((AF58+AJ31*D19)/AI40,(AF59+AJ31*D19)/AJ40,(AF60+AJ31*D19)/AK40,(AF61+AJ31*D19)/AL40,(AF62+AJ31*D19)/AM40)*AN40 -> 348 | AW72: =MAX(AI72:AV72) -> 372 | AY72: =AH152 -> G. Warmuz 430 | AZ72: =MIN((S58+AK31*D19)/AI41,(S59+AK31*D19)/AJ41,(S60+AK31*D19)/AK41,(S61+AK31*D19)/AL41,(S62+AK31*D19)/AM41)*AN41 -> 280 | BA72: =MIN((T58+AK31*D19)/AI41,(T59+AK31*D19)/AJ41,(T60+AK31*D19)/AK41,(T61+AK31*D19)/AL41,(T62+AK31*D19)/AM41)*AN41 -> 304 | BB72: =MIN((U58+AK31*D19)/AI41,(U59+AK31*D19)/AJ41,(U60+AK31*D19)/AK41,(U61+AK31*D19)/AL41,(U62+AK31*D19)/AM41)*AN41 -> 298 | BC72: =MIN((V58+AK31*D19)/AI41,(V59+AK31*D19)/AJ41,(V60+AK31*D19)/AK41,(V61+AK31*D19)/AL41,(V62+AK31*D19)/AM41)*AN41 -> 310 | BD72: =MIN((W58+AK31*D19)/AI41,(W59+AK31*D19)/AJ41,(W60+AK31*D19)/AK41,(W61+AK31*D19)/AL41,(W62+AK31*D19)/AM41)*AN41 -> 310 | BE72: =MIN((X58+AK31*D19)/AI41,(X59+AK31*D19)/AJ41,(X60+AK31*D19)/AK41,(X61+AK31*D19)/AL41,(X62+AK31*D19)/AM41)*AN41 -> 304 | BF72: =MIN((Y58+AK31*D19)/AI41,(Y59+AK31*D19)/AJ41,(Y60+AK31*D19)/AK41,(Y61+AK31*D19)/AL41,(Y62+AK31*D19)/AM41)*AN41 -> 300 | BG72: =MIN((Z58+AK31*D19)/AI41,(Z59+AK31*D19)/AJ41,(Z60+AK31*D19)/AK41,(Z61+AK31*D19)/AL41,(Z62+AK31*D19)/AM41)*AN41 -> 300 | BH72: =MIN((AA58+AK31*D19)/AI41,(AA59+AK31*D19)/AJ41,(AA60+AK31*D19)/AK41,(AA61+AK31*D19)/AL41,(AA62+AK31*D19)/AM41)*AN41 -> 297.3333333 | BI72: =MIN((AB58+AK31*D19)/AI41,(AB59+AK31*D19)/AJ41,(AB60+AK31*D19)/AK41,(AB61+AK31*D19)/AL41,(AB62+AK31*D19)/AM41)*AN41 -> 287.3333333 | BJ72: =MIN((AC58+AK31*D19)/AI41,(AC59+AK31*D19)/AJ41,(AC60+AK31*D19)/AK41,(AC61+AK31*D19)/AL41,(AC62+AK31*D19)/AM41)*AN41 -> 290 | BK72: =MIN((AD58+AK31*D19)/AI41,(AD59+AK31*D19)/AJ41,(AD60+AK31*D19)/AK41,(AD61+AK31*D19)/AL41,(AD62+AK31*D19)/AM41)*AN41 -> 300 | BL72: =MIN((AE58+AK31*D19)/AI41,(AE59+AK31*D19)/AJ41,(AE60+AK31*D19)/AK41,(AE61+AK31*D19)/AL41,(AE62+AK31*D19)/AM41)*AN41 -> 285.3333333 | BM72: =MIN((AF58+AK31*D19)/AI41,(AF59+AK31*D19)/AJ41,(AF60+AK31*D19)/AK41,(AF61+AK31*D19)/AL41,(AF62+AK31*D19)/AM41)*AN41 -> 290 | BN72: =MAX(AZ72:BM72) -> 310 | BQ72: =IF(AT24=6,AG24,IF(AT25=6,AG25,BQ80)) -> attente | BR72: =IF(AT16=6,AG16,IF(AT17=6,AG17,IF(AT18=6,AG18,IF(AT19=6,AG19,IF(AT20=6,AG20,IF(AT21=6,AG21,IF(AT22=6,AG22,IF(AT23=6,AG23,BQ72)))))))) -> attente | BS72: =IF(AT24=6,BN108,IF(AT25=6,BN109,0)) -> 0 | BT72: =IF(AT16=6,BN100,IF(AT17=6,BN101,IF(AT18=6,BN102,IF(AT19=6,BN103,IF(AT20=6,BN104,IF(AT21=6,BN105,IF(AT22=6,BN106,IF(AT23=6,BN107,BS72)))))))) -> 0 | BU72: =IF(AT8=6,BN92,IF(AT9=6,BN93,IF(AT10=6,BN94,IF(AT11=6,BN95,IF(AT12=6,BN96,IF(AT13=6,BN97,IF(AT14=6,BN98,IF(AT15=6,BN99,BT72)))))))) -> 564
G73: =SUM(G62:G72) -> 19.98125 | J73: =SUM(J62:J72) -> 19.97575 | M73: =SUM(M62:M72) -> 19.9812 | P73: =SUM(P62:P72) -> 19.9812 | R73: =I13+AF40+D15+D17+D21 -> 647 | S73: =R73+Q11 -> 724 | T73: =R73+R11 -> 690 | U73: =R73+S11 -> 690 | V73: =R73+T11 -> 672 | W73: =R73+U11 -> 684 | X73: =R73+V11 -> 696 | Y73: =R73+W11 -> 706 | Z73: =R73+X11 -> 693 | AA73: =R73+Y11 -> 702 | AB73: =R73+Z11 -> 706 | AC73: =R73+AA11 -> 706 | AD73: =R73+AB11 -> 715 | AE73: =R73+AC11 -> 712 | AF73: =R73+AD11 -> 706 | AH73: DS499 | AI73: =MIN((S65+AJ31*D19)/AI40,(S66+AJ31*D19)/AJ40,(S67+AJ31*D19)/AK40,(S68+AJ31*D19)/AL40,(S69+AJ31*D19)/AM40)*AN40 -> 454.6666667 | AJ73: =MIN((T65+AJ31*D19)/AI40,(T66+AJ31*D19)/AJ40,(T67+AJ31*D19)/AK40,(T68+AJ31*D19)/AL40,(T69+AJ31*D19)/AM40)*AN40 -> 492 | AK73: =MIN((U65+AJ31*D19)/AI40,(U66+AJ31*D19)/AJ40,(U67+AJ31*D19)/AK40,(U68+AJ31*D19)/AL40,(U69+AJ31*D19)/AM40)*AN40 -> 492 | AL73: =MIN((V65+AJ31*D19)/AI40,(V66+AJ31*D19)/AJ40,(V67+AJ31*D19)/AK40,(V68+AJ31*D19)/AL40,(V69+AJ31*D19)/AM40)*AN40 -> 490 | AM73: =MIN((W65+AJ31*D19)/AI40,(W66+AJ31*D19)/AJ40,(W67+AJ31*D19)/AK40,(W68+AJ31*D19)/AL40,(W69+AJ31*D19)/AM40)*AN40 -> 481.3333333 | AN73: =MIN((X65+AJ31*D19)/AI40,(X66+AJ31*D19)/AJ40,(X67+AJ31*D19)/AK40,(X68+AJ31*D19)/AL40,(X69+AJ31*D19)/AM40)*AN40 -> 481.3333333 | AO73: =MIN((Y65+AJ31*D19)/AI40,(Y66+AJ31*D19)/AJ40,(Y67+AJ31*D19)/AK40,(Y68+AJ31*D19)/AL40,(Y69+AJ31*D19)/AM40)*AN40 -> 488 | AP73: =MIN((Z65+AJ31*D19)/AI40,(Z66+AJ31*D19)/AJ40,(Z67+AJ31*D19)/AK40,(Z68+AJ31*D19)/AL40,(Z69+AJ31*D19)/AM40)*AN40 -> 488 | AQ73: =MIN((AA65+AJ31*D19)/AI40,(AA66+AJ31*D19)/AJ40,(AA67+AJ31*D19)/AK40,(AA68+AJ31*D19)/AL40,(AA69+AJ31*D19)/AM40)*AN40 -> 485.3333333 | AR73: =MIN((AB65+AJ31*D19)/AI40,(AB66+AJ31*D19)/AJ40,(AB67+AJ31*D19)/AK40,(AB68+AJ31*D19)/AL40,(AB69+AJ31*D19)/AM40)*AN40 -> 488 | AS73: =MIN((AC65+AJ31*D19)/AI40,(AC66+AJ31*D19)/AJ40,(AC67+AJ31*D19)/AK40,(AC68+AJ31*D19)/AL40,(AC69+AJ31*D19)/AM40)*AN40 -> 483.3333333 | AT73: =MIN((AD65+AJ31*D19)/AI40,(AD66+AJ31*D19)/AJ40,(AD67+AJ31*D19)/AK40,(AD68+AJ31*D19)/AL40,(AD69+AJ31*D19)/AM40)*AN40 -> 478 | AU73: =MIN((AE65+AJ31*D19)/AI40,(AE66+AJ31*D19)/AJ40,(AE67+AJ31*D19)/AK40,(AE68+AJ31*D19)/AL40,(AE69+AJ31*D19)/AM40)*AN40 -> 485.3333333 | AV73: =MIN((AF65+AJ31*D19)/AI40,(AF66+AJ31*D19)/AJ40,(AF67+AJ31*D19)/AK40,(AF68+AJ31*D19)/AL40,(AF69+AJ31*D19)/AM40)*AN40 -> 488 | AW73: 492 | AY73: DS499 | AZ73: =MIN((S65+AK31*D19)/AI41,(S66+AK31*D19)/AJ41,(S67+AK31*D19)/AK41,(S68+AK31*D19)/AL41,(S69+AK31*D19)/AM41)*AN41 -> 474 | BA73: =MIN((T65+AK31*D19)/AI41,(T66+AK31*D19)/AJ41,(T67+AK31*D19)/AK41,(T68+AK31*D19)/AL41,(T69+AK31*D19)/AM41)*AN41 -> 498 | BB73: =MIN((U65+AK31*D19)/AI41,(U66+AK31*D19)/AJ41,(U67+AK31*D19)/AK41,(U68+AK31*D19)/AL41,(U69+AK31*D19)/AM41)*AN41 -> 492 | BC73: =MIN((V65+AK31*D19)/AI41,(V66+AK31*D19)/AJ41,(V67+AK31*D19)/AK41,(V68+AK31*D19)/AL41,(V69+AK31*D19)/AM41)*AN41 -> 504 | BD73: =MIN((W65+AK31*D19)/AI41,(W66+AK31*D19)/AJ41,(W67+AK31*D19)/AK41,(W68+AK31*D19)/AL41,(W69+AK31*D19)/AM41)*AN41 -> 504 | BE73: =MIN((X65+AK31*D19)/AI41,(X66+AK31*D19)/AJ41,(X67+AK31*D19)/AK41,(X68+AK31*D19)/AL41,(X69+AK31*D19)/AM41)*AN41 -> 498 | BF73: =MIN((Y65+AK31*D19)/AI41,(Y66+AK31*D19)/AJ41,(Y67+AK31*D19)/AK41,(Y68+AK31*D19)/AL41,(Y69+AK31*D19)/AM41)*AN41 -> 494 | BG73: =MIN((Z65+AK31*D19)/AI41,(Z66+AK31*D19)/AJ41,(Z67+AK31*D19)/AK41,(Z68+AK31*D19)/AL41,(Z69+AK31*D19)/AM41)*AN41 -> 494 | BH73: =MIN((AA65+AK31*D19)/AI41,(AA66+AK31*D19)/AJ41,(AA67+AK31*D19)/AK41,(AA68+AK31*D19)/AL41,(AA69+AK31*D19)/AM41)*AN41 -> 491.3333333 | BI73: =MIN((AB65+AK31*D19)/AI41,(AB66+AK31*D19)/AJ41,(AB67+AK31*D19)/AK41,(AB68+AK31*D19)/AL41,(AB69+AK31*D19)/AM41)*AN41 -> 481.3333333 | BJ73: =MIN((AC65+AK31*D19)/AI41,(AC66+AK31*D19)/AJ41,(AC67+AK31*D19)/AK41,(AC68+AK31*D19)/AL41,(AC69+AK31*D19)/AM41)*AN41 -> 484 | BK73: =MIN((AD65+AK31*D19)/AI41,(AD66+AK31*D19)/AJ41,(AD67+AK31*D19)/AK41,(AD68+AK31*D19)/AL41,(AD69+AK31*D19)/AM41)*AN41 -> 494 | BL73: =MIN((AE65+AK31*D19)/AI41,(AE66+AK31*D19)/AJ41,(AE67+AK31*D19)/AK41,(AE68+AK31*D19)/AL41,(AE69+AK31*D19)/AM41)*AN41 -> 479.3333333 | BM73: =MIN((AF65+AK31*D19)/AI41,(AF66+AK31*D19)/AJ41,(AF67+AK31*D19)/AK41,(AF68+AK31*D19)/AL41,(AF69+AK31*D19)/AM41)*AN41 -> 484 | BN73: =MAX(AZ73:BM73) -> 504 | BQ73: =IF(AT24=7,AG24,IF(AT25=7,AG25,BQ80)) -> attente | BR73: =IF(AT16=7,AG16,IF(AT17=7,AG17,IF(AT18=7,AG18,IF(AT19=7,AG19,IF(AT20=7,AG20,IF(AT21=7,AG21,IF(AT22=7,AG22,IF(AT23=7,AG23,BQ73)))))))) -> attente | BS73: =IF(AT24=7,AW128,IF(AT25=7,AW129,0)) -> 0 | BT73: =IF(AT16=7,AW120,IF(AT17=7,AW121,IF(AT18=7,AW122,IF(AT19=7,AW123,IF(AT20=7,AW124,IF(AT21=7,AW125,IF(AT22=7,AW126,IF(AT23=7,AW127,BS73)))))))) -> 0 | BU73: =IF(AT8=7,AW112,IF(AT9=7,AW113,IF(AT10=7,AW114,IF(AT11=7,AW115,IF(AT12=7,AW116,IF(AT13=7,AW117,IF(AT14=7,AW118,IF(AT15=7,AW119,BT73)))))))) -> 576.8
E74: 541 neutre | H74: 433 neutre | K74: 352 neutre | N74: 442 neutre | R74: =J13+AF41+D15+D17+D21 -> 652 | S74: =R74+Q12 -> 681 | T74: =R74+R12 -> 695 | U74: =R74+S12 -> 708 | V74: =R74+T12 -> 714 | W74: =R74+U12 -> 726 | X74: =R74+V12 -> 701 | Y74: =R74+W12 -> 687 | Z74: =R74+X12 -> 711 | AA74: =R74+Y12 -> 707 | AB74: =R74+Z12 -> 711 | AC74: =R74+AA12 -> 720 | AD74: =R74+AB12 -> 696 | AE74: =R74+AC12 -> 698 | AF74: =R74+AD12 -> 720 | AH74: 3 moy 513 | AI74: =MIN((S72+AJ31*D19)/AI40,(S73+AJ31*D19)/AJ40,(S74+AJ31*D19)/AK40,(S75+AJ31*D19)/AL40,(S76+AJ31*D19)/AM40)*AN40 -> 461.3333333 | AJ74: =MIN((T72+AJ31*D19)/AI40,(T73+AJ31*D19)/AJ40,(T74+AJ31*D19)/AK40,(T75+AJ31*D19)/AL40,(T76+AJ31*D19)/AM40)*AN40 -> 498.6666667 | AK74: =MIN((U72+AJ31*D19)/AI40,(U73+AJ31*D19)/AJ40,(U74+AJ31*D19)/AK40,(U75+AJ31*D19)/AL40,(U76+AJ31*D19)/AM40)*AN40 -> 498.6666667 | AL74: =MIN((V72+AJ31*D19)/AI40,(V73+AJ31*D19)/AJ40,(V74+AJ31*D19)/AK40,(V75+AJ31*D19)/AL40,(V76+AJ31*D19)/AM40)*AN40 -> 496.6666667 | AM74: =MIN((W72+AJ31*D19)/AI40,(W73+AJ31*D19)/AJ40,(W74+AJ31*D19)/AK40,(W75+AJ31*D19)/AL40,(W76+AJ31*D19)/AM40)*AN40 -> 488 | AN74: =MIN((X72+AJ31*D19)/AI40,(X73+AJ31*D19)/AJ40,(X74+AJ31*D19)/AK40,(X75+AJ31*D19)/AL40,(X76+AJ31*D19)/AM40)*AN40 -> 488 | AO74: =MIN((Y72+AJ31*D19)/AI40,(Y73+AJ31*D19)/AJ40,(Y74+AJ31*D19)/AK40,(Y75+AJ31*D19)/AL40,(Y76+AJ31*D19)/AM40)*AN40 -> 494.6666667 | AP74: =MIN((Z72+AJ31*D19)/AI40,(Z73+AJ31*D19)/AJ40,(Z74+AJ31*D19)/AK40,(Z75+AJ31*D19)/AL40,(Z76+AJ31*D19)/AM40)*AN40 -> 494.6666667 | AQ74: =MIN((AA72+AJ31*D19)/AI40,(AA73+AJ31*D19)/AJ40,(AA74+AJ31*D19)/AK40,(AA75+AJ31*D19)/AL40,(AA76+AJ31*D19)/AM40)*AN40 -> 492 | AR74: =MIN((AB72+AJ31*D19)/AI40,(AB73+AJ31*D19)/AJ40,(AB74+AJ31*D19)/AK40,(AB75+AJ31*D19)/AL40,(AB76+AJ31*D19)/AM40)*AN40 -> 494.6666667 | AS74: =MIN((AC72+AJ31*D19)/AI40,(AC73+AJ31*D19)/AJ40,(AC74+AJ31*D19)/AK40,(AC75+AJ31*D19)/AL40,(AC76+AJ31*D19)/AM40)*AN40 -> 490 | AT74: =MIN((AD72+AJ31*D19)/AI40,(AD73+AJ31*D19)/AJ40,(AD74+AJ31*D19)/AK40,(AD75+AJ31*D19)/AL40,(AD76+AJ31*D19)/AM40)*AN40 -> 484.6666667 | AU74: =MIN((AE72+AJ31*D19)/AI40,(AE73+AJ31*D19)/AJ40,(AE74+AJ31*D19)/AK40,(AE75+AJ31*D19)/AL40,(AE76+AJ31*D19)/AM40)*AN40 -> 492 | AV74: =MIN((AF72+AJ31*D19)/AI40,(AF73+AJ31*D19)/AJ40,(AF74+AJ31*D19)/AK40,(AF75+AJ31*D19)/AL40,(AF76+AJ31*D19)/AM40)*AN40 -> 494.6666667 | AW74: 498.6666667 | AY74: 3 moy 513 | AZ74: =MIN((S72+AK31*D19)/AI41,(S73+AK31*D19)/AJ41,(S74+AK31*D19)/AK41,(S75+AK31*D19)/AL41,(S76+AK31*D19)/AM41)*AN41 -> 476 | BA74: =MIN((T72+AK31*D19)/AI41,(T73+AK31*D19)/AJ41,(T74+AK31*D19)/AK41,(T75+AK31*D19)/AL41,(T76+AK31*D19)/AM41)*AN41 -> 500 | BB74: =MIN((U72+AK31*D19)/AI41,(U73+AK31*D19)/AJ41,(U74+AK31*D19)/AK41,(U75+AK31*D19)/AL41,(U76+AK31*D19)/AM41)*AN41 -> 494 | BC74: =MIN((V72+AK31*D19)/AI41,(V73+AK31*D19)/AJ41,(V74+AK31*D19)/AK41,(V75+AK31*D19)/AL41,(V76+AK31*D19)/AM41)*AN41 -> 506 | BD74: =MIN((W72+AK31*D19)/AI41,(W73+AK31*D19)/AJ41,(W74+AK31*D19)/AK41,(W75+AK31*D19)/AL41,(W76+AK31*D19)/AM41)*AN41 -> 506 | BE74: =MIN((X72+AK31*D19)/AI41,(X73+AK31*D19)/AJ41,(X74+AK31*D19)/AK41,(X75+AK31*D19)/AL41,(X76+AK31*D19)/AM41)*AN41 -> 500 | BF74: =MIN((Y72+AK31*D19)/AI41,(Y73+AK31*D19)/AJ41,(Y74+AK31*D19)/AK41,(Y75+AK31*D19)/AL41,(Y76+AK31*D19)/AM41)*AN41 -> 496 | BG74: =MIN((Z72+AK31*D19)/AI41,(Z73+AK31*D19)/AJ41,(Z74+AK31*D19)/AK41,(Z75+AK31*D19)/AL41,(Z76+AK31*D19)/AM41)*AN41 -> 496 | BH74: =MIN((AA72+AK31*D19)/AI41,(AA73+AK31*D19)/AJ41,(AA74+AK31*D19)/AK41,(AA75+AK31*D19)/AL41,(AA76+AK31*D19)/AM41)*AN41 -> 493.3333333 | BI74: =MIN((AB72+AK31*D19)/AI41,(AB73+AK31*D19)/AJ41,(AB74+AK31*D19)/AK41,(AB75+AK31*D19)/AL41,(AB76+AK31*D19)/AM41)*AN41 -> 483.3333333 | BJ74: =MIN((AC72+AK31*D19)/AI41,(AC73+AK31*D19)/AJ41,(AC74+AK31*D19)/AK41,(AC75+AK31*D19)/AL41,(AC76+AK31*D19)/AM41)*AN41 -> 486 | BK74: =MIN((AD72+AK31*D19)/AI41,(AD73+AK31*D19)/AJ41,(AD74+AK31*D19)/AK41,(AD75+AK31*D19)/AL41,(AD76+AK31*D19)/AM41)*AN41 -> 496 | BL74: =MIN((AE72+AK31*D19)/AI41,(AE73+AK31*D19)/AJ41,(AE74+AK31*D19)/AK41,(AE75+AK31*D19)/AL41,(AE76+AK31*D19)/AM41)*AN41 -> 481.3333333 | BM74: =MIN((AF72+AK31*D19)/AI41,(AF73+AK31*D19)/AJ41,(AF74+AK31*D19)/AK41,(AF75+AK31*D19)/AL41,(AF76+AK31*D19)/AM41)*AN41 -> 486 | BN74: 506 | BQ74: =IF(AT24=8,AG24,IF(AT25=8,AG25,BQ80)) -> attente | BR74: =IF(AT16=8,AG16,IF(AT17=8,AG17,IF(AT18=8,AG18,IF(AT19=8,AG19,IF(AT20=8,AG20,IF(AT21=8,AG21,IF(AT22=8,AG22,IF(AT23=8,AG23,BQ74)))))))) -> attente | BS74: =IF(AT24=8,BN128,IF(AT25=8,BN129,0)) -> 0 | BT74: =IF(AT16=8,BN120,IF(AT17=8,BN121,IF(AT18=8,BN122,IF(AT19=8,BN123,IF(AT20=8,BN124,IF(AT21=8,BN125,IF(AT22=8,BN126,IF(AT23=8,BN127,BS74)))))))) -> 0 | BU74: =IF(AT8=8,BN112,IF(AT9=8,BN113,IF(AT10=8,BN114,IF(AT11=8,BN115,IF(AT12=8,BN116,IF(AT13=8,BN117,IF(AT14=8,BN118,IF(AT15=8,BN119,BT74)))))))) -> 475.3333333
E75: 1% attaque | F75: 1% defense | G75: 1% cumulé | H75: 1% attaque | I75: 1% defense | J75: 1% cumulé | K75: 1% attaque | L75: 1% defense | M75: 1% cumulé | N75: 1% attaque | O75: 1% defense | P75: 1% cumulé | R75: =K13+AF42+D16+D17+D21 -> 683 | S75: =R75+Q13 -> 692 | T75: =R75+R13 -> 748 | U75: =R75+S13 -> 748 | V75: =R75+T13 -> 745 | W75: =R75+U13 -> 732 | X75: =R75+V13 -> 732 | Y75: =R75+W13 -> 742 | Z75: =R75+X13 -> 742 | AA75: =R75+Y13 -> 738 | AB75: =R75+Z13 -> 742 | AC75: =R75+AA13 -> 735 | AD75: =R75+AB13 -> 727 | AE75: =R75+AC13 -> 738 | AF75: =R75+AD13 -> 742 | AH75: av | AI75: =MIN((S79+AJ31*D19)/AI40,(S80+AJ31*D19)/AJ40,(S81+AJ31*D19)/AK40,(S82+AJ31*D19)/AL40,(S83+AJ31*D19)/AM40)*AN40 -> 455.3333333 | AJ75: =MIN((T79+AJ31*D19)/AI40,(T80+AJ31*D19)/AJ40,(T81+AJ31*D19)/AK40,(T82+AJ31*D19)/AL40,(T83+AJ31*D19)/AM40)*AN40 -> 492.6666667 | AK75: =MIN((U79+AJ31*D19)/AI40,(U80+AJ31*D19)/AJ40,(U81+AJ31*D19)/AK40,(U82+AJ31*D19)/AL40,(U83+AJ31*D19)/AM40)*AN40 -> 492.6666667 | AL75: =MIN((V79+AJ31*D19)/AI40,(V80+AJ31*D19)/AJ40,(V81+AJ31*D19)/AK40,(V82+AJ31*D19)/AL40,(V83+AJ31*D19)/AM40)*AN40 -> 490.6666667 | AM75: =MIN((W79+AJ31*D19)/AI40,(W80+AJ31*D19)/AJ40,(W81+AJ31*D19)/AK40,(W82+AJ31*D19)/AL40,(W83+AJ31*D19)/AM40)*AN40 -> 482 | AN75: =MIN((X79+AJ31*D19)/AI40,(X80+AJ31*D19)/AJ40,(X81+AJ31*D19)/AK40,(X82+AJ31*D19)/AL40,(X83+AJ31*D19)/AM40)*AN40 -> 482 | AO75: =MIN((Y79+AJ31*D19)/AI40,(Y80+AJ31*D19)/AJ40,(Y81+AJ31*D19)/AK40,(Y82+AJ31*D19)/AL40,(Y83+AJ31*D19)/AM40)*AN40 -> 488.6666667 | AP75: =MIN((Z79+AJ31*D19)/AI40,(Z80+AJ31*D19)/AJ40,(Z81+AJ31*D19)/AK40,(Z82+AJ31*D19)/AL40,(Z83+AJ31*D19)/AM40)*AN40 -> 488.6666667 | AQ75: =MIN((AA79+AJ31*D19)/AI40,(AA80+AJ31*D19)/AJ40,(AA81+AJ31*D19)/AK40,(AA82+AJ31*D19)/AL40,(AA83+AJ31*D19)/AM40)*AN40 -> 486 | AR75: =MIN((AB79+AJ31*D19)/AI40,(AB80+AJ31*D19)/AJ40,(AB81+AJ31*D19)/AK40,(AB82+AJ31*D19)/AL40,(AB83+AJ31*D19)/AM40)*AN40 -> 488.6666667 | AS75: =MIN((AC79+AJ31*D19)/AI40,(AC80+AJ31*D19)/AJ40,(AC81+AJ31*D19)/AK40,(AC82+AJ31*D19)/AL40,(AC83+AJ31*D19)/AM40)*AN40 -> 484 | AT75: =MIN((AD79+AJ31*D19)/AI40,(AD80+AJ31*D19)/AJ40,(AD81+AJ31*D19)/AK40,(AD82+AJ31*D19)/AL40,(AD83+AJ31*D19)/AM40)*AN40 -> 478.6666667 | AU75: =MIN((AE79+AJ31*D19)/AI40,(AE80+AJ31*D19)/AJ40,(AE81+AJ31*D19)/AK40,(AE82+AJ31*D19)/AL40,(AE83+AJ31*D19)/AM40)*AN40 -> 486 | AV75: =MIN((AF79+AJ31*D19)/AI40,(AF80+AJ31*D19)/AJ40,(AF81+AJ31*D19)/AK40,(AF82+AJ31*D19)/AL40,(AF83+AJ31*D19)/AM40)*AN40 -> 488.6666667 | AW75: 492.6666667 | AY75: av | AZ75: =MIN((S79+AK31*D19)/AI41,(S80+AK31*D19)/AJ41,(S81+AK31*D19)/AK41,(S82+AK31*D19)/AL41,(S83+AK31*D19)/AM41)*AN41 -> 492 | BA75: =MIN((T79+AK31*D19)/AI41,(T80+AK31*D19)/AJ41,(T81+AK31*D19)/AK41,(T82+AK31*D19)/AL41,(T83+AK31*D19)/AM41)*AN41 -> 516 | BB75: =MIN((U79+AK31*D19)/AI41,(U80+AK31*D19)/AJ41,(U81+AK31*D19)/AK41,(U82+AK31*D19)/AL41,(U83+AK31*D19)/AM41)*AN41 -> 510 | BC75: =MIN((V79+AK31*D19)/AI41,(V80+AK31*D19)/AJ41,(V81+AK31*D19)/AK41,(V82+AK31*D19)/AL41,(V83+AK31*D19)/AM41)*AN41 -> 522 | BD75: =MIN((W79+AK31*D19)/AI41,(W80+AK31*D19)/AJ41,(W81+AK31*D19)/AK41,(W82+AK31*D19)/AL41,(W83+AK31*D19)/AM41)*AN41 -> 522 | BE75: =MIN((X79+AK31*D19)/AI41,(X80+AK31*D19)/AJ41,(X81+AK31*D19)/AK41,(X82+AK31*D19)/AL41,(X83+AK31*D19)/AM41)*AN41 -> 516 | BF75: =MIN((Y79+AK31*D19)/AI41,(Y80+AK31*D19)/AJ41,(Y81+AK31*D19)/AK41,(Y82+AK31*D19)/AL41,(Y83+AK31*D19)/AM41)*AN41 -> 512 | BG75: =MIN((Z79+AK31*D19)/AI41,(Z80+AK31*D19)/AJ41,(Z81+AK31*D19)/AK41,(Z82+AK31*D19)/AL41,(Z83+AK31*D19)/AM41)*AN41 -> 512 | BH75: =MIN((AA79+AK31*D19)/AI41,(AA80+AK31*D19)/AJ41,(AA81+AK31*D19)/AK41,(AA82+AK31*D19)/AL41,(AA83+AK31*D19)/AM41)*AN41 -> 509.3333333 | BI75: =MIN((AB79+AK31*D19)/AI41,(AB80+AK31*D19)/AJ41,(AB81+AK31*D19)/AK41,(AB82+AK31*D19)/AL41,(AB83+AK31*D19)/AM41)*AN41 -> 499.3333333 | BJ75: =MIN((AC79+AK31*D19)/AI41,(AC80+AK31*D19)/AJ41,(AC81+AK31*D19)/AK41,(AC82+AK31*D19)/AL41,(AC83+AK31*D19)/AM41)*AN41 -> 502 | BK75: =MIN((AD79+AK31*D19)/AI41,(AD80+AK31*D19)/AJ41,(AD81+AK31*D19)/AK41,(AD82+AK31*D19)/AL41,(AD83+AK31*D19)/AM41)*AN41 -> 512 | BL75: =MIN((AE79+AK31*D19)/AI41,(AE80+AK31*D19)/AJ41,(AE81+AK31*D19)/AK41,(AE82+AK31*D19)/AL41,(AE83+AK31*D19)/AM41)*AN41 -> 497.3333333 | BM75: =MIN((AF79+AK31*D19)/AI41,(AF80+AK31*D19)/AJ41,(AF81+AK31*D19)/AK41,(AF82+AK31*D19)/AL41,(AF83+AK31*D19)/AM41)*AN41 -> 502 | BN75: 522 | BQ75: =IF(AT24=9,AG24,IF(AT25=9,AG25,BQ80)) -> attente | BR75: =IF(AT16=9,AG16,IF(AT17=9,AG17,IF(AT18=9,AG18,IF(AT19=9,AG19,IF(AT20=9,AG20,IF(AT21=9,AG21,IF(AT22=9,AG22,IF(AT23=9,AG23,BQ75)))))))) -> Mionnet | BS75: =IF(AT24=9,AW148,IF(AT25=9,AW149,0)) -> 0 | BT75: =IF(AT16=9,AW140,IF(AT17=9,AW141,IF(AT18=9,AW142,IF(AT19=9,AW143,IF(AT20=9,AW144,IF(AT21=9,AW145,IF(AT22=9,AW146,IF(AT23=9,AW147,BS75)))))))) -> 398 | BU75: =IF(AT8=9,AW132,IF(AT9=9,AW133,IF(AT10=9,AW134,IF(AT11=9,AW135,IF(AT12=9,AW136,IF(AT13=9,AW137,IF(AT14=9,AW138,IF(AT15=9,AW139,BT75)))))))) -> 398
E76: 0.05445 | F76: 2.67025 | G76: =E76+F76 -> 2.7247 | H76: 0.16345 | I76: 2.5613 | J76: =H76+I76 -> 2.72475 | K76: 0.05445 | L76: 2.67025 | M76: =K76+L76 -> 2.7247 | N76: 0.05445 | O76: 2.67025 | P76: =N76+O76 -> 2.7247 | R76: =L13+AF43+D15+D17+D21 -> 647 | S76: =R76+Q14 -> 695 | T76: =R76+R14 -> 690 | U76: =R76+S14 -> 690 | V76: =R76+T14 -> 684 | W76: =R76+U14 -> 672 | X76: =R76+V14 -> 696 | Y76: =R76+W14 -> 693 | Z76: =R76+X14 -> 681 | AA76: =R76+Y14 -> 691 | AB76: =R76+Z14 -> 687 | AC76: =R76+AA14 -> 680 | AD76: =R76+AB14 -> 691 | AE76: =R76+AC14 -> 702 | AF76: =R76+AD14 -> 673 | AH76: @5 | AI76: =MIN((S86+AJ31*D19)/AI40,(S87+AJ31*D19)/AJ40,(S88+AJ31*D19)/AK40,(S89+AJ31*D19)/AL40,(S90+AJ31*D19)/AM40)*AN40 -> 432.6666667 | AJ76: =MIN((T86+AJ31*D19)/AI40,(T87+AJ31*D19)/AJ40,(T88+AJ31*D19)/AK40,(T89+AJ31*D19)/AL40,(T90+AJ31*D19)/AM40)*AN40 -> 470 | AK76: =MIN((U86+AJ31*D19)/AI40,(U87+AJ31*D19)/AJ40,(U88+AJ31*D19)/AK40,(U89+AJ31*D19)/AL40,(U90+AJ31*D19)/AM40)*AN40 -> 470 | AL76: =MIN((V86+AJ31*D19)/AI40,(V87+AJ31*D19)/AJ40,(V88+AJ31*D19)/AK40,(V89+AJ31*D19)/AL40,(V90+AJ31*D19)/AM40)*AN40 -> 468 | AM76: =MIN((W86+AJ31*D19)/AI40,(W87+AJ31*D19)/AJ40,(W88+AJ31*D19)/AK40,(W89+AJ31*D19)/AL40,(W90+AJ31*D19)/AM40)*AN40 -> 459.3333333 | AN76: =MIN((X86+AJ31*D19)/AI40,(X87+AJ31*D19)/AJ40,(X88+AJ31*D19)/AK40,(X89+AJ31*D19)/AL40,(X90+AJ31*D19)/AM40)*AN40 -> 459.3333333 | AO76: =MIN((Y86+AJ31*D19)/AI40,(Y87+AJ31*D19)/AJ40,(Y88+AJ31*D19)/AK40,(Y89+AJ31*D19)/AL40,(Y90+AJ31*D19)/AM40)*AN40 -> 466 | AP76: =MIN((Z86+AJ31*D19)/AI40,(Z87+AJ31*D19)/AJ40,(Z88+AJ31*D19)/AK40,(Z89+AJ31*D19)/AL40,(Z90+AJ31*D19)/AM40)*AN40 -> 466 | AQ76: =MIN((AA86+AJ31*D19)/AI40,(AA87+AJ31*D19)/AJ40,(AA88+AJ31*D19)/AK40,(AA89+AJ31*D19)/AL40,(AA90+AJ31*D19)/AM40)*AN40 -> 463.3333333 | AR76: =MIN((AB86+AJ31*D19)/AI40,(AB87+AJ31*D19)/AJ40,(AB88+AJ31*D19)/AK40,(AB89+AJ31*D19)/AL40,(AB90+AJ31*D19)/AM40)*AN40 -> 466 | AS76: =MIN((AC86+AJ31*D19)/AI40,(AC87+AJ31*D19)/AJ40,(AC88+AJ31*D19)/AK40,(AC89+AJ31*D19)/AL40,(AC90+AJ31*D19)/AM40)*AN40 -> 461.3333333 | AT76: =MIN((AD86+AJ31*D19)/AI40,(AD87+AJ31*D19)/AJ40,(AD88+AJ31*D19)/AK40,(AD89+AJ31*D19)/AL40,(AD90+AJ31*D19)/AM40)*AN40 -> 456 | AU76: =MIN((AE86+AJ31*D19)/AI40,(AE87+AJ31*D19)/AJ40,(AE88+AJ31*D19)/AK40,(AE89+AJ31*D19)/AL40,(AE90+AJ31*D19)/AM40)*AN40 -> 463.3333333 | AV76: =MIN((AF86+AJ31*D19)/AI40,(AF87+AJ31*D19)/AJ40,(AF88+AJ31*D19)/AK40,(AF89+AJ31*D19)/AL40,(AF90+AJ31*D19)/AM40)*AN40 -> 466 | AW76: 470 | AY76: @5 | AZ76: =MIN((S86+AK31*D19)/AI41,(S87+AK31*D19)/AJ41,(S88+AK31*D19)/AK41,(S89+AK31*D19)/AL41,(S90+AK31*D19)/AM41)*AN41 -> 491.3333333 | BA76: =MIN((T86+AK31*D19)/AI41,(T87+AK31*D19)/AJ41,(T88+AK31*D19)/AK41,(T89+AK31*D19)/AL41,(T90+AK31*D19)/AM41)*AN41 -> 515.3333333 | BB76: =MIN((U86+AK31*D19)/AI41,(U87+AK31*D19)/AJ41,(U88+AK31*D19)/AK41,(U89+AK31*D19)/AL41,(U90+AK31*D19)/AM41)*AN41 -> 509.3333333 | BC76: =MIN((V86+AK31*D19)/AI41,(V87+AK31*D19)/AJ41,(V88+AK31*D19)/AK41,(V89+AK31*D19)/AL41,(V90+AK31*D19)/AM41)*AN41 -> 521.3333333 | BD76: =MIN((W86+AK31*D19)/AI41,(W87+AK31*D19)/AJ41,(W88+AK31*D19)/AK41,(W89+AK31*D19)/AL41,(W90+AK31*D19)/AM41)*AN41 -> 521.3333333 | BE76: =MIN((X86+AK31*D19)/AI41,(X87+AK31*D19)/AJ41,(X88+AK31*D19)/AK41,(X89+AK31*D19)/AL41,(X90+AK31*D19)/AM41)*AN41 -> 515.3333333 | BF76: =MIN((Y86+AK31*D19)/AI41,(Y87+AK31*D19)/AJ41,(Y88+AK31*D19)/AK41,(Y89+AK31*D19)/AL41,(Y90+AK31*D19)/AM41)*AN41 -> 511.3333333 | BG76: =MIN((Z86+AK31*D19)/AI41,(Z87+AK31*D19)/AJ41,(Z88+AK31*D19)/AK41,(Z89+AK31*D19)/AL41,(Z90+AK31*D19)/AM41)*AN41 -> 511.3333333 | BH76: =MIN((AA86+AK31*D19)/AI41,(AA87+AK31*D19)/AJ41,(AA88+AK31*D19)/AK41,(AA89+AK31*D19)/AL41,(AA90+AK31*D19)/AM41)*AN41 -> 508.6666667 | BI76: =MIN((AB86+AK31*D19)/AI41,(AB87+AK31*D19)/AJ41,(AB88+AK31*D19)/AK41,(AB89+AK31*D19)/AL41,(AB90+AK31*D19)/AM41)*AN41 -> 498.6666667 | BJ76: =MIN((AC86+AK31*D19)/AI41,(AC87+AK31*D19)/AJ41,(AC88+AK31*D19)/AK41,(AC89+AK31*D19)/AL41,(AC90+AK31*D19)/AM41)*AN41 -> 501.3333333 | BK76: =MIN((AD86+AK31*D19)/AI41,(AD87+AK31*D19)/AJ41,(AD88+AK31*D19)/AK41,(AD89+AK31*D19)/AL41,(AD90+AK31*D19)/AM41)*AN41 -> 511.3333333 | BL76: =MIN((AE86+AK31*D19)/AI41,(AE87+AK31*D19)/AJ41,(AE88+AK31*D19)/AK41,(AE89+AK31*D19)/AL41,(AE90+AK31*D19)/AM41)*AN41 -> 496.6666667 | BM76: =MIN((AF86+AK31*D19)/AI41,(AF87+AK31*D19)/AJ41,(AF88+AK31*D19)/AK41,(AF89+AK31*D19)/AL41,(AF90+AK31*D19)/AM41)*AN41 -> 501.3333333 | BN76: 521.3333333 | BQ76: =IF(AT24=10,AG24,IF(AT25=10,AG25,BQ80)) -> attente | BR76: =IF(AT16=10,AG16,IF(AT17=10,AG17,IF(AT18=10,AG18,IF(AT19=10,AG19,IF(AT20=10,AG20,IF(AT21=10,AG21,IF(AT22=10,AG22,IF(AT23=10,AG23,BQ76)))))))) -> gerard Blanchard | BS76: =IF(AT24=10,BN148,IF(AT25=10,BN149,0)) -> 0 | BT76: =IF(AT16=10,BN140,IF(AT17=10,BN141,IF(AT18=10,BN142,IF(AT19=10,BN143,IF(AT20=10,BN144,IF(AT21=10,BN145,IF(AT22=10,BN146,IF(AT23=10,BN147,BS76)))))))) -> 437.1428571 | BU76: =IF(AT8=10,BN132,IF(AT9=10,BN133,IF(AT10=10,BN134,IF(AT11=10,BN135,IF(AT12=10,BN136,IF(AT13=10,BN137,IF(AT14=10,BN138,IF(AT15=10,BN139,BT76)))))))) -> 437.1428571
E77: 0.4087 | F77: 0.95365 | G77: =E77+F77 -> 1.36235 | H77: 0.8174 | I77: 0.54495 | J77: 1.36235 | K77: 1.1353 | L77: 1.1353 | M77: =K77+L77 -> 2.2706 | N77: 0.54495 | O77: 0.8174 | P77: =N77+O77 -> 1.36235 | AH77: 1 Atsuhiko | AI77: =MIN((S93+AJ31*D19)/AI40,(S94+AJ31*D19)/AJ40,(S95+AJ31*D19)/AK40,(S96+AJ31*D19)/AL40,(S97+AJ31*D19)/AM40)*AN40 -> 477.3333333 | AJ77: =MIN((T93+AJ31*D19)/AI40,(T94+AJ31*D19)/AJ40,(T95+AJ31*D19)/AK40,(T96+AJ31*D19)/AL40,(T97+AJ31*D19)/AM40)*AN40 -> 514.6666667 | AK77: =MIN((U93+AJ31*D19)/AI40,(U94+AJ31*D19)/AJ40,(U95+AJ31*D19)/AK40,(U96+AJ31*D19)/AL40,(U97+AJ31*D19)/AM40)*AN40 -> 514.6666667 | AL77: =MIN((V93+AJ31*D19)/AI40,(V94+AJ31*D19)/AJ40,(V95+AJ31*D19)/AK40,(V96+AJ31*D19)/AL40,(V97+AJ31*D19)/AM40)*AN40 -> 512.6666667 | AM77: =MIN((W93+AJ31*D19)/AI40,(W94+AJ31*D19)/AJ40,(W95+AJ31*D19)/AK40,(W96+AJ31*D19)/AL40,(W97+AJ31*D19)/AM40)*AN40 -> 504 | AN77: =MIN((X93+AJ31*D19)/AI40,(X94+AJ31*D19)/AJ40,(X95+AJ31*D19)/AK40,(X96+AJ31*D19)/AL40,(X97+AJ31*D19)/AM40)*AN40 -> 504 | AO77: =MIN((Y93+AJ31*D19)/AI40,(Y94+AJ31*D19)/AJ40,(Y95+AJ31*D19)/AK40,(Y96+AJ31*D19)/AL40,(Y97+AJ31*D19)/AM40)*AN40 -> 510.6666667 | AP77: =MIN((Z93+AJ31*D19)/AI40,(Z94+AJ31*D19)/AJ40,(Z95+AJ31*D19)/AK40,(Z96+AJ31*D19)/AL40,(Z97+AJ31*D19)/AM40)*AN40 -> 510.6666667 | AQ77: =MIN((AA93+AJ31*D19)/AI40,(AA94+AJ31*D19)/AJ40,(AA95+AJ31*D19)/AK40,(AA96+AJ31*D19)/AL40,(AA97+AJ31*D19)/AM40)*AN40 -> 508 | AR77: =MIN((AB93+AJ31*D19)/AI40,(AB94+AJ31*D19)/AJ40,(AB95+AJ31*D19)/AK40,(AB96+AJ31*D19)/AL40,(AB97+AJ31*D19)/AM40)*AN40 -> 510.6666667 | AS77: =MIN((AC93+AJ31*D19)/AI40,(AC94+AJ31*D19)/AJ40,(AC95+AJ31*D19)/AK40,(AC96+AJ31*D19)/AL40,(AC97+AJ31*D19)/AM40)*AN40 -> 506 | AT77: =MIN((AD93+AJ31*D19)/AI40,(AD94+AJ31*D19)/AJ40,(AD95+AJ31*D19)/AK40,(AD96+AJ31*D19)/AL40,(AD97+AJ31*D19)/AM40)*AN40 -> 500.6666667 | AU77: =MIN((AE93+AJ31*D19)/AI40,(AE94+AJ31*D19)/AJ40,(AE95+AJ31*D19)/AK40,(AE96+AJ31*D19)/AL40,(AE97+AJ31*D19)/AM40)*AN40 -> 508 | AV77: =MIN((AF93+AJ31*D19)/AI40,(AF94+AJ31*D19)/AJ40,(AF95+AJ31*D19)/AK40,(AF96+AJ31*D19)/AL40,(AF97+AJ31*D19)/AM40)*AN40 -> 510.6666667 | AW77: 514.6666667 | AY77: 1 Atsuhiko | AZ77: =MIN((S93+AK31*D19)/AI41,(S94+AK31*D19)/AJ41,(S95+AK31*D19)/AK41,(S96+AK31*D19)/AL41,(S97+AK31*D19)/AM41)*AN41 -> 459.3333333 | BA77: =MIN((T93+AK31*D19)/AI41,(T94+AK31*D19)/AJ41,(T95+AK31*D19)/AK41,(T96+AK31*D19)/AL41,(T97+AK31*D19)/AM41)*AN41 -> 483.3333333 | BB77: =MIN((U93+AK31*D19)/AI41,(U94+AK31*D19)/AJ41,(U95+AK31*D19)/AK41,(U96+AK31*D19)/AL41,(U97+AK31*D19)/AM41)*AN41 -> 477.3333333 | BC77: =MIN((V93+AK31*D19)/AI41,(V94+AK31*D19)/AJ41,(V95+AK31*D19)/AK41,(V96+AK31*D19)/AL41,(V97+AK31*D19)/AM41)*AN41 -> 489.3333333 | BD77: =MIN((W93+AK31*D19)/AI41,(W94+AK31*D19)/AJ41,(W95+AK31*D19)/AK41,(W96+AK31*D19)/AL41,(W97+AK31*D19)/AM41)*AN41 -> 489.3333333 | BE77: =MIN((X93+AK31*D19)/AI41,(X94+AK31*D19)/AJ41,(X95+AK31*D19)/AK41,(X96+AK31*D19)/AL41,(X97+AK31*D19)/AM41)*AN41 -> 483.3333333 | BF77: =MIN((Y93+AK31*D19)/AI41,(Y94+AK31*D19)/AJ41,(Y95+AK31*D19)/AK41,(Y96+AK31*D19)/AL41,(Y97+AK31*D19)/AM41)*AN41 -> 479.3333333 | BG77: =MIN((Z93+AK31*D19)/AI41,(Z94+AK31*D19)/AJ41,(Z95+AK31*D19)/AK41,(Z96+AK31*D19)/AL41,(Z97+AK31*D19)/AM41)*AN41 -> 479.3333333 | BH77: =MIN((AA93+AK31*D19)/AI41,(AA94+AK31*D19)/AJ41,(AA95+AK31*D19)/AK41,(AA96+AK31*D19)/AL41,(AA97+AK31*D19)/AM41)*AN41 -> 476.6666667 | BI77: =MIN((AB93+AK31*D19)/AI41,(AB94+AK31*D19)/AJ41,(AB95+AK31*D19)/AK41,(AB96+AK31*D19)/AL41,(AB97+AK31*D19)/AM41)*AN41 -> 466.6666667 | BJ77: =MIN((AC93+AK31*D19)/AI41,(AC94+AK31*D19)/AJ41,(AC95+AK31*D19)/AK41,(AC96+AK31*D19)/AL41,(AC97+AK31*D19)/AM41)*AN41 -> 469.3333333 | BK77: =MIN((AD93+AK31*D19)/AI41,(AD94+AK31*D19)/AJ41,(AD95+AK31*D19)/AK41,(AD96+AK31*D19)/AL41,(AD97+AK31*D19)/AM41)*AN41 -> 479.3333333 | BL77: =MIN((AE93+AK31*D19)/AI41,(AE94+AK31*D19)/AJ41,(AE95+AK31*D19)/AK41,(AE96+AK31*D19)/AL41,(AE97+AK31*D19)/AM41)*AN41 -> 464.6666667 | BM77: =MIN((AF93+AK31*D19)/AI41,(AF94+AK31*D19)/AJ41,(AF95+AK31*D19)/AK41,(AF96+AK31*D19)/AL41,(AF97+AK31*D19)/AM41)*AN41 -> 469.3333333 | BN77: 489.3333333 | BQ77: =IF(AT24=11,AG24,IF(AT25=11,AG25,BQ80)) -> attente | BR77: =IF(AT16=11,AG16,IF(AT17=11,AG17,IF(AT18=11,AG18,IF(AT19=11,AG19,IF(AT20=11,AG20,IF(AT21=11,AG21,IF(AT22=11,AG22,IF(AT23=11,AG23,BQ77)))))))) -> 9 moy 511 | BS77: =IF(AT24=11,AW168,IF(AT25=11,AW169,0)) -> 0 | BT77: =IF(AT16=11,AW160,IF(AT17=11,AW161,IF(AT18=11,AW162,IF(AT19=11,AW163,IF(AT20=11,AW164,IF(AT21=11,AW165,IF(AT22=11,AW166,IF(AT23=11,AW167,BS77)))))))) -> 464.6666667 | BU77: =IF(AT8=11,AW152,IF(AT9=11,AW153,IF(AT10=11,AW154,IF(AT11=11,AW155,IF(AT12=11,AW156,IF(AT13=11,AW157,IF(AT14=11,AW158,IF(AT15=11,AW159,BT77)))))))) -> 464.6666667
E78: 0.4087 | F78: 0.95365 | G78: 1.36235 | H78: 0.8174 | I78: 0.54495 | J78: 1.36235 | K78: 1.1353 | L78: 1.1353 | M78: 2.2706 | N78: 0.54495 | O78: 0.8174 | P78: 1.36235 | R78: =G14 -> av | S78: =S71 -> kit 1 | T78: =T71 -> kit 2A | U78: kit 2B | V78: kit 4A | W78: kit 4B | X78: kit 5 | Y78: kit 6A | Z78: kit 6B | AA78: kit 7 | AB78: kit 8 | AC78: kit 9A | AD78: kit 9B | AE78: kit 10 | AF78: kit 11 | AH78: 2 moy 509 | AI78: =MIN((S100+AJ31*D19)/AI40,(S101+AJ31*D19)/AJ40,(S102+AJ31*D19)/AK40,(S103+AJ31*D19)/AL40,(S104+AJ31*D19)/AM40)*AN40 -> 454.6666667 | AJ78: =MIN((T100+AJ31*D19)/AI40,(T101+AJ31*D19)/AJ40,(T102+AJ31*D19)/AK40,(T103+AJ31*D19)/AL40,(T104+AJ31*D19)/AM40)*AN40 -> 492 | AK78: =MIN((U100+AJ31*D19)/AI40,(U101+AJ31*D19)/AJ40,(U102+AJ31*D19)/AK40,(U103+AJ31*D19)/AL40,(U104+AJ31*D19)/AM40)*AN40 -> 492 | AL78: =MIN((V100+AJ31*D19)/AI40,(V101+AJ31*D19)/AJ40,(V102+AJ31*D19)/AK40,(V103+AJ31*D19)/AL40,(V104+AJ31*D19)/AM40)*AN40 -> 490 | AM78: =MIN((W100+AJ31*D19)/AI40,(W101+AJ31*D19)/AJ40,(W102+AJ31*D19)/AK40,(W103+AJ31*D19)/AL40,(W104+AJ31*D19)/AM40)*AN40 -> 481.3333333 | AN78: =MIN((X100+AJ31*D19)/AI40,(X101+AJ31*D19)/AJ40,(X102+AJ31*D19)/AK40,(X103+AJ31*D19)/AL40,(X104+AJ31*D19)/AM40)*AN40 -> 481.3333333 | AO78: =MIN((Y100+AJ31*D19)/AI40,(Y101+AJ31*D19)/AJ40,(Y102+AJ31*D19)/AK40,(Y103+AJ31*D19)/AL40,(Y104+AJ31*D19)/AM40)*AN40 -> 488 | AP78: =MIN((Z100+AJ31*D19)/AI40,(Z101+AJ31*D19)/AJ40,(Z102+AJ31*D19)/AK40,(Z103+AJ31*D19)/AL40,(Z104+AJ31*D19)/AM40)*AN40 -> 488 | AQ78: =MIN((AA100+AJ31*D19)/AI40,(AA101+AJ31*D19)/AJ40,(AA102+AJ31*D19)/AK40,(AA103+AJ31*D19)/AL40,(AA104+AJ31*D19)/AM40)*AN40 -> 485.3333333 | AR78: =MIN((AB100+AJ31*D19)/AI40,(AB101+AJ31*D19)/AJ40,(AB102+AJ31*D19)/AK40,(AB103+AJ31*D19)/AL40,(AB104+AJ31*D19)/AM40)*AN40 -> 488 | AS78: =MIN((AC100+AJ31*D19)/AI40,(AC101+AJ31*D19)/AJ40,(AC102+AJ31*D19)/AK40,(AC103+AJ31*D19)/AL40,(AC104+AJ31*D19)/AM40)*AN40 -> 483.3333333 | AT78: =MIN((AD100+AJ31*D19)/AI40,(AD101+AJ31*D19)/AJ40,(AD102+AJ31*D19)/AK40,(AD103+AJ31*D19)/AL40,(AD104+AJ31*D19)/AM40)*AN40 -> 478 | AU78: =MIN((AE100+AJ31*D19)/AI40,(AE101+AJ31*D19)/AJ40,(AE102+AJ31*D19)/AK40,(AE103+AJ31*D19)/AL40,(AE104+AJ31*D19)/AM40)*AN40 -> 485.3333333 | AV78: =MIN((AF100+AJ31*D19)/AI40,(AF101+AJ31*D19)/AJ40,(AF102+AJ31*D19)/AK40,(AF103+AJ31*D19)/AL40,(AF104+AJ31*D19)/AM40)*AN40 -> 488 | AW78: 492 | AY78: 2 moy 509 | AZ78: =MIN((S100+AK31*D19)/AI41,(S101+AK31*D19)/AJ41,(S102+AK31*D19)/AK41,(S103+AK31*D19)/AL41,(S104+AK31*D19)/AM41)*AN41 -> 460.6666667 | BA78: =MIN((T100+AK31*D19)/AI41,(T101+AK31*D19)/AJ41,(T102+AK31*D19)/AK41,(T103+AK31*D19)/AL41,(T104+AK31*D19)/AM41)*AN41 -> 484.6666667 | BB78: =MIN((U100+AK31*D19)/AI41,(U101+AK31*D19)/AJ41,(U102+AK31*D19)/AK41,(U103+AK31*D19)/AL41,(U104+AK31*D19)/AM41)*AN41 -> 478.6666667 | BC78: =MIN((V100+AK31*D19)/AI41,(V101+AK31*D19)/AJ41,(V102+AK31*D19)/AK41,(V103+AK31*D19)/AL41,(V104+AK31*D19)/AM41)*AN41 -> 490.6666667 | BD78: =MIN((W100+AK31*D19)/AI41,(W101+AK31*D19)/AJ41,(W102+AK31*D19)/AK41,(W103+AK31*D19)/AL41,(W104+AK31*D19)/AM41)*AN41 -> 490.6666667 | BE78: =MIN((X100+AK31*D19)/AI41,(X101+AK31*D19)/AJ41,(X102+AK31*D19)/AK41,(X103+AK31*D19)/AL41,(X104+AK31*D19)/AM41)*AN41 -> 484.6666667 | BF78: =MIN((Y100+AK31*D19)/AI41,(Y101+AK31*D19)/AJ41,(Y102+AK31*D19)/AK41,(Y103+AK31*D19)/AL41,(Y104+AK31*D19)/AM41)*AN41 -> 480.6666667 | BG78: =MIN((Z100+AK31*D19)/AI41,(Z101+AK31*D19)/AJ41,(Z102+AK31*D19)/AK41,(Z103+AK31*D19)/AL41,(Z104+AK31*D19)/AM41)*AN41 -> 480.6666667 | BH78: =MIN((AA100+AK31*D19)/AI41,(AA101+AK31*D19)/AJ41,(AA102+AK31*D19)/AK41,(AA103+AK31*D19)/AL41,(AA104+AK31*D19)/AM41)*AN41 -> 478 | BI78: =MIN((AB100+AK31*D19)/AI41,(AB101+AK31*D19)/AJ41,(AB102+AK31*D19)/AK41,(AB103+AK31*D19)/AL41,(AB104+AK31*D19)/AM41)*AN41 -> 468 | BJ78: =MIN((AC100+AK31*D19)/AI41,(AC101+AK31*D19)/AJ41,(AC102+AK31*D19)/AK41,(AC103+AK31*D19)/AL41,(AC104+AK31*D19)/AM41)*AN41 -> 470.6666667 | BK78: =MIN((AD100+AK31*D19)/AI41,(AD101+AK31*D19)/AJ41,(AD102+AK31*D19)/AK41,(AD103+AK31*D19)/AL41,(AD104+AK31*D19)/AM41)*AN41 -> 480.6666667 | BL78: =MIN((AE100+AK31*D19)/AI41,(AE101+AK31*D19)/AJ41,(AE102+AK31*D19)/AK41,(AE103+AK31*D19)/AL41,(AE104+AK31*D19)/AM41)*AN41 -> 466 | BM78: =MIN((AF100+AK31*D19)/AI41,(AF101+AK31*D19)/AJ41,(AF102+AK31*D19)/AK41,(AF103+AK31*D19)/AL41,(AF104+AK31*D19)/AM41)*AN41 -> 470.6666667 | BN78: 490.6666667
E79: 0.3633 | F79: 1.4532 | G79: 1.8165 | H79: 0.27245 | I79: 0.63575 | J79: 0.9082 | K79: 0.27245 | L79: 0.63575 | M79: 0.9082 | N79: 0.54495 | O79: 1.27155 | P79: 1.8165 | R79: =H14+AF39+D16+D17+D21 -> 709 | S79: =R79+Q10 -> 738 | T79: =R79+R10 -> 774 | U79: =R79+S10 -> 765 | V79: =R79+T10 -> 783 | W79: =R79+U10 -> 783 | X79: =R79+V10 -> 774 | Y79: =R79+W10 -> 768 | Z79: =R79+X10 -> 768 | AA79: =R79+Y10 -> 764 | AB79: =R79+Z10 -> 749 | AC79: =R79+AA10 -> 753 | AD79: =R79+AB10 -> 768 | AE79: =R79+AC10 -> 746 | AF79: =R79+AD10 -> 753 | AH79: 8 moy 492 | AI79: =MIN((S107+AJ31*D19)/AI40,(S108+AJ31*D19)/AJ40,(S109+AJ31*D19)/AK40,(S110+AJ31*D19)/AL40,(S111+AJ31*D19)/AM40)*AN40 -> 442 | AJ79: =MIN((T107+AJ31*D19)/AI40,(T108+AJ31*D19)/AJ40,(T109+AJ31*D19)/AK40,(T110+AJ31*D19)/AL40,(T111+AJ31*D19)/AM40)*AN40 -> 479.3333333 | AK79: =MIN((U107+AJ31*D19)/AI40,(U108+AJ31*D19)/AJ40,(U109+AJ31*D19)/AK40,(U110+AJ31*D19)/AL40,(U111+AJ31*D19)/AM40)*AN40 -> 479.3333333 | AL79: =MIN((V107+AJ31*D19)/AI40,(V108+AJ31*D19)/AJ40,(V109+AJ31*D19)/AK40,(V110+AJ31*D19)/AL40,(V111+AJ31*D19)/AM40)*AN40 -> 477.3333333 | AM79: =MIN((W107+AJ31*D19)/AI40,(W108+AJ31*D19)/AJ40,(W109+AJ31*D19)/AK40,(W110+AJ31*D19)/AL40,(W111+AJ31*D19)/AM40)*AN40 -> 468.6666667 | AN79: =MIN((X107+AJ31*D19)/AI40,(X108+AJ31*D19)/AJ40,(X109+AJ31*D19)/AK40,(X110+AJ31*D19)/AL40,(X111+AJ31*D19)/AM40)*AN40 -> 468.6666667 | AO79: =MIN((Y107+AJ31*D19)/AI40,(Y108+AJ31*D19)/AJ40,(Y109+AJ31*D19)/AK40,(Y110+AJ31*D19)/AL40,(Y111+AJ31*D19)/AM40)*AN40 -> 475.3333333 | AP79: =MIN((Z107+AJ31*D19)/AI40,(Z108+AJ31*D19)/AJ40,(Z109+AJ31*D19)/AK40,(Z110+AJ31*D19)/AL40,(Z111+AJ31*D19)/AM40)*AN40 -> 475.3333333 | AQ79: =MIN((AA107+AJ31*D19)/AI40,(AA108+AJ31*D19)/AJ40,(AA109+AJ31*D19)/AK40,(AA110+AJ31*D19)/AL40,(AA111+AJ31*D19)/AM40)*AN40 -> 472.6666667 | AR79: =MIN((AB107+AJ31*D19)/AI40,(AB108+AJ31*D19)/AJ40,(AB109+AJ31*D19)/AK40,(AB110+AJ31*D19)/AL40,(AB111+AJ31*D19)/AM40)*AN40 -> 475.3333333 | AS79: =MIN((AC107+AJ31*D19)/AI40,(AC108+AJ31*D19)/AJ40,(AC109+AJ31*D19)/AK40,(AC110+AJ31*D19)/AL40,(AC111+AJ31*D19)/AM40)*AN40 -> 470.6666667 | AT79: =MIN((AD107+AJ31*D19)/AI40,(AD108+AJ31*D19)/AJ40,(AD109+AJ31*D19)/AK40,(AD110+AJ31*D19)/AL40,(AD111+AJ31*D19)/AM40)*AN40 -> 465.3333333 | AU79: =MIN((AE107+AJ31*D19)/AI40,(AE108+AJ31*D19)/AJ40,(AE109+AJ31*D19)/AK40,(AE110+AJ31*D19)/AL40,(AE111+AJ31*D19)/AM40)*AN40 -> 472.6666667 | AV79: =MIN((AF107+AJ31*D19)/AI40,(AF108+AJ31*D19)/AJ40,(AF109+AJ31*D19)/AK40,(AF110+AJ31*D19)/AL40,(AF111+AJ31*D19)/AM40)*AN40 -> 475.3333333 | AW79: 479.3333333 | AY79: 8 moy 492 | AZ79: =MIN((S107+AK31*D19)/AI41,(S108+AK31*D19)/AJ41,(S109+AK31*D19)/AK41,(S110+AK31*D19)/AL41,(S111+AK31*D19)/AM41)*AN41 -> 450 | BA79: =MIN((T107+AK31*D19)/AI41,(T108+AK31*D19)/AJ41,(T109+AK31*D19)/AK41,(T110+AK31*D19)/AL41,(T111+AK31*D19)/AM41)*AN41 -> 474 | BB79: =MIN((U107+AK31*D19)/AI41,(U108+AK31*D19)/AJ41,(U109+AK31*D19)/AK41,(U110+AK31*D19)/AL41,(U111+AK31*D19)/AM41)*AN41 -> 468 | BC79: =MIN((V107+AK31*D19)/AI41,(V108+AK31*D19)/AJ41,(V109+AK31*D19)/AK41,(V110+AK31*D19)/AL41,(V111+AK31*D19)/AM41)*AN41 -> 480 | BD79: =MIN((W107+AK31*D19)/AI41,(W108+AK31*D19)/AJ41,(W109+AK31*D19)/AK41,(W110+AK31*D19)/AL41,(W111+AK31*D19)/AM41)*AN41 -> 480 | BE79: =MIN((X107+AK31*D19)/AI41,(X108+AK31*D19)/AJ41,(X109+AK31*D19)/AK41,(X110+AK31*D19)/AL41,(X111+AK31*D19)/AM41)*AN41 -> 474 | BF79: =MIN((Y107+AK31*D19)/AI41,(Y108+AK31*D19)/AJ41,(Y109+AK31*D19)/AK41,(Y110+AK31*D19)/AL41,(Y111+AK31*D19)/AM41)*AN41 -> 470 | BG79: =MIN((Z107+AK31*D19)/AI41,(Z108+AK31*D19)/AJ41,(Z109+AK31*D19)/AK41,(Z110+AK31*D19)/AL41,(Z111+AK31*D19)/AM41)*AN41 -> 470 | BH79: =MIN((AA107+AK31*D19)/AI41,(AA108+AK31*D19)/AJ41,(AA109+AK31*D19)/AK41,(AA110+AK31*D19)/AL41,(AA111+AK31*D19)/AM41)*AN41 -> 467.3333333 | BI79: =MIN((AB107+AK31*D19)/AI41,(AB108+AK31*D19)/AJ41,(AB109+AK31*D19)/AK41,(AB110+AK31*D19)/AL41,(AB111+AK31*D19)/AM41)*AN41 -> 457.3333333 | BJ79: =MIN((AC107+AK31*D19)/AI41,(AC108+AK31*D19)/AJ41,(AC109+AK31*D19)/AK41,(AC110+AK31*D19)/AL41,(AC111+AK31*D19)/AM41)*AN41 -> 460 | BK79: =MIN((AD107+AK31*D19)/AI41,(AD108+AK31*D19)/AJ41,(AD109+AK31*D19)/AK41,(AD110+AK31*D19)/AL41,(AD111+AK31*D19)/AM41)*AN41 -> 470 | BL79: =MIN((AE107+AK31*D19)/AI41,(AE108+AK31*D19)/AJ41,(AE109+AK31*D19)/AK41,(AE110+AK31*D19)/AL41,(AE111+AK31*D19)/AM41)*AN41 -> 455.3333333 | BM79: =MIN((AF107+AK31*D19)/AI41,(AF108+AK31*D19)/AJ41,(AF109+AK31*D19)/AK41,(AF110+AK31*D19)/AL41,(AF111+AK31*D19)/AM41)*AN41 -> 460 | BN79: 480
E80: 0.3633 | F80: 1.4532 | G80: 1.8165 | H80: 0.68115 | I80: 0.68115 | J80: 1.3623 | K80: 0.3633 | L80: 0.54495 | M80: 0.90825 | N80: 0.90825 | O80: 0.90825 | P80: 1.8165 | R80: =I14+AF40+D15+D17+D21 -> 684 | S80: =R80+Q11 -> 761 | T80: =R80+R11 -> 727 | U80: =R80+S11 -> 727 | V80: =R80+T11 -> 709 | W80: =R80+U11 -> 721 | X80: =R80+V11 -> 733 | Y80: =R80+W11 -> 743 | Z80: =R80+X11 -> 730 | AA80: =R80+Y11 -> 739 | AB80: =R80+Z11 -> 743 | AC80: =R80+AA11 -> 743 | AD80: =R80+AB11 -> 752 | AE80: =R80+AC11 -> 749 | AF80: =R80+AD11 -> 743 | AH80: Mionnet | AI80: =MIN((S114+AJ31*D19)/AI40,(S115+AJ31*D19)/AJ40,(S116+AJ31*D19)/AK40,(S117+AJ31*D19)/AL40,(S118+AJ31*D19)/AM40)*AN40 -> 475.3333333 | AJ80: =MIN((T114+AJ31*D19)/AI40,(T115+AJ31*D19)/AJ40,(T116+AJ31*D19)/AK40,(T117+AJ31*D19)/AL40,(T118+AJ31*D19)/AM40)*AN40 -> 512.6666667 | AK80: =MIN((U114+AJ31*D19)/AI40,(U115+AJ31*D19)/AJ40,(U116+AJ31*D19)/AK40,(U117+AJ31*D19)/AL40,(U118+AJ31*D19)/AM40)*AN40 -> 512.6666667 | AL80: =MIN((V114+AJ31*D19)/AI40,(V115+AJ31*D19)/AJ40,(V116+AJ31*D19)/AK40,(V117+AJ31*D19)/AL40,(V118+AJ31*D19)/AM40)*AN40 -> 510.6666667 | AM80: =MIN((W114+AJ31*D19)/AI40,(W115+AJ31*D19)/AJ40,(W116+AJ31*D19)/AK40,(W117+AJ31*D19)/AL40,(W118+AJ31*D19)/AM40)*AN40 -> 502 | AN80: =MIN((X114+AJ31*D19)/AI40,(X115+AJ31*D19)/AJ40,(X116+AJ31*D19)/AK40,(X117+AJ31*D19)/AL40,(X118+AJ31*D19)/AM40)*AN40 -> 502 | AO80: =MIN((Y114+AJ31*D19)/AI40,(Y115+AJ31*D19)/AJ40,(Y116+AJ31*D19)/AK40,(Y117+AJ31*D19)/AL40,(Y118+AJ31*D19)/AM40)*AN40 -> 508.6666667 | AP80: =MIN((Z114+AJ31*D19)/AI40,(Z115+AJ31*D19)/AJ40,(Z116+AJ31*D19)/AK40,(Z117+AJ31*D19)/AL40,(Z118+AJ31*D19)/AM40)*AN40 -> 508.6666667 | AQ80: =MIN((AA114+AJ31*D19)/AI40,(AA115+AJ31*D19)/AJ40,(AA116+AJ31*D19)/AK40,(AA117+AJ31*D19)/AL40,(AA118+AJ31*D19)/AM40)*AN40 -> 506 | AR80: =MIN((AB114+AJ31*D19)/AI40,(AB115+AJ31*D19)/AJ40,(AB116+AJ31*D19)/AK40,(AB117+AJ31*D19)/AL40,(AB118+AJ31*D19)/AM40)*AN40 -> 508.6666667 | AS80: =MIN((AC114+AJ31*D19)/AI40,(AC115+AJ31*D19)/AJ40,(AC116+AJ31*D19)/AK40,(AC117+AJ31*D19)/AL40,(AC118+AJ31*D19)/AM40)*AN40 -> 504 | AT80: =MIN((AD114+AJ31*D19)/AI40,(AD115+AJ31*D19)/AJ40,(AD116+AJ31*D19)/AK40,(AD117+AJ31*D19)/AL40,(AD118+AJ31*D19)/AM40)*AN40 -> 498.6666667 | AU80: =MIN((AE114+AJ31*D19)/AI40,(AE115+AJ31*D19)/AJ40,(AE116+AJ31*D19)/AK40,(AE117+AJ31*D19)/AL40,(AE118+AJ31*D19)/AM40)*AN40 -> 506 | AV80: =MIN((AF114+AJ31*D19)/AI40,(AF115+AJ31*D19)/AJ40,(AF116+AJ31*D19)/AK40,(AF117+AJ31*D19)/AL40,(AF118+AJ31*D19)/AM40)*AN40 -> 508.6666667 | AW80: 512.6666667 | AY80: Mionnet | AZ80: =MIN((S114+AK31*D19)/AI41,(S115+AK31*D19)/AJ41,(S116+AK31*D19)/AK41,(S117+AK31*D19)/AL41,(S118+AK31*D19)/AM41)*AN41 -> 467.3333333 | BA80: =MIN((T114+AK31*D19)/AI41,(T115+AK31*D19)/AJ41,(T116+AK31*D19)/AK41,(T117+AK31*D19)/AL41,(T118+AK31*D19)/AM41)*AN41 -> 491.3333333 | BB80: =MIN((U114+AK31*D19)/AI41,(U115+AK31*D19)/AJ41,(U116+AK31*D19)/AK41,(U117+AK31*D19)/AL41,(U118+AK31*D19)/AM41)*AN41 -> 485.3333333 | BC80: =MIN((V114+AK31*D19)/AI41,(V115+AK31*D19)/AJ41,(V116+AK31*D19)/AK41,(V117+AK31*D19)/AL41,(V118+AK31*D19)/AM41)*AN41 -> 497.3333333 | BD80: =MIN((W114+AK31*D19)/AI41,(W115+AK31*D19)/AJ41,(W116+AK31*D19)/AK41,(W117+AK31*D19)/AL41,(W118+AK31*D19)/AM41)*AN41 -> 497.3333333 | BE80: =MIN((X114+AK31*D19)/AI41,(X115+AK31*D19)/AJ41,(X116+AK31*D19)/AK41,(X117+AK31*D19)/AL41,(X118+AK31*D19)/AM41)*AN41 -> 491.3333333 | BF80: =MIN((Y114+AK31*D19)/AI41,(Y115+AK31*D19)/AJ41,(Y116+AK31*D19)/AK41,(Y117+AK31*D19)/AL41,(Y118+AK31*D19)/AM41)*AN41 -> 487.3333333 | BG80: =MIN((Z114+AK31*D19)/AI41,(Z115+AK31*D19)/AJ41,(Z116+AK31*D19)/AK41,(Z117+AK31*D19)/AL41,(Z118+AK31*D19)/AM41)*AN41 -> 487.3333333 | BH80: =MIN((AA114+AK31*D19)/AI41,(AA115+AK31*D19)/AJ41,(AA116+AK31*D19)/AK41,(AA117+AK31*D19)/AL41,(AA118+AK31*D19)/AM41)*AN41 -> 484.6666667 | BI80: =MIN((AB114+AK31*D19)/AI41,(AB115+AK31*D19)/AJ41,(AB116+AK31*D19)/AK41,(AB117+AK31*D19)/AL41,(AB118+AK31*D19)/AM41)*AN41 -> 474.6666667 | BJ80: =MIN((AC114+AK31*D19)/AI41,(AC115+AK31*D19)/AJ41,(AC116+AK31*D19)/AK41,(AC117+AK31*D19)/AL41,(AC118+AK31*D19)/AM41)*AN41 -> 477.3333333 | BK80: =MIN((AD114+AK31*D19)/AI41,(AD115+AK31*D19)/AJ41,(AD116+AK31*D19)/AK41,(AD117+AK31*D19)/AL41,(AD118+AK31*D19)/AM41)*AN41 -> 487.3333333 | BL80: =MIN((AE114+AK31*D19)/AI41,(AE115+AK31*D19)/AJ41,(AE116+AK31*D19)/AK41,(AE117+AK31*D19)/AL41,(AE118+AK31*D19)/AM41)*AN41 -> 472.6666667 | BM80: =MIN((AF114+AK31*D19)/AI41,(AF115+AK31*D19)/AJ41,(AF116+AK31*D19)/AK41,(AF117+AK31*D19)/AL41,(AF118+AK31*D19)/AM41)*AN41 -> 477.3333333 | BN80: 497.3333333 | BQ80: attente
E81: 0.68115 | F81: 1.58945 | G81: 2.2706 | H81: 0.95365 | I81: 0.4087 | J81: 1.36235 | K81: 0.90825 | L81: 0.90825 | M81: 1.8165 | N81: 0.90825 | O81: 0.90825 | P81: 1.8165 | R81: =J14+AF41+D15+D17+D21 -> 713 | S81: =R81+Q12 -> 742 | T81: =R81+R12 -> 756 | U81: =R81+S12 -> 769 | V81: =R81+T12 -> 775 | W81: =R81+U12 -> 787 | X81: =R81+V12 -> 762 | Y81: =R81+W12 -> 748 | Z81: =R81+X12 -> 772 | AA81: =R81+Y12 -> 768 | AB81: =R81+Z12 -> 772 | AC81: =R81+AA12 -> 781 | AD81: =R81+AB12 -> 757 | AE81: =R81+AC12 -> 759 | AF81: =R81+AD12 -> 781 | AH81: gerard Blanchard | AI81: =MIN((S121+AJ31*D19)/AI40,(S122+AJ31*D19)/AJ40,(S123+AJ31*D19)/AK40,(S124+AJ31*D19)/AL40,(S125+AJ31*D19)/AM40)*AN40 -> 454.6666667 | AJ81: =MIN((T121+AJ31*D19)/AI40,(T122+AJ31*D19)/AJ40,(T123+AJ31*D19)/AK40,(T124+AJ31*D19)/AL40,(T125+AJ31*D19)/AM40)*AN40 -> 492 | AK81: =MIN((U121+AJ31*D19)/AI40,(U122+AJ31*D19)/AJ40,(U123+AJ31*D19)/AK40,(U124+AJ31*D19)/AL40,(U125+AJ31*D19)/AM40)*AN40 -> 492 | AL81: =MIN((V121+AJ31*D19)/AI40,(V122+AJ31*D19)/AJ40,(V123+AJ31*D19)/AK40,(V124+AJ31*D19)/AL40,(V125+AJ31*D19)/AM40)*AN40 -> 490 | AM81: =MIN((W121+AJ31*D19)/AI40,(W122+AJ31*D19)/AJ40,(W123+AJ31*D19)/AK40,(W124+AJ31*D19)/AL40,(W125+AJ31*D19)/AM40)*AN40 -> 481.3333333 | AN81: =MIN((X121+AJ31*D19)/AI40,(X122+AJ31*D19)/AJ40,(X123+AJ31*D19)/AK40,(X124+AJ31*D19)/AL40,(X125+AJ31*D19)/AM40)*AN40 -> 481.3333333 | AO81: =MIN((Y121+AJ31*D19)/AI40,(Y122+AJ31*D19)/AJ40,(Y123+AJ31*D19)/AK40,(Y124+AJ31*D19)/AL40,(Y125+AJ31*D19)/AM40)*AN40 -> 488 | AP81: =MIN((Z121+AJ31*D19)/AI40,(Z122+AJ31*D19)/AJ40,(Z123+AJ31*D19)/AK40,(Z124+AJ31*D19)/AL40,(Z125+AJ31*D19)/AM40)*AN40 -> 488 | AQ81: =MIN((AA121+AJ31*D19)/AI40,(AA122+AJ31*D19)/AJ40,(AA123+AJ31*D19)/AK40,(AA124+AJ31*D19)/AL40,(AA125+AJ31*D19)/AM40)*AN40 -> 485.3333333 | AR81: =MIN((AB121+AJ31*D19)/AI40,(AB122+AJ31*D19)/AJ40,(AB123+AJ31*D19)/AK40,(AB124+AJ31*D19)/AL40,(AB125+AJ31*D19)/AM40)*AN40 -> 488 | AS81: =MIN((AC121+AJ31*D19)/AI40,(AC122+AJ31*D19)/AJ40,(AC123+AJ31*D19)/AK40,(AC124+AJ31*D19)/AL40,(AC125+AJ31*D19)/AM40)*AN40 -> 483.3333333 | AT81: =MIN((AD121+AJ31*D19)/AI40,(AD122+AJ31*D19)/AJ40,(AD123+AJ31*D19)/AK40,(AD124+AJ31*D19)/AL40,(AD125+AJ31*D19)/AM40)*AN40 -> 478 | AU81: =MIN((AE121+AJ31*D19)/AI40,(AE122+AJ31*D19)/AJ40,(AE123+AJ31*D19)/AK40,(AE124+AJ31*D19)/AL40,(AE125+AJ31*D19)/AM40)*AN40 -> 485.3333333 | AV81: =MIN((AF121+AJ31*D19)/AI40,(AF122+AJ31*D19)/AJ40,(AF123+AJ31*D19)/AK40,(AF124+AJ31*D19)/AL40,(AF125+AJ31*D19)/AM40)*AN40 -> 488 | AW81: 492 | AY81: gerard Blanchard | AZ81: =MIN((S121+AK31*D19)/AI41,(S122+AK31*D19)/AJ41,(S123+AK31*D19)/AK41,(S124+AK31*D19)/AL41,(S125+AK31*D19)/AM41)*AN41 -> 421.3333333 | BA81: =MIN((T121+AK31*D19)/AI41,(T122+AK31*D19)/AJ41,(T123+AK31*D19)/AK41,(T124+AK31*D19)/AL41,(T125+AK31*D19)/AM41)*AN41 -> 445.3333333 | BB81: =MIN((U121+AK31*D19)/AI41,(U122+AK31*D19)/AJ41,(U123+AK31*D19)/AK41,(U124+AK31*D19)/AL41,(U125+AK31*D19)/AM41)*AN41 -> 439.3333333 | BC81: =MIN((V121+AK31*D19)/AI41,(V122+AK31*D19)/AJ41,(V123+AK31*D19)/AK41,(V124+AK31*D19)/AL41,(V125+AK31*D19)/AM41)*AN41 -> 451.3333333 | BD81: =MIN((W121+AK31*D19)/AI41,(W122+AK31*D19)/AJ41,(W123+AK31*D19)/AK41,(W124+AK31*D19)/AL41,(W125+AK31*D19)/AM41)*AN41 -> 451.3333333 | BE81: =MIN((X121+AK31*D19)/AI41,(X122+AK31*D19)/AJ41,(X123+AK31*D19)/AK41,(X124+AK31*D19)/AL41,(X125+AK31*D19)/AM41)*AN41 -> 445.3333333 | BF81: =MIN((Y121+AK31*D19)/AI41,(Y122+AK31*D19)/AJ41,(Y123+AK31*D19)/AK41,(Y124+AK31*D19)/AL41,(Y125+AK31*D19)/AM41)*AN41 -> 441.3333333 | BG81: =MIN((Z121+AK31*D19)/AI41,(Z122+AK31*D19)/AJ41,(Z123+AK31*D19)/AK41,(Z124+AK31*D19)/AL41,(Z125+AK31*D19)/AM41)*AN41 -> 441.3333333 | BH81: =MIN((AA121+AK31*D19)/AI41,(AA122+AK31*D19)/AJ41,(AA123+AK31*D19)/AK41,(AA124+AK31*D19)/AL41,(AA125+AK31*D19)/AM41)*AN41 -> 438.6666667 | BI81: =MIN((AB121+AK31*D19)/AI41,(AB122+AK31*D19)/AJ41,(AB123+AK31*D19)/AK41,(AB124+AK31*D19)/AL41,(AB125+AK31*D19)/AM41)*AN41 -> 428.6666667 | BJ81: =MIN((AC121+AK31*D19)/AI41,(AC122+AK31*D19)/AJ41,(AC123+AK31*D19)/AK41,(AC124+AK31*D19)/AL41,(AC125+AK31*D19)/AM41)*AN41 -> 431.3333333 | BK81: =MIN((AD121+AK31*D19)/AI41,(AD122+AK31*D19)/AJ41,(AD123+AK31*D19)/AK41,(AD124+AK31*D19)/AL41,(AD125+AK31*D19)/AM41)*AN41 -> 441.3333333 | BL81: =MIN((AE121+AK31*D19)/AI41,(AE122+AK31*D19)/AJ41,(AE123+AK31*D19)/AK41,(AE124+AK31*D19)/AL41,(AE125+AK31*D19)/AM41)*AN41 -> 426.6666667 | BM81: =MIN((AF121+AK31*D19)/AI41,(AF122+AK31*D19)/AJ41,(AF123+AK31*D19)/AK41,(AF124+AK31*D19)/AL41,(AF125+AK31*D19)/AM41)*AN41 -> 431.3333333 | BN81: 451.3333333
E82: 0.90825 | F82: 0.90825 | G82: 1.8165 | H82: 0.94985 | I82: 0.40705 | J82: 1.3569 | K82: 1.63485 | L82: 1.0899 | M82: 2.72475 | N82: 0.8174 | O82: 0.54495 | P82: 1.36235 | R82: =K14+AF42+D16+D17+D21 -> 674 | S82: =R82+Q13 -> 683 | T82: =R82+R13 -> 739 | U82: =R82+S13 -> 739 | V82: =R82+T13 -> 736 | W82: =R82+U13 -> 723 | X82: =R82+V13 -> 723 | Y82: =R82+W13 -> 733 | Z82: =R82+X13 -> 733 | AA82: =R82+Y13 -> 729 | AB82: =R82+Z13 -> 733 | AC82: =R82+AA13 -> 726 | AD82: =R82+AB13 -> 718 | AE82: =R82+AC13 -> 729 | AF82: =R82+AD13 -> 733 | AH82: 9 moy 511 | AI82: =MIN((S128+AJ31*D19)/AI40,(S129+AJ31*D19)/AJ40,(S130+AJ31*D19)/AK40,(S131+AJ31*D19)/AL40,(S132+AJ31*D19)/AM40)*AN40 -> 427.3333333 | AJ82: =MIN((T128+AJ31*D19)/AI40,(T129+AJ31*D19)/AJ40,(T130+AJ31*D19)/AK40,(T131+AJ31*D19)/AL40,(T132+AJ31*D19)/AM40)*AN40 -> 464.6666667 | AK82: =MIN((U128+AJ31*D19)/AI40,(U129+AJ31*D19)/AJ40,(U130+AJ31*D19)/AK40,(U131+AJ31*D19)/AL40,(U132+AJ31*D19)/AM40)*AN40 -> 464.6666667 | AL82: =MIN((V128+AJ31*D19)/AI40,(V129+AJ31*D19)/AJ40,(V130+AJ31*D19)/AK40,(V131+AJ31*D19)/AL40,(V132+AJ31*D19)/AM40)*AN40 -> 462.6666667 | AM82: =MIN((W128+AJ31*D19)/AI40,(W129+AJ31*D19)/AJ40,(W130+AJ31*D19)/AK40,(W131+AJ31*D19)/AL40,(W132+AJ31*D19)/AM40)*AN40 -> 454 | AN82: =MIN((X128+AJ31*D19)/AI40,(X129+AJ31*D19)/AJ40,(X130+AJ31*D19)/AK40,(X131+AJ31*D19)/AL40,(X132+AJ31*D19)/AM40)*AN40 -> 454 | AO82: =MIN((Y128+AJ31*D19)/AI40,(Y129+AJ31*D19)/AJ40,(Y130+AJ31*D19)/AK40,(Y131+AJ31*D19)/AL40,(Y132+AJ31*D19)/AM40)*AN40 -> 460.6666667 | AP82: =MIN((Z128+AJ31*D19)/AI40,(Z129+AJ31*D19)/AJ40,(Z130+AJ31*D19)/AK40,(Z131+AJ31*D19)/AL40,(Z132+AJ31*D19)/AM40)*AN40 -> 460.6666667 | AQ82: =MIN((AA128+AJ31*D19)/AI40,(AA129+AJ31*D19)/AJ40,(AA130+AJ31*D19)/AK40,(AA131+AJ31*D19)/AL40,(AA132+AJ31*D19)/AM40)*AN40 -> 458 | AR82: =MIN((AB128+AJ31*D19)/AI40,(AB129+AJ31*D19)/AJ40,(AB130+AJ31*D19)/AK40,(AB131+AJ31*D19)/AL40,(AB132+AJ31*D19)/AM40)*AN40 -> 460.6666667 | AS82: =MIN((AC128+AJ31*D19)/AI40,(AC129+AJ31*D19)/AJ40,(AC130+AJ31*D19)/AK40,(AC131+AJ31*D19)/AL40,(AC132+AJ31*D19)/AM40)*AN40 -> 456 | AT82: =MIN((AD128+AJ31*D19)/AI40,(AD129+AJ31*D19)/AJ40,(AD130+AJ31*D19)/AK40,(AD131+AJ31*D19)/AL40,(AD132+AJ31*D19)/AM40)*AN40 -> 450.6666667 | AU82: =MIN((AE128+AJ31*D19)/AI40,(AE129+AJ31*D19)/AJ40,(AE130+AJ31*D19)/AK40,(AE131+AJ31*D19)/AL40,(AE132+AJ31*D19)/AM40)*AN40 -> 458 | AV82: =MIN((AF128+AJ31*D19)/AI40,(AF129+AJ31*D19)/AJ40,(AF130+AJ31*D19)/AK40,(AF131+AJ31*D19)/AL40,(AF132+AJ31*D19)/AM40)*AN40 -> 460.6666667 | AW82: 464.6666667 | AY82: 9 moy 511 | AZ82: =MIN((S128+AK31*D19)/AI41,(S129+AK31*D19)/AJ41,(S130+AK31*D19)/AK41,(S131+AK31*D19)/AL41,(S132+AK31*D19)/AM41)*AN41 -> 460.6666667 | BA82: =MIN((T128+AK31*D19)/AI41,(T129+AK31*D19)/AJ41,(T130+AK31*D19)/AK41,(T131+AK31*D19)/AL41,(T132+AK31*D19)/AM41)*AN41 -> 484.6666667 | BB82: =MIN((U128+AK31*D19)/AI41,(U129+AK31*D19)/AJ41,(U130+AK31*D19)/AK41,(U131+AK31*D19)/AL41,(U132+AK31*D19)/AM41)*AN41 -> 478.6666667 | BC82: =MIN((V128+AK31*D19)/AI41,(V129+AK31*D19)/AJ41,(V130+AK31*D19)/AK41,(V131+AK31*D19)/AL41,(V132+AK31*D19)/AM41)*AN41 -> 490.6666667 | BD82: =MIN((W128+AK31*D19)/AI41,(W129+AK31*D19)/AJ41,(W130+AK31*D19)/AK41,(W131+AK31*D19)/AL41,(W132+AK31*D19)/AM41)*AN41 -> 490.6666667 | BE82: =MIN((X128+AK31*D19)/AI41,(X129+AK31*D19)/AJ41,(X130+AK31*D19)/AK41,(X131+AK31*D19)/AL41,(X132+AK31*D19)/AM41)*AN41 -> 484.6666667 | BF82: =MIN((Y128+AK31*D19)/AI41,(Y129+AK31*D19)/AJ41,(Y130+AK31*D19)/AK41,(Y131+AK31*D19)/AL41,(Y132+AK31*D19)/AM41)*AN41 -> 480.6666667 | BG82: =MIN((Z128+AK31*D19)/AI41,(Z129+AK31*D19)/AJ41,(Z130+AK31*D19)/AK41,(Z131+AK31*D19)/AL41,(Z132+AK31*D19)/AM41)*AN41 -> 480.6666667 | BH82: =MIN((AA128+AK31*D19)/AI41,(AA129+AK31*D19)/AJ41,(AA130+AK31*D19)/AK41,(AA131+AK31*D19)/AL41,(AA132+AK31*D19)/AM41)*AN41 -> 478 | BI82: =MIN((AB128+AK31*D19)/AI41,(AB129+AK31*D19)/AJ41,(AB130+AK31*D19)/AK41,(AB131+AK31*D19)/AL41,(AB132+AK31*D19)/AM41)*AN41 -> 468 | BJ82: =MIN((AC128+AK31*D19)/AI41,(AC129+AK31*D19)/AJ41,(AC130+AK31*D19)/AK41,(AC131+AK31*D19)/AL41,(AC132+AK31*D19)/AM41)*AN41 -> 470.6666667 | BK82: =MIN((AD128+AK31*D19)/AI41,(AD129+AK31*D19)/AJ41,(AD130+AK31*D19)/AK41,(AD131+AK31*D19)/AL41,(AD132+AK31*D19)/AM41)*AN41 -> 480.6666667 | BL82: =MIN((AE128+AK31*D19)/AI41,(AE129+AK31*D19)/AJ41,(AE130+AK31*D19)/AK41,(AE131+AK31*D19)/AL41,(AE132+AK31*D19)/AM41)*AN41 -> 466 | BM82: =MIN((AF128+AK31*D19)/AI41,(AF129+AK31*D19)/AJ41,(AF130+AK31*D19)/AK41,(AF131+AK31*D19)/AL41,(AF132+AK31*D19)/AM41)*AN41 -> 470.6666667 | BN82: 490.6666667 | BO82: constante kit
E83: 0.8174 | F83: 0.54495 | G83: 1.36235 | H83: 1.90735 | I83: 0.8174 | J83: 2.72475 | K83: 0.8174 | L83: 0.54495 | M83: 1.36235 | N83: 0.81415 | O83: 0.54275 | P83: 1.3569 | R83: =L14+AF43+D15+D17+D21 -> 712 | S83: =R83+Q14 -> 760 | T83: =R83+R14 -> 755 | U83: =R83+S14 -> 755 | V83: =R83+T14 -> 749 | W83: =R83+U14 -> 737 | X83: =R83+V14 -> 761 | Y83: =R83+W14 -> 758 | Z83: =R83+X14 -> 746 | AA83: =R83+Y14 -> 756 | AB83: =R83+Z14 -> 752 | AC83: =R83+AA14 -> 745 | AD83: =R83+AB14 -> 756 | AE83: =R83+AC14 -> 767 | AF83: =R83+AD14 -> 738 | AH83: Pullrouge 5 | AI83: =MIN((S135+AJ31*D19)/AI40,(S136+AJ31*D19)/AJ40,(S137+AJ31*D19)/AK40,(S138+AJ31*D19)/AL40,(S139+AJ31*D19)/AM40)*AN40 -> 416.6666667 | AJ83: =MIN((T135+AJ31*D19)/AI40,(T136+AJ31*D19)/AJ40,(T137+AJ31*D19)/AK40,(T138+AJ31*D19)/AL40,(T139+AJ31*D19)/AM40)*AN40 -> 454 | AK83: =MIN((U135+AJ31*D19)/AI40,(U136+AJ31*D19)/AJ40,(U137+AJ31*D19)/AK40,(U138+AJ31*D19)/AL40,(U139+AJ31*D19)/AM40)*AN40 -> 454 | AL83: =MIN((V135+AJ31*D19)/AI40,(V136+AJ31*D19)/AJ40,(V137+AJ31*D19)/AK40,(V138+AJ31*D19)/AL40,(V139+AJ31*D19)/AM40)*AN40 -> 452 | AM83: =MIN((W135+AJ31*D19)/AI40,(W136+AJ31*D19)/AJ40,(W137+AJ31*D19)/AK40,(W138+AJ31*D19)/AL40,(W139+AJ31*D19)/AM40)*AN40 -> 443.3333333 | AN83: =MIN((X135+AJ31*D19)/AI40,(X136+AJ31*D19)/AJ40,(X137+AJ31*D19)/AK40,(X138+AJ31*D19)/AL40,(X139+AJ31*D19)/AM40)*AN40 -> 443.3333333 | AO83: =MIN((Y135+AJ31*D19)/AI40,(Y136+AJ31*D19)/AJ40,(Y137+AJ31*D19)/AK40,(Y138+AJ31*D19)/AL40,(Y139+AJ31*D19)/AM40)*AN40 -> 450 | AP83: =MIN((Z135+AJ31*D19)/AI40,(Z136+AJ31*D19)/AJ40,(Z137+AJ31*D19)/AK40,(Z138+AJ31*D19)/AL40,(Z139+AJ31*D19)/AM40)*AN40 -> 450 | AQ83: =MIN((AA135+AJ31*D19)/AI40,(AA136+AJ31*D19)/AJ40,(AA137+AJ31*D19)/AK40,(AA138+AJ31*D19)/AL40,(AA139+AJ31*D19)/AM40)*AN40 -> 447.3333333 | AR83: =MIN((AB135+AJ31*D19)/AI40,(AB136+AJ31*D19)/AJ40,(AB137+AJ31*D19)/AK40,(AB138+AJ31*D19)/AL40,(AB139+AJ31*D19)/AM40)*AN40 -> 450 | AS83: =MIN((AC135+AJ31*D19)/AI40,(AC136+AJ31*D19)/AJ40,(AC137+AJ31*D19)/AK40,(AC138+AJ31*D19)/AL40,(AC139+AJ31*D19)/AM40)*AN40 -> 445.3333333 | AT83: =MIN((AD135+AJ31*D19)/AI40,(AD136+AJ31*D19)/AJ40,(AD137+AJ31*D19)/AK40,(AD138+AJ31*D19)/AL40,(AD139+AJ31*D19)/AM40)*AN40 -> 440 | AU83: =MIN((AE135+AJ31*D19)/AI40,(AE136+AJ31*D19)/AJ40,(AE137+AJ31*D19)/AK40,(AE138+AJ31*D19)/AL40,(AE139+AJ31*D19)/AM40)*AN40 -> 447.3333333 | AV83: =MIN((AF135+AJ31*D19)/AI40,(AF136+AJ31*D19)/AJ40,(AF137+AJ31*D19)/AK40,(AF138+AJ31*D19)/AL40,(AF139+AJ31*D19)/AM40)*AN40 -> 450 | AW83: 454 | AY83: Pullrouge 5 | AZ83: =MIN((S135+AK31*D19)/AI41,(S136+AK31*D19)/AJ41,(S137+AK31*D19)/AK41,(S138+AK31*D19)/AL41,(S139+AK31*D19)/AM41)*AN41 -> 411.3333333 | BA83: =MIN((T135+AK31*D19)/AI41,(T136+AK31*D19)/AJ41,(T137+AK31*D19)/AK41,(T138+AK31*D19)/AL41,(T139+AK31*D19)/AM41)*AN41 -> 435.3333333 | BB83: =MIN((U135+AK31*D19)/AI41,(U136+AK31*D19)/AJ41,(U137+AK31*D19)/AK41,(U138+AK31*D19)/AL41,(U139+AK31*D19)/AM41)*AN41 -> 429.3333333 | BC83: =MIN((V135+AK31*D19)/AI41,(V136+AK31*D19)/AJ41,(V137+AK31*D19)/AK41,(V138+AK31*D19)/AL41,(V139+AK31*D19)/AM41)*AN41 -> 441.3333333 | BD83: =MIN((W135+AK31*D19)/AI41,(W136+AK31*D19)/AJ41,(W137+AK31*D19)/AK41,(W138+AK31*D19)/AL41,(W139+AK31*D19)/AM41)*AN41 -> 441.3333333 | BE83: =MIN((X135+AK31*D19)/AI41,(X136+AK31*D19)/AJ41,(X137+AK31*D19)/AK41,(X138+AK31*D19)/AL41,(X139+AK31*D19)/AM41)*AN41 -> 435.3333333 | BF83: =MIN((Y135+AK31*D19)/AI41,(Y136+AK31*D19)/AJ41,(Y137+AK31*D19)/AK41,(Y138+AK31*D19)/AL41,(Y139+AK31*D19)/AM41)*AN41 -> 431.3333333 | BG83: =MIN((Z135+AK31*D19)/AI41,(Z136+AK31*D19)/AJ41,(Z137+AK31*D19)/AK41,(Z138+AK31*D19)/AL41,(Z139+AK31*D19)/AM41)*AN41 -> 431.3333333 | BH83: =MIN((AA135+AK31*D19)/AI41,(AA136+AK31*D19)/AJ41,(AA137+AK31*D19)/AK41,(AA138+AK31*D19)/AL41,(AA139+AK31*D19)/AM41)*AN41 -> 428.6666667 | BI83: =MIN((AB135+AK31*D19)/AI41,(AB136+AK31*D19)/AJ41,(AB137+AK31*D19)/AK41,(AB138+AK31*D19)/AL41,(AB139+AK31*D19)/AM41)*AN41 -> 418.6666667 | BJ83: =MIN((AC135+AK31*D19)/AI41,(AC136+AK31*D19)/AJ41,(AC137+AK31*D19)/AK41,(AC138+AK31*D19)/AL41,(AC139+AK31*D19)/AM41)*AN41 -> 421.3333333 | BK83: =MIN((AD135+AK31*D19)/AI41,(AD136+AK31*D19)/AJ41,(AD137+AK31*D19)/AK41,(AD138+AK31*D19)/AL41,(AD139+AK31*D19)/AM41)*AN41 -> 431.3333333 | BL83: =MIN((AE135+AK31*D19)/AI41,(AE136+AK31*D19)/AJ41,(AE137+AK31*D19)/AK41,(AE138+AK31*D19)/AL41,(AE139+AK31*D19)/AM41)*AN41 -> 416.6666667 | BM83: =MIN((AF135+AK31*D19)/AI41,(AF136+AK31*D19)/AJ41,(AF137+AK31*D19)/AK41,(AF138+AK31*D19)/AL41,(AF139+AK31*D19)/AM41)*AN41 -> 421.3333333 | BN83: 441.3333333 | BP83: =AZ91 -> kit 1 | BQ83: kit 2A | BR83: kit 2B | BS83: kit 4A | BT83: kit 4B | BU83: kit 5 | BV83: kit 6A | BW83: kit 6B | BX83: kit 7 | BY83: kit 8 | BZ83: kit 9A | CA83: kit 9B | CB83: kit 10 | CC83: kit 11
E84: 1.8165 | F84: 0.4541 | G84: 2.2706 | H84: 2.04355 | I84: 0.22705 | J84: 2.2706 | K84: 1.4532 | L84: 0.3633 | M84: 1.8165 | N84: 1.63485 | O84: 0.18165 | P84: 1.8165 | AH84: Pullrouge 3 | AI84: =MIN((S142+AJ31*D19)/AI40,(S143+AJ31*D19)/AJ40,(S144+AJ31*D19)/AK40,(S145+AJ31*D19)/AL40,(S146+AJ31*D19)/AM40)*AN40 -> 428.6666667 | AJ84: =MIN((T142+AJ31*D19)/AI40,(T143+AJ31*D19)/AJ40,(T144+AJ31*D19)/AK40,(T145+AJ31*D19)/AL40,(T146+AJ31*D19)/AM40)*AN40 -> 457.6 | AK84: =MIN((U142+AJ31*D19)/AI40,(U143+AJ31*D19)/AJ40,(U144+AJ31*D19)/AK40,(U145+AJ31*D19)/AL40,(U146+AJ31*D19)/AM40)*AN40 -> 466 | AL84: =MIN((V142+AJ31*D19)/AI40,(V143+AJ31*D19)/AJ40,(V144+AJ31*D19)/AK40,(V145+AJ31*D19)/AL40,(V146+AJ31*D19)/AM40)*AN40 -> 464 | AM84: =MIN((W142+AJ31*D19)/AI40,(W143+AJ31*D19)/AJ40,(W144+AJ31*D19)/AK40,(W145+AJ31*D19)/AL40,(W146+AJ31*D19)/AM40)*AN40 -> 455.3333333 | AN84: =MIN((X142+AJ31*D19)/AI40,(X143+AJ31*D19)/AJ40,(X144+AJ31*D19)/AK40,(X145+AJ31*D19)/AL40,(X146+AJ31*D19)/AM40)*AN40 -> 455.3333333 | AO84: =MIN((Y142+AJ31*D19)/AI40,(Y143+AJ31*D19)/AJ40,(Y144+AJ31*D19)/AK40,(Y145+AJ31*D19)/AL40,(Y146+AJ31*D19)/AM40)*AN40 -> 451.2 | AP84: =MIN((Z142+AJ31*D19)/AI40,(Z143+AJ31*D19)/AJ40,(Z144+AJ31*D19)/AK40,(Z145+AJ31*D19)/AL40,(Z146+AJ31*D19)/AM40)*AN40 -> 462 | AQ84: =MIN((AA142+AJ31*D19)/AI40,(AA143+AJ31*D19)/AJ40,(AA144+AJ31*D19)/AK40,(AA145+AJ31*D19)/AL40,(AA146+AJ31*D19)/AM40)*AN40 -> 459.3333333 | AR84: =MIN((AB142+AJ31*D19)/AI40,(AB143+AJ31*D19)/AJ40,(AB144+AJ31*D19)/AK40,(AB145+AJ31*D19)/AL40,(AB146+AJ31*D19)/AM40)*AN40 -> 462 | AS84: =MIN((AC142+AJ31*D19)/AI40,(AC143+AJ31*D19)/AJ40,(AC144+AJ31*D19)/AK40,(AC145+AJ31*D19)/AL40,(AC146+AJ31*D19)/AM40)*AN40 -> 457.3333333 | AT84: =MIN((AD142+AJ31*D19)/AI40,(AD143+AJ31*D19)/AJ40,(AD144+AJ31*D19)/AK40,(AD145+AJ31*D19)/AL40,(AD146+AJ31*D19)/AM40)*AN40 -> 452 | AU84: =MIN((AE142+AJ31*D19)/AI40,(AE143+AJ31*D19)/AJ40,(AE144+AJ31*D19)/AK40,(AE145+AJ31*D19)/AL40,(AE146+AJ31*D19)/AM40)*AN40 -> 459.3333333 | AV84: =MIN((AF142+AJ31*D19)/AI40,(AF143+AJ31*D19)/AJ40,(AF144+AJ31*D19)/AK40,(AF145+AJ31*D19)/AL40,(AF146+AJ31*D19)/AM40)*AN40 -> 462 | AW84: 466 | AY84: Pullrouge 3 | AZ84: =MIN((S142+AK31*D19)/AI41,(S143+AK31*D19)/AJ41,(S144+AK31*D19)/AK41,(S145+AK31*D19)/AL41,(S146+AK31*D19)/AM41)*AN41 -> 446.4 | BA84: =MIN((T142+AK31*D19)/AI41,(T143+AK31*D19)/AJ41,(T144+AK31*D19)/AK41,(T145+AK31*D19)/AL41,(T146+AK31*D19)/AM41)*AN41 -> 457.6 | BB84: =MIN((U142+AK31*D19)/AI41,(U143+AK31*D19)/AJ41,(U144+AK31*D19)/AK41,(U145+AK31*D19)/AL41,(U146+AK31*D19)/AM41)*AN41 -> 468 | BC84: =MIN((V142+AK31*D19)/AI41,(V143+AK31*D19)/AJ41,(V144+AK31*D19)/AK41,(V145+AK31*D19)/AL41,(V146+AK31*D19)/AM41)*AN41 -> 472.8 | BD84: =MIN((W142+AK31*D19)/AI41,(W143+AK31*D19)/AJ41,(W144+AK31*D19)/AK41,(W145+AK31*D19)/AL41,(W146+AK31*D19)/AM41)*AN41 -> 482.4 | BE84: =MIN((X142+AK31*D19)/AI41,(X143+AK31*D19)/AJ41,(X144+AK31*D19)/AK41,(X145+AK31*D19)/AL41,(X146+AK31*D19)/AM41)*AN41 -> 462.4 | BF84: =MIN((Y142+AK31*D19)/AI41,(Y143+AK31*D19)/AJ41,(Y144+AK31*D19)/AK41,(Y145+AK31*D19)/AL41,(Y146+AK31*D19)/AM41)*AN41 -> 451.2 | BG84: =MIN((Z142+AK31*D19)/AI41,(Z143+AK31*D19)/AJ41,(Z144+AK31*D19)/AK41,(Z145+AK31*D19)/AL41,(Z146+AK31*D19)/AM41)*AN41 -> 470.4 | BH84: =MIN((AA142+AK31*D19)/AI41,(AA143+AK31*D19)/AJ41,(AA144+AK31*D19)/AK41,(AA145+AK31*D19)/AL41,(AA146+AK31*D19)/AM41)*AN41 -> 467.2 | BI84: =MIN((AB142+AK31*D19)/AI41,(AB143+AK31*D19)/AJ41,(AB144+AK31*D19)/AK41,(AB145+AK31*D19)/AL41,(AB146+AK31*D19)/AM41)*AN41 -> 462 | BJ84: =MIN((AC142+AK31*D19)/AI41,(AC143+AK31*D19)/AJ41,(AC144+AK31*D19)/AK41,(AC145+AK31*D19)/AL41,(AC146+AK31*D19)/AM41)*AN41 -> 464.6666667 | BK84: =MIN((AD142+AK31*D19)/AI41,(AD143+AK31*D19)/AJ41,(AD144+AK31*D19)/AK41,(AD145+AK31*D19)/AL41,(AD146+AK31*D19)/AM41)*AN41 -> 458.4 | BL84: =MIN((AE142+AK31*D19)/AI41,(AE143+AK31*D19)/AJ41,(AE144+AK31*D19)/AK41,(AE145+AK31*D19)/AL41,(AE146+AK31*D19)/AM41)*AN41 -> 460 | BM84: =MIN((AF142+AK31*D19)/AI41,(AF143+AK31*D19)/AJ41,(AF144+AK31*D19)/AK41,(AF145+AK31*D19)/AL41,(AF146+AK31*D19)/AM41)*AN41 -> 464.6666667 | BN84: 482.4 | BP84: =AZ91 -> kit 1 | BQ84: kit 2A | BR84: kit 2B | BS84: kit 4A | BT84: kit 4B | BU84: kit 5 | BV84: kit 6A | BW84: kit 6B | BX84: kit 7 | BY84: kit 8 | BZ84: kit 9A | CA84: kit 9B | CB84: kit 10 | CC84: kit 11
E85: 1.27155 | F85: 0.54495 | G85: 1.8165 | H85: 1.4532 | I85: 0.3633 | J85: 1.8165 | K85: 0.95365 | L85: 0.4087 | M85: 1.36235 | N85: 1.90735 | O85: 0.8174 | P85: 2.72475 | R85: =G15 -> @5 | S85: =S78 -> kit 1 | T85: =T78 -> kit 2A | U85: kit 2B | V85: kit 4A | W85: kit 4B | X85: kit 5 | Y85: kit 6A | Z85: kit 6B | AA85: kit 7 | AB85: kit 8 | AC85: kit 9A | AD85: kit 9B | AE85: kit 10 | AF85: kit 11 | AH85: £vente | AI85: =MIN((S149+AJ31*D19)/AI40,(S150+AJ31*D19)/AJ40,(S151+AJ31*D19)/AK40,(S152+AJ31*D19)/AL40,(S153+AJ31*D19)/AM40)*AN40 -> 418.6666667 | AJ85: =MIN((T149+AJ31*D19)/AI40,(T150+AJ31*D19)/AJ40,(T151+AJ31*D19)/AK40,(T152+AJ31*D19)/AL40,(T153+AJ31*D19)/AM40)*AN40 -> 456 | AK85: =MIN((U149+AJ31*D19)/AI40,(U150+AJ31*D19)/AJ40,(U151+AJ31*D19)/AK40,(U152+AJ31*D19)/AL40,(U153+AJ31*D19)/AM40)*AN40 -> 456 | AL85: =MIN((V149+AJ31*D19)/AI40,(V150+AJ31*D19)/AJ40,(V151+AJ31*D19)/AK40,(V152+AJ31*D19)/AL40,(V153+AJ31*D19)/AM40)*AN40 -> 454 | AM85: =MIN((W149+AJ31*D19)/AI40,(W150+AJ31*D19)/AJ40,(W151+AJ31*D19)/AK40,(W152+AJ31*D19)/AL40,(W153+AJ31*D19)/AM40)*AN40 -> 445.3333333 | AN85: =MIN((X149+AJ31*D19)/AI40,(X150+AJ31*D19)/AJ40,(X151+AJ31*D19)/AK40,(X152+AJ31*D19)/AL40,(X153+AJ31*D19)/AM40)*AN40 -> 445.3333333 | AO85: =MIN((Y149+AJ31*D19)/AI40,(Y150+AJ31*D19)/AJ40,(Y151+AJ31*D19)/AK40,(Y152+AJ31*D19)/AL40,(Y153+AJ31*D19)/AM40)*AN40 -> 452 | AP85: =MIN((Z149+AJ31*D19)/AI40,(Z150+AJ31*D19)/AJ40,(Z151+AJ31*D19)/AK40,(Z152+AJ31*D19)/AL40,(Z153+AJ31*D19)/AM40)*AN40 -> 452 | AQ85: =MIN((AA149+AJ31*D19)/AI40,(AA150+AJ31*D19)/AJ40,(AA151+AJ31*D19)/AK40,(AA152+AJ31*D19)/AL40,(AA153+AJ31*D19)/AM40)*AN40 -> 449.3333333 | AR85: =MIN((AB149+AJ31*D19)/AI40,(AB150+AJ31*D19)/AJ40,(AB151+AJ31*D19)/AK40,(AB152+AJ31*D19)/AL40,(AB153+AJ31*D19)/AM40)*AN40 -> 452 | AS85: =MIN((AC149+AJ31*D19)/AI40,(AC150+AJ31*D19)/AJ40,(AC151+AJ31*D19)/AK40,(AC152+AJ31*D19)/AL40,(AC153+AJ31*D19)/AM40)*AN40 -> 447.3333333 | AT85: =MIN((AD149+AJ31*D19)/AI40,(AD150+AJ31*D19)/AJ40,(AD151+AJ31*D19)/AK40,(AD152+AJ31*D19)/AL40,(AD153+AJ31*D19)/AM40)*AN40 -> 442 | AU85: =MIN((AE149+AJ31*D19)/AI40,(AE150+AJ31*D19)/AJ40,(AE151+AJ31*D19)/AK40,(AE152+AJ31*D19)/AL40,(AE153+AJ31*D19)/AM40)*AN40 -> 449.3333333 | AV85: =MIN((AF149+AJ31*D19)/AI40,(AF150+AJ31*D19)/AJ40,(AF151+AJ31*D19)/AK40,(AF152+AJ31*D19)/AL40,(AF153+AJ31*D19)/AM40)*AN40 -> 452 | AW85: 456 | AY85: £vente | AZ85: =MIN((S149+AK31*D19)/AI41,(S150+AK31*D19)/AJ41,(S151+AK31*D19)/AK41,(S152+AK31*D19)/AL41,(S153+AK31*D19)/AM41)*AN41 -> 426.6666667 | BA85: =MIN((T149+AK31*D19)/AI41,(T150+AK31*D19)/AJ41,(T151+AK31*D19)/AK41,(T152+AK31*D19)/AL41,(T153+AK31*D19)/AM41)*AN41 -> 450.6666667 | BB85: =MIN((U149+AK31*D19)/AI41,(U150+AK31*D19)/AJ41,(U151+AK31*D19)/AK41,(U152+AK31*D19)/AL41,(U153+AK31*D19)/AM41)*AN41 -> 444.6666667 | BC85: =MIN((V149+AK31*D19)/AI41,(V150+AK31*D19)/AJ41,(V151+AK31*D19)/AK41,(V152+AK31*D19)/AL41,(V153+AK31*D19)/AM41)*AN41 -> 456.6666667 | BD85: =MIN((W149+AK31*D19)/AI41,(W150+AK31*D19)/AJ41,(W151+AK31*D19)/AK41,(W152+AK31*D19)/AL41,(W153+AK31*D19)/AM41)*AN41 -> 456.6666667 | BE85: =MIN((X149+AK31*D19)/AI41,(X150+AK31*D19)/AJ41,(X151+AK31*D19)/AK41,(X152+AK31*D19)/AL41,(X153+AK31*D19)/AM41)*AN41 -> 450.6666667 | BF85: =MIN((Y149+AK31*D19)/AI41,(Y150+AK31*D19)/AJ41,(Y151+AK31*D19)/AK41,(Y152+AK31*D19)/AL41,(Y153+AK31*D19)/AM41)*AN41 -> 446.6666667 | BG85: =MIN((Z149+AK31*D19)/AI41,(Z150+AK31*D19)/AJ41,(Z151+AK31*D19)/AK41,(Z152+AK31*D19)/AL41,(Z153+AK31*D19)/AM41)*AN41 -> 446.6666667 | BH85: =MIN((AA149+AK31*D19)/AI41,(AA150+AK31*D19)/AJ41,(AA151+AK31*D19)/AK41,(AA152+AK31*D19)/AL41,(AA153+AK31*D19)/AM41)*AN41 -> 444 | BI85: =MIN((AB149+AK31*D19)/AI41,(AB150+AK31*D19)/AJ41,(AB151+AK31*D19)/AK41,(AB152+AK31*D19)/AL41,(AB153+AK31*D19)/AM41)*AN41 -> 434 | BJ85: =MIN((AC149+AK31*D19)/AI41,(AC150+AK31*D19)/AJ41,(AC151+AK31*D19)/AK41,(AC152+AK31*D19)/AL41,(AC153+AK31*D19)/AM41)*AN41 -> 436.6666667 | BK85: =MIN((AD149+AK31*D19)/AI41,(AD150+AK31*D19)/AJ41,(AD151+AK31*D19)/AK41,(AD152+AK31*D19)/AL41,(AD153+AK31*D19)/AM41)*AN41 -> 446.6666667 | BL85: =MIN((AE149+AK31*D19)/AI41,(AE150+AK31*D19)/AJ41,(AE151+AK31*D19)/AK41,(AE152+AK31*D19)/AL41,(AE153+AK31*D19)/AM41)*AN41 -> 432 | BM85: =MIN((AF149+AK31*D19)/AI41,(AF150+AK31*D19)/AJ41,(AF151+AK31*D19)/AK41,(AF152+AK31*D19)/AL41,(AF153+AK31*D19)/AM41)*AN41 -> 436.6666667 | BN85: 456.6666667 | BP85: =AZ91 -> kit 1 | BQ85: kit 2A | BR85: kit 2B | BS85: kit 4A | BT85: kit 4B | BU85: kit 5 | BV85: kit 6A | BW85: kit 6B | BX85: kit 7 | BY85: kit 8 | BZ85: kit 9A | CA85: kit 9B | CB85: kit 10 | CC85: kit 11
E86: 0.95365 | F86: 0.4087 | G86: 1.36235 | H86: 1.90735 | I86: 0.8174 | J86: 2.72475 | K86: 1.27155 | L86: 0.54495 | M86: 1.8165 | N86: 1.27155 | O86: 0.54495 | P86: 1.8165 | R86: =H15+AF39+D16+D17+D21 -> 708 | S86: =R86+Q10 -> 737 | T86: =R86+R10 -> 773 | U86: =R86+S10 -> 764 | V86: =R86+T10 -> 782 | W86: =R86+U10 -> 782 | X86: =R86+V10 -> 773 | Y86: =R86+W10 -> 767 | Z86: =R86+X10 -> 767 | AA86: =R86+Y10 -> 763 | AB86: =R86+Z10 -> 748 | AC86: =R86+AA10 -> 752 | AD86: =R86+AB10 -> 767 | AE86: =R86+AC10 -> 745 | AF86: =R86+AD10 -> 752 | AH86: @3612 | AI86: =MIN((S156+AJ31*D19)/AI40,(S157+AJ31*D19)/AJ40,(S158+AJ31*D19)/AK40,(S159+AJ31*D19)/AL40,(S160+AJ31*D19)/AM40)*AN40 -> 403.2 | AJ86: =MIN((T156+AJ31*D19)/AI40,(T157+AJ31*D19)/AJ40,(T158+AJ31*D19)/AK40,(T159+AJ31*D19)/AL40,(T160+AJ31*D19)/AM40)*AN40 -> 432 | AK86: =MIN((U156+AJ31*D19)/AI40,(U157+AJ31*D19)/AJ40,(U158+AJ31*D19)/AK40,(U159+AJ31*D19)/AL40,(U160+AJ31*D19)/AM40)*AN40 -> 424.8 | AL86: =MIN((V156+AJ31*D19)/AI40,(V157+AJ31*D19)/AJ40,(V158+AJ31*D19)/AK40,(V159+AJ31*D19)/AL40,(V160+AJ31*D19)/AM40)*AN40 -> 439.2 | AM86: =MIN((W156+AJ31*D19)/AI40,(W157+AJ31*D19)/AJ40,(W158+AJ31*D19)/AK40,(W159+AJ31*D19)/AL40,(W160+AJ31*D19)/AM40)*AN40 -> 439.2 | AN86: =MIN((X156+AJ31*D19)/AI40,(X157+AJ31*D19)/AJ40,(X158+AJ31*D19)/AK40,(X159+AJ31*D19)/AL40,(X160+AJ31*D19)/AM40)*AN40 -> 432 | AO86: =MIN((Y156+AJ31*D19)/AI40,(Y157+AJ31*D19)/AJ40,(Y158+AJ31*D19)/AK40,(Y159+AJ31*D19)/AL40,(Y160+AJ31*D19)/AM40)*AN40 -> 427.2 | AP86: =MIN((Z156+AJ31*D19)/AI40,(Z157+AJ31*D19)/AJ40,(Z158+AJ31*D19)/AK40,(Z159+AJ31*D19)/AL40,(Z160+AJ31*D19)/AM40)*AN40 -> 427.2 | AQ86: =MIN((AA156+AJ31*D19)/AI40,(AA157+AJ31*D19)/AJ40,(AA158+AJ31*D19)/AK40,(AA159+AJ31*D19)/AL40,(AA160+AJ31*D19)/AM40)*AN40 -> 424 | AR86: =MIN((AB156+AJ31*D19)/AI40,(AB157+AJ31*D19)/AJ40,(AB158+AJ31*D19)/AK40,(AB159+AJ31*D19)/AL40,(AB160+AJ31*D19)/AM40)*AN40 -> 412 | AS86: =MIN((AC156+AJ31*D19)/AI40,(AC157+AJ31*D19)/AJ40,(AC158+AJ31*D19)/AK40,(AC159+AJ31*D19)/AL40,(AC160+AJ31*D19)/AM40)*AN40 -> 415.2 | AT86: =MIN((AD156+AJ31*D19)/AI40,(AD157+AJ31*D19)/AJ40,(AD158+AJ31*D19)/AK40,(AD159+AJ31*D19)/AL40,(AD160+AJ31*D19)/AM40)*AN40 -> 427.2 | AU86: =MIN((AE156+AJ31*D19)/AI40,(AE157+AJ31*D19)/AJ40,(AE158+AJ31*D19)/AK40,(AE159+AJ31*D19)/AL40,(AE160+AJ31*D19)/AM40)*AN40 -> 409.6 | AV86: =MIN((AF156+AJ31*D19)/AI40,(AF157+AJ31*D19)/AJ40,(AF158+AJ31*D19)/AK40,(AF159+AJ31*D19)/AL40,(AF160+AJ31*D19)/AM40)*AN40 -> 415.2 | AW86: 439.2 | AY86: @3612 | AZ86: =MIN((S156+AK31*D19)/AI41,(S157+AK31*D19)/AJ41,(S158+AK31*D19)/AK41,(S159+AK31*D19)/AL41,(S160+AK31*D19)/AM41)*AN41 -> 336 | BA86: =MIN((T156+AK31*D19)/AI41,(T157+AK31*D19)/AJ41,(T158+AK31*D19)/AK41,(T159+AK31*D19)/AL41,(T160+AK31*D19)/AM41)*AN41 -> 360 | BB86: =MIN((U156+AK31*D19)/AI41,(U157+AK31*D19)/AJ41,(U158+AK31*D19)/AK41,(U159+AK31*D19)/AL41,(U160+AK31*D19)/AM41)*AN41 -> 354 | BC86: =MIN((V156+AK31*D19)/AI41,(V157+AK31*D19)/AJ41,(V158+AK31*D19)/AK41,(V159+AK31*D19)/AL41,(V160+AK31*D19)/AM41)*AN41 -> 366 | BD86: =MIN((W156+AK31*D19)/AI41,(W157+AK31*D19)/AJ41,(W158+AK31*D19)/AK41,(W159+AK31*D19)/AL41,(W160+AK31*D19)/AM41)*AN41 -> 366 | BE86: =MIN((X156+AK31*D19)/AI41,(X157+AK31*D19)/AJ41,(X158+AK31*D19)/AK41,(X159+AK31*D19)/AL41,(X160+AK31*D19)/AM41)*AN41 -> 360 | BF86: =MIN((Y156+AK31*D19)/AI41,(Y157+AK31*D19)/AJ41,(Y158+AK31*D19)/AK41,(Y159+AK31*D19)/AL41,(Y160+AK31*D19)/AM41)*AN41 -> 356 | BG86: =MIN((Z156+AK31*D19)/AI41,(Z157+AK31*D19)/AJ41,(Z158+AK31*D19)/AK41,(Z159+AK31*D19)/AL41,(Z160+AK31*D19)/AM41)*AN41 -> 356 | BH86: =MIN((AA156+AK31*D19)/AI41,(AA157+AK31*D19)/AJ41,(AA158+AK31*D19)/AK41,(AA159+AK31*D19)/AL41,(AA160+AK31*D19)/AM41)*AN41 -> 353.3333333 | BI86: =MIN((AB156+AK31*D19)/AI41,(AB157+AK31*D19)/AJ41,(AB158+AK31*D19)/AK41,(AB159+AK31*D19)/AL41,(AB160+AK31*D19)/AM41)*AN41 -> 343.3333333 | BJ86: =MIN((AC156+AK31*D19)/AI41,(AC157+AK31*D19)/AJ41,(AC158+AK31*D19)/AK41,(AC159+AK31*D19)/AL41,(AC160+AK31*D19)/AM41)*AN41 -> 346 | BK86: =MIN((AD156+AK31*D19)/AI41,(AD157+AK31*D19)/AJ41,(AD158+AK31*D19)/AK41,(AD159+AK31*D19)/AL41,(AD160+AK31*D19)/AM41)*AN41 -> 356 | BL86: =MIN((AE156+AK31*D19)/AI41,(AE157+AK31*D19)/AJ41,(AE158+AK31*D19)/AK41,(AE159+AK31*D19)/AL41,(AE160+AK31*D19)/AM41)*AN41 -> 341.3333333 | BM86: =MIN((AF156+AK31*D19)/AI41,(AF157+AK31*D19)/AJ41,(AF158+AK31*D19)/AK41,(AF159+AK31*D19)/AL41,(AF160+AK31*D19)/AM41)*AN41 -> 346 | BN86: 366 | BP86: =AZ91 -> kit 1 | BQ86: kit 2A | BR86: kit 2B | BS86: kit 4A | BT86: kit 4B | BU86: kit 5 | BV86: kit 6A | BW86: kit 6B | BX86: kit 7 | BY86: kit 8 | BZ86: kit 9A | CA86: kit 9B | CB86: kit 10 | CC86: kit 11
G87: =SUM(G76:G86) -> 19.9813 | J87: =SUM(J76:J86) -> 19.9758 | M87: =SUM(M76:M86) -> 19.9813 | P87: =SUM(P76:P86) -> 19.9759 | R87: =I15+AF40+D15+D17+D21 -> 696 | S87: =R87+Q11 -> 773 | T87: =R87+R11 -> 739 | U87: =R87+S11 -> 739 | V87: =R87+T11 -> 721 | W87: =R87+U11 -> 733 | X87: =R87+V11 -> 745 | Y87: =R87+W11 -> 755 | Z87: =R87+X11 -> 742 | AA87: =R87+Y11 -> 751 | AB87: =R87+Z11 -> 755 | AC87: =R87+AA11 -> 755 | AD87: =R87+AB11 -> 764 | AE87: =R87+AC11 -> 761 | AF87: =R87+AD11 -> 755 | AI87: =MIN((S163+AJ31*D19)/AI40,(S164+AJ31*D19)/AJ40,(S165+AJ31*D19)/AK40,(S166+AJ31*D19)/AL40,(S167+AJ31*D19)/AM40)*AN40 ->  | AJ87: =MIN((T163+AJ31*D19)/AI40,(T164+AJ31*D19)/AJ40,(T165+AJ31*D19)/AK40,(T166+AJ31*D19)/AL40,(T167+AJ31*D19)/AM40)*AN40 ->  | AK87: =MIN((U163+AJ31*D19)/AI40,(U164+AJ31*D19)/AJ40,(U165+AJ31*D19)/AK40,(U166+AJ31*D19)/AL40,(U167+AJ31*D19)/AM40)*AN40 ->  | AL87: =MIN((V163+AJ31*D19)/AI40,(V164+AJ31*D19)/AJ40,(V165+AJ31*D19)/AK40,(V166+AJ31*D19)/AL40,(V167+AJ31*D19)/AM40)*AN40 ->  | AM87: =MIN((W163+AJ31*D19)/AI40,(W164+AJ31*D19)/AJ40,(W165+AJ31*D19)/AK40,(W166+AJ31*D19)/AL40,(W167+AJ31*D19)/AM40)*AN40 ->  | AN87: =MIN((X163+AJ31*D19)/AI40,(X164+AJ31*D19)/AJ40,(X165+AJ31*D19)/AK40,(X166+AJ31*D19)/AL40,(X167+AJ31*D19)/AM40)*AN40 ->  | AO87: =MIN((Y163+AJ31*D19)/AI40,(Y164+AJ31*D19)/AJ40,(Y165+AJ31*D19)/AK40,(Y166+AJ31*D19)/AL40,(Y167+AJ31*D19)/AM40)*AN40 ->  | AP87: =MIN((Z163+AJ31*D19)/AI40,(Z164+AJ31*D19)/AJ40,(Z165+AJ31*D19)/AK40,(Z166+AJ31*D19)/AL40,(Z167+AJ31*D19)/AM40)*AN40 ->  | AQ87: =MIN((AA163+AJ31*D19)/AI40,(AA164+AJ31*D19)/AJ40,(AA165+AJ31*D19)/AK40,(AA166+AJ31*D19)/AL40,(AA167+AJ31*D19)/AM40)*AN40 ->  | AR87: =MIN((AB163+AJ31*D19)/AI40,(AB164+AJ31*D19)/AJ40,(AB165+AJ31*D19)/AK40,(AB166+AJ31*D19)/AL40,(AB167+AJ31*D19)/AM40)*AN40 ->  | AS87: =MIN((AC163+AJ31*D19)/AI40,(AC164+AJ31*D19)/AJ40,(AC165+AJ31*D19)/AK40,(AC166+AJ31*D19)/AL40,(AC167+AJ31*D19)/AM40)*AN40 ->  | AT87: =MIN((AD163+AJ31*D19)/AI40,(AD164+AJ31*D19)/AJ40,(AD165+AJ31*D19)/AK40,(AD166+AJ31*D19)/AL40,(AD167+AJ31*D19)/AM40)*AN40 ->  | AU87: =MIN((AE163+AJ31*D19)/AI40,(AE164+AJ31*D19)/AJ40,(AE165+AJ31*D19)/AK40,(AE166+AJ31*D19)/AL40,(AE167+AJ31*D19)/AM40)*AN40 ->  | AV87: =MIN((AF163+AJ31*D19)/AI40,(AF164+AJ31*D19)/AJ40,(AF165+AJ31*D19)/AK40,(AF166+AJ31*D19)/AL40,(AF167+AJ31*D19)/AM40)*AN40 ->  | AZ87: =MIN((S163+AK31*D19)/AI41,(S164+AK31*D19)/AJ41,(S165+AK31*D19)/AK41,(S166+AK31*D19)/AL41,(S167+AK31*D19)/AM41)*AN41 ->  | BA87: =MIN((T163+AK31*D19)/AI41,(T164+AK31*D19)/AJ41,(T165+AK31*D19)/AK41,(T166+AK31*D19)/AL41,(T167+AK31*D19)/AM41)*AN41 ->  | BB87: =MIN((U163+AK31*D19)/AI41,(U164+AK31*D19)/AJ41,(U165+AK31*D19)/AK41,(U166+AK31*D19)/AL41,(U167+AK31*D19)/AM41)*AN41 ->  | BC87: =MIN((V163+AK31*D19)/AI41,(V164+AK31*D19)/AJ41,(V165+AK31*D19)/AK41,(V166+AK31*D19)/AL41,(V167+AK31*D19)/AM41)*AN41 ->  | BD87: =MIN((W163+AK31*D19)/AI41,(W164+AK31*D19)/AJ41,(W165+AK31*D19)/AK41,(W166+AK31*D19)/AL41,(W167+AK31*D19)/AM41)*AN41 ->  | BE87: =MIN((X163+AK31*D19)/AI41,(X164+AK31*D19)/AJ41,(X165+AK31*D19)/AK41,(X166+AK31*D19)/AL41,(X167+AK31*D19)/AM41)*AN41 ->  | BF87: =MIN((Y163+AK31*D19)/AI41,(Y164+AK31*D19)/AJ41,(Y165+AK31*D19)/AK41,(Y166+AK31*D19)/AL41,(Y167+AK31*D19)/AM41)*AN41 ->  | BG87: =MIN((Z163+AK31*D19)/AI41,(Z164+AK31*D19)/AJ41,(Z165+AK31*D19)/AK41,(Z166+AK31*D19)/AL41,(Z167+AK31*D19)/AM41)*AN41 ->  | BH87: =MIN((AA163+AK31*D19)/AI41,(AA164+AK31*D19)/AJ41,(AA165+AK31*D19)/AK41,(AA166+AK31*D19)/AL41,(AA167+AK31*D19)/AM41)*AN41 ->  | BI87: =MIN((AB163+AK31*D19)/AI41,(AB164+AK31*D19)/AJ41,(AB165+AK31*D19)/AK41,(AB166+AK31*D19)/AL41,(AB167+AK31*D19)/AM41)*AN41 ->  | BJ87: =MIN((AC163+AK31*D19)/AI41,(AC164+AK31*D19)/AJ41,(AC165+AK31*D19)/AK41,(AC166+AK31*D19)/AL41,(AC167+AK31*D19)/AM41)*AN41 ->  | BK87: =MIN((AD163+AK31*D19)/AI41,(AD164+AK31*D19)/AJ41,(AD165+AK31*D19)/AK41,(AD166+AK31*D19)/AL41,(AD167+AK31*D19)/AM41)*AN41 ->  | BL87: =MIN((AE163+AK31*D19)/AI41,(AE164+AK31*D19)/AJ41,(AE165+AK31*D19)/AK41,(AE166+AK31*D19)/AL41,(AE167+AK31*D19)/AM41)*AN41 ->  | BM87: =MIN((AF163+AK31*D19)/AI41,(AF164+AK31*D19)/AJ41,(AF165+AK31*D19)/AK41,(AF166+AK31*D19)/AL41,(AF167+AK31*D19)/AM41)*AN41 ->  | BP87: =AZ91 -> kit 1 | BQ87: kit 2A | BR87: kit 2B | BS87: kit 4A | BT87: kit 4B | BU87: kit 5 | BV87: kit 6A | BW87: kit 6B | BX87: kit 7 | BY87: kit 8 | BZ87: kit 9A | CA87: kit 9B | CB87: kit 10 | CC87: kit 11
E88: 541 offensif | H88: 433 offensif | K88: 352 offensif | N88: 442 offensif | R88: =J15+AF41+D15+D17+D21 -> 648 | S88: =R88+Q12 -> 677 | T88: =R88+R12 -> 691 | U88: =R88+S12 -> 704 | V88: =R88+T12 -> 710 | W88: =R88+U12 -> 722 | X88: =R88+V12 -> 697 | Y88: =R88+W12 -> 683 | Z88: =R88+X12 -> 707 | AA88: =R88+Y12 -> 703 | AB88: =R88+Z12 -> 707 | AC88: =R88+AA12 -> 716 | AD88: =R88+AB12 -> 692 | AE88: =R88+AC12 -> 694 | AF88: =R88+AD12 -> 716 | AI88: =MIN((S170+AJ31*D19)/AI40,(S171+AJ31*D19)/AJ40,(S172+AJ31*D19)/AK40,(S173+AJ31*D19)/AL40,(S174+AJ31*D19)/AM40)*AN40 ->  | AJ88: =MIN((T170+AJ31*D19)/AI40,(T171+AJ31*D19)/AJ40,(T172+AJ31*D19)/AK40,(T173+AJ31*D19)/AL40,(T174+AJ31*D19)/AM40)*AN40 ->  | AK88: =MIN((U170+AJ31*D19)/AI40,(U171+AJ31*D19)/AJ40,(U172+AJ31*D19)/AK40,(U173+AJ31*D19)/AL40,(U174+AJ31*D19)/AM40)*AN40 ->  | AL88: =MIN((V170+AJ31*D19)/AI40,(V171+AJ31*D19)/AJ40,(V172+AJ31*D19)/AK40,(V173+AJ31*D19)/AL40,(V174+AJ31*D19)/AM40)*AN40 ->  | AM88: =MIN((W170+AJ31*D19)/AI40,(W171+AJ31*D19)/AJ40,(W172+AJ31*D19)/AK40,(W173+AJ31*D19)/AL40,(W174+AJ31*D19)/AM40)*AN40 ->  | AN88: =MIN((X170+AJ31*D19)/AI40,(X171+AJ31*D19)/AJ40,(X172+AJ31*D19)/AK40,(X173+AJ31*D19)/AL40,(X174+AJ31*D19)/AM40)*AN40 ->  | AO88: =MIN((Y170+AJ31*D19)/AI40,(Y171+AJ31*D19)/AJ40,(Y172+AJ31*D19)/AK40,(Y173+AJ31*D19)/AL40,(Y174+AJ31*D19)/AM40)*AN40 ->  | AP88: =MIN((Z170+AJ31*D19)/AI40,(Z171+AJ31*D19)/AJ40,(Z172+AJ31*D19)/AK40,(Z173+AJ31*D19)/AL40,(Z174+AJ31*D19)/AM40)*AN40 ->  | AQ88: =MIN((AA170+AJ31*D19)/AI40,(AA171+AJ31*D19)/AJ40,(AA172+AJ31*D19)/AK40,(AA173+AJ31*D19)/AL40,(AA174+AJ31*D19)/AM40)*AN40 ->  | AR88: =MIN((AB170+AJ31*D19)/AI40,(AB171+AJ31*D19)/AJ40,(AB172+AJ31*D19)/AK40,(AB173+AJ31*D19)/AL40,(AB174+AJ31*D19)/AM40)*AN40 ->  | AS88: =MIN((AC170+AJ31*D19)/AI40,(AC171+AJ31*D19)/AJ40,(AC172+AJ31*D19)/AK40,(AC173+AJ31*D19)/AL40,(AC174+AJ31*D19)/AM40)*AN40 ->  | AT88: =MIN((AD170+AJ31*D19)/AI40,(AD171+AJ31*D19)/AJ40,(AD172+AJ31*D19)/AK40,(AD173+AJ31*D19)/AL40,(AD174+AJ31*D19)/AM40)*AN40 ->  | AU88: =MIN((AE170+AJ31*D19)/AI40,(AE171+AJ31*D19)/AJ40,(AE172+AJ31*D19)/AK40,(AE173+AJ31*D19)/AL40,(AE174+AJ31*D19)/AM40)*AN40 ->  | AV88: =MIN((AF170+AJ31*D19)/AI40,(AF171+AJ31*D19)/AJ40,(AF172+AJ31*D19)/AK40,(AF173+AJ31*D19)/AL40,(AF174+AJ31*D19)/AM40)*AN40 ->  | AZ88: =MIN((S170+AK31*D19)/AI41,(S171+AK31*D19)/AJ41,(S172+AK31*D19)/AK41,(S173+AK31*D19)/AL41,(S174+AK31*D19)/AM41)*AN41 ->  | BA88: =MIN((T170+AK31*D19)/AI41,(T171+AK31*D19)/AJ41,(T172+AK31*D19)/AK41,(T173+AK31*D19)/AL41,(T174+AK31*D19)/AM41)*AN41 ->  | BB88: =MIN((U170+AK31*D19)/AI41,(U171+AK31*D19)/AJ41,(U172+AK31*D19)/AK41,(U173+AK31*D19)/AL41,(U174+AK31*D19)/AM41)*AN41 ->  | BC88: =MIN((V170+AK31*D19)/AI41,(V171+AK31*D19)/AJ41,(V172+AK31*D19)/AK41,(V173+AK31*D19)/AL41,(V174+AK31*D19)/AM41)*AN41 ->  | BD88: =MIN((W170+AK31*D19)/AI41,(W171+AK31*D19)/AJ41,(W172+AK31*D19)/AK41,(W173+AK31*D19)/AL41,(W174+AK31*D19)/AM41)*AN41 ->  | BE88: =MIN((X170+AK31*D19)/AI41,(X171+AK31*D19)/AJ41,(X172+AK31*D19)/AK41,(X173+AK31*D19)/AL41,(X174+AK31*D19)/AM41)*AN41 ->  | BF88: =MIN((Y170+AK31*D19)/AI41,(Y171+AK31*D19)/AJ41,(Y172+AK31*D19)/AK41,(Y173+AK31*D19)/AL41,(Y174+AK31*D19)/AM41)*AN41 ->  | BG88: =MIN((Z170+AK31*D19)/AI41,(Z171+AK31*D19)/AJ41,(Z172+AK31*D19)/AK41,(Z173+AK31*D19)/AL41,(Z174+AK31*D19)/AM41)*AN41 ->  | BH88: =MIN((AA170+AK31*D19)/AI41,(AA171+AK31*D19)/AJ41,(AA172+AK31*D19)/AK41,(AA173+AK31*D19)/AL41,(AA174+AK31*D19)/AM41)*AN41 ->  | BI88: =MIN((AB170+AK31*D19)/AI41,(AB171+AK31*D19)/AJ41,(AB172+AK31*D19)/AK41,(AB173+AK31*D19)/AL41,(AB174+AK31*D19)/AM41)*AN41 ->  | BJ88: =MIN((AC170+AK31*D19)/AI41,(AC171+AK31*D19)/AJ41,(AC172+AK31*D19)/AK41,(AC173+AK31*D19)/AL41,(AC174+AK31*D19)/AM41)*AN41 ->  | BK88: =MIN((AD170+AK31*D19)/AI41,(AD171+AK31*D19)/AJ41,(AD172+AK31*D19)/AK41,(AD173+AK31*D19)/AL41,(AD174+AK31*D19)/AM41)*AN41 ->  | BL88: =MIN((AE170+AK31*D19)/AI41,(AE171+AK31*D19)/AJ41,(AE172+AK31*D19)/AK41,(AE173+AK31*D19)/AL41,(AE174+AK31*D19)/AM41)*AN41 ->  | BM88: =MIN((AF170+AK31*D19)/AI41,(AF171+AK31*D19)/AJ41,(AF172+AK31*D19)/AK41,(AF173+AK31*D19)/AL41,(AF174+AK31*D19)/AM41)*AN41 ->  | BP88: =AZ91 -> kit 1 | BQ88: kit 2A | BR88: kit 2B | BS88: kit 4A | BT88: kit 4B | BU88: kit 5 | BV88: kit 6A | BW88: kit 6B | BX88: kit 7 | BY88: kit 8 | BZ88: kit 9A | CA88: kit 9B | CB88: kit 10 | CC88: kit 11
E89: 1% attaque | F89: 1% defense | G89: 1% cumulé | H89: 1% attaque | I89: 1% defense | J89: 1% cumulé | K89: 1% attaque | L89: 1% defense | M89: 1% cumulé | N89: 1% attaque | O89: 1% defense | P89: 1% cumulé | R89: =K15+AF42+D16+D17+D21 -> 640 | S89: =R89+Q13 -> 649 | T89: =R89+R13 -> 705 | U89: =R89+S13 -> 705 | V89: =R89+T13 -> 702 | W89: =R89+U13 -> 689 | X89: =R89+V13 -> 689 | Y89: =R89+W13 -> 699 | Z89: =R89+X13 -> 699 | AA89: =R89+Y13 -> 695 | AB89: =R89+Z13 -> 699 | AC89: =R89+AA13 -> 692 | AD89: =R89+AB13 -> 684 | AE89: =R89+AC13 -> 695 | AF89: =R89+AD13 -> 699 | AI89: =MIN((S177+AJ31*D19)/AI40,(S178+AJ31*D19)/AJ40,(S179+AJ31*D19)/AK40,(S180+AJ31*D19)/AL40,(S181+AJ31*D19)/AM40)*AN40 ->  | AJ89: =MIN((T177+AJ31*D19)/AI40,(T178+AJ31*D19)/AJ40,(T179+AJ31*D19)/AK40,(T180+AJ31*D19)/AL40,(T181+AJ31*D19)/AM40)*AN40 ->  | AK89: =MIN((U177+AJ31*D19)/AI40,(U178+AJ31*D19)/AJ40,(U179+AJ31*D19)/AK40,(U180+AJ31*D19)/AL40,(U181+AJ31*D19)/AM40)*AN40 ->  | AL89: =MIN((V177+AJ31*D19)/AI40,(V178+AJ31*D19)/AJ40,(V179+AJ31*D19)/AK40,(V180+AJ31*D19)/AL40,(V181+AJ31*D19)/AM40)*AN40 ->  | AM89: =MIN((W177+AJ31*D19)/AI40,(W178+AJ31*D19)/AJ40,(W179+AJ31*D19)/AK40,(W180+AJ31*D19)/AL40,(W181+AJ31*D19)/AM40)*AN40 ->  | AN89: =MIN((X177+AJ31*D19)/AI40,(X178+AJ31*D19)/AJ40,(X179+AJ31*D19)/AK40,(X180+AJ31*D19)/AL40,(X181+AJ31*D19)/AM40)*AN40 ->  | AO89: =MIN((Y177+AJ31*D19)/AI40,(Y178+AJ31*D19)/AJ40,(Y179+AJ31*D19)/AK40,(Y180+AJ31*D19)/AL40,(Y181+AJ31*D19)/AM40)*AN40 ->  | AP89: =MIN((Z177+AJ31*D19)/AI40,(Z178+AJ31*D19)/AJ40,(Z179+AJ31*D19)/AK40,(Z180+AJ31*D19)/AL40,(Z181+AJ31*D19)/AM40)*AN40 ->  | AQ89: =MIN((AA177+AJ31*D19)/AI40,(AA178+AJ31*D19)/AJ40,(AA179+AJ31*D19)/AK40,(AA180+AJ31*D19)/AL40,(AA181+AJ31*D19)/AM40)*AN40 ->  | AR89: =MIN((AB177+AJ31*D19)/AI40,(AB178+AJ31*D19)/AJ40,(AB179+AJ31*D19)/AK40,(AB180+AJ31*D19)/AL40,(AB181+AJ31*D19)/AM40)*AN40 ->  | AS89: =MIN((AC177+AJ31*D19)/AI40,(AC178+AJ31*D19)/AJ40,(AC179+AJ31*D19)/AK40,(AC180+AJ31*D19)/AL40,(AC181+AJ31*D19)/AM40)*AN40 ->  | AT89: =MIN((AD177+AJ31*D19)/AI40,(AD178+AJ31*D19)/AJ40,(AD179+AJ31*D19)/AK40,(AD180+AJ31*D19)/AL40,(AD181+AJ31*D19)/AM40)*AN40 ->  | AU89: =MIN((AE177+AJ31*D19)/AI40,(AE178+AJ31*D19)/AJ40,(AE179+AJ31*D19)/AK40,(AE180+AJ31*D19)/AL40,(AE181+AJ31*D19)/AM40)*AN40 ->  | AV89: =MIN((AF177+AJ31*D19)/AI40,(AF178+AJ31*D19)/AJ40,(AF179+AJ31*D19)/AK40,(AF180+AJ31*D19)/AL40,(AF181+AJ31*D19)/AM40)*AN40 ->  | AZ89: =MIN((S177+AK31*D19)/AI41,(S178+AK31*D19)/AJ41,(S179+AK31*D19)/AK41,(S180+AK31*D19)/AL41,(S181+AK31*D19)/AM41)*AN41 ->  | BA89: =MIN((T177+AK31*D19)/AI41,(T178+AK31*D19)/AJ41,(T179+AK31*D19)/AK41,(T180+AK31*D19)/AL41,(T181+AK31*D19)/AM41)*AN41 ->  | BB89: =MIN((U177+AK31*D19)/AI41,(U178+AK31*D19)/AJ41,(U179+AK31*D19)/AK41,(U180+AK31*D19)/AL41,(U181+AK31*D19)/AM41)*AN41 ->  | BC89: =MIN((V177+AK31*D19)/AI41,(V178+AK31*D19)/AJ41,(V179+AK31*D19)/AK41,(V180+AK31*D19)/AL41,(V181+AK31*D19)/AM41)*AN41 ->  | BD89: =MIN((W177+AK31*D19)/AI41,(W178+AK31*D19)/AJ41,(W179+AK31*D19)/AK41,(W180+AK31*D19)/AL41,(W181+AK31*D19)/AM41)*AN41 ->  | BE89: =MIN((X177+AK31*D19)/AI41,(X178+AK31*D19)/AJ41,(X179+AK31*D19)/AK41,(X180+AK31*D19)/AL41,(X181+AK31*D19)/AM41)*AN41 ->  | BF89: =MIN((Y177+AK31*D19)/AI41,(Y178+AK31*D19)/AJ41,(Y179+AK31*D19)/AK41,(Y180+AK31*D19)/AL41,(Y181+AK31*D19)/AM41)*AN41 ->  | BG89: =MIN((Z177+AK31*D19)/AI41,(Z178+AK31*D19)/AJ41,(Z179+AK31*D19)/AK41,(Z180+AK31*D19)/AL41,(Z181+AK31*D19)/AM41)*AN41 ->  | BH89: =MIN((AA177+AK31*D19)/AI41,(AA178+AK31*D19)/AJ41,(AA179+AK31*D19)/AK41,(AA180+AK31*D19)/AL41,(AA181+AK31*D19)/AM41)*AN41 ->  | BI89: =MIN((AB177+AK31*D19)/AI41,(AB178+AK31*D19)/AJ41,(AB179+AK31*D19)/AK41,(AB180+AK31*D19)/AL41,(AB181+AK31*D19)/AM41)*AN41 ->  | BJ89: =MIN((AC177+AK31*D19)/AI41,(AC178+AK31*D19)/AJ41,(AC179+AK31*D19)/AK41,(AC180+AK31*D19)/AL41,(AC181+AK31*D19)/AM41)*AN41 ->  | BK89: =MIN((AD177+AK31*D19)/AI41,(AD178+AK31*D19)/AJ41,(AD179+AK31*D19)/AK41,(AD180+AK31*D19)/AL41,(AD181+AK31*D19)/AM41)*AN41 ->  | BL89: =MIN((AE177+AK31*D19)/AI41,(AE178+AK31*D19)/AJ41,(AE179+AK31*D19)/AK41,(AE180+AK31*D19)/AL41,(AE181+AK31*D19)/AM41)*AN41 ->  | BM89: =MIN((AF177+AK31*D19)/AI41,(AF178+AK31*D19)/AJ41,(AF179+AK31*D19)/AK41,(AF180+AK31*D19)/AL41,(AF181+AK31*D19)/AM41)*AN41 ->  | BP89: =AZ91 -> kit 1 | BQ89: kit 2A | BR89: kit 2B | BS89: kit 4A | BT89: kit 4B | BU89: kit 5 | BV89: kit 6A | BW89: kit 6B | BX89: kit 7 | BY89: kit 8 | BZ89: kit 9A | CA89: kit 9B | CB89: kit 10 | CC89: kit 11
E90: 0.05445 | F90: 2.67025 | G90: =E90+F90 -> 2.7247 | H90: 0.27245 | I90: 2.4523 | J90: =H90+I90 -> 2.72475 | K90: 0.05445 | L90: 2.67025 | M90: =K90+L90 -> 2.7247 | N90: 0.05445 | O90: 2.67025 | P90: =N90+O90 -> 2.7247 | R90: =L15+AF43+D15+D17+D21 -> 702 | S90: =R90+Q14 -> 750 | T90: =R90+R14 -> 745 | U90: =R90+S14 -> 745 | V90: =R90+T14 -> 739 | W90: =R90+U14 -> 727 | X90: =R90+V14 -> 751 | Y90: =R90+W14 -> 748 | Z90: =R90+X14 -> 736 | AA90: =R90+Y14 -> 746 | AB90: =R90+Z14 -> 742 | AC90: =R90+AA14 -> 735 | AD90: =R90+AB14 -> 746 | AE90: =R90+AC14 -> 757 | AF90: =R90+AD14 -> 728 | BP90: =AZ91 -> kit 1 | BQ90: kit 2A | BR90: kit 2B | BS90: kit 4A | BT90: kit 4B | BU90: kit 5 | BV90: kit 6A | BW90: kit 6B | BX90: kit 7 | BY90: kit 8 | BZ90: kit 9A | CA90: kit 9B | CB90: kit 10 | CC90: kit 11
E91: 0.4087 | F91: 0.95365 | G91: =E91+F91 -> 1.36235 | H91: 0.95365 | I91: 0.4087 | J91: 1.36235 | K91: 1.36235 | L91: 0.90825 | M91: =K91+L91 -> 2.2706 | N91: 0.8174 | O91: 0.54495 | P91: =N91+O91 -> 1.36235 | AH91: 5 | AI91: =Q9 -> kit 1 | AJ91: kit 2A | AK91: kit 2B | AL91: kit 4A | AM91: kit 4B | AN91: kit 5 | AO91: kit 6A | AP91: kit 6B | AQ91: kit 7 | AR91: kit 8 | AS91: kit 9A | AT91: kit 9B | AU91: kit 10 | AV91: kit 11 | AW91: MAX | AY91: 6 | AZ91: =Q9 -> kit 1 | BA91: kit 2A | BB91: kit 2B | BC91: kit 4A | BD91: kit 4B | BE91: kit 5 | BF91: kit 6A | BG91: kit 6B | BH91: kit 7 | BI91: kit 8 | BJ91: kit 9A | BK91: kit 9B | BL91: kit 10 | BM91: kit 11 | BN91: MAX | BP91: =AZ91 -> kit 1 | BQ91: kit 2A | BR91: kit 2B | BS91: kit 4A | BT91: kit 4B | BU91: kit 5 | BV91: kit 6A | BW91: kit 6B | BX91: kit 7 | BY91: kit 8 | BZ91: kit 9A | CA91: kit 9B | CB91: kit 10 | CC91: kit 11
E92: 0.4087 | F92: 0.95365 | G92: 1.36235 | H92: 0.95365 | I92: 0.4087 | J92: 1.36235 | K92: 1.36235 | L92: 0.90825 | M92: 2.2706 | N92: 0.8174 | O92: 0.54495 | P92: 1.36235 | R92: =G16 -> 1 Atsuhiko | S92: =S85 -> kit 1 | T92: =T85 -> kit 2A | U92: kit 2B | V92: kit 4A | W92: kit 4B | X92: kit 5 | Y92: kit 6A | Z92: kit 6B | AA92: kit 7 | AB92: kit 8 | AC92: kit 9A | AD92: kit 9B | AE92: kit 10 | AF92: kit 11 | AH92: =AH152 -> G. Warmuz 430 | AI92: =MIN((S58+AL31*D19)/AI42,(S59+AL31*D19)/AJ42,(S60+AL31*D19)/AK42,(S61+AL31*D19)/AL42,(S62+AL31*D19)/AM42)*AN42 -> 420 | AJ92: =MIN((T58+AL31*D19)/AI42,(T59+AL31*D19)/AJ42,(T60+AL31*D19)/AK42,(T61+AL31*D19)/AL42,(T62+AL31*D19)/AM42)*AN42 -> 456 | AK92: =MIN((U58+AL31*D19)/AI42,(U59+AL31*D19)/AJ42,(U60+AL31*D19)/AK42,(U61+AL31*D19)/AL42,(U62+AL31*D19)/AM42)*AN42 -> 447 | AL92: =MIN((V58+AL31*D19)/AI42,(V59+AL31*D19)/AJ42,(V60+AL31*D19)/AK42,(V61+AL31*D19)/AL42,(V62+AL31*D19)/AM42)*AN42 -> 465 | AM92: =MIN((W58+AL31*D19)/AI42,(W59+AL31*D19)/AJ42,(W60+AL31*D19)/AK42,(W61+AL31*D19)/AL42,(W62+AL31*D19)/AM42)*AN42 -> 465 | AN92: =MIN((X58+AL31*D19)/AI42,(X59+AL31*D19)/AJ42,(X60+AL31*D19)/AK42,(X61+AL31*D19)/AL42,(X62+AL31*D19)/AM42)*AN42 -> 456 | AO92: =MIN((Y58+AL31*D19)/AI42,(Y59+AL31*D19)/AJ42,(Y60+AL31*D19)/AK42,(Y61+AL31*D19)/AL42,(Y62+AL31*D19)/AM42)*AN42 -> 450 | AP92: =MIN((Z58+AL31*D19)/AI42,(Z59+AL31*D19)/AJ42,(Z60+AL31*D19)/AK42,(Z61+AL31*D19)/AL42,(Z62+AL31*D19)/AM42)*AN42 -> 450 | AQ92: =MIN((AA58+AL31*D19)/AI42,(AA59+AL31*D19)/AJ42,(AA60+AL31*D19)/AK42,(AA61+AL31*D19)/AL42,(AA62+AL31*D19)/AM42)*AN42 -> 446 | AR92: =MIN((AB58+AL31*D19)/AI42,(AB59+AL31*D19)/AJ42,(AB60+AL31*D19)/AK42,(AB61+AL31*D19)/AL42,(AB62+AL31*D19)/AM42)*AN42 -> 431 | AS92: =MIN((AC58+AL31*D19)/AI42,(AC59+AL31*D19)/AJ42,(AC60+AL31*D19)/AK42,(AC61+AL31*D19)/AL42,(AC62+AL31*D19)/AM42)*AN42 -> 435 | AT92: , | AU92: =MIN((AE58+AL31*D19)/AI42,(AE59+AL31*D19)/AJ42,(AE60+AL31*D19)/AK42,(AE61+AL31*D19)/AL42,(AE62+AL31*D19)/AM42)*AN42 -> 428 | AV92: =MIN((AF58+AL31*D19)/AI42,(AF59+AL31*D19)/AJ42,(AF60+AL31*D19)/AK42,(AF61+AL31*D19)/AL42,(AF62+AL31*D19)/AM42)*AN42 -> 435 | AW92: =MAX(AI92:AV92) -> 465 | AY92: =AH152 -> G. Warmuz 430 | AZ92: =MIN((S58+AM31*D19)/AI43,(S59+AM31*D19)/AJ43,(S60+AM31*D19)/AK43,(S61+AM31*D19)/AL43,(S62+AM31*D19)/AM43)*AN43 -> 336 | BA92: =MIN((T58+AM31*D19)/AI43,(T59+AM31*D19)/AJ43,(T60+AM31*D19)/AK43,(T61+AM31*D19)/AL43,(T62+AM31*D19)/AM43)*AN43 -> 364.8 | BB92: =MIN((U58+AM31*D19)/AI43,(U59+AM31*D19)/AJ43,(U60+AM31*D19)/AK43,(U61+AM31*D19)/AL43,(U62+AM31*D19)/AM43)*AN43 -> 357.6 | BC92: =MIN((V58+AM31*D19)/AI43,(V59+AM31*D19)/AJ43,(V60+AM31*D19)/AK43,(V61+AM31*D19)/AL43,(V62+AM31*D19)/AM43)*AN43 -> 372 | BD92: =MIN((W58+AM31*D19)/AI43,(W59+AM31*D19)/AJ43,(W60+AM31*D19)/AK43,(W61+AM31*D19)/AL43,(W62+AM31*D19)/AM43)*AN43 -> 372 | BE92: =MIN((X58+AM31*D19)/AI43,(X59+AM31*D19)/AJ43,(X60+AM31*D19)/AK43,(X61+AM31*D19)/AL43,(X62+AM31*D19)/AM43)*AN43 -> 364.8 | BF92: =MIN((Y58+AM31*D19)/AI43,(Y59+AM31*D19)/AJ43,(Y60+AM31*D19)/AK43,(Y61+AM31*D19)/AL43,(Y62+AM31*D19)/AM43)*AN43 -> 360 | BG92: =MIN((Z58+AM31*D19)/AI43,(Z59+AM31*D19)/AJ43,(Z60+AM31*D19)/AK43,(Z61+AM31*D19)/AL43,(Z62+AM31*D19)/AM43)*AN43 -> 360 | BH92: =MIN((AA58+AM31*D19)/AI43,(AA59+AM31*D19)/AJ43,(AA60+AM31*D19)/AK43,(AA61+AM31*D19)/AL43,(AA62+AM31*D19)/AM43)*AN43 -> 356.8 | BI92: =MIN((AB58+AM31*D19)/AI43,(AB59+AM31*D19)/AJ43,(AB60+AM31*D19)/AK43,(AB61+AM31*D19)/AL43,(AB62+AM31*D19)/AM43)*AN43 -> 344.8 | BJ92: =MIN((AC58+AM31*D19)/AI43,(AC59+AM31*D19)/AJ43,(AC60+AM31*D19)/AK43,(AC61+AM31*D19)/AL43,(AC62+AM31*D19)/AM43)*AN43 -> 348 | BK92: =MIN((AD58+AM31*D19)/AI43,(AD59+AM31*D19)/AJ43,(AD60+AM31*D19)/AK43,(AD61+AM31*D19)/AL43,(AD62+AM31*D19)/AM43)*AN43 -> 360 | BL92: =MIN((AE58+AM31*D19)/AI43,(AE59+AM31*D19)/AJ43,(AE60+AM31*D19)/AK43,(AE61+AM31*D19)/AL43,(AE62+AM31*D19)/AM43)*AN43 -> 342.4 | BM92: =MIN((AF58+AM31*D19)/AI43,(AF59+AM31*D19)/AJ43,(AF60+AM31*D19)/AK43,(AF61+AM31*D19)/AL43,(AF62+AM31*D19)/AM43)*AN43 -> 348 | BN92: =MAX(AZ92:BM92) -> 372 | BP92: =AZ91 -> kit 1 | BQ92: kit 2A | BR92: kit 2B | BS92: kit 4A | BT92: kit 4B | BU92: kit 5 | BV92: kit 6A | BW92: kit 6B | BX92: kit 7 | BY92: kit 8 | BZ92: kit 9A | CA92: kit 9B | CB92: kit 10 | CC92: kit 11
E93: 0.7266 | F93: 1.0899 | G93: 1.8165 | H93: 0.3633 | I93: 0.54495 | J93: 0.90825 | K93: 0.4541 | L93: 0.4541 | M93: 0.9082 | N93: 0.90825 | O93: 0.90825 | P93: 1.8165 | R93: =H16+AF39+D16+D17+D21 -> 660 | S93: =R93+Q10 -> 689 | T93: =R93+R10 -> 725 | U93: =R93+S10 -> 716 | V93: =R93+T10 -> 734 | W93: =R93+U10 -> 734 | X93: =R93+V10 -> 725 | Y93: =R93+W10 -> 719 | Z93: =R93+X10 -> 719 | AA93: =R93+Y10 -> 715 | AB93: =R93+Z10 -> 700 | AC93: =R93+AA10 -> 704 | AD93: =R93+AB10 -> 719 | AE93: =R93+AC10 -> 697 | AF93: =R93+AD10 -> 704 | AH93: DS499 | AI93: =MIN((S65+AL31*D19)/AI42,(S66+AL31*D19)/AJ42,(S67+AL31*D19)/AK42,(S68+AL31*D19)/AL42,(S69+AL31*D19)/AM42)*AN42 -> 711 | AJ93: =MIN((T65+AL31*D19)/AI42,(T66+AL31*D19)/AJ42,(T67+AL31*D19)/AK42,(T68+AL31*D19)/AL42,(T69+AL31*D19)/AM42)*AN42 -> 747 | AK93: =MIN((U65+AL31*D19)/AI42,(U66+AL31*D19)/AJ42,(U67+AL31*D19)/AK42,(U68+AL31*D19)/AL42,(U69+AL31*D19)/AM42)*AN42 -> 738 | AL93: =MIN((V65+AL31*D19)/AI42,(V66+AL31*D19)/AJ42,(V67+AL31*D19)/AK42,(V68+AL31*D19)/AL42,(V69+AL31*D19)/AM42)*AN42 -> 756 | AM93: =MIN((W65+AL31*D19)/AI42,(W66+AL31*D19)/AJ42,(W67+AL31*D19)/AK42,(W68+AL31*D19)/AL42,(W69+AL31*D19)/AM42)*AN42 -> 756 | AN93: =MIN((X65+AL31*D19)/AI42,(X66+AL31*D19)/AJ42,(X67+AL31*D19)/AK42,(X68+AL31*D19)/AL42,(X69+AL31*D19)/AM42)*AN42 -> 747 | AO93: =MIN((Y65+AL31*D19)/AI42,(Y66+AL31*D19)/AJ42,(Y67+AL31*D19)/AK42,(Y68+AL31*D19)/AL42,(Y69+AL31*D19)/AM42)*AN42 -> 741 | AP93: =MIN((Z65+AL31*D19)/AI42,(Z66+AL31*D19)/AJ42,(Z67+AL31*D19)/AK42,(Z68+AL31*D19)/AL42,(Z69+AL31*D19)/AM42)*AN42 -> 741 | AQ93: =MIN((AA65+AL31*D19)/AI42,(AA66+AL31*D19)/AJ42,(AA67+AL31*D19)/AK42,(AA68+AL31*D19)/AL42,(AA69+AL31*D19)/AM42)*AN42 -> 737 | AR93: =MIN((AB65+AL31*D19)/AI42,(AB66+AL31*D19)/AJ42,(AB67+AL31*D19)/AK42,(AB68+AL31*D19)/AL42,(AB69+AL31*D19)/AM42)*AN42 -> 722 | AS93: =MIN((AC65+AL31*D19)/AI42,(AC66+AL31*D19)/AJ42,(AC67+AL31*D19)/AK42,(AC68+AL31*D19)/AL42,(AC69+AL31*D19)/AM42)*AN42 -> 726 | AT93: =MIN((AD65+AL31*D19)/AI42,(AD66+AL31*D19)/AJ42,(AD67+AL31*D19)/AK42,(AD68+AL31*D19)/AL42,(AD69+AL31*D19)/AM42)*AN42 -> 741 | AU93: =MIN((AE65+AL31*D19)/AI42,(AE66+AL31*D19)/AJ42,(AE67+AL31*D19)/AK42,(AE68+AL31*D19)/AL42,(AE69+AL31*D19)/AM42)*AN42 -> 719 | AV93: =MIN((AF65+AL31*D19)/AI42,(AF66+AL31*D19)/AJ42,(AF67+AL31*D19)/AK42,(AF68+AL31*D19)/AL42,(AF69+AL31*D19)/AM42)*AN42 -> 726 | AW93: =MAX(AI93:AV93) -> 756 | AY93: DS499 | AZ93: =MIN((S65+AM31*D19)/AI43,(S66+AM31*D19)/AJ43,(S67+AM31*D19)/AK43,(S68+AM31*D19)/AL43,(S69+AM31*D19)/AM43)*AN43 -> 528.8 | BA93: =MIN((T65+AM31*D19)/AI43,(T66+AM31*D19)/AJ43,(T67+AM31*D19)/AK43,(T68+AM31*D19)/AL43,(T69+AM31*D19)/AM43)*AN43 -> 540 | BB93: =MIN((U65+AM31*D19)/AI43,(U66+AM31*D19)/AJ43,(U67+AM31*D19)/AK43,(U68+AM31*D19)/AL43,(U69+AM31*D19)/AM43)*AN43 -> 550.4 | BC93: =MIN((V65+AM31*D19)/AI43,(V66+AM31*D19)/AJ43,(V67+AM31*D19)/AK43,(V68+AM31*D19)/AL43,(V69+AM31*D19)/AM43)*AN43 -> 555.2 | BD93: =MIN((W65+AM31*D19)/AI43,(W66+AM31*D19)/AJ43,(W67+AM31*D19)/AK43,(W68+AM31*D19)/AL43,(W69+AM31*D19)/AM43)*AN43 -> 564.8 | BE93: =MIN((X65+AM31*D19)/AI43,(X66+AM31*D19)/AJ43,(X67+AM31*D19)/AK43,(X68+AM31*D19)/AL43,(X69+AM31*D19)/AM43)*AN43 -> 544.8 | BF93: =MIN((Y65+AM31*D19)/AI43,(Y66+AM31*D19)/AJ43,(Y67+AM31*D19)/AK43,(Y68+AM31*D19)/AL43,(Y69+AM31*D19)/AM43)*AN43 -> 533.6 | BG93: =MIN((Z65+AM31*D19)/AI43,(Z66+AM31*D19)/AJ43,(Z67+AM31*D19)/AK43,(Z68+AM31*D19)/AL43,(Z69+AM31*D19)/AM43)*AN43 -> 552.8 | BH93: =MIN((AA65+AM31*D19)/AI43,(AA66+AM31*D19)/AJ43,(AA67+AM31*D19)/AK43,(AA68+AM31*D19)/AL43,(AA69+AM31*D19)/AM43)*AN43 -> 549.6 | BI93: =MIN((AB65+AM31*D19)/AI43,(AB66+AM31*D19)/AJ43,(AB67+AM31*D19)/AK43,(AB68+AM31*D19)/AL43,(AB69+AM31*D19)/AM43)*AN43 -> 552.8 | BJ93: =MIN((AC65+AM31*D19)/AI43,(AC66+AM31*D19)/AJ43,(AC67+AM31*D19)/AK43,(AC68+AM31*D19)/AL43,(AC69+AM31*D19)/AM43)*AN43 -> 560 | BK93: =MIN((AD65+AM31*D19)/AI43,(AD66+AM31*D19)/AJ43,(AD67+AM31*D19)/AK43,(AD68+AM31*D19)/AL43,(AD69+AM31*D19)/AM43)*AN43 -> 540.8 | BL93: =MIN((AE65+AM31*D19)/AI43,(AE66+AM31*D19)/AJ43,(AE67+AM31*D19)/AK43,(AE68+AM31*D19)/AL43,(AE69+AM31*D19)/AM43)*AN43 -> 542.4 | BM93: =MIN((AF65+AM31*D19)/AI43,(AF66+AM31*D19)/AJ43,(AF67+AM31*D19)/AK43,(AF68+AM31*D19)/AL43,(AF69+AM31*D19)/AM43)*AN43 -> 560 | BN93: =MAX(AZ93:BM93) -> 564.8 | BP93: =AZ91 -> kit 1 | BQ93: kit 2A | BR93: kit 2B | BS93: kit 4A | BT93: kit 4B | BU93: kit 5 | BV93: kit 6A | BW93: kit 6B | BX93: kit 7 | BY93: kit 8 | BZ93: kit 9A | CA93: kit 9B | CB93: kit 10 | CC93: kit 11
E94: 0.7266 | F94: 1.0899 | G94: 1.8165 | H94: 0.95365 | I94: 0.4087 | J94: 1.36235 | K94: 0.4541 | L94: 0.4541 | M94: 0.9082 | N94: 1.0899 | O94: 0.7266 | P94: 1.8165 | R94: =I16+AF40+D15+D17+D21 -> 706 | S94: =R94+Q11 -> 783 | T94: =R94+R11 -> 749 | U94: =R94+S11 -> 749 | V94: =R94+T11 -> 731 | W94: =R94+U11 -> 743 | X94: =R94+V11 -> 755 | Y94: =R94+W11 -> 765 | Z94: =R94+X11 -> 752 | AA94: =R94+Y11 -> 761 | AB94: =R94+Z11 -> 765 | AC94: =R94+AA11 -> 765 | AD94: =R94+AB11 -> 774 | AE94: =R94+AC11 -> 771 | AF94: =R94+AD11 -> 765 | AH94: 3 moy 513 | AI94: =MIN((S72+AL31*D19)/AI42,(S73+AL31*D19)/AJ42,(S74+AL31*D19)/AK42,(S75+AL31*D19)/AL42,(S76+AL31*D19)/AM42)*AN42 -> 714 | AJ94: =MIN((T72+AL31*D19)/AI42,(T73+AL31*D19)/AJ42,(T74+AL31*D19)/AK42,(T75+AL31*D19)/AL42,(T76+AL31*D19)/AM42)*AN42 -> 750 | AK94: =MIN((U72+AL31*D19)/AI42,(U73+AL31*D19)/AJ42,(U74+AL31*D19)/AK42,(U75+AL31*D19)/AL42,(U76+AL31*D19)/AM42)*AN42 -> 741 | AL94: =MIN((V72+AL31*D19)/AI42,(V73+AL31*D19)/AJ42,(V74+AL31*D19)/AK42,(V75+AL31*D19)/AL42,(V76+AL31*D19)/AM42)*AN42 -> 759 | AM94: =MIN((W72+AL31*D19)/AI42,(W73+AL31*D19)/AJ42,(W74+AL31*D19)/AK42,(W75+AL31*D19)/AL42,(W76+AL31*D19)/AM42)*AN42 -> 759 | AN94: =MIN((X72+AL31*D19)/AI42,(X73+AL31*D19)/AJ42,(X74+AL31*D19)/AK42,(X75+AL31*D19)/AL42,(X76+AL31*D19)/AM42)*AN42 -> 750 | AO94: =MIN((Y72+AL31*D19)/AI42,(Y73+AL31*D19)/AJ42,(Y74+AL31*D19)/AK42,(Y75+AL31*D19)/AL42,(Y76+AL31*D19)/AM42)*AN42 -> 744 | AP94: =MIN((Z72+AL31*D19)/AI42,(Z73+AL31*D19)/AJ42,(Z74+AL31*D19)/AK42,(Z75+AL31*D19)/AL42,(Z76+AL31*D19)/AM42)*AN42 -> 744 | AQ94: =MIN((AA72+AL31*D19)/AI42,(AA73+AL31*D19)/AJ42,(AA74+AL31*D19)/AK42,(AA75+AL31*D19)/AL42,(AA76+AL31*D19)/AM42)*AN42 -> 740 | AR94: =MIN((AB72+AL31*D19)/AI42,(AB73+AL31*D19)/AJ42,(AB74+AL31*D19)/AK42,(AB75+AL31*D19)/AL42,(AB76+AL31*D19)/AM42)*AN42 -> 725 | AS94: =MIN((AC72+AL31*D19)/AI42,(AC73+AL31*D19)/AJ42,(AC74+AL31*D19)/AK42,(AC75+AL31*D19)/AL42,(AC76+AL31*D19)/AM42)*AN42 -> 729 | AT94: =MIN((AD72+AL31*D19)/AI42,(AD73+AL31*D19)/AJ42,(AD74+AL31*D19)/AK42,(AD75+AL31*D19)/AL42,(AD76+AL31*D19)/AM42)*AN42 -> 744 | AU94: =MIN((AE72+AL31*D19)/AI42,(AE73+AL31*D19)/AJ42,(AE74+AL31*D19)/AK42,(AE75+AL31*D19)/AL42,(AE76+AL31*D19)/AM42)*AN42 -> 722 | AV94: =MIN((AF72+AL31*D19)/AI42,(AF73+AL31*D19)/AJ42,(AF74+AL31*D19)/AK42,(AF75+AL31*D19)/AL42,(AF76+AL31*D19)/AM42)*AN42 -> 729 | AW94: 759 | AY94: 3 moy 513 | AZ94: =MIN((S72+AM31*D19)/AI43,(S73+AM31*D19)/AJ43,(S74+AM31*D19)/AK43,(S75+AM31*D19)/AL43,(S76+AM31*D19)/AM43)*AN43 -> 544.8 | BA94: =MIN((T72+AM31*D19)/AI43,(T73+AM31*D19)/AJ43,(T74+AM31*D19)/AK43,(T75+AM31*D19)/AL43,(T76+AM31*D19)/AM43)*AN43 -> 556 | BB94: =MIN((U72+AM31*D19)/AI43,(U73+AM31*D19)/AJ43,(U74+AM31*D19)/AK43,(U75+AM31*D19)/AL43,(U76+AM31*D19)/AM43)*AN43 -> 566.4 | BC94: =MIN((V72+AM31*D19)/AI43,(V73+AM31*D19)/AJ43,(V74+AM31*D19)/AK43,(V75+AM31*D19)/AL43,(V76+AM31*D19)/AM43)*AN43 -> 571.2 | BD94: =MIN((W72+AM31*D19)/AI43,(W73+AM31*D19)/AJ43,(W74+AM31*D19)/AK43,(W75+AM31*D19)/AL43,(W76+AM31*D19)/AM43)*AN43 -> 580.8 | BE94: =MIN((X72+AM31*D19)/AI43,(X73+AM31*D19)/AJ43,(X74+AM31*D19)/AK43,(X75+AM31*D19)/AL43,(X76+AM31*D19)/AM43)*AN43 -> 560.8 | BF94: =MIN((Y72+AM31*D19)/AI43,(Y73+AM31*D19)/AJ43,(Y74+AM31*D19)/AK43,(Y75+AM31*D19)/AL43,(Y76+AM31*D19)/AM43)*AN43 -> 549.6 | BG94: =MIN((Z72+AM31*D19)/AI43,(Z73+AM31*D19)/AJ43,(Z74+AM31*D19)/AK43,(Z75+AM31*D19)/AL43,(Z76+AM31*D19)/AM43)*AN43 -> 568.8 | BH94: =MIN((AA72+AM31*D19)/AI43,(AA73+AM31*D19)/AJ43,(AA74+AM31*D19)/AK43,(AA75+AM31*D19)/AL43,(AA76+AM31*D19)/AM43)*AN43 -> 565.6 | BI94: =MIN((AB72+AM31*D19)/AI43,(AB73+AM31*D19)/AJ43,(AB74+AM31*D19)/AK43,(AB75+AM31*D19)/AL43,(AB76+AM31*D19)/AM43)*AN43 -> 568.8 | BJ94: =MIN((AC72+AM31*D19)/AI43,(AC73+AM31*D19)/AJ43,(AC74+AM31*D19)/AK43,(AC75+AM31*D19)/AL43,(AC76+AM31*D19)/AM43)*AN43 -> 576 | BK94: =MIN((AD72+AM31*D19)/AI43,(AD73+AM31*D19)/AJ43,(AD74+AM31*D19)/AK43,(AD75+AM31*D19)/AL43,(AD76+AM31*D19)/AM43)*AN43 -> 556.8 | BL94: =MIN((AE72+AM31*D19)/AI43,(AE73+AM31*D19)/AJ43,(AE74+AM31*D19)/AK43,(AE75+AM31*D19)/AL43,(AE76+AM31*D19)/AM43)*AN43 -> 558.4 | BM94: =MIN((AF72+AM31*D19)/AI43,(AF73+AM31*D19)/AJ43,(AF74+AM31*D19)/AK43,(AF75+AM31*D19)/AL43,(AF76+AM31*D19)/AM43)*AN43 -> 576 | BN94: 580.8 | BP94: =AZ91 -> kit 1 | BQ94: kit 2A | BR94: kit 2B | BS94: kit 4A | BT94: kit 4B | BU94: kit 5 | BV94: kit 6A | BW94: kit 6B | BX94: kit 7 | BY94: kit 8 | BZ94: kit 9A | CA94: kit 9B | CB94: kit 10 | CC94: kit 11
E95: 0.90825 | F95: 1.36235 | G95: 2.2706 | H95: 0.95365 | I95: 0.4087 | J95: 1.36235 | K95: 1.0899 | L95: 0.7266 | M95: 1.8165 | N95: 1.0899 | O95: 0.7266 | P95: 1.8165 | R95: =J16+AF41+D15+D17+D21 -> 631 | S95: =R95+Q12 -> 660 | T95: =R95+R12 -> 674 | U95: =R95+S12 -> 687 | V95: =R95+T12 -> 693 | W95: =R95+U12 -> 705 | X95: =R95+V12 -> 680 | Y95: =R95+W12 -> 666 | Z95: =R95+X12 -> 690 | AA95: =R95+Y12 -> 686 | AB95: =R95+Z12 -> 690 | AC95: =R95+AA12 -> 699 | AD95: =R95+AB12 -> 675 | AE95: =R95+AC12 -> 677 | AF95: =R95+AD12 -> 699 | AH95: av | AI95: =MIN((S79+AL31*D19)/AI42,(S80+AL31*D19)/AJ42,(S81+AL31*D19)/AK42,(S82+AL31*D19)/AL42,(S83+AL31*D19)/AM42)*AN42 -> 738 | AJ95: =MIN((T79+AL31*D19)/AI42,(T80+AL31*D19)/AJ42,(T81+AL31*D19)/AK42,(T82+AL31*D19)/AL42,(T83+AL31*D19)/AM42)*AN42 -> 774 | AK95: =MIN((U79+AL31*D19)/AI42,(U80+AL31*D19)/AJ42,(U81+AL31*D19)/AK42,(U82+AL31*D19)/AL42,(U83+AL31*D19)/AM42)*AN42 -> 765 | AL95: =MIN((V79+AL31*D19)/AI42,(V80+AL31*D19)/AJ42,(V81+AL31*D19)/AK42,(V82+AL31*D19)/AL42,(V83+AL31*D19)/AM42)*AN42 -> 783 | AM95: =MIN((W79+AL31*D19)/AI42,(W80+AL31*D19)/AJ42,(W81+AL31*D19)/AK42,(W82+AL31*D19)/AL42,(W83+AL31*D19)/AM42)*AN42 -> 783 | AN95: =MIN((X79+AL31*D19)/AI42,(X80+AL31*D19)/AJ42,(X81+AL31*D19)/AK42,(X82+AL31*D19)/AL42,(X83+AL31*D19)/AM42)*AN42 -> 774 | AO95: =MIN((Y79+AL31*D19)/AI42,(Y80+AL31*D19)/AJ42,(Y81+AL31*D19)/AK42,(Y82+AL31*D19)/AL42,(Y83+AL31*D19)/AM42)*AN42 -> 768 | AP95: =MIN((Z79+AL31*D19)/AI42,(Z80+AL31*D19)/AJ42,(Z81+AL31*D19)/AK42,(Z82+AL31*D19)/AL42,(Z83+AL31*D19)/AM42)*AN42 -> 768 | AQ95: =MIN((AA79+AL31*D19)/AI42,(AA80+AL31*D19)/AJ42,(AA81+AL31*D19)/AK42,(AA82+AL31*D19)/AL42,(AA83+AL31*D19)/AM42)*AN42 -> 764 | AR95: =MIN((AB79+AL31*D19)/AI42,(AB80+AL31*D19)/AJ42,(AB81+AL31*D19)/AK42,(AB82+AL31*D19)/AL42,(AB83+AL31*D19)/AM42)*AN42 -> 749 | AS95: =MIN((AC79+AL31*D19)/AI42,(AC80+AL31*D19)/AJ42,(AC81+AL31*D19)/AK42,(AC82+AL31*D19)/AL42,(AC83+AL31*D19)/AM42)*AN42 -> 753 | AT95: =MIN((AD79+AL31*D19)/AI42,(AD80+AL31*D19)/AJ42,(AD81+AL31*D19)/AK42,(AD82+AL31*D19)/AL42,(AD83+AL31*D19)/AM42)*AN42 -> 768 | AU95: =MIN((AE79+AL31*D19)/AI42,(AE80+AL31*D19)/AJ42,(AE81+AL31*D19)/AK42,(AE82+AL31*D19)/AL42,(AE83+AL31*D19)/AM42)*AN42 -> 746 | AV95: =MIN((AF79+AL31*D19)/AI42,(AF80+AL31*D19)/AJ42,(AF81+AL31*D19)/AK42,(AF82+AL31*D19)/AL42,(AF83+AL31*D19)/AM42)*AN42 -> 753 | AW95: 783 | AY95: av | AZ95: =MIN((S79+AM31*D19)/AI43,(S80+AM31*D19)/AJ43,(S81+AM31*D19)/AK43,(S82+AM31*D19)/AL43,(S83+AM31*D19)/AM43)*AN43 -> 546.4 | BA95: =MIN((T79+AM31*D19)/AI43,(T80+AM31*D19)/AJ43,(T81+AM31*D19)/AK43,(T82+AM31*D19)/AL43,(T83+AM31*D19)/AM43)*AN43 -> 591.2 | BB95: =MIN((U79+AM31*D19)/AI43,(U80+AM31*D19)/AJ43,(U81+AM31*D19)/AK43,(U82+AM31*D19)/AL43,(U83+AM31*D19)/AM43)*AN43 -> 591.2 | BC95: =MIN((V79+AM31*D19)/AI43,(V80+AM31*D19)/AJ43,(V81+AM31*D19)/AK43,(V82+AM31*D19)/AL43,(V83+AM31*D19)/AM43)*AN43 -> 588.8 | BD95: =MIN((W79+AM31*D19)/AI43,(W80+AM31*D19)/AJ43,(W81+AM31*D19)/AK43,(W82+AM31*D19)/AL43,(W83+AM31*D19)/AM43)*AN43 -> 578.4 | BE95: =MIN((X79+AM31*D19)/AI43,(X80+AM31*D19)/AJ43,(X81+AM31*D19)/AK43,(X82+AM31*D19)/AL43,(X83+AM31*D19)/AM43)*AN43 -> 578.4 | BF95: =MIN((Y79+AM31*D19)/AI43,(Y80+AM31*D19)/AJ43,(Y81+AM31*D19)/AK43,(Y82+AM31*D19)/AL43,(Y83+AM31*D19)/AM43)*AN43 -> 586.4 | BG95: =MIN((Z79+AM31*D19)/AI43,(Z80+AM31*D19)/AJ43,(Z81+AM31*D19)/AK43,(Z82+AM31*D19)/AL43,(Z83+AM31*D19)/AM43)*AN43 -> 586.4 | BH95: =MIN((AA79+AM31*D19)/AI43,(AA80+AM31*D19)/AJ43,(AA81+AM31*D19)/AK43,(AA82+AM31*D19)/AL43,(AA83+AM31*D19)/AM43)*AN43 -> 583.2 | BI95: =MIN((AB79+AM31*D19)/AI43,(AB80+AM31*D19)/AJ43,(AB81+AM31*D19)/AK43,(AB82+AM31*D19)/AL43,(AB83+AM31*D19)/AM43)*AN43 -> 586.4 | BJ95: =MIN((AC79+AM31*D19)/AI43,(AC80+AM31*D19)/AJ43,(AC81+AM31*D19)/AK43,(AC82+AM31*D19)/AL43,(AC83+AM31*D19)/AM43)*AN43 -> 580.8 | BK95: =MIN((AD79+AM31*D19)/AI43,(AD80+AM31*D19)/AJ43,(AD81+AM31*D19)/AK43,(AD82+AM31*D19)/AL43,(AD83+AM31*D19)/AM43)*AN43 -> 574.4 | BL95: =MIN((AE79+AM31*D19)/AI43,(AE80+AM31*D19)/AJ43,(AE81+AM31*D19)/AK43,(AE82+AM31*D19)/AL43,(AE83+AM31*D19)/AM43)*AN43 -> 583.2 | BM95: =MIN((AF79+AM31*D19)/AI43,(AF80+AM31*D19)/AJ43,(AF81+AM31*D19)/AK43,(AF82+AM31*D19)/AL43,(AF83+AM31*D19)/AM43)*AN43 -> 586.4 | BN95: 591.2 | BP95: =AZ91 -> kit 1 | BQ95: kit 2A | BR95: kit 2B | BS95: kit 4A | BT95: kit 4B | BU95: kit 5 | BV95: kit 6A | BW95: kit 6B | BX95: kit 7 | BY95: kit 8 | BZ95: kit 9A | CA95: kit 9B | CB95: kit 10 | CC95: kit 11
E96: 1.0899 | F96: 0.7266 | G96: 1.8165 | H96: 0.94985 | I96: 0.40705 | J96: 1.3569 | K96: 1.90735 | L96: 0.8174 | M96: 2.72475 | N96: 1.0899 | O96: 0.27245 | P96: 1.36235 | R96: =K16+AF42+D16+D17+D21 -> 707 | S96: =R96+Q13 -> 716 | T96: =R96+R13 -> 772 | U96: =R96+S13 -> 772 | V96: =R96+T13 -> 769 | W96: =R96+U13 -> 756 | X96: =R96+V13 -> 756 | Y96: =R96+W13 -> 766 | Z96: =R96+X13 -> 766 | AA96: =R96+Y13 -> 762 | AB96: =R96+Z13 -> 766 | AC96: =R96+AA13 -> 759 | AD96: =R96+AB13 -> 751 | AE96: =R96+AC13 -> 762 | AF96: =R96+AD13 -> 766 | AH96: @5 | AI96: =MIN((S86+AL31*D19)/AI42,(S87+AL31*D19)/AJ42,(S88+AL31*D19)/AK42,(S89+AL31*D19)/AL42,(S90+AL31*D19)/AM42)*AN42 -> 737 | AJ96: =MIN((T86+AL31*D19)/AI42,(T87+AL31*D19)/AJ42,(T88+AL31*D19)/AK42,(T89+AL31*D19)/AL42,(T90+AL31*D19)/AM42)*AN42 -> 773 | AK96: =MIN((U86+AL31*D19)/AI42,(U87+AL31*D19)/AJ42,(U88+AL31*D19)/AK42,(U89+AL31*D19)/AL42,(U90+AL31*D19)/AM42)*AN42 -> 764 | AL96: =MIN((V86+AL31*D19)/AI42,(V87+AL31*D19)/AJ42,(V88+AL31*D19)/AK42,(V89+AL31*D19)/AL42,(V90+AL31*D19)/AM42)*AN42 -> 782 | AM96: =MIN((W86+AL31*D19)/AI42,(W87+AL31*D19)/AJ42,(W88+AL31*D19)/AK42,(W89+AL31*D19)/AL42,(W90+AL31*D19)/AM42)*AN42 -> 782 | AN96: =MIN((X86+AL31*D19)/AI42,(X87+AL31*D19)/AJ42,(X88+AL31*D19)/AK42,(X89+AL31*D19)/AL42,(X90+AL31*D19)/AM42)*AN42 -> 773 | AO96: =MIN((Y86+AL31*D19)/AI42,(Y87+AL31*D19)/AJ42,(Y88+AL31*D19)/AK42,(Y89+AL31*D19)/AL42,(Y90+AL31*D19)/AM42)*AN42 -> 767 | AP96: =MIN((Z86+AL31*D19)/AI42,(Z87+AL31*D19)/AJ42,(Z88+AL31*D19)/AK42,(Z89+AL31*D19)/AL42,(Z90+AL31*D19)/AM42)*AN42 -> 767 | AQ96: =MIN((AA86+AL31*D19)/AI42,(AA87+AL31*D19)/AJ42,(AA88+AL31*D19)/AK42,(AA89+AL31*D19)/AL42,(AA90+AL31*D19)/AM42)*AN42 -> 763 | AR96: =MIN((AB86+AL31*D19)/AI42,(AB87+AL31*D19)/AJ42,(AB88+AL31*D19)/AK42,(AB89+AL31*D19)/AL42,(AB90+AL31*D19)/AM42)*AN42 -> 748 | AS96: =MIN((AC86+AL31*D19)/AI42,(AC87+AL31*D19)/AJ42,(AC88+AL31*D19)/AK42,(AC89+AL31*D19)/AL42,(AC90+AL31*D19)/AM42)*AN42 -> 752 | AT96: =MIN((AD86+AL31*D19)/AI42,(AD87+AL31*D19)/AJ42,(AD88+AL31*D19)/AK42,(AD89+AL31*D19)/AL42,(AD90+AL31*D19)/AM42)*AN42 -> 767 | AU96: =MIN((AE86+AL31*D19)/AI42,(AE87+AL31*D19)/AJ42,(AE88+AL31*D19)/AK42,(AE89+AL31*D19)/AL42,(AE90+AL31*D19)/AM42)*AN42 -> 745 | AV96: =MIN((AF86+AL31*D19)/AI42,(AF87+AL31*D19)/AJ42,(AF88+AL31*D19)/AK42,(AF89+AL31*D19)/AL42,(AF90+AL31*D19)/AM42)*AN42 -> 752 | AW96: 782 | AY96: @5 | AZ96: =MIN((S86+AM31*D19)/AI43,(S87+AM31*D19)/AJ43,(S88+AM31*D19)/AK43,(S89+AM31*D19)/AL43,(S90+AM31*D19)/AM43)*AN43 -> 519.2 | BA96: =MIN((T86+AM31*D19)/AI43,(T87+AM31*D19)/AJ43,(T88+AM31*D19)/AK43,(T89+AM31*D19)/AL43,(T90+AM31*D19)/AM43)*AN43 -> 552.8 | BB96: =MIN((U86+AM31*D19)/AI43,(U87+AM31*D19)/AJ43,(U88+AM31*D19)/AK43,(U89+AM31*D19)/AL43,(U90+AM31*D19)/AM43)*AN43 -> 563.2 | BC96: =MIN((V86+AM31*D19)/AI43,(V87+AM31*D19)/AJ43,(V88+AM31*D19)/AK43,(V89+AM31*D19)/AL43,(V90+AM31*D19)/AM43)*AN43 -> 561.6 | BD96: =MIN((W86+AM31*D19)/AI43,(W87+AM31*D19)/AJ43,(W88+AM31*D19)/AK43,(W89+AM31*D19)/AL43,(W90+AM31*D19)/AM43)*AN43 -> 551.2 | BE96: =MIN((X86+AM31*D19)/AI43,(X87+AM31*D19)/AJ43,(X88+AM31*D19)/AK43,(X89+AM31*D19)/AL43,(X90+AM31*D19)/AM43)*AN43 -> 551.2 | BF96: =MIN((Y86+AM31*D19)/AI43,(Y87+AM31*D19)/AJ43,(Y88+AM31*D19)/AK43,(Y89+AM31*D19)/AL43,(Y90+AM31*D19)/AM43)*AN43 -> 546.4 | BG96: =MIN((Z86+AM31*D19)/AI43,(Z87+AM31*D19)/AJ43,(Z88+AM31*D19)/AK43,(Z89+AM31*D19)/AL43,(Z90+AM31*D19)/AM43)*AN43 -> 559.2 | BH96: =MIN((AA86+AM31*D19)/AI43,(AA87+AM31*D19)/AJ43,(AA88+AM31*D19)/AK43,(AA89+AM31*D19)/AL43,(AA90+AM31*D19)/AM43)*AN43 -> 556 | BI96: =MIN((AB86+AM31*D19)/AI43,(AB87+AM31*D19)/AJ43,(AB88+AM31*D19)/AK43,(AB89+AM31*D19)/AL43,(AB90+AM31*D19)/AM43)*AN43 -> 559.2 | BJ96: =MIN((AC86+AM31*D19)/AI43,(AC87+AM31*D19)/AJ43,(AC88+AM31*D19)/AK43,(AC89+AM31*D19)/AL43,(AC90+AM31*D19)/AM43)*AN43 -> 553.6 | BK96: =MIN((AD86+AM31*D19)/AI43,(AD87+AM31*D19)/AJ43,(AD88+AM31*D19)/AK43,(AD89+AM31*D19)/AL43,(AD90+AM31*D19)/AM43)*AN43 -> 547.2 | BL96: =MIN((AE86+AM31*D19)/AI43,(AE87+AM31*D19)/AJ43,(AE88+AM31*D19)/AK43,(AE89+AM31*D19)/AL43,(AE90+AM31*D19)/AM43)*AN43 -> 555.2 | BM96: =MIN((AF86+AM31*D19)/AI43,(AF87+AM31*D19)/AJ43,(AF88+AM31*D19)/AK43,(AF89+AM31*D19)/AL43,(AF90+AM31*D19)/AM43)*AN43 -> 559.2 | BN96: 563.2 | BP96: =AZ91 -> kit 1 | BQ96: kit 2A | BR96: kit 2B | BS96: kit 4A | BT96: kit 4B | BU96: kit 5 | BV96: kit 6A | BW96: kit 6B | BX96: kit 7 | BY96: kit 8 | BZ96: kit 9A | CA96: kit 9B | CB96: kit 10 | CC96: kit 11
E97: 0.95365 | F97: 0.4087 | G97: 1.36235 | H97: 2.4523 | I97: 0.27245 | J97: 2.72475 | K97: 1.0899 | L97: 0.27245 | M97: 1.36235 | N97: 1.0899 | O97: 0.27245 | P97: 1.36235 | R97: =L16+AF43+D15+D17+D21 -> 647 | S97: =R97+Q14 -> 695 | T97: =R97+R14 -> 690 | U97: =R97+S14 -> 690 | V97: =R97+T14 -> 684 | W97: =R97+U14 -> 672 | X97: =R97+V14 -> 696 | Y97: =R97+W14 -> 693 | Z97: =R97+X14 -> 681 | AA97: =R97+Y14 -> 691 | AB97: =R97+Z14 -> 687 | AC97: =R97+AA14 -> 680 | AD97: =R97+AB14 -> 691 | AE97: =R97+AC14 -> 702 | AF97: =R97+AD14 -> 673 | AH97: 1 Atsuhiko | AI97: =MIN((S93+AL31*D19)/AI42,(S94+AL31*D19)/AJ42,(S95+AL31*D19)/AK42,(S96+AL31*D19)/AL42,(S97+AL31*D19)/AM42)*AN42 -> 689 | AJ97: =MIN((T93+AL31*D19)/AI42,(T94+AL31*D19)/AJ42,(T95+AL31*D19)/AK42,(T96+AL31*D19)/AL42,(T97+AL31*D19)/AM42)*AN42 -> 725 | AK97: =MIN((U93+AL31*D19)/AI42,(U94+AL31*D19)/AJ42,(U95+AL31*D19)/AK42,(U96+AL31*D19)/AL42,(U97+AL31*D19)/AM42)*AN42 -> 716 | AL97: =MIN((V93+AL31*D19)/AI42,(V94+AL31*D19)/AJ42,(V95+AL31*D19)/AK42,(V96+AL31*D19)/AL42,(V97+AL31*D19)/AM42)*AN42 -> 734 | AM97: =MIN((W93+AL31*D19)/AI42,(W94+AL31*D19)/AJ42,(W95+AL31*D19)/AK42,(W96+AL31*D19)/AL42,(W97+AL31*D19)/AM42)*AN42 -> 734 | AN97: =MIN((X93+AL31*D19)/AI42,(X94+AL31*D19)/AJ42,(X95+AL31*D19)/AK42,(X96+AL31*D19)/AL42,(X97+AL31*D19)/AM42)*AN42 -> 725 | AO97: =MIN((Y93+AL31*D19)/AI42,(Y94+AL31*D19)/AJ42,(Y95+AL31*D19)/AK42,(Y96+AL31*D19)/AL42,(Y97+AL31*D19)/AM42)*AN42 -> 719 | AP97: =MIN((Z93+AL31*D19)/AI42,(Z94+AL31*D19)/AJ42,(Z95+AL31*D19)/AK42,(Z96+AL31*D19)/AL42,(Z97+AL31*D19)/AM42)*AN42 -> 719 | AQ97: =MIN((AA93+AL31*D19)/AI42,(AA94+AL31*D19)/AJ42,(AA95+AL31*D19)/AK42,(AA96+AL31*D19)/AL42,(AA97+AL31*D19)/AM42)*AN42 -> 715 | AR97: =MIN((AB93+AL31*D19)/AI42,(AB94+AL31*D19)/AJ42,(AB95+AL31*D19)/AK42,(AB96+AL31*D19)/AL42,(AB97+AL31*D19)/AM42)*AN42 -> 700 | AS97: =MIN((AC93+AL31*D19)/AI42,(AC94+AL31*D19)/AJ42,(AC95+AL31*D19)/AK42,(AC96+AL31*D19)/AL42,(AC97+AL31*D19)/AM42)*AN42 -> 704 | AT97: =MIN((AD93+AL31*D19)/AI42,(AD94+AL31*D19)/AJ42,(AD95+AL31*D19)/AK42,(AD96+AL31*D19)/AL42,(AD97+AL31*D19)/AM42)*AN42 -> 719 | AU97: =MIN((AE93+AL31*D19)/AI42,(AE94+AL31*D19)/AJ42,(AE95+AL31*D19)/AK42,(AE96+AL31*D19)/AL42,(AE97+AL31*D19)/AM42)*AN42 -> 697 | AV97: =MIN((AF93+AL31*D19)/AI42,(AF94+AL31*D19)/AJ42,(AF95+AL31*D19)/AK42,(AF96+AL31*D19)/AL42,(AF97+AL31*D19)/AM42)*AN42 -> 704 | AW97: 734 | AY97: 1 Atsuhiko | AZ97: =MIN((S93+AM31*D19)/AI43,(S94+AM31*D19)/AJ43,(S95+AM31*D19)/AK43,(S96+AM31*D19)/AL43,(S97+AM31*D19)/AM43)*AN43 -> 528 | BA97: =MIN((T93+AM31*D19)/AI43,(T94+AM31*D19)/AJ43,(T95+AM31*D19)/AK43,(T96+AM31*D19)/AL43,(T97+AM31*D19)/AM43)*AN43 -> 539.2 | BB97: =MIN((U93+AM31*D19)/AI43,(U94+AM31*D19)/AJ43,(U95+AM31*D19)/AK43,(U96+AM31*D19)/AL43,(U97+AM31*D19)/AM43)*AN43 -> 549.6 | BC97: =MIN((V93+AM31*D19)/AI43,(V94+AM31*D19)/AJ43,(V95+AM31*D19)/AK43,(V96+AM31*D19)/AL43,(V97+AM31*D19)/AM43)*AN43 -> 554.4 | BD97: =MIN((W93+AM31*D19)/AI43,(W94+AM31*D19)/AJ43,(W95+AM31*D19)/AK43,(W96+AM31*D19)/AL43,(W97+AM31*D19)/AM43)*AN43 -> 564 | BE97: =MIN((X93+AM31*D19)/AI43,(X94+AM31*D19)/AJ43,(X95+AM31*D19)/AK43,(X96+AM31*D19)/AL43,(X97+AM31*D19)/AM43)*AN43 -> 544 | BF97: =MIN((Y93+AM31*D19)/AI43,(Y94+AM31*D19)/AJ43,(Y95+AM31*D19)/AK43,(Y96+AM31*D19)/AL43,(Y97+AM31*D19)/AM43)*AN43 -> 532.8 | BG97: =MIN((Z93+AM31*D19)/AI43,(Z94+AM31*D19)/AJ43,(Z95+AM31*D19)/AK43,(Z96+AM31*D19)/AL43,(Z97+AM31*D19)/AM43)*AN43 -> 552 | BH97: =MIN((AA93+AM31*D19)/AI43,(AA94+AM31*D19)/AJ43,(AA95+AM31*D19)/AK43,(AA96+AM31*D19)/AL43,(AA97+AM31*D19)/AM43)*AN43 -> 548.8 | BI97: =MIN((AB93+AM31*D19)/AI43,(AB94+AM31*D19)/AJ43,(AB95+AM31*D19)/AK43,(AB96+AM31*D19)/AL43,(AB97+AM31*D19)/AM43)*AN43 -> 552 | BJ97: =MIN((AC93+AM31*D19)/AI43,(AC94+AM31*D19)/AJ43,(AC95+AM31*D19)/AK43,(AC96+AM31*D19)/AL43,(AC97+AM31*D19)/AM43)*AN43 -> 559.2 | BK97: =MIN((AD93+AM31*D19)/AI43,(AD94+AM31*D19)/AJ43,(AD95+AM31*D19)/AK43,(AD96+AM31*D19)/AL43,(AD97+AM31*D19)/AM43)*AN43 -> 540 | BL97: =MIN((AE93+AM31*D19)/AI43,(AE94+AM31*D19)/AJ43,(AE95+AM31*D19)/AK43,(AE96+AM31*D19)/AL43,(AE97+AM31*D19)/AM43)*AN43 -> 541.6 | BM97: =MIN((AF93+AM31*D19)/AI43,(AF94+AM31*D19)/AJ43,(AF95+AM31*D19)/AK43,(AF96+AM31*D19)/AL43,(AF97+AM31*D19)/AM43)*AN43 -> 559.2 | BN97: 564 | BP97: =AZ91 -> kit 1 | BQ97: kit 2A | BR97: kit 2B | BS97: kit 4A | BT97: kit 4B | BU97: kit 5 | BV97: kit 6A | BW97: kit 6B | BX97: kit 7 | BY97: kit 8 | BZ97: kit 9A | CA97: kit 9B | CB97: kit 10 | CC97: kit 11
E98: 2.24795 | F98: 0.0227 | G98: 2.27065 | H98: 2.04355 | I98: 0.22705 | J98: 2.2706 | K98: 1.63485 | L98: 0.18165 | M98: 1.8165 | N98: 1.63485 | O98: 0.18165 | P98: 1.8165 | AH98: 2 moy 509 | AI98: =MIN((S100+AL31*D19)/AI42,(S101+AL31*D19)/AJ42,(S102+AL31*D19)/AK42,(S103+AL31*D19)/AL42,(S104+AL31*D19)/AM42)*AN42 -> 691 | AJ98: =MIN((T100+AL31*D19)/AI42,(T101+AL31*D19)/AJ42,(T102+AL31*D19)/AK42,(T103+AL31*D19)/AL42,(T104+AL31*D19)/AM42)*AN42 -> 727 | AK98: =MIN((U100+AL31*D19)/AI42,(U101+AL31*D19)/AJ42,(U102+AL31*D19)/AK42,(U103+AL31*D19)/AL42,(U104+AL31*D19)/AM42)*AN42 -> 718 | AL98: =MIN((V100+AL31*D19)/AI42,(V101+AL31*D19)/AJ42,(V102+AL31*D19)/AK42,(V103+AL31*D19)/AL42,(V104+AL31*D19)/AM42)*AN42 -> 736 | AM98: =MIN((W100+AL31*D19)/AI42,(W101+AL31*D19)/AJ42,(W102+AL31*D19)/AK42,(W103+AL31*D19)/AL42,(W104+AL31*D19)/AM42)*AN42 -> 736 | AN98: =MIN((X100+AL31*D19)/AI42,(X101+AL31*D19)/AJ42,(X102+AL31*D19)/AK42,(X103+AL31*D19)/AL42,(X104+AL31*D19)/AM42)*AN42 -> 727 | AO98: =MIN((Y100+AL31*D19)/AI42,(Y101+AL31*D19)/AJ42,(Y102+AL31*D19)/AK42,(Y103+AL31*D19)/AL42,(Y104+AL31*D19)/AM42)*AN42 -> 721 | AP98: =MIN((Z100+AL31*D19)/AI42,(Z101+AL31*D19)/AJ42,(Z102+AL31*D19)/AK42,(Z103+AL31*D19)/AL42,(Z104+AL31*D19)/AM42)*AN42 -> 721 | AQ98: =MIN((AA100+AL31*D19)/AI42,(AA101+AL31*D19)/AJ42,(AA102+AL31*D19)/AK42,(AA103+AL31*D19)/AL42,(AA104+AL31*D19)/AM42)*AN42 -> 717 | AR98: =MIN((AB100+AL31*D19)/AI42,(AB101+AL31*D19)/AJ42,(AB102+AL31*D19)/AK42,(AB103+AL31*D19)/AL42,(AB104+AL31*D19)/AM42)*AN42 -> 702 | AS98: =MIN((AC100+AL31*D19)/AI42,(AC101+AL31*D19)/AJ42,(AC102+AL31*D19)/AK42,(AC103+AL31*D19)/AL42,(AC104+AL31*D19)/AM42)*AN42 -> 706 | AT98: =MIN((AD100+AL31*D19)/AI42,(AD101+AL31*D19)/AJ42,(AD102+AL31*D19)/AK42,(AD103+AL31*D19)/AL42,(AD104+AL31*D19)/AM42)*AN42 -> 721 | AU98: =MIN((AE100+AL31*D19)/AI42,(AE101+AL31*D19)/AJ42,(AE102+AL31*D19)/AK42,(AE103+AL31*D19)/AL42,(AE104+AL31*D19)/AM42)*AN42 -> 699 | AV98: =MIN((AF100+AL31*D19)/AI42,(AF101+AL31*D19)/AJ42,(AF102+AL31*D19)/AK42,(AF103+AL31*D19)/AL42,(AF104+AL31*D19)/AM42)*AN42 -> 706 | AW98: 736 | AY98: 2 moy 509 | AZ98: =MIN((S100+AM31*D19)/AI43,(S101+AM31*D19)/AJ43,(S102+AM31*D19)/AK43,(S103+AM31*D19)/AL43,(S104+AM31*D19)/AM43)*AN43 -> 545.6 | BA98: =MIN((T100+AM31*D19)/AI43,(T101+AM31*D19)/AJ43,(T102+AM31*D19)/AK43,(T103+AM31*D19)/AL43,(T104+AM31*D19)/AM43)*AN43 -> 570.4 | BB98: =MIN((U100+AM31*D19)/AI43,(U101+AM31*D19)/AJ43,(U102+AM31*D19)/AK43,(U103+AM31*D19)/AL43,(U104+AM31*D19)/AM43)*AN43 -> 574.4 | BC98: =MIN((V100+AM31*D19)/AI43,(V101+AM31*D19)/AJ43,(V102+AM31*D19)/AK43,(V103+AM31*D19)/AL43,(V104+AM31*D19)/AM43)*AN43 -> 585.6 | BD98: =MIN((W100+AM31*D19)/AI43,(W101+AM31*D19)/AJ43,(W102+AM31*D19)/AK43,(W103+AM31*D19)/AL43,(W104+AM31*D19)/AM43)*AN43 -> 577.6 | BE98: =MIN((X100+AM31*D19)/AI43,(X101+AM31*D19)/AJ43,(X102+AM31*D19)/AK43,(X103+AM31*D19)/AL43,(X104+AM31*D19)/AM43)*AN43 -> 575.2 | BF98: =MIN((Y100+AM31*D19)/AI43,(Y101+AM31*D19)/AJ43,(Y102+AM31*D19)/AK43,(Y103+AM31*D19)/AL43,(Y104+AM31*D19)/AM43)*AN43 -> 564 | BG98: =MIN((Z100+AM31*D19)/AI43,(Z101+AM31*D19)/AJ43,(Z102+AM31*D19)/AK43,(Z103+AM31*D19)/AL43,(Z104+AM31*D19)/AM43)*AN43 -> 576.8 | BH98: =MIN((AA100+AM31*D19)/AI43,(AA101+AM31*D19)/AJ43,(AA102+AM31*D19)/AK43,(AA103+AM31*D19)/AL43,(AA104+AM31*D19)/AM43)*AN43 -> 573.6 | BI98: =MIN((AB100+AM31*D19)/AI43,(AB101+AM31*D19)/AJ43,(AB102+AM31*D19)/AK43,(AB103+AM31*D19)/AL43,(AB104+AM31*D19)/AM43)*AN43 -> 561.6 | BJ98: =MIN((AC100+AM31*D19)/AI43,(AC101+AM31*D19)/AJ43,(AC102+AM31*D19)/AK43,(AC103+AM31*D19)/AL43,(AC104+AM31*D19)/AM43)*AN43 -> 564.8 | BK98: =MIN((AD100+AM31*D19)/AI43,(AD101+AM31*D19)/AJ43,(AD102+AM31*D19)/AK43,(AD103+AM31*D19)/AL43,(AD104+AM31*D19)/AM43)*AN43 -> 571.2 | BL98: =MIN((AE100+AM31*D19)/AI43,(AE101+AM31*D19)/AJ43,(AE102+AM31*D19)/AK43,(AE103+AM31*D19)/AL43,(AE104+AM31*D19)/AM43)*AN43 -> 559.2 | BM98: =MIN((AF100+AM31*D19)/AI43,(AF101+AM31*D19)/AJ43,(AF102+AM31*D19)/AK43,(AF103+AM31*D19)/AL43,(AF104+AM31*D19)/AM43)*AN43 -> 564.8 | BN98: 585.6 | BP98: =AZ91 -> kit 1 | BQ98: kit 2A | BR98: kit 2B | BS98: kit 4A | BT98: kit 4B | BU98: kit 5 | BV98: kit 6A | BW98: kit 6B | BX98: kit 7 | BY98: kit 8 | BZ98: kit 9A | CA98: kit 9B | CB98: kit 10 | CC98: kit 11
E99: 1.4532 | F99: 0.3633 | G99: 1.8165 | H99: 1.63485 | I99: 0.18165 | J99: 1.8165 | K99: 1.0899 | L99: 0.27245 | M99: 1.36235 | N99: 1.90735 | O99: 0.8174 | P99: 2.72475 | R99: =G17 -> 2 moy 509 | S99: =S92 -> kit 1 | T99: =T92 -> kit 2A | U99: kit 2B | V99: kit 4A | W99: kit 4B | X99: kit 5 | Y99: kit 6A | Z99: kit 6B | AA99: kit 7 | AB99: kit 8 | AC99: kit 9A | AD99: kit 9B | AE99: kit 10 | AF99: kit 11 | AH99: 8 moy 492 | AI99: =MIN((S107+AL31*D19)/AI42,(S108+AL31*D19)/AJ42,(S109+AL31*D19)/AK42,(S110+AL31*D19)/AL42,(S111+AL31*D19)/AM42)*AN42 -> 675 | AJ99: =MIN((T107+AL31*D19)/AI42,(T108+AL31*D19)/AJ42,(T109+AL31*D19)/AK42,(T110+AL31*D19)/AL42,(T111+AL31*D19)/AM42)*AN42 -> 711 | AK99: =MIN((U107+AL31*D19)/AI42,(U108+AL31*D19)/AJ42,(U109+AL31*D19)/AK42,(U110+AL31*D19)/AL42,(U111+AL31*D19)/AM42)*AN42 -> 702 | AL99: =MIN((V107+AL31*D19)/AI42,(V108+AL31*D19)/AJ42,(V109+AL31*D19)/AK42,(V110+AL31*D19)/AL42,(V111+AL31*D19)/AM42)*AN42 -> 720 | AM99: =MIN((W107+AL31*D19)/AI42,(W108+AL31*D19)/AJ42,(W109+AL31*D19)/AK42,(W110+AL31*D19)/AL42,(W111+AL31*D19)/AM42)*AN42 -> 720 | AN99: =MIN((X107+AL31*D19)/AI42,(X108+AL31*D19)/AJ42,(X109+AL31*D19)/AK42,(X110+AL31*D19)/AL42,(X111+AL31*D19)/AM42)*AN42 -> 711 | AO99: =MIN((Y107+AL31*D19)/AI42,(Y108+AL31*D19)/AJ42,(Y109+AL31*D19)/AK42,(Y110+AL31*D19)/AL42,(Y111+AL31*D19)/AM42)*AN42 -> 705 | AP99: =MIN((Z107+AL31*D19)/AI42,(Z108+AL31*D19)/AJ42,(Z109+AL31*D19)/AK42,(Z110+AL31*D19)/AL42,(Z111+AL31*D19)/AM42)*AN42 -> 705 | AQ99: =MIN((AA107+AL31*D19)/AI42,(AA108+AL31*D19)/AJ42,(AA109+AL31*D19)/AK42,(AA110+AL31*D19)/AL42,(AA111+AL31*D19)/AM42)*AN42 -> 701 | AR99: =MIN((AB107+AL31*D19)/AI42,(AB108+AL31*D19)/AJ42,(AB109+AL31*D19)/AK42,(AB110+AL31*D19)/AL42,(AB111+AL31*D19)/AM42)*AN42 -> 686 | AS99: =MIN((AC107+AL31*D19)/AI42,(AC108+AL31*D19)/AJ42,(AC109+AL31*D19)/AK42,(AC110+AL31*D19)/AL42,(AC111+AL31*D19)/AM42)*AN42 -> 690 | AT99: =MIN((AD107+AL31*D19)/AI42,(AD108+AL31*D19)/AJ42,(AD109+AL31*D19)/AK42,(AD110+AL31*D19)/AL42,(AD111+AL31*D19)/AM42)*AN42 -> 705 | AU99: =MIN((AE107+AL31*D19)/AI42,(AE108+AL31*D19)/AJ42,(AE109+AL31*D19)/AK42,(AE110+AL31*D19)/AL42,(AE111+AL31*D19)/AM42)*AN42 -> 683 | AV99: =MIN((AF107+AL31*D19)/AI42,(AF108+AL31*D19)/AJ42,(AF109+AL31*D19)/AK42,(AF110+AL31*D19)/AL42,(AF111+AL31*D19)/AM42)*AN42 -> 690 | AW99: 720 | AY99: 8 moy 492 | AZ99: =MIN((S107+AM31*D19)/AI43,(S108+AM31*D19)/AJ43,(S109+AM31*D19)/AK43,(S110+AM31*D19)/AL43,(S111+AM31*D19)/AM43)*AN43 -> 530.4 | BA99: =MIN((T107+AM31*D19)/AI43,(T108+AM31*D19)/AJ43,(T109+AM31*D19)/AK43,(T110+AM31*D19)/AL43,(T111+AM31*D19)/AM43)*AN43 -> 566.4 | BB99: =MIN((U107+AM31*D19)/AI43,(U108+AM31*D19)/AJ43,(U109+AM31*D19)/AK43,(U110+AM31*D19)/AL43,(U111+AM31*D19)/AM43)*AN43 -> 561.6 | BC99: =MIN((V107+AM31*D19)/AI43,(V108+AM31*D19)/AJ43,(V109+AM31*D19)/AK43,(V110+AM31*D19)/AL43,(V111+AM31*D19)/AM43)*AN43 -> 572.8 | BD99: =MIN((W107+AM31*D19)/AI43,(W108+AM31*D19)/AJ43,(W109+AM31*D19)/AK43,(W110+AM31*D19)/AL43,(W111+AM31*D19)/AM43)*AN43 -> 562.4 | BE99: =MIN((X107+AM31*D19)/AI43,(X108+AM31*D19)/AJ43,(X109+AM31*D19)/AK43,(X110+AM31*D19)/AL43,(X111+AM31*D19)/AM43)*AN43 -> 562.4 | BF99: =MIN((Y107+AM31*D19)/AI43,(Y108+AM31*D19)/AJ43,(Y109+AM31*D19)/AK43,(Y110+AM31*D19)/AL43,(Y111+AM31*D19)/AM43)*AN43 -> 560 | BG99: =MIN((Z107+AM31*D19)/AI43,(Z108+AM31*D19)/AJ43,(Z109+AM31*D19)/AK43,(Z110+AM31*D19)/AL43,(Z111+AM31*D19)/AM43)*AN43 -> 564 | BH99: =MIN((AA107+AM31*D19)/AI43,(AA108+AM31*D19)/AJ43,(AA109+AM31*D19)/AK43,(AA110+AM31*D19)/AL43,(AA111+AM31*D19)/AM43)*AN43 -> 560.8 | BI99: =MIN((AB107+AM31*D19)/AI43,(AB108+AM31*D19)/AJ43,(AB109+AM31*D19)/AK43,(AB110+AM31*D19)/AL43,(AB111+AM31*D19)/AM43)*AN43 -> 548.8 | BJ99: =MIN((AC107+AM31*D19)/AI43,(AC108+AM31*D19)/AJ43,(AC109+AM31*D19)/AK43,(AC110+AM31*D19)/AL43,(AC111+AM31*D19)/AM43)*AN43 -> 552 | BK99: =MIN((AD107+AM31*D19)/AI43,(AD108+AM31*D19)/AJ43,(AD109+AM31*D19)/AK43,(AD110+AM31*D19)/AL43,(AD111+AM31*D19)/AM43)*AN43 -> 558.4 | BL99: =MIN((AE107+AM31*D19)/AI43,(AE108+AM31*D19)/AJ43,(AE109+AM31*D19)/AK43,(AE110+AM31*D19)/AL43,(AE111+AM31*D19)/AM43)*AN43 -> 546.4 | BM99: =MIN((AF107+AM31*D19)/AI43,(AF108+AM31*D19)/AJ43,(AF109+AM31*D19)/AK43,(AF110+AM31*D19)/AL43,(AF111+AM31*D19)/AM43)*AN43 -> 552 | BN99: 572.8 | BP99: =AZ91 -> kit 1 | BQ99: kit 2A | BR99: kit 2B | BS99: kit 4A | BT99: kit 4B | BU99: kit 5 | BV99: kit 6A | BW99: kit 6B | BX99: kit 7 | BY99: kit 8 | BZ99: kit 9A | CA99: kit 9B | CB99: kit 10 | CC99: kit 11
E100: 0.95365 | F100: 0.4087 | G100: 1.36235 | H100: 2.4523 | I100: 0.27245 | J100: 2.72475 | K100: 1.4532 | L100: 0.3633 | M100: 1.8165 | N100: 1.4532 | O100: 0.3633 | P100: 1.8165 | R100: =H17+AF39+D16+D17+D21 -> 662 | S100: =R100+Q10 -> 691 | T100: =R100+R10 -> 727 | U100: =R100+S10 -> 718 | V100: =R100+T10 -> 736 | W100: =R100+U10 -> 736 | X100: =R100+V10 -> 727 | Y100: =R100+W10 -> 721 | Z100: =R100+X10 -> 721 | AA100: =R100+Y10 -> 717 | AB100: =R100+Z10 -> 702 | AC100: =R100+AA10 -> 706 | AD100: =R100+AB10 -> 721 | AE100: =R100+AC10 -> 699 | AF100: =R100+AD10 -> 706 | AH100: Mionnet | AI100: =MIN((S114+AL31*D19)/AI42,(S115+AL31*D19)/AJ42,(S116+AL31*D19)/AK42,(S117+AL31*D19)/AL42,(S118+AL31*D19)/AM42)*AN42 -> 701 | AJ100: =MIN((T114+AL31*D19)/AI42,(T115+AL31*D19)/AJ42,(T116+AL31*D19)/AK42,(T117+AL31*D19)/AL42,(T118+AL31*D19)/AM42)*AN42 -> 737 | AK100: =MIN((U114+AL31*D19)/AI42,(U115+AL31*D19)/AJ42,(U116+AL31*D19)/AK42,(U117+AL31*D19)/AL42,(U118+AL31*D19)/AM42)*AN42 -> 728 | AL100: =MIN((V114+AL31*D19)/AI42,(V115+AL31*D19)/AJ42,(V116+AL31*D19)/AK42,(V117+AL31*D19)/AL42,(V118+AL31*D19)/AM42)*AN42 -> 746 | AM100: =MIN((W114+AL31*D19)/AI42,(W115+AL31*D19)/AJ42,(W116+AL31*D19)/AK42,(W117+AL31*D19)/AL42,(W118+AL31*D19)/AM42)*AN42 -> 746 | AN100: =MIN((X114+AL31*D19)/AI42,(X115+AL31*D19)/AJ42,(X116+AL31*D19)/AK42,(X117+AL31*D19)/AL42,(X118+AL31*D19)/AM42)*AN42 -> 737 | AO100: =MIN((Y114+AL31*D19)/AI42,(Y115+AL31*D19)/AJ42,(Y116+AL31*D19)/AK42,(Y117+AL31*D19)/AL42,(Y118+AL31*D19)/AM42)*AN42 -> 731 | AP100: =MIN((Z114+AL31*D19)/AI42,(Z115+AL31*D19)/AJ42,(Z116+AL31*D19)/AK42,(Z117+AL31*D19)/AL42,(Z118+AL31*D19)/AM42)*AN42 -> 731 | AQ100: =MIN((AA114+AL31*D19)/AI42,(AA115+AL31*D19)/AJ42,(AA116+AL31*D19)/AK42,(AA117+AL31*D19)/AL42,(AA118+AL31*D19)/AM42)*AN42 -> 727 | AR100: =MIN((AB114+AL31*D19)/AI42,(AB115+AL31*D19)/AJ42,(AB116+AL31*D19)/AK42,(AB117+AL31*D19)/AL42,(AB118+AL31*D19)/AM42)*AN42 -> 712 | AS100: =MIN((AC114+AL31*D19)/AI42,(AC115+AL31*D19)/AJ42,(AC116+AL31*D19)/AK42,(AC117+AL31*D19)/AL42,(AC118+AL31*D19)/AM42)*AN42 -> 716 | AT100: =MIN((AD114+AL31*D19)/AI42,(AD115+AL31*D19)/AJ42,(AD116+AL31*D19)/AK42,(AD117+AL31*D19)/AL42,(AD118+AL31*D19)/AM42)*AN42 -> 731 | AU100: =MIN((AE114+AL31*D19)/AI42,(AE115+AL31*D19)/AJ42,(AE116+AL31*D19)/AK42,(AE117+AL31*D19)/AL42,(AE118+AL31*D19)/AM42)*AN42 -> 709 | AV100: =MIN((AF114+AL31*D19)/AI42,(AF115+AL31*D19)/AJ42,(AF116+AL31*D19)/AK42,(AF117+AL31*D19)/AL42,(AF118+AL31*D19)/AM42)*AN42 -> 716 | AW100: 746 | AY100: Mionnet | AZ100: =MIN((S114+AM31*D19)/AI43,(S115+AM31*D19)/AJ43,(S116+AM31*D19)/AK43,(S117+AM31*D19)/AL43,(S118+AM31*D19)/AM43)*AN43 -> 560.8 | BA100: =MIN((T114+AM31*D19)/AI43,(T115+AM31*D19)/AJ43,(T116+AM31*D19)/AK43,(T117+AM31*D19)/AL43,(T118+AM31*D19)/AM43)*AN43 -> 589.6 | BB100: =MIN((U114+AM31*D19)/AI43,(U115+AM31*D19)/AJ43,(U116+AM31*D19)/AK43,(U117+AM31*D19)/AL43,(U118+AM31*D19)/AM43)*AN43 -> 582.4 | BC100: =MIN((V114+AM31*D19)/AI43,(V115+AM31*D19)/AJ43,(V116+AM31*D19)/AK43,(V117+AM31*D19)/AL43,(V118+AM31*D19)/AM43)*AN43 -> 596.8 | BD100: =MIN((W114+AM31*D19)/AI43,(W115+AM31*D19)/AJ43,(W116+AM31*D19)/AK43,(W117+AM31*D19)/AL43,(W118+AM31*D19)/AM43)*AN43 -> 596.8 | BE100: =MIN((X114+AM31*D19)/AI43,(X115+AM31*D19)/AJ43,(X116+AM31*D19)/AK43,(X117+AM31*D19)/AL43,(X118+AM31*D19)/AM43)*AN43 -> 589.6 | BF100: =MIN((Y114+AM31*D19)/AI43,(Y115+AM31*D19)/AJ43,(Y116+AM31*D19)/AK43,(Y117+AM31*D19)/AL43,(Y118+AM31*D19)/AM43)*AN43 -> 584.8 | BG100: =MIN((Z114+AM31*D19)/AI43,(Z115+AM31*D19)/AJ43,(Z116+AM31*D19)/AK43,(Z117+AM31*D19)/AL43,(Z118+AM31*D19)/AM43)*AN43 -> 584.8 | BH100: =MIN((AA114+AM31*D19)/AI43,(AA115+AM31*D19)/AJ43,(AA116+AM31*D19)/AK43,(AA117+AM31*D19)/AL43,(AA118+AM31*D19)/AM43)*AN43 -> 581.6 | BI100: =MIN((AB114+AM31*D19)/AI43,(AB115+AM31*D19)/AJ43,(AB116+AM31*D19)/AK43,(AB117+AM31*D19)/AL43,(AB118+AM31*D19)/AM43)*AN43 -> 569.6 | BJ100: =MIN((AC114+AM31*D19)/AI43,(AC115+AM31*D19)/AJ43,(AC116+AM31*D19)/AK43,(AC117+AM31*D19)/AL43,(AC118+AM31*D19)/AM43)*AN43 -> 572.8 | BK100: =MIN((AD114+AM31*D19)/AI43,(AD115+AM31*D19)/AJ43,(AD116+AM31*D19)/AK43,(AD117+AM31*D19)/AL43,(AD118+AM31*D19)/AM43)*AN43 -> 584.8 | BL100: =MIN((AE114+AM31*D19)/AI43,(AE115+AM31*D19)/AJ43,(AE116+AM31*D19)/AK43,(AE117+AM31*D19)/AL43,(AE118+AM31*D19)/AM43)*AN43 -> 567.2 | BM100: =MIN((AF114+AM31*D19)/AI43,(AF115+AM31*D19)/AJ43,(AF116+AM31*D19)/AK43,(AF117+AM31*D19)/AL43,(AF118+AM31*D19)/AM43)*AN43 -> 572.8 | BN100: 596.8 | BP100: =AZ91 -> kit 1 | BQ100: =BA91 -> kit 2A | BR100: kit 2B | BS100: kit 4A | BT100: kit 4B | BU100: kit 5 | BV100: kit 6A | BW100: kit 6B | BX100: kit 7 | BY100: kit 8 | BZ100: kit 9A | CA100: kit 9B | CB100: kit 10 | CC100: kit 11
G101: =SUM(G90:G100) -> 19.98135 | J101: =SUM(J90:J100) -> 19.9759 | M101: =SUM(M90:M100) -> 19.98125 | P101: =SUM(P90:P100) -> 19.98135 | R101: =I17+AF40+D15+D17+D21 -> 680 | S101: =R101+Q11 -> 757 | T101: =R101+R11 -> 723 | U101: =R101+S11 -> 723 | V101: =R101+T11 -> 705 | W101: =R101+U11 -> 717 | X101: =R101+V11 -> 729 | Y101: =R101+W11 -> 739 | Z101: =R101+X11 -> 726 | AA101: =R101+Y11 -> 735 | AB101: =R101+Z11 -> 739 | AC101: =R101+AA11 -> 739 | AD101: =R101+AB11 -> 748 | AE101: =R101+AC11 -> 745 | AF101: =R101+AD11 -> 739 | AH101: gerard Blanchard | AI101: =MIN((S121+AL31*D19)/AI42,(S122+AL31*D19)/AJ42,(S123+AL31*D19)/AK42,(S124+AL31*D19)/AL42,(S125+AL31*D19)/AM42)*AN42 -> 632 | AJ101: =MIN((T121+AL31*D19)/AI42,(T122+AL31*D19)/AJ42,(T123+AL31*D19)/AK42,(T124+AL31*D19)/AL42,(T125+AL31*D19)/AM42)*AN42 -> 668 | AK101: =MIN((U121+AL31*D19)/AI42,(U122+AL31*D19)/AJ42,(U123+AL31*D19)/AK42,(U124+AL31*D19)/AL42,(U125+AL31*D19)/AM42)*AN42 -> 659 | AL101: =MIN((V121+AL31*D19)/AI42,(V122+AL31*D19)/AJ42,(V123+AL31*D19)/AK42,(V124+AL31*D19)/AL42,(V125+AL31*D19)/AM42)*AN42 -> 677 | AM101: =MIN((W121+AL31*D19)/AI42,(W122+AL31*D19)/AJ42,(W123+AL31*D19)/AK42,(W124+AL31*D19)/AL42,(W125+AL31*D19)/AM42)*AN42 -> 677 | AN101: =MIN((X121+AL31*D19)/AI42,(X122+AL31*D19)/AJ42,(X123+AL31*D19)/AK42,(X124+AL31*D19)/AL42,(X125+AL31*D19)/AM42)*AN42 -> 668 | AO101: =MIN((Y121+AL31*D19)/AI42,(Y122+AL31*D19)/AJ42,(Y123+AL31*D19)/AK42,(Y124+AL31*D19)/AL42,(Y125+AL31*D19)/AM42)*AN42 -> 662 | AP101: =MIN((Z121+AL31*D19)/AI42,(Z122+AL31*D19)/AJ42,(Z123+AL31*D19)/AK42,(Z124+AL31*D19)/AL42,(Z125+AL31*D19)/AM42)*AN42 -> 662 | AQ101: =MIN((AA121+AL31*D19)/AI42,(AA122+AL31*D19)/AJ42,(AA123+AL31*D19)/AK42,(AA124+AL31*D19)/AL42,(AA125+AL31*D19)/AM42)*AN42 -> 658 | AR101: =MIN((AB121+AL31*D19)/AI42,(AB122+AL31*D19)/AJ42,(AB123+AL31*D19)/AK42,(AB124+AL31*D19)/AL42,(AB125+AL31*D19)/AM42)*AN42 -> 643 | AS101: =MIN((AC121+AL31*D19)/AI42,(AC122+AL31*D19)/AJ42,(AC123+AL31*D19)/AK42,(AC124+AL31*D19)/AL42,(AC125+AL31*D19)/AM42)*AN42 -> 647 | AT101: =MIN((AD121+AL31*D19)/AI42,(AD122+AL31*D19)/AJ42,(AD123+AL31*D19)/AK42,(AD124+AL31*D19)/AL42,(AD125+AL31*D19)/AM42)*AN42 -> 662 | AU101: =MIN((AE121+AL31*D19)/AI42,(AE122+AL31*D19)/AJ42,(AE123+AL31*D19)/AK42,(AE124+AL31*D19)/AL42,(AE125+AL31*D19)/AM42)*AN42 -> 640 | AV101: =MIN((AF121+AL31*D19)/AI42,(AF122+AL31*D19)/AJ42,(AF123+AL31*D19)/AK42,(AF124+AL31*D19)/AL42,(AF125+AL31*D19)/AM42)*AN42 -> 647 | AW101: 677 | AY101: gerard Blanchard | AZ101: =MIN((S121+AM31*D19)/AI43,(S122+AM31*D19)/AJ43,(S123+AM31*D19)/AK43,(S124+AM31*D19)/AL43,(S125+AM31*D19)/AM43)*AN43 -> 505.6 | BA101: =MIN((T121+AM31*D19)/AI43,(T122+AM31*D19)/AJ43,(T123+AM31*D19)/AK43,(T124+AM31*D19)/AL43,(T125+AM31*D19)/AM43)*AN43 -> 534.4 | BB101: =MIN((U121+AM31*D19)/AI43,(U122+AM31*D19)/AJ43,(U123+AM31*D19)/AK43,(U124+AM31*D19)/AL43,(U125+AM31*D19)/AM43)*AN43 -> 527.2 | BC101: =MIN((V121+AM31*D19)/AI43,(V122+AM31*D19)/AJ43,(V123+AM31*D19)/AK43,(V124+AM31*D19)/AL43,(V125+AM31*D19)/AM43)*AN43 -> 541.6 | BD101: =MIN((W121+AM31*D19)/AI43,(W122+AM31*D19)/AJ43,(W123+AM31*D19)/AK43,(W124+AM31*D19)/AL43,(W125+AM31*D19)/AM43)*AN43 -> 541.6 | BE101: =MIN((X121+AM31*D19)/AI43,(X122+AM31*D19)/AJ43,(X123+AM31*D19)/AK43,(X124+AM31*D19)/AL43,(X125+AM31*D19)/AM43)*AN43 -> 534.4 | BF101: =MIN((Y121+AM31*D19)/AI43,(Y122+AM31*D19)/AJ43,(Y123+AM31*D19)/AK43,(Y124+AM31*D19)/AL43,(Y125+AM31*D19)/AM43)*AN43 -> 529.6 | BG101: =MIN((Z121+AM31*D19)/AI43,(Z122+AM31*D19)/AJ43,(Z123+AM31*D19)/AK43,(Z124+AM31*D19)/AL43,(Z125+AM31*D19)/AM43)*AN43 -> 529.6 | BH101: =MIN((AA121+AM31*D19)/AI43,(AA122+AM31*D19)/AJ43,(AA123+AM31*D19)/AK43,(AA124+AM31*D19)/AL43,(AA125+AM31*D19)/AM43)*AN43 -> 526.4 | BI101: =MIN((AB121+AM31*D19)/AI43,(AB122+AM31*D19)/AJ43,(AB123+AM31*D19)/AK43,(AB124+AM31*D19)/AL43,(AB125+AM31*D19)/AM43)*AN43 -> 514.4 | BJ101: =MIN((AC121+AM31*D19)/AI43,(AC122+AM31*D19)/AJ43,(AC123+AM31*D19)/AK43,(AC124+AM31*D19)/AL43,(AC125+AM31*D19)/AM43)*AN43 -> 517.6 | BK101: =MIN((AD121+AM31*D19)/AI43,(AD122+AM31*D19)/AJ43,(AD123+AM31*D19)/AK43,(AD124+AM31*D19)/AL43,(AD125+AM31*D19)/AM43)*AN43 -> 529.6 | BL101: =MIN((AE121+AM31*D19)/AI43,(AE122+AM31*D19)/AJ43,(AE123+AM31*D19)/AK43,(AE124+AM31*D19)/AL43,(AE125+AM31*D19)/AM43)*AN43 -> 512 | BM101: =MIN((AF121+AM31*D19)/AI43,(AF122+AM31*D19)/AJ43,(AF123+AM31*D19)/AK43,(AF124+AM31*D19)/AL43,(AF125+AM31*D19)/AM43)*AN43 -> 517.6 | BN101: 541.6 | BO101: meilleur kit par poste / joueur
R102: =J17+AF41+D15+D17+D21 -> 670 | S102: =R102+Q12 -> 699 | T102: =R102+R12 -> 713 | U102: =R102+S12 -> 726 | V102: =R102+T12 -> 732 | W102: =R102+U12 -> 744 | X102: =R102+V12 -> 719 | Y102: =R102+W12 -> 705 | Z102: =R102+X12 -> 729 | AA102: =R102+Y12 -> 725 | AB102: =R102+Z12 -> 729 | AC102: =R102+AA12 -> 738 | AD102: =R102+AB12 -> 714 | AE102: =R102+AC12 -> 716 | AF102: =R102+AD12 -> 738 | AH102: 9 moy 511 | AI102: =MIN((S128+AL31*D19)/AI42,(S129+AL31*D19)/AJ42,(S130+AL31*D19)/AK42,(S131+AL31*D19)/AL42,(S132+AL31*D19)/AM42)*AN42 -> 691 | AJ102: =MIN((T128+AL31*D19)/AI42,(T129+AL31*D19)/AJ42,(T130+AL31*D19)/AK42,(T131+AL31*D19)/AL42,(T132+AL31*D19)/AM42)*AN42 -> 727 | AK102: =MIN((U128+AL31*D19)/AI42,(U129+AL31*D19)/AJ42,(U130+AL31*D19)/AK42,(U131+AL31*D19)/AL42,(U132+AL31*D19)/AM42)*AN42 -> 718 | AL102: =MIN((V128+AL31*D19)/AI42,(V129+AL31*D19)/AJ42,(V130+AL31*D19)/AK42,(V131+AL31*D19)/AL42,(V132+AL31*D19)/AM42)*AN42 -> 736 | AM102: =MIN((W128+AL31*D19)/AI42,(W129+AL31*D19)/AJ42,(W130+AL31*D19)/AK42,(W131+AL31*D19)/AL42,(W132+AL31*D19)/AM42)*AN42 -> 736 | AN102: =MIN((X128+AL31*D19)/AI42,(X129+AL31*D19)/AJ42,(X130+AL31*D19)/AK42,(X131+AL31*D19)/AL42,(X132+AL31*D19)/AM42)*AN42 -> 727 | AO102: =MIN((Y128+AL31*D19)/AI42,(Y129+AL31*D19)/AJ42,(Y130+AL31*D19)/AK42,(Y131+AL31*D19)/AL42,(Y132+AL31*D19)/AM42)*AN42 -> 721 | AP102: =MIN((Z128+AL31*D19)/AI42,(Z129+AL31*D19)/AJ42,(Z130+AL31*D19)/AK42,(Z131+AL31*D19)/AL42,(Z132+AL31*D19)/AM42)*AN42 -> 721 | AQ102: =MIN((AA128+AL31*D19)/AI42,(AA129+AL31*D19)/AJ42,(AA130+AL31*D19)/AK42,(AA131+AL31*D19)/AL42,(AA132+AL31*D19)/AM42)*AN42 -> 717 | AR102: =MIN((AB128+AL31*D19)/AI42,(AB129+AL31*D19)/AJ42,(AB130+AL31*D19)/AK42,(AB131+AL31*D19)/AL42,(AB132+AL31*D19)/AM42)*AN42 -> 702 | AS102: =MIN((AC128+AL31*D19)/AI42,(AC129+AL31*D19)/AJ42,(AC130+AL31*D19)/AK42,(AC131+AL31*D19)/AL42,(AC132+AL31*D19)/AM42)*AN42 -> 706 | AT102: =MIN((AD128+AL31*D19)/AI42,(AD129+AL31*D19)/AJ42,(AD130+AL31*D19)/AK42,(AD131+AL31*D19)/AL42,(AD132+AL31*D19)/AM42)*AN42 -> 721 | AU102: =MIN((AE128+AL31*D19)/AI42,(AE129+AL31*D19)/AJ42,(AE130+AL31*D19)/AK42,(AE131+AL31*D19)/AL42,(AE132+AL31*D19)/AM42)*AN42 -> 699 | AV102: =MIN((AF128+AL31*D19)/AI42,(AF129+AL31*D19)/AJ42,(AF130+AL31*D19)/AK42,(AF131+AL31*D19)/AL42,(AF132+AL31*D19)/AM42)*AN42 -> 706 | AW102: 736 | AY102: 9 moy 511 | AZ102: =MIN((S128+AM31*D19)/AI43,(S129+AM31*D19)/AJ43,(S130+AM31*D19)/AK43,(S131+AM31*D19)/AL43,(S132+AM31*D19)/AM43)*AN43 -> 512.8 | BA102: =MIN((T128+AM31*D19)/AI43,(T129+AM31*D19)/AJ43,(T130+AM31*D19)/AK43,(T131+AM31*D19)/AL43,(T132+AM31*D19)/AM43)*AN43 -> 557.6 | BB102: =MIN((U128+AM31*D19)/AI43,(U129+AM31*D19)/AJ43,(U130+AM31*D19)/AK43,(U131+AM31*D19)/AL43,(U132+AM31*D19)/AM43)*AN43 -> 557.6 | BC102: =MIN((V128+AM31*D19)/AI43,(V129+AM31*D19)/AJ43,(V130+AM31*D19)/AK43,(V131+AM31*D19)/AL43,(V132+AM31*D19)/AM43)*AN43 -> 555.2 | BD102: =MIN((W128+AM31*D19)/AI43,(W129+AM31*D19)/AJ43,(W130+AM31*D19)/AK43,(W131+AM31*D19)/AL43,(W132+AM31*D19)/AM43)*AN43 -> 544.8 | BE102: =MIN((X128+AM31*D19)/AI43,(X129+AM31*D19)/AJ43,(X130+AM31*D19)/AK43,(X131+AM31*D19)/AL43,(X132+AM31*D19)/AM43)*AN43 -> 544.8 | BF102: =MIN((Y128+AM31*D19)/AI43,(Y129+AM31*D19)/AJ43,(Y130+AM31*D19)/AK43,(Y131+AM31*D19)/AL43,(Y132+AM31*D19)/AM43)*AN43 -> 552.8 | BG102: =MIN((Z128+AM31*D19)/AI43,(Z129+AM31*D19)/AJ43,(Z130+AM31*D19)/AK43,(Z131+AM31*D19)/AL43,(Z132+AM31*D19)/AM43)*AN43 -> 552.8 | BH102: =MIN((AA128+AM31*D19)/AI43,(AA129+AM31*D19)/AJ43,(AA130+AM31*D19)/AK43,(AA131+AM31*D19)/AL43,(AA132+AM31*D19)/AM43)*AN43 -> 549.6 | BI102: =MIN((AB128+AM31*D19)/AI43,(AB129+AM31*D19)/AJ43,(AB130+AM31*D19)/AK43,(AB131+AM31*D19)/AL43,(AB132+AM31*D19)/AM43)*AN43 -> 552.8 | BJ102: =MIN((AC128+AM31*D19)/AI43,(AC129+AM31*D19)/AJ43,(AC130+AM31*D19)/AK43,(AC131+AM31*D19)/AL43,(AC132+AM31*D19)/AM43)*AN43 -> 547.2 | BK102: =MIN((AD128+AM31*D19)/AI43,(AD129+AM31*D19)/AJ43,(AD130+AM31*D19)/AK43,(AD131+AM31*D19)/AL43,(AD132+AM31*D19)/AM43)*AN43 -> 540.8 | BL102: =MIN((AE128+AM31*D19)/AI43,(AE129+AM31*D19)/AJ43,(AE130+AM31*D19)/AK43,(AE131+AM31*D19)/AL43,(AE132+AM31*D19)/AM43)*AN43 -> 549.6 | BM102: =MIN((AF128+AM31*D19)/AI43,(AF129+AM31*D19)/AJ43,(AF130+AM31*D19)/AK43,(AF131+AM31*D19)/AL43,(AF132+AM31*D19)/AM43)*AN43 -> 552.8 | BN102: 557.6 | BQ102: 1 | BS102: 2 | BU102: 3 | BW102: 4 | BY102: 5 | CA102: 6 | CC102: 7 | CE102: 8 | CG102: 9 | CI102: 10 | CK102: 11
D103: Calcul du capitaine | G103: ss kit ss vitamine | H103: kit ss vit | I103: kit + vit | R103: =K17+AF42+D16+D17+D21 -> 673 | S103: =R103+Q13 -> 682 | T103: =R103+R13 -> 738 | U103: =R103+S13 -> 738 | V103: =R103+T13 -> 735 | W103: =R103+U13 -> 722 | X103: =R103+V13 -> 722 | Y103: =R103+W13 -> 732 | Z103: =R103+X13 -> 732 | AA103: =R103+Y13 -> 728 | AB103: =R103+Z13 -> 732 | AC103: =R103+AA13 -> 725 | AD103: =R103+AB13 -> 717 | AE103: =R103+AC13 -> 728 | AF103: =R103+AD13 -> 732 | AH103: Pullrouge 5 | AI103: =MIN((S135+AL31*D19)/AI42,(S136+AL31*D19)/AJ42,(S137+AL31*D19)/AK42,(S138+AL31*D19)/AL42,(S139+AL31*D19)/AM42)*AN42 -> 617 | AJ103: =MIN((T135+AL31*D19)/AI42,(T136+AL31*D19)/AJ42,(T137+AL31*D19)/AK42,(T138+AL31*D19)/AL42,(T139+AL31*D19)/AM42)*AN42 -> 653 | AK103: =MIN((U135+AL31*D19)/AI42,(U136+AL31*D19)/AJ42,(U137+AL31*D19)/AK42,(U138+AL31*D19)/AL42,(U139+AL31*D19)/AM42)*AN42 -> 644 | AL103: =MIN((V135+AL31*D19)/AI42,(V136+AL31*D19)/AJ42,(V137+AL31*D19)/AK42,(V138+AL31*D19)/AL42,(V139+AL31*D19)/AM42)*AN42 -> 662 | AM103: =MIN((W135+AL31*D19)/AI42,(W136+AL31*D19)/AJ42,(W137+AL31*D19)/AK42,(W138+AL31*D19)/AL42,(W139+AL31*D19)/AM42)*AN42 -> 662 | AN103: =MIN((X135+AL31*D19)/AI42,(X136+AL31*D19)/AJ42,(X137+AL31*D19)/AK42,(X138+AL31*D19)/AL42,(X139+AL31*D19)/AM42)*AN42 -> 653 | AO103: =MIN((Y135+AL31*D19)/AI42,(Y136+AL31*D19)/AJ42,(Y137+AL31*D19)/AK42,(Y138+AL31*D19)/AL42,(Y139+AL31*D19)/AM42)*AN42 -> 647 | AP103: =MIN((Z135+AL31*D19)/AI42,(Z136+AL31*D19)/AJ42,(Z137+AL31*D19)/AK42,(Z138+AL31*D19)/AL42,(Z139+AL31*D19)/AM42)*AN42 -> 647 | AQ103: =MIN((AA135+AL31*D19)/AI42,(AA136+AL31*D19)/AJ42,(AA137+AL31*D19)/AK42,(AA138+AL31*D19)/AL42,(AA139+AL31*D19)/AM42)*AN42 -> 643 | AR103: =MIN((AB135+AL31*D19)/AI42,(AB136+AL31*D19)/AJ42,(AB137+AL31*D19)/AK42,(AB138+AL31*D19)/AL42,(AB139+AL31*D19)/AM42)*AN42 -> 628 | AS103: =MIN((AC135+AL31*D19)/AI42,(AC136+AL31*D19)/AJ42,(AC137+AL31*D19)/AK42,(AC138+AL31*D19)/AL42,(AC139+AL31*D19)/AM42)*AN42 -> 632 | AT103: =MIN((AD135+AL31*D19)/AI42,(AD136+AL31*D19)/AJ42,(AD137+AL31*D19)/AK42,(AD138+AL31*D19)/AL42,(AD139+AL31*D19)/AM42)*AN42 -> 647 | AU103: =MIN((AE135+AL31*D19)/AI42,(AE136+AL31*D19)/AJ42,(AE137+AL31*D19)/AK42,(AE138+AL31*D19)/AL42,(AE139+AL31*D19)/AM42)*AN42 -> 625 | AV103: =MIN((AF135+AL31*D19)/AI42,(AF136+AL31*D19)/AJ42,(AF137+AL31*D19)/AK42,(AF138+AL31*D19)/AL42,(AF139+AL31*D19)/AM42)*AN42 -> 632 | AW103: 662 | AY103: Pullrouge 5 | AZ103: =MIN((S135+AM31*D19)/AI43,(S136+AM31*D19)/AJ43,(S137+AM31*D19)/AK43,(S138+AM31*D19)/AL43,(S139+AM31*D19)/AM43)*AN43 -> 472.8 | BA103: =MIN((T135+AM31*D19)/AI43,(T136+AM31*D19)/AJ43,(T137+AM31*D19)/AK43,(T138+AM31*D19)/AL43,(T139+AM31*D19)/AM43)*AN43 -> 484 | BB103: =MIN((U135+AM31*D19)/AI43,(U136+AM31*D19)/AJ43,(U137+AM31*D19)/AK43,(U138+AM31*D19)/AL43,(U139+AM31*D19)/AM43)*AN43 -> 494.4 | BC103: =MIN((V135+AM31*D19)/AI43,(V136+AM31*D19)/AJ43,(V137+AM31*D19)/AK43,(V138+AM31*D19)/AL43,(V139+AM31*D19)/AM43)*AN43 -> 499.2 | BD103: =MIN((W135+AM31*D19)/AI43,(W136+AM31*D19)/AJ43,(W137+AM31*D19)/AK43,(W138+AM31*D19)/AL43,(W139+AM31*D19)/AM43)*AN43 -> 508.8 | BE103: =MIN((X135+AM31*D19)/AI43,(X136+AM31*D19)/AJ43,(X137+AM31*D19)/AK43,(X138+AM31*D19)/AL43,(X139+AM31*D19)/AM43)*AN43 -> 488.8 | BF103: =MIN((Y135+AM31*D19)/AI43,(Y136+AM31*D19)/AJ43,(Y137+AM31*D19)/AK43,(Y138+AM31*D19)/AL43,(Y139+AM31*D19)/AM43)*AN43 -> 477.6 | BG103: =MIN((Z135+AM31*D19)/AI43,(Z136+AM31*D19)/AJ43,(Z137+AM31*D19)/AK43,(Z138+AM31*D19)/AL43,(Z139+AM31*D19)/AM43)*AN43 -> 496.8 | BH103: =MIN((AA135+AM31*D19)/AI43,(AA136+AM31*D19)/AJ43,(AA137+AM31*D19)/AK43,(AA138+AM31*D19)/AL43,(AA139+AM31*D19)/AM43)*AN43 -> 493.6 | BI103: =MIN((AB135+AM31*D19)/AI43,(AB136+AM31*D19)/AJ43,(AB137+AM31*D19)/AK43,(AB138+AM31*D19)/AL43,(AB139+AM31*D19)/AM43)*AN43 -> 496.8 | BJ103: =MIN((AC135+AM31*D19)/AI43,(AC136+AM31*D19)/AJ43,(AC137+AM31*D19)/AK43,(AC138+AM31*D19)/AL43,(AC139+AM31*D19)/AM43)*AN43 -> 504 | BK103: =MIN((AD135+AM31*D19)/AI43,(AD136+AM31*D19)/AJ43,(AD137+AM31*D19)/AK43,(AD138+AM31*D19)/AL43,(AD139+AM31*D19)/AM43)*AN43 -> 484.8 | BL103: =MIN((AE135+AM31*D19)/AI43,(AE136+AM31*D19)/AJ43,(AE137+AM31*D19)/AK43,(AE138+AM31*D19)/AL43,(AE139+AM31*D19)/AM43)*AN43 -> 486.4 | BM103: =MIN((AF135+AM31*D19)/AI43,(AF136+AM31*D19)/AJ43,(AF137+AM31*D19)/AK43,(AF138+AM31*D19)/AL43,(AF139+AM31*D19)/AM43)*AN43 -> 504 | BN103: 508.8 | BP103: =AY92 -> G. Warmuz 430 | BQ103: =IF(AW52=AI52,BP83,IF(AW52=AJ52,BQ83,IF(AW52=AK52,BR83,IF(AW52=AL52,BS83,IF(AW52=AM52,BT83,IF(AW52=AN52,BU83,IF(AW52=AO52,BV83,IF(AW52=AP52,BW83,BR103)))))))) -> kit 1 | BR103: =IF(AW52=AQ52,BX83,IF(AW52=AR52,BY83,IF(AW52=AS52,BZ83,IF(AW52=AT52,CA83,IF(AW52=AU52,CB83,IF(AW52=AV52,CC83,CM103)))))) -> - | BS103: =IF(BN52=AZ52,BP83,IF(BN52=BA52,BQ83,IF(BN52=BB52,BR83,IF(BN52=BC52,BS83,IF(BN52=BD52,BT83,IF(BN52=BE52,BU83,IF(BN52=BF52,BV83,IF(BN52=BG52,BW83,BT103)))))))) -> kit 4A | BT103: =IF(BN52=BH52,BX83,IF(BN52=BI52,BY83,IF(BN52=BJ52,BZ83,IF(BN52=BK52,CA83,IF(BN52=BL52,CB83,IF(BN52=BM52,CC83,CM103)))))) -> - | BU103: =IF(AW72=AI72,BP83,IF(AW72=AJ72,BQ83,IF(AW72=AK72,BR83,IF(AW72=AL72,BS83,IF(AW72=AM72,BT83,IF(AW72=AN72,BU83,IF(AW72=AO72,BV83,IF(AW72=AP72,BW83,BV103)))))))) -> kit 4A | BV103: =IF(AW72=AQ72,BX83,IF(AW72=AR72,BY83,IF(AW72=AS72,BZ83,IF(AW72=AT72,CA83,IF(AW72=AU72,CB83,IF(AW72=AV72,CC83,CM103)))))) -> - | BW103: =IF(BN72=AZ72,BP83,IF(BN72=BA72,BQ83,IF(BN72=BB72,BR83,IF(BN72=BC72,BS83,IF(BN72=BD72,BT83,IF(BN72=BE72,BU83,IF(BN72=BF72,BV83,IF(BN72=BG72,BW83,BX103)))))))) -> kit 4A | BX103: =IF(BN72=BH72,BX83,IF(BN72=BI72,BY83,IF(BN72=BJ72,BZ83,IF(BN72=BK72,CA83,IF(BN72=BL72,CB83,IF(BN72=BM72,CC83,CM103)))))) -> - | BY103: =IF(AW92=AI92,BP83,IF(AW92=AJ92,BQ83,IF(AW92=AK92,BR83,IF(AW92=AL92,BS83,IF(AW92=AM92,BT83,IF(AW92=AN92,BU83,IF(AW92=AO92,BV83,IF(AW92=AP92,BW83,BZ103)))))))) -> kit 4A | BZ103: =IF(AW92=AQ92,BX83,IF(AW92=AR92,BY83,IF(AW92=AS92,BZ83,IF(AW92=AT92,CA83,IF(AW92=AU92,CB83,IF(AW92=AV92,CC83,CM103)))))) -> - | CA103: =IF(BN92=AZ92,BP83,IF(BN92=BA92,BQ83,IF(BN92=BB92,BR83,IF(BN92=BC92,BS83,IF(BN92=BD92,BT83,IF(BN92=BE92,BU83,IF(BN92=BF92,BV83,IF(BN92=BG92,BW83,CB103)))))))) -> kit 4A | CB103: =IF(BN92=BH92,BX83,IF(BN92=BI92,BY83,IF(BN92=BJ92,BZ83,IF(BN92=BK92,CA83,IF(BN92=BL92,CB83,IF(BN92=BM92,CC83,CM103)))))) -> - | CC103: =IF(AW112=AI112,BP83,IF(AW112=AJ112,BQ83,IF(AW112=AK112,BR83,IF(AW112=AL112,BS83,IF(AW112=AM112,BT83,IF(AW112=AN112,BU83,IF(AW112=AO112,BV83,IF(AW112=AP112,BW83,CD103)))))))) -> kit 4A | CD103: =IF(AW112=AQ112,BX83,IF(AW112=AR112,BY83,IF(AW112=AS112,BZ83,IF(AW112=AT112,CA83,IF(AW112=AU112,CB83,IF(AW112=AV112,CC83,CM103)))))) -> - | CE103: =IF(BN112=AZ112,BP83,IF(BN112=BA112,BQ83,IF(BN112=BB112,BR83,IF(BN112=BC112,BS83,IF(BN112=BD112,BT83,IF(BN112=BE112,BU83,IF(BN112=BF112,BV83,IF(BN112=BG112,BW83,CF103)))))))) -> kit 4B | CF103: =IF(BN112=BH112,BX83,IF(BN112=BI112,BY83,IF(BN112=BJ112,BZ83,IF(BN112=BK112,CA83,IF(BN112=BL112,CB83,IF(BN112=BM112,CC83,CM103)))))) -> - | CG103: =IF(AW132=AI132,BP83,IF(AW132=AJ132,BQ83,IF(AW132=AK132,BR83,IF(AW132=AL132,BS83,IF(AW132=AM132,BT83,IF(AW132=AN132,BU83,IF(AW132=AO132,BV83,IF(AW132=AP132,BW83,CH103)))))))) -> kit 4A | CH103: =IF(AW132=AQ132,BX83,IF(AW132=AR132,BY83,IF(AW132=AS132,BZ83,IF(AW132=AT132,CA83,IF(AW132=AU132,CB83,IF(AW132=AV132,CC83,CM103)))))) -> - | CI103: =IF(BN132=AZ132,BP83,IF(BN132=BA132,BQ83,IF(BN132=BB132,BR83,IF(BN132=BC132,BS83,IF(BN132=BD132,BT83,IF(BN132=BE132,BU83,IF(BN132=BF132,BV83,IF(BN132=BG132,BW83,CJ103)))))))) -> kit 9B | CJ103: =IF(BN132=BH132,BX83,IF(BN132=BI132,BY83,IF(BN132=BJ132,BZ83,IF(BN132=BK132,CA83,IF(BN132=BL132,CB83,IF(BN132=BM132,CC83,CM103)))))) -> kit 9B | CK103: =IF(AW152=AI152,BP83,IF(AW152=AJ152,BQ83,IF(AW152=AK152,BR83,IF(AW152=AL152,BS83,IF(AW152=AM152,BT83,IF(AW152=AN152,BU83,IF(AW152=AO152,BV83,IF(AW152=AP152,BW83,CL103)))))))) -> kit 4B | CL103: =IF(AW152=AQ152,BX83,IF(AW152=AR152,BY83,IF(AW152=AS152,BZ83,IF(AW152=AT152,CA83,IF(AW152=AU152,CB83,IF(AW152=AV152,CC83,CM103)))))) -> - | CM103: -
D104: =IF(MAX($I$104:$I$121)=I104,"CAP","") -> CAP | E104: =IF(G11<>"",G11,"") -> G. Warmuz 430 | F104: =VLOOKUP(E104,$AG$8:$AT$25,14,FALSE) -> 1 | G104: =IF(G11<>"",(R62/100+M11/500)/100,"") -> 0.13058 | H104: =IF(G11<>"",IF(ISNA(IF(VLOOKUP(G11,$AG$8:$AT$25,14,FALSE)="","",(HLOOKUP(VLOOKUP(G11,$AY$10:$AZ$20,2,FALSE),S57:AF62,6,FALSE)/100+M11/500)/100)),G104,IF(VLOOKUP(G11,$AG$8:$AT$25,14,FALSE)="","",(HLOOKUP(VLOOKUP(G11,$AY$10:$AZ$20,2,FALSE),S57:AF62,6,FALSE)/100+M11/500)/100)),"") -> 0.13538 | I104: =IF(G11<>"",IF(ISNA(IF(VLOOKUP(G11,$AG$8:$AT$25,14,FALSE)="","",((HLOOKUP(VLOOKUP(G11,$AY$10:$AZ$20,2,FALSE),$S$57:$AF$62,6,FALSE)+IF(HLOOKUP(F104,$AH$7:$AR$31,21,FALSE)=1,D19,0))/100+M11/500)/100)),H104,IF(VLOOKUP(G11,$AG$8:$AT$25,14,FALSE)="","",((HLOOKUP(VLOOKUP(G11,$AY$10:$AZ$20,2,FALSE),$S$57:$AF$62,6,FALSE)+IF(HLOOKUP(F104,$AH$7:$AR$31,21,FALSE)=1,D19,0))/100+M11/500)/100)),"") -> 0.13538 | R104: =L17+AF43+D15+D17+D21 -> 639 | S104: =R104+Q14 -> 687 | T104: =R104+R14 -> 682 | U104: =R104+S14 -> 682 | V104: =R104+T14 -> 676 | W104: =R104+U14 -> 664 | X104: =R104+V14 -> 688 | Y104: =R104+W14 -> 685 | Z104: =R104+X14 -> 673 | AA104: =R104+Y14 -> 683 | AB104: =R104+Z14 -> 679 | AC104: =R104+AA14 -> 672 | AD104: =R104+AB14 -> 683 | AE104: =R104+AC14 -> 694 | AF104: =R104+AD14 -> 665 | AH104: Pullrouge 3 | AI104: =MIN((S142+AL31*D19)/AI42,(S143+AL31*D19)/AJ42,(S144+AL31*D19)/AK42,(S145+AL31*D19)/AL42,(S146+AL31*D19)/AM42)*AN42 -> 682 | AJ104: =MIN((T142+AL31*D19)/AI42,(T143+AL31*D19)/AJ42,(T144+AL31*D19)/AK42,(T145+AL31*D19)/AL42,(T146+AL31*D19)/AM42)*AN42 -> 718 | AK104: =MIN((U142+AL31*D19)/AI42,(U143+AL31*D19)/AJ42,(U144+AL31*D19)/AK42,(U145+AL31*D19)/AL42,(U146+AL31*D19)/AM42)*AN42 -> 709 | AL104: =MIN((V142+AL31*D19)/AI42,(V143+AL31*D19)/AJ42,(V144+AL31*D19)/AK42,(V145+AL31*D19)/AL42,(V146+AL31*D19)/AM42)*AN42 -> 727 | AM104: =MIN((W142+AL31*D19)/AI42,(W143+AL31*D19)/AJ42,(W144+AL31*D19)/AK42,(W145+AL31*D19)/AL42,(W146+AL31*D19)/AM42)*AN42 -> 727 | AN104: =MIN((X142+AL31*D19)/AI42,(X143+AL31*D19)/AJ42,(X144+AL31*D19)/AK42,(X145+AL31*D19)/AL42,(X146+AL31*D19)/AM42)*AN42 -> 718 | AO104: =MIN((Y142+AL31*D19)/AI42,(Y143+AL31*D19)/AJ42,(Y144+AL31*D19)/AK42,(Y145+AL31*D19)/AL42,(Y146+AL31*D19)/AM42)*AN42 -> 712 | AP104: =MIN((Z142+AL31*D19)/AI42,(Z143+AL31*D19)/AJ42,(Z144+AL31*D19)/AK42,(Z145+AL31*D19)/AL42,(Z146+AL31*D19)/AM42)*AN42 -> 712 | AQ104: =MIN((AA142+AL31*D19)/AI42,(AA143+AL31*D19)/AJ42,(AA144+AL31*D19)/AK42,(AA145+AL31*D19)/AL42,(AA146+AL31*D19)/AM42)*AN42 -> 708 | AR104: =MIN((AB142+AL31*D19)/AI42,(AB143+AL31*D19)/AJ42,(AB144+AL31*D19)/AK42,(AB145+AL31*D19)/AL42,(AB146+AL31*D19)/AM42)*AN42 -> 693 | AS104: =MIN((AC142+AL31*D19)/AI42,(AC143+AL31*D19)/AJ42,(AC144+AL31*D19)/AK42,(AC145+AL31*D19)/AL42,(AC146+AL31*D19)/AM42)*AN42 -> 697 | AT104: =MIN((AD142+AL31*D19)/AI42,(AD143+AL31*D19)/AJ42,(AD144+AL31*D19)/AK42,(AD145+AL31*D19)/AL42,(AD146+AL31*D19)/AM42)*AN42 -> 712 | AU104: =MIN((AE142+AL31*D19)/AI42,(AE143+AL31*D19)/AJ42,(AE144+AL31*D19)/AK42,(AE145+AL31*D19)/AL42,(AE146+AL31*D19)/AM42)*AN42 -> 690 | AV104: =MIN((AF142+AL31*D19)/AI42,(AF143+AL31*D19)/AJ42,(AF144+AL31*D19)/AK42,(AF145+AL31*D19)/AL42,(AF146+AL31*D19)/AM42)*AN42 -> 697 | AW104: 727 | AY104: Pullrouge 3 | AZ104: =MIN((S142+AM31*D19)/AI43,(S143+AM31*D19)/AJ43,(S144+AM31*D19)/AK43,(S145+AM31*D19)/AL43,(S146+AM31*D19)/AM43)*AN43 -> 446.4 | BA104: =MIN((T142+AM31*D19)/AI43,(T143+AM31*D19)/AJ43,(T144+AM31*D19)/AK43,(T145+AM31*D19)/AL43,(T146+AM31*D19)/AM43)*AN43 -> 457.6 | BB104: =MIN((U142+AM31*D19)/AI43,(U143+AM31*D19)/AJ43,(U144+AM31*D19)/AK43,(U145+AM31*D19)/AL43,(U146+AM31*D19)/AM43)*AN43 -> 468 | BC104: =MIN((V142+AM31*D19)/AI43,(V143+AM31*D19)/AJ43,(V144+AM31*D19)/AK43,(V145+AM31*D19)/AL43,(V146+AM31*D19)/AM43)*AN43 -> 472.8 | BD104: =MIN((W142+AM31*D19)/AI43,(W143+AM31*D19)/AJ43,(W144+AM31*D19)/AK43,(W145+AM31*D19)/AL43,(W146+AM31*D19)/AM43)*AN43 -> 482.4 | BE104: =MIN((X142+AM31*D19)/AI43,(X143+AM31*D19)/AJ43,(X144+AM31*D19)/AK43,(X145+AM31*D19)/AL43,(X146+AM31*D19)/AM43)*AN43 -> 462.4 | BF104: =MIN((Y142+AM31*D19)/AI43,(Y143+AM31*D19)/AJ43,(Y144+AM31*D19)/AK43,(Y145+AM31*D19)/AL43,(Y146+AM31*D19)/AM43)*AN43 -> 451.2 | BG104: =MIN((Z142+AM31*D19)/AI43,(Z143+AM31*D19)/AJ43,(Z144+AM31*D19)/AK43,(Z145+AM31*D19)/AL43,(Z146+AM31*D19)/AM43)*AN43 -> 470.4 | BH104: =MIN((AA142+AM31*D19)/AI43,(AA143+AM31*D19)/AJ43,(AA144+AM31*D19)/AK43,(AA145+AM31*D19)/AL43,(AA146+AM31*D19)/AM43)*AN43 -> 467.2 | BI104: =MIN((AB142+AM31*D19)/AI43,(AB143+AM31*D19)/AJ43,(AB144+AM31*D19)/AK43,(AB145+AM31*D19)/AL43,(AB146+AM31*D19)/AM43)*AN43 -> 470.4 | BJ104: =MIN((AC142+AM31*D19)/AI43,(AC143+AM31*D19)/AJ43,(AC144+AM31*D19)/AK43,(AC145+AM31*D19)/AL43,(AC146+AM31*D19)/AM43)*AN43 -> 477.6 | BK104: =MIN((AD142+AM31*D19)/AI43,(AD143+AM31*D19)/AJ43,(AD144+AM31*D19)/AK43,(AD145+AM31*D19)/AL43,(AD146+AM31*D19)/AM43)*AN43 -> 458.4 | BL104: =MIN((AE142+AM31*D19)/AI43,(AE143+AM31*D19)/AJ43,(AE144+AM31*D19)/AK43,(AE145+AM31*D19)/AL43,(AE146+AM31*D19)/AM43)*AN43 -> 460 | BM104: =MIN((AF142+AM31*D19)/AI43,(AF143+AM31*D19)/AJ43,(AF144+AM31*D19)/AK43,(AF145+AM31*D19)/AL43,(AF146+AM31*D19)/AM43)*AN43 -> 477.6 | BN104: 482.4 | BP104: DS499 | BQ104: kit 1 | BR104: - | BS104: kit 2A | BT104: - | BU104: kit 2A | BV104: - | BW104: kit 4A | BX104: - | BY104: kit 4A | BZ104: - | CA104: kit 4B | CB104: - | CC104: kit 4B | CD104: - | CE104: kit 4B | CF104: - | CG104: kit 1 | CH104: - | CI104: kit 1 | CJ104: - | CK104: kit 4B | CL104: - | CM104: -
E105: =IF(G12<>"",G12,"") -> DS499 | F105: 2 | G105: =IF(G12<>"",(R69/100+M12/500)/100,"") -> 0.07648 | H105: =IF(G12<>"",IF(ISNA(IF(VLOOKUP(G12,$AG$8:$AT$25,14,FALSE)="","",(HLOOKUP(VLOOKUP(G12,$AY$10:$AZ$20,2,FALSE),S64:AF69,6,FALSE)/100+M12/500)/100)),G105,IF(VLOOKUP(G12,$AG$8:$AT$25,14,FALSE)="","",(HLOOKUP(VLOOKUP(G12,$AY$10:$AZ$20,2,FALSE),S64:AF69,6,FALSE)/100+M12/500)/100)),"") -> 0.08078 | I105: =IF(G12<>"",IF(ISNA(IF(VLOOKUP(G12,$AG$8:$AT$25,14,FALSE)="","",((HLOOKUP(VLOOKUP(G12,$AY$10:$AZ$20,2,FALSE),$S$64:$AF$69,6,FALSE)+IF(HLOOKUP(F105,$AH$7:$AR$31,21,FALSE)=1,D19,0))/100+M12/500)/100)),H105,IF(VLOOKUP(G12,$AG$8:$AT$25,14,FALSE)="","",((HLOOKUP(VLOOKUP(G12,$AY$10:$AZ$20,2,FALSE),$S$64:$AF$69,6,FALSE)+IF(HLOOKUP(F105,$AH$7:$AR$31,21,FALSE)=1,D19,0))/100+M12/500)/100)),"") -> 0.08078 | AH105: £vente | AI105: =MIN((S149+AL31*D19)/AI42,(S150+AL31*D19)/AJ42,(S151+AL31*D19)/AK42,(S152+AL31*D19)/AL42,(S153+AL31*D19)/AM42)*AN42 -> 640 | AJ105: =MIN((T149+AL31*D19)/AI42,(T150+AL31*D19)/AJ42,(T151+AL31*D19)/AK42,(T152+AL31*D19)/AL42,(T153+AL31*D19)/AM42)*AN42 -> 676 | AK105: =MIN((U149+AL31*D19)/AI42,(U150+AL31*D19)/AJ42,(U151+AL31*D19)/AK42,(U152+AL31*D19)/AL42,(U153+AL31*D19)/AM42)*AN42 -> 667 | AL105: =MIN((V149+AL31*D19)/AI42,(V150+AL31*D19)/AJ42,(V151+AL31*D19)/AK42,(V152+AL31*D19)/AL42,(V153+AL31*D19)/AM42)*AN42 -> 685 | AM105: =MIN((W149+AL31*D19)/AI42,(W150+AL31*D19)/AJ42,(W151+AL31*D19)/AK42,(W152+AL31*D19)/AL42,(W153+AL31*D19)/AM42)*AN42 -> 685 | AN105: =MIN((X149+AL31*D19)/AI42,(X150+AL31*D19)/AJ42,(X151+AL31*D19)/AK42,(X152+AL31*D19)/AL42,(X153+AL31*D19)/AM42)*AN42 -> 676 | AO105: =MIN((Y149+AL31*D19)/AI42,(Y150+AL31*D19)/AJ42,(Y151+AL31*D19)/AK42,(Y152+AL31*D19)/AL42,(Y153+AL31*D19)/AM42)*AN42 -> 670 | AP105: =MIN((Z149+AL31*D19)/AI42,(Z150+AL31*D19)/AJ42,(Z151+AL31*D19)/AK42,(Z152+AL31*D19)/AL42,(Z153+AL31*D19)/AM42)*AN42 -> 670 | AQ105: =MIN((AA149+AL31*D19)/AI42,(AA150+AL31*D19)/AJ42,(AA151+AL31*D19)/AK42,(AA152+AL31*D19)/AL42,(AA153+AL31*D19)/AM42)*AN42 -> 666 | AR105: =MIN((AB149+AL31*D19)/AI42,(AB150+AL31*D19)/AJ42,(AB151+AL31*D19)/AK42,(AB152+AL31*D19)/AL42,(AB153+AL31*D19)/AM42)*AN42 -> 651 | AS105: =MIN((AC149+AL31*D19)/AI42,(AC150+AL31*D19)/AJ42,(AC151+AL31*D19)/AK42,(AC152+AL31*D19)/AL42,(AC153+AL31*D19)/AM42)*AN42 -> 655 | AT105: =MIN((AD149+AL31*D19)/AI42,(AD150+AL31*D19)/AJ42,(AD151+AL31*D19)/AK42,(AD152+AL31*D19)/AL42,(AD153+AL31*D19)/AM42)*AN42 -> 670 | AU105: =MIN((AE149+AL31*D19)/AI42,(AE150+AL31*D19)/AJ42,(AE151+AL31*D19)/AK42,(AE152+AL31*D19)/AL42,(AE153+AL31*D19)/AM42)*AN42 -> 648 | AV105: =MIN((AF149+AL31*D19)/AI42,(AF150+AL31*D19)/AJ42,(AF151+AL31*D19)/AK42,(AF152+AL31*D19)/AL42,(AF153+AL31*D19)/AM42)*AN42 -> 655 | AW105: 685 | AY105: £vente | AZ105: =MIN((S149+AM31*D19)/AI43,(S150+AM31*D19)/AJ43,(S151+AM31*D19)/AK43,(S152+AM31*D19)/AL43,(S153+AM31*D19)/AM43)*AN43 -> 502.4 | BA105: =MIN((T149+AM31*D19)/AI43,(T150+AM31*D19)/AJ43,(T151+AM31*D19)/AK43,(T152+AM31*D19)/AL43,(T153+AM31*D19)/AM43)*AN43 -> 536.8 | BB105: =MIN((U149+AM31*D19)/AI43,(U150+AM31*D19)/AJ43,(U151+AM31*D19)/AK43,(U152+AM31*D19)/AL43,(U153+AM31*D19)/AM43)*AN43 -> 533.6 | BC105: =MIN((V149+AM31*D19)/AI43,(V150+AM31*D19)/AJ43,(V151+AM31*D19)/AK43,(V152+AM31*D19)/AL43,(V153+AM31*D19)/AM43)*AN43 -> 544.8 | BD105: =MIN((W149+AM31*D19)/AI43,(W150+AM31*D19)/AJ43,(W151+AM31*D19)/AK43,(W152+AM31*D19)/AL43,(W153+AM31*D19)/AM43)*AN43 -> 534.4 | BE105: =MIN((X149+AM31*D19)/AI43,(X150+AM31*D19)/AJ43,(X151+AM31*D19)/AK43,(X152+AM31*D19)/AL43,(X153+AM31*D19)/AM43)*AN43 -> 534.4 | BF105: =MIN((Y149+AM31*D19)/AI43,(Y150+AM31*D19)/AJ43,(Y151+AM31*D19)/AK43,(Y152+AM31*D19)/AL43,(Y153+AM31*D19)/AM43)*AN43 -> 530.4 | BG105: =MIN((Z149+AM31*D19)/AI43,(Z150+AM31*D19)/AJ43,(Z151+AM31*D19)/AK43,(Z152+AM31*D19)/AL43,(Z153+AM31*D19)/AM43)*AN43 -> 536 | BH105: =MIN((AA149+AM31*D19)/AI43,(AA150+AM31*D19)/AJ43,(AA151+AM31*D19)/AK43,(AA152+AM31*D19)/AL43,(AA153+AM31*D19)/AM43)*AN43 -> 532.8 | BI105: =MIN((AB149+AM31*D19)/AI43,(AB150+AM31*D19)/AJ43,(AB151+AM31*D19)/AK43,(AB152+AM31*D19)/AL43,(AB153+AM31*D19)/AM43)*AN43 -> 520.8 | BJ105: =MIN((AC149+AM31*D19)/AI43,(AC150+AM31*D19)/AJ43,(AC151+AM31*D19)/AK43,(AC152+AM31*D19)/AL43,(AC153+AM31*D19)/AM43)*AN43 -> 524 | BK105: =MIN((AD149+AM31*D19)/AI43,(AD150+AM31*D19)/AJ43,(AD151+AM31*D19)/AK43,(AD152+AM31*D19)/AL43,(AD153+AM31*D19)/AM43)*AN43 -> 530.4 | BL105: =MIN((AE149+AM31*D19)/AI43,(AE150+AM31*D19)/AJ43,(AE151+AM31*D19)/AK43,(AE152+AM31*D19)/AL43,(AE153+AM31*D19)/AM43)*AN43 -> 518.4 | BM105: =MIN((AF149+AM31*D19)/AI43,(AF150+AM31*D19)/AJ43,(AF151+AM31*D19)/AK43,(AF152+AM31*D19)/AL43,(AF153+AM31*D19)/AM43)*AN43 -> 524 | BN105: 544.8 | BP105: 3 moy 513 | BQ105: kit 1 | BR105: - | BS105: kit 2A | BT105: - | BU105: kit 2A | BV105: - | BW105: kit 4A | BX105: - | BY105: kit 4A | BZ105: - | CA105: kit 4B | CB105: - | CC105: kit 8 | CD105: kit 8 | CE105: kit 8 | CF105: kit 8 | CG105: kit 1 | CH105: - | CI105: kit 1 | CJ105: - | CK105: kit 8 | CL105: kit 8 | CM105: -
E106: 3 moy 513 | F106: 3 | G106: =IF(G13<>"",(R76/100+M13/500)/100,"") -> 0.08746 | H106: =IF(G13<>"",IF(ISNA(IF(VLOOKUP(G13,$AG$8:$AT$25,14,FALSE)="","",(HLOOKUP(VLOOKUP(G13,$AY$10:$AZ$20,2,FALSE),S71:AF76,6,FALSE)/100+M13/500)/100)),G106,IF(VLOOKUP(G13,$AG$8:$AT$25,14,FALSE)="","",(HLOOKUP(VLOOKUP(G13,$AY$10:$AZ$20,2,FALSE),S71:AF76,6,FALSE)/100+M13/500)/100)),"") -> 0.09176 | I106: =IF(G13<>"",IF(ISNA(IF(VLOOKUP(G13,$AG$8:$AT$25,14,FALSE)="","",((HLOOKUP(VLOOKUP(G13,$AY$10:$AZ$20,2,FALSE),$S$71:$AF$76,6,FALSE)+IF(HLOOKUP(F106,$AH$7:$AR$31,21,FALSE)=1,D19,0))/100+M13/500)/100)),H106,IF(VLOOKUP(G13,$AG$8:$AT$25,14,FALSE)="","",((HLOOKUP(VLOOKUP(G13,$AY$10:$AZ$20,2,FALSE),$S$71:$AF$76,6,FALSE)+IF(HLOOKUP(F106,$AH$7:$AR$31,21,FALSE)=1,D19,0))/100+M13/500)/100)),"") -> 0.09176 | R106: =G18 -> 8 moy 492 | S106: =S99 -> kit 1 | T106: =T99 -> kit 2A | U106: kit 2B | V106: kit 4A | W106: kit 4B | X106: kit 5 | Y106: kit 6A | Z106: kit 6B | AA106: kit 7 | AB106: kit 8 | AC106: kit 9A | AD106: kit 9B | AE106: kit 10 | AF106: kit 11 | AH106: @3612 | AI106: =MIN((S156+AL31*D19)/AI42,(S157+AL31*D19)/AJ42,(S158+AL31*D19)/AK42,(S159+AL31*D19)/AL42,(S160+AL31*D19)/AM42)*AN42 -> 504 | AJ106: =MIN((T156+AL31*D19)/AI42,(T157+AL31*D19)/AJ42,(T158+AL31*D19)/AK42,(T159+AL31*D19)/AL42,(T160+AL31*D19)/AM42)*AN42 -> 540 | AK106: =MIN((U156+AL31*D19)/AI42,(U157+AL31*D19)/AJ42,(U158+AL31*D19)/AK42,(U159+AL31*D19)/AL42,(U160+AL31*D19)/AM42)*AN42 -> 531 | AL106: =MIN((V156+AL31*D19)/AI42,(V157+AL31*D19)/AJ42,(V158+AL31*D19)/AK42,(V159+AL31*D19)/AL42,(V160+AL31*D19)/AM42)*AN42 -> 549 | AM106: =MIN((W156+AL31*D19)/AI42,(W157+AL31*D19)/AJ42,(W158+AL31*D19)/AK42,(W159+AL31*D19)/AL42,(W160+AL31*D19)/AM42)*AN42 -> 549 | AN106: =MIN((X156+AL31*D19)/AI42,(X157+AL31*D19)/AJ42,(X158+AL31*D19)/AK42,(X159+AL31*D19)/AL42,(X160+AL31*D19)/AM42)*AN42 -> 540 | AO106: =MIN((Y156+AL31*D19)/AI42,(Y157+AL31*D19)/AJ42,(Y158+AL31*D19)/AK42,(Y159+AL31*D19)/AL42,(Y160+AL31*D19)/AM42)*AN42 -> 534 | AP106: =MIN((Z156+AL31*D19)/AI42,(Z157+AL31*D19)/AJ42,(Z158+AL31*D19)/AK42,(Z159+AL31*D19)/AL42,(Z160+AL31*D19)/AM42)*AN42 -> 534 | AQ106: =MIN((AA156+AL31*D19)/AI42,(AA157+AL31*D19)/AJ42,(AA158+AL31*D19)/AK42,(AA159+AL31*D19)/AL42,(AA160+AL31*D19)/AM42)*AN42 -> 530 | AR106: =MIN((AB156+AL31*D19)/AI42,(AB157+AL31*D19)/AJ42,(AB158+AL31*D19)/AK42,(AB159+AL31*D19)/AL42,(AB160+AL31*D19)/AM42)*AN42 -> 515 | AS106: =MIN((AC156+AL31*D19)/AI42,(AC157+AL31*D19)/AJ42,(AC158+AL31*D19)/AK42,(AC159+AL31*D19)/AL42,(AC160+AL31*D19)/AM42)*AN42 -> 519 | AT106: =MIN((AD156+AL31*D19)/AI42,(AD157+AL31*D19)/AJ42,(AD158+AL31*D19)/AK42,(AD159+AL31*D19)/AL42,(AD160+AL31*D19)/AM42)*AN42 -> 534 | AU106: =MIN((AE156+AL31*D19)/AI42,(AE157+AL31*D19)/AJ42,(AE158+AL31*D19)/AK42,(AE159+AL31*D19)/AL42,(AE160+AL31*D19)/AM42)*AN42 -> 512 | AV106: =MIN((AF156+AL31*D19)/AI42,(AF157+AL31*D19)/AJ42,(AF158+AL31*D19)/AK42,(AF159+AL31*D19)/AL42,(AF160+AL31*D19)/AM42)*AN42 -> 519 | AW106: 549 | AY106: @3612 | AZ106: =MIN((S156+AM31*D19)/AI43,(S157+AM31*D19)/AJ43,(S158+AM31*D19)/AK43,(S159+AM31*D19)/AL43,(S160+AM31*D19)/AM43)*AN43 -> 403.2 | BA106: =MIN((T156+AM31*D19)/AI43,(T157+AM31*D19)/AJ43,(T158+AM31*D19)/AK43,(T159+AM31*D19)/AL43,(T160+AM31*D19)/AM43)*AN43 -> 432 | BB106: =MIN((U156+AM31*D19)/AI43,(U157+AM31*D19)/AJ43,(U158+AM31*D19)/AK43,(U159+AM31*D19)/AL43,(U160+AM31*D19)/AM43)*AN43 -> 424.8 | BC106: =MIN((V156+AM31*D19)/AI43,(V157+AM31*D19)/AJ43,(V158+AM31*D19)/AK43,(V159+AM31*D19)/AL43,(V160+AM31*D19)/AM43)*AN43 -> 439.2 | BD106: =MIN((W156+AM31*D19)/AI43,(W157+AM31*D19)/AJ43,(W158+AM31*D19)/AK43,(W159+AM31*D19)/AL43,(W160+AM31*D19)/AM43)*AN43 -> 439.2 | BE106: =MIN((X156+AM31*D19)/AI43,(X157+AM31*D19)/AJ43,(X158+AM31*D19)/AK43,(X159+AM31*D19)/AL43,(X160+AM31*D19)/AM43)*AN43 -> 432 | BF106: =MIN((Y156+AM31*D19)/AI43,(Y157+AM31*D19)/AJ43,(Y158+AM31*D19)/AK43,(Y159+AM31*D19)/AL43,(Y160+AM31*D19)/AM43)*AN43 -> 427.2 | BG106: =MIN((Z156+AM31*D19)/AI43,(Z157+AM31*D19)/AJ43,(Z158+AM31*D19)/AK43,(Z159+AM31*D19)/AL43,(Z160+AM31*D19)/AM43)*AN43 -> 427.2 | BH106: =MIN((AA156+AM31*D19)/AI43,(AA157+AM31*D19)/AJ43,(AA158+AM31*D19)/AK43,(AA159+AM31*D19)/AL43,(AA160+AM31*D19)/AM43)*AN43 -> 424 | BI106: =MIN((AB156+AM31*D19)/AI43,(AB157+AM31*D19)/AJ43,(AB158+AM31*D19)/AK43,(AB159+AM31*D19)/AL43,(AB160+AM31*D19)/AM43)*AN43 -> 412 | BJ106: =MIN((AC156+AM31*D19)/AI43,(AC157+AM31*D19)/AJ43,(AC158+AM31*D19)/AK43,(AC159+AM31*D19)/AL43,(AC160+AM31*D19)/AM43)*AN43 -> 415.2 | BK106: =MIN((AD156+AM31*D19)/AI43,(AD157+AM31*D19)/AJ43,(AD158+AM31*D19)/AK43,(AD159+AM31*D19)/AL43,(AD160+AM31*D19)/AM43)*AN43 -> 427.2 | BL106: =MIN((AE156+AM31*D19)/AI43,(AE157+AM31*D19)/AJ43,(AE158+AM31*D19)/AK43,(AE159+AM31*D19)/AL43,(AE160+AM31*D19)/AM43)*AN43 -> 409.6 | BM106: =MIN((AF156+AM31*D19)/AI43,(AF157+AM31*D19)/AJ43,(AF158+AM31*D19)/AK43,(AF159+AM31*D19)/AL43,(AF160+AM31*D19)/AM43)*AN43 -> 415.2 | BN106: 439.2 | BP106: av | BQ106: kit 1 | BR106: - | BS106: kit 2A | BT106: - | BU106: kit 2A | BV106: - | BW106: kit 4A | BX106: - | BY106: kit 4A | BZ106: - | CA106: kit 2A | CB106: - | CC106: kit 6A | CD106: kit 8 | CE106: kit 6A | CF106: kit 8 | CG106: kit 1 | CH106: - | CI106: kit 1 | CJ106: - | CK106: kit 6A | CL106: kit 8 | CM106: -
E107: av | F107: 4 | G107: =IF(G14<>"",(R83/100+M14/500)/100,"") -> 0.07916 | H107: =IF(G14<>"",IF(ISNA(IF(VLOOKUP(G14,$AG$8:$AT$25,14,FALSE)="","",(HLOOKUP(VLOOKUP(G14,$AY$10:$AZ$20,2,FALSE),S78:AF83,6,FALSE)/100+M14/500)/100)),G107,IF(VLOOKUP(G14,$AG$8:$AT$25,14,FALSE)="","",(HLOOKUP(VLOOKUP(G14,$AY$10:$AZ$20,2,FALSE),S78:AF83,6,FALSE)/100+M14/500)/100)),"") -> 0.08286 | I107: =IF(G14<>"",IF(ISNA(IF(VLOOKUP(G14,$AG$8:$AT$25,14,FALSE)="","",((HLOOKUP(VLOOKUP(G14,$AY$10:$AZ$20,2,FALSE),$S$78:$AF$83,6,FALSE)+IF(HLOOKUP(F107,$AH$7:$AR$31,21,FALSE)=1,D19,0))/100+M14/500)/100)),H107,IF(VLOOKUP(G14,$AG$8:$AT$25,14,FALSE)="","",((HLOOKUP(VLOOKUP(G14,$AY$10:$AZ$20,2,FALSE),$S$78:$AF$83,6,FALSE)+IF(HLOOKUP(F107,$AH$7:$AR$31,21,FALSE)=1,D19,0))/100+M14/500)/100)),"") -> 0.08286 | R107: =H18+AF39+D16+D17+D21 -> 646 | S107: =R107+Q10 -> 675 | T107: =R107+R10 -> 711 | U107: =R107+S10 -> 702 | V107: =R107+T10 -> 720 | W107: =R107+U10 -> 720 | X107: =R107+V10 -> 711 | Y107: =R107+W10 -> 705 | Z107: =R107+X10 -> 705 | AA107: =R107+Y10 -> 701 | AB107: =R107+Z10 -> 686 | AC107: =R107+AA10 -> 690 | AD107: =R107+AB10 -> 705 | AE107: =R107+AC10 -> 683 | AF107: =R107+AD10 -> 690 | AI107: =MIN((S163+AL31*D19)/AI42,(S164+AL31*D19)/AJ42,(S165+AL31*D19)/AK42,(S166+AL31*D19)/AL42,(S167+AL31*D19)/AM42)*AN42 ->  | AJ107: =MIN((T163+AL31*D19)/AI42,(T164+AL31*D19)/AJ42,(T165+AL31*D19)/AK42,(T166+AL31*D19)/AL42,(T167+AL31*D19)/AM42)*AN42 ->  | AK107: =MIN((U163+AL31*D19)/AI42,(U164+AL31*D19)/AJ42,(U165+AL31*D19)/AK42,(U166+AL31*D19)/AL42,(U167+AL31*D19)/AM42)*AN42 ->  | AL107: =MIN((V163+AL31*D19)/AI42,(V164+AL31*D19)/AJ42,(V165+AL31*D19)/AK42,(V166+AL31*D19)/AL42,(V167+AL31*D19)/AM42)*AN42 ->  | AM107: =MIN((W163+AL31*D19)/AI42,(W164+AL31*D19)/AJ42,(W165+AL31*D19)/AK42,(W166+AL31*D19)/AL42,(W167+AL31*D19)/AM42)*AN42 ->  | AN107: =MIN((X163+AL31*D19)/AI42,(X164+AL31*D19)/AJ42,(X165+AL31*D19)/AK42,(X166+AL31*D19)/AL42,(X167+AL31*D19)/AM42)*AN42 ->  | AO107: =MIN((Y163+AL31*D19)/AI42,(Y164+AL31*D19)/AJ42,(Y165+AL31*D19)/AK42,(Y166+AL31*D19)/AL42,(Y167+AL31*D19)/AM42)*AN42 ->  | AP107: =MIN((Z163+AL31*D19)/AI42,(Z164+AL31*D19)/AJ42,(Z165+AL31*D19)/AK42,(Z166+AL31*D19)/AL42,(Z167+AL31*D19)/AM42)*AN42 ->  | AQ107: =MIN((AA163+AL31*D19)/AI42,(AA164+AL31*D19)/AJ42,(AA165+AL31*D19)/AK42,(AA166+AL31*D19)/AL42,(AA167+AL31*D19)/AM42)*AN42 ->  | AR107: =MIN((AB163+AL31*D19)/AI42,(AB164+AL31*D19)/AJ42,(AB165+AL31*D19)/AK42,(AB166+AL31*D19)/AL42,(AB167+AL31*D19)/AM42)*AN42 ->  | AS107: =MIN((AC163+AL31*D19)/AI42,(AC164+AL31*D19)/AJ42,(AC165+AL31*D19)/AK42,(AC166+AL31*D19)/AL42,(AC167+AL31*D19)/AM42)*AN42 ->  | AT107: =MIN((AD163+AL31*D19)/AI42,(AD164+AL31*D19)/AJ42,(AD165+AL31*D19)/AK42,(AD166+AL31*D19)/AL42,(AD167+AL31*D19)/AM42)*AN42 ->  | AU107: =MIN((AE163+AL31*D19)/AI42,(AE164+AL31*D19)/AJ42,(AE165+AL31*D19)/AK42,(AE166+AL31*D19)/AL42,(AE167+AL31*D19)/AM42)*AN42 ->  | AV107: =MIN((AF163+AL31*D19)/AI42,(AF164+AL31*D19)/AJ42,(AF165+AL31*D19)/AK42,(AF166+AL31*D19)/AL42,(AF167+AL31*D19)/AM42)*AN42 ->  | AZ107: =MIN((S163+AM31*D19)/AI43,(S164+AM31*D19)/AJ43,(S165+AM31*D19)/AK43,(S166+AM31*D19)/AL43,(S167+AM31*D19)/AM43)*AN43 ->  | BA107: =MIN((T163+AM31*D19)/AI43,(T164+AM31*D19)/AJ43,(T165+AM31*D19)/AK43,(T166+AM31*D19)/AL43,(T167+AM31*D19)/AM43)*AN43 ->  | BB107: =MIN((U163+AM31*D19)/AI43,(U164+AM31*D19)/AJ43,(U165+AM31*D19)/AK43,(U166+AM31*D19)/AL43,(U167+AM31*D19)/AM43)*AN43 ->  | BC107: =MIN((V163+AM31*D19)/AI43,(V164+AM31*D19)/AJ43,(V165+AM31*D19)/AK43,(V166+AM31*D19)/AL43,(V167+AM31*D19)/AM43)*AN43 ->  | BD107: =MIN((W163+AM31*D19)/AI43,(W164+AM31*D19)/AJ43,(W165+AM31*D19)/AK43,(W166+AM31*D19)/AL43,(W167+AM31*D19)/AM43)*AN43 ->  | BE107: =MIN((X163+AM31*D19)/AI43,(X164+AM31*D19)/AJ43,(X165+AM31*D19)/AK43,(X166+AM31*D19)/AL43,(X167+AM31*D19)/AM43)*AN43 ->  | BF107: =MIN((Y163+AM31*D19)/AI43,(Y164+AM31*D19)/AJ43,(Y165+AM31*D19)/AK43,(Y166+AM31*D19)/AL43,(Y167+AM31*D19)/AM43)*AN43 ->  | BG107: =MIN((Z163+AM31*D19)/AI43,(Z164+AM31*D19)/AJ43,(Z165+AM31*D19)/AK43,(Z166+AM31*D19)/AL43,(Z167+AM31*D19)/AM43)*AN43 ->  | BH107: =MIN((AA163+AM31*D19)/AI43,(AA164+AM31*D19)/AJ43,(AA165+AM31*D19)/AK43,(AA166+AM31*D19)/AL43,(AA167+AM31*D19)/AM43)*AN43 ->  | BI107: =MIN((AB163+AM31*D19)/AI43,(AB164+AM31*D19)/AJ43,(AB165+AM31*D19)/AK43,(AB166+AM31*D19)/AL43,(AB167+AM31*D19)/AM43)*AN43 ->  | BJ107: =MIN((AC163+AM31*D19)/AI43,(AC164+AM31*D19)/AJ43,(AC165+AM31*D19)/AK43,(AC166+AM31*D19)/AL43,(AC167+AM31*D19)/AM43)*AN43 ->  | BK107: =MIN((AD163+AM31*D19)/AI43,(AD164+AM31*D19)/AJ43,(AD165+AM31*D19)/AK43,(AD166+AM31*D19)/AL43,(AD167+AM31*D19)/AM43)*AN43 ->  | BL107: =MIN((AE163+AM31*D19)/AI43,(AE164+AM31*D19)/AJ43,(AE165+AM31*D19)/AK43,(AE166+AM31*D19)/AL43,(AE167+AM31*D19)/AM43)*AN43 ->  | BM107: =MIN((AF163+AM31*D19)/AI43,(AF164+AM31*D19)/AJ43,(AF165+AM31*D19)/AK43,(AF166+AM31*D19)/AL43,(AF167+AM31*D19)/AM43)*AN43 ->  | BP107: @5 | BQ107: kit 1 | BR107: - | BS107: kit 2A | BT107: - | BU107: kit 2A | BV107: - | BW107: kit 4A | BX107: - | BY107: kit 4A | BZ107: - | CA107: kit 2B | CB107: - | CC107: kit 2B | CD107: - | CE107: kit 2B | CF107: - | CG107: kit 1 | CH107: - | CI107: kit 9B | CJ107: kit 9B | CK107: kit 2B | CL107: - | CM107: -
